Workbook

Sheet SafetySummary (hidden)
GL4: NLF_ID | GM4: BLOG | GN4: ELOG
GN5: -0.01
E7: Current File Name | F7: CAM Tool FS_1.14
E8: Current File Path | F8: C:\Temp\
E9: Run CAM Tool Crash Data for Desired Sections | F9: X
E10: Run Congestion Model Weighted Average Data for Desired Sections | GL10: NLF_ID | GM10: Min(BTRS_LOG_POINTS6.LOGPOINT_COUNTY_NBR) | GN10: Max(BTRS_LOG_POINTS6.LOGPOINT_COUNTY_NBR) | GO10: Avg(BTRS_CONGESTION_SEGMENTS6.TOTAL_VOLUME_NBR) | GP10: Avg(BTRS_CONGESTION_SEGMENTS6.TRUCK_VOLUME_NBR) | GQ10: Avg(BTRS_CONGESTION_SEGMENTS6.VOLUME_CAPACITY_RATIO_NBR) | GR10: Min(BTRS_LOG_POINTS6.FUNCTIONAL_CLASS_CD) | GS10: Max(BTRS_LOG_POINTS6.FUNCTIONAL_CLASS_CD) | GT10: SUM(BTRS_LOG_POINTS6.SECTION_LENGTH_NBR)
E11: Run Road Inventory Segment Data (State & Local) for Desired Sections
A12: 1 | H12: 8 | I12: 9 | J12: 10 | K12: 11 | L12: 12 | M12: 13 | N12: 14 | O12: 15 | P12: 16 | Q12: 17 | R12: 18 | S12: 19 | T12: 20 | U12: 21 | V12: 22 | W12: 23 | X12: 24 | Y12: 25 | Z12: 26 | AA12: 27 | AB12: 28 | AC12: 29 | AD12: 30 | AE12: 31 | AF12: 32 | AI12: 33 | AJ12: 34 | AK12: 35 | AN12: 36 | AO12: 37 | AP12: 38 | AQ12: 39 | AR12: 40 | AS12: 41 | AT12: 42 | AU12: 43 | AV12: 44 | AW12: 45 | AX12: 46 | AY12: 47 | AZ12: 48 | BA12: 49 | BB12: 50 | BC12: 51 | BD12: 52 | BE12: 53 | BF12: 54 | BG12: 55 | BH12: 56 | BI12: 57 | BJ12: 58 | BK12: 59 | BL12: 60 | BM12: 61 | BN12: 62 | BO12: 63 | BP12: 64 | BQ12: 65 | BR12: 66 | BS12: 67 | BT12: 68 | BU12: 69 | BV12: 70 | BW12: 71 | BY12: 72 | BZ12: 73 | CA12: 74 | CB12: 75 | CC12: 76 | EB12: 140 | EC12: 141 | EE12: 147 | EF12: 148 | EG12: 149 | EH12: 150 | EI12: 151 | EJ12: 152 | EK12: 153 | EL12: 154 | EM12: 155 | EN12: 156 | EO12: 157 | EP12: 158 | EQ12: 159 | ER12: 160 | ES12: 161 | ET12: 162 | EU12: 163 | EV12: 164 | EW12: 165 | EX12: 166 | EY12: 167 | EZ12: 168 | FA12: 169 | FB12: 170 | FC12: 171 | FD12: 172 | FE12: 173 | FF12: 174 | FG12: 175 | FH12: 176 | FI12: 177 | FJ12: 178 | FK12: 179 | FL12: 180 | FM12: 181 | FN12: 182 | FO12: 183 | FP12: 184 | FQ12: 185 | FR12: 186 | FS12: 187 | FT12: 188 | FU12: 189 | FV12: 190 | GI12: 191 | GJ12: 192 | GK12: 193 | GL12: 194 | GM12: 195 | GN12: 196 | GO12: 197 | GP12: 198 | GQ12: 199 | GR12: 200 | GS12: 201 | GT12: 202 | GU12: 203 | GV12: 204 | GW12: 205 | GX12: 206
E13: Run Ellis Project Info for Desired Sections | AK13: =SUM(AJ16:AK16)*AK14/$AN$14 -> 14.94288639 | AL13: =AL16*AL14/$AN$14 -> 20.28337416 | AM13: =AM16*AM14/$AN$14 -> 1.771764964 | AN13: 8
E14: Run Current Pavement Condition Data for Desired Sections | P14: =IF(GO14 = "","",GO14) ->  | Q14: =IF(GP14 = "","",GP14) ->  | R14: =IF(GQ14 = "","",GQ14) ->  | S14: =IF(GR14 = "","",GR14) ->  | T14: =IF(GS14 = "","",GS14) ->  | AK14: 408673 | AL14: 55473 | AM14: 48456 | AN14: 27349
E15: Run Current Bridge Condition Data for Desired Sections | AF15: People | AJ15: Crash Severity | AO15: Year | AY15: Day | BF15: Crash Type | BZ15: Road Condition | CH15: Road Contour | CM15: Light Condition | CS15: Location | DG15: Emphasis Area | DR15: Unit 1 Contributing Factor | EI15: =IF(K15="","",(EH15*1000000)/(#REF!*365*EM15*3)) ->  | GS15: =MID(GT15,(FIND("[",GT15)+1),(FIND("]",GT15)-1)-(FIND("[",GT15))) -> CLI-22-2.62 (SR-380 Creek Rd) cam-tool.xlsm | GT15: =CELL("filename") -> X:\Planning\Traffic_Safety\Safety\Safety Applications and Results\2025-03 Applications\202503D08-02(CLI US-22 @ SR-380)\[CLI-22-2.62 (SR-380 Creek Rd) cam-tool.xlsm]Full Crash Data
A16: 18 | B16: =IF(C16=C14,B14,B14+1) -> 0 | D16: Require User to Manually Select File Path and Name for Desired Sections Where a CAM Tool is "X"ed in Column B | K16: =IF(H16="","",IF(D16="I",1,H16-G16)) ->  | M16: =IF(GK16="","",HYPERLINK(GK16)) ->  | N16: Default is Blank - Logged | P16: =IF(GO16 = "","",GO16) ->  | Q16: =IF(GP16 = "","",GP16) ->  | R16: =IF(GQ16 = "","",GQ16) ->  | S16: =IF(GR16 = "","",GR16) ->  | T16: =IF(GS16 = "","",GS16) ->  | X16: =COUNT('Full Crash Data'!B:B) -> 22 | Y16: =IF(ISERROR((X16*1000000)/(K16*365*GO16*(J16-I16+1))),"",(X16*1000000)/(K16*365*GO16*(J16-I16+1))) ->  | Z16: =ROUND(X16/'Full Crash Data'!$E$10-'Full Crash Data'!$E$11,2) ->  | AA16: =ROUND(SUM($AK$13:$AN$13),0) -> 45 | AF16: =SUM('Full Crash Data'!U:U) -> 91 | AG16: =SUM('Full Crash Data'!U:U) -> 91 | AH16: =SUM('Full Crash Data'!V:V) -> 43 | AI16: =SUM('Full Crash Data'!W:W) -> 70 | AJ16: =COUNTIFS('Full Crash Data'!$F:$F,AJ$17) -> 0 | AK16: =COUNTIFS('Full Crash Data'!$F:$F,AK$17) -> 1 | AL16: =COUNTIFS('Full Crash Data'!$F:$F,AL$17) -> 10 | AM16: =COUNTIFS('Full Crash Data'!$F:$F,AM$17) -> 1 | AN16: =COUNTIFS('Full Crash Data'!$F:$F,AN$17) -> 8 | AO16: =COUNTIFS('Full Crash Data'!$C:$C,AO$17) -> 0 | AP16: =COUNTIFS('Full Crash Data'!$C:$C,AP$17) -> 0 | AQ16: =COUNTIFS('Full Crash Data'!$C:$C,AQ$17) -> 0 | AR16: =COUNTIFS('Full Crash Data'!$C:$C,AR$17) -> 0 | AS16: =COUNTIFS('Full Crash Data'!$C:$C,AS$17) -> 0 | AT16: =COUNTIFS('Full Crash Data'!$C:$C,AT$17) -> 0 | AU16: =COUNTIFS('Full Crash Data'!$C:$C,AU$17) -> 4 | AV16: =COUNTIFS('Full Crash Data'!$C:$C,AV$17) -> 7 | AW16: =COUNTIFS('Full Crash Data'!$C:$C,AW$17) -> 9 | AX16: =COUNTIFS('Full Crash Data'!$C:$C,AX$17) -> 0 | AY16: =COUNTIFS('Full Crash Data'!$AR:$AR,AY$17) -> 3 | AZ16: =COUNTIFS('Full Crash Data'!$AR:$AR,AZ$17) -> 5 | BA16: =COUNTIFS('Full Crash Data'!$AR:$AR,BA$17) -> 3 | BB16: =COUNTIFS('Full Crash Data'!$AR:$AR,BB$17) -> 0 | BC16: =COUNTIFS('Full Crash Data'!$AR:$AR,BC$17) -> 2 | BD16: =COUNTIFS('Full Crash Data'!$AR:$AR,BD$17) -> 5 | BE16: =COUNTIFS('Full Crash Data'!$AR:$AR,BE$17) -> 2 | BF16: =COUNTIFS('Full Crash Data'!$G:$G,BF$17) -> 0 | BG16: =COUNTIFS('Full Crash Data'!$G:$G,BG$17) -> 1 | BH16: =COUNTIFS('Full Crash Data'!$G:$G,BH$17) -> 2 | BI16: =COUNTIFS('Full Crash Data'!$G:$G,BI$17) -> 0 | BJ16: =COUNTIFS('Full Crash Data'!$G:$G,BJ$17) -> 0 | BK16: =COUNTIFS('Full Crash Data'!$G:$G,BK$17) -> 1 | BL16: =COUNTIFS('Full Crash Data'!$G:$G,BL$17) -> 15 | BM16: =COUNTIFS('Full Crash Data'!$G:$G,BM$17) -> 0 | BN16: =COUNTIFS('Full Crash Data'!$G:$G,BN$17) -> 0 | BO16: =COUNTIFS('Full Crash Data'!$G:$G,BO$17) -> 0 | BP16: =COUNTIFS('Full Crash Data'!$G:$G,BP$17) -> 0 | BQ16: =COUNTIFS('Full Crash Data'!$G:$G,BQ$17) -> 0 | BR16: =COUNTIFS('Full Crash Data'!$G:$G,BR$17) -> 0 | BS16: =COUNTIFS('Full Crash Data'!$G:$G,BS$17) -> 1 | BT16: =COUNTIFS('Full Crash Data'!$G:$G,BT$17) -> 0 | BU16: =COUNTIFS('Full Crash Data'!$G:$G,BU$17) -> 0 | BV16: =COUNTIFS('Full Crash Data'!$G:$G,BV$17) -> 0 | BW16: =COUNTIFS('Full Crash Data'!$G:$G,BW$17) -> 0 | BX16: =COUNTIFS('Full Crash Data'!$G:$G,BX$17) -> 0 | BY16: =COUNTIFS('Full Crash Data'!$G:$G,BY$17) -> 0 | BZ16: =COUNTIFS('Full Crash Data'!$AT:$AT,BZ$17) -> 16 | CA16: =COUNTIFS('Full Crash Data'!$AT:$AT,CA$17) -> 4 | CB16: =COUNTIFS('Full Crash Data'!$AT:$AT,CB$17) -> 0 | CC16: =COUNTIFS('Full Crash Data'!$AT:$AT,CC$17) -> 0 | CD16: =COUNTIFS('Full Crash Data'!$AT:$AT,CD$17) -> 0 | CE16: =COUNTIFS('Full Crash Data'!$AT:$AT,CE$17) -> 0 | CF16: =COUNTIFS('Full Crash Data'!$AT:$AT,CF$17) -> 0 | CG16: =COUNTIFS('Full Crash Data'!$AT:$AT,CG$17) -> 1 | CH16: =COUNTIFS('Full Crash Data'!$AV:$AV,CH$17) -> 16 | CI16: =COUNTIFS('Full Crash Data'!$AV:$AV,CI$17) -> 4 | CJ16: =COUNTIFS('Full Crash Data'!$AV:$AV,CJ$17) -> 0 | CK16: =COUNTIFS('Full Crash Data'!$AV:$AV,CK$17) -> 0 | CL16: =COUNTIFS('Full Crash Data'!$AV:$AV,CL$17) -> 0 | CM16: =COUNTIFS('Full Crash Data'!$AU:$AU,CM$17) -> 15 | CN16: =COUNTIFS('Full Crash Data'!$AU:$AU,CN$17) -> 2 | CO16: =COUNTIFS('Full Crash Data'!$AU:$AU,CO$17) -> 0 | CP16: =COUNTIFS('Full Crash Data'!$AU:$AU,CP$17) -> 3 | CQ16: =COUNTIFS('Full Crash Data'!$AU:$AU,CQ$17) -> 0 | CR16: =COUNTIFS('Full Crash Data'!$AU:$AU,CR$17) -> 0 | CS16: =COUNTIFS('Full Crash Data'!$J:$J,CS$17) -> 9 | CT16: =COUNTIFS('Full Crash Data'!$J:$J,CT$17) -> 1 | CU16: =COUNTIFS('Full Crash Data'!$J:$J,CU$17) -> 10 | CV16: =COUNTIFS('Full Crash Data'!$J:$J,CV$17) -> 0 | CW16: =COUNTIFS('Full Crash Data'!$J:$J,CW$17) -> 0 | CX16: =COUNTIFS('Full Crash Data'!$J:$J,CX$17) -> 0 | CY16: =COUNTIFS('Full Crash Data'!$J:$J,CY$17) -> 0 | CZ16: =COUNTIFS('Full Crash Data'!$J:$J,CZ$17) -> 0 | DA16: =COUNTIFS('Full Crash Data'!$J:$J,DA$17) -> 0 | DB16: =COUNTIFS('Full Crash Data'!$J:$J,DB$17) -> 0 | DC16: =COUNTIFS('Full Crash Data'!$J:$J,DC$17) -> 0 | DD16: =COUNTIFS('Full Crash Data'!$J:$J,DD$17) -> 0 | DE16: =COUNTIFS('Full Crash Data'!$J:$J,DE$17) -> 0 | DF16: =COUNTIFS('Full Crash Data'!$J:$J,DF$17) -> 0 | DG16: =COUNTIFS('Full Crash Data'!AV:AV,"Yes") -> 0 | DH16: =COUNTIFS('Full Crash Data'!AW:AW,"Yes") -> 2 | DI16: =COUNTIFS('Full Crash Data'!AX:AX,"Yes") -> 19 | DJ16: =COUNTIFS('Full Crash Data'!AY:AY,"Yes") -> 0 | DK16: =COUNTIFS('Full Crash Data'!AZ:AZ,"Yes") -> 1 | DL16: =COUNTIFS('Full Crash Data'!BA:BA,"Yes") -> 1 | DM16: =COUNTIFS('Full Crash Data'!BB:BB,"Yes") -> 0 | DN16: =COUNTIFS('Full Crash Data'!BC:BC,"Yes") -> 0 | DO16: =COUNTIFS('Full Crash Data'!BD:BD,"Yes") -> 1 | DP16: =COUNTIFS('Full Crash Data'!BE:BE,"Yes") -> 8 | DQ16: =COUNTIFS('Full Crash Data'!BF:BF,"Yes") -> 5 | DR16: =COUNTIFS('Full Crash Data'!$CN:$CN,DR$17) -> 1 | DS16: =COUNTIFS('Full Crash Data'!$CN:$CN,DS$17) -> 13 | DT16: =COUNTIFS('Full Crash Data'!$CN:$CN,DT$17) -> 0 | DU16: =COUNTIFS('Full Crash Data'!$CN:$CN,DU$17) -> 1 | DV16: =COUNTIFS('Full Crash Data'!$CN:$CN,DV$17) -> 0 | DW16: =COUNTIFS('Full Crash Data'!$CN:$CN,DW$17) -> 0 | DX16: =COUNTIFS('Full Crash Data'!$CN:$CN,DX$17) -> 0 | DY16: =COUNTIFS('Full Crash Data'!$CN:$CN,DY$17) -> 0 | DZ16: =COUNTIFS('Full Crash Data'!$CN:$CN,DZ$17) -> 0 | EA16: =COUNTIFS('Full Crash Data'!$CN:$CN,EA$17) -> 0 | EE16: =IF(C16=C15,"",C16) ->  | EF16: =IF(EE16="","",IF(D16="I","Intersection","Section")) ->  | EG16: =IF($EE16="","",SUMIF($C$18:$C$65536,$EE16,$K$18:$K$65536)) ->  | EH16: =IF($EE16="","",SUMIF($C$18:$C$65536,$EE16,$X$18:$X$65536)) ->  | EI16: =IF(EE16="","",IF(ISERROR((EH16*1000000)/(EG16*365*EM16*(J16-I16+1))),VALUE(0),(EH16*1000000)/(EG16*365*EM16*(J16-I16+1)))) ->  | EJ16: =IFERROR(IF($EE16="","",EH16/EG16/(J16-I16+1)),0) ->  | EK16: =IF($EE16="","",SUMIF($C$18:$C$65536,$EE16,$AA$18:$AA$65536)) ->  | EL16: =IF($EE16="","",IF(ISERROR((SUMIF($C$18:$C$65536,$EE16,$GU$18:$GU$65536)/EH16)),VALUE(0),(SUMIF($C$18:$C$65536,$EE16,$GU$18:$GU$65536)/EH16))) ->  | EM16: =IFERROR(IF($EE16="","",(SUMIF($C$18:$C$65536,$EE16,$GV$18:$GV$65536)/$EG16)),0) ->  | EN16: =IFERROR(IF($EE16="","",IF(ISERROR(EO16/EM16),VALUE(0),EO16/EM16)),0) ->  | EO16: =IFERROR(IF($EE16="","",(SUMIF($C$18:$C$65536,$EE16,$GW$18:$GW$65536)/$EG16)),0) ->  | EP16: =IFERROR(IF($EE16="","",(SUMIF($C$18:$C$65536,$EE16,$GX$18:$GX$65536)/$EG16)),0) ->  | GI16: =IF(ISERROR(GI15+1),VALUE(1),GI15+1) -> 1 | GJ16: =IF(A16="","",C16&"_"&MID(F16,2,3)&MID(F16,5,2)&MID(F16,9,3)&IF(MID(F16,13,1)="*","",MID(F16,13,1))&IF(MID(F16,12,1)="*","",MID(F16,12,1))&"; "&G16&"-"&H16&"_"&GI16) -> _; -_1 | GK16: =IF(C16="","",L16&GJ16&".xlsm") ->  | GL16: Do not modify cells below | GU16: =IF(ISERROR(AB16*X16),VALUE(0),AB16*X16) -> 0 | GV16: =IF(ISERROR(GO16*K16),VALUE(0),GO16*K16) -> 0 | GW16: =IF(ISERROR(GP16*K16),VALUE(0),GP16*K16) -> 0 | GX16: =IF(ISERROR(GQ16*K16),VALUE(0),GQ16*K16) -> 0
A17: RunNewData | B17: CreateCamTool | C17: Project_ID (Do Not Leave Blank) | D17: Default is S - Section Intersection (I) Or Section (S) | E17: Rural Non-Freeway Urban Non-Freeway Freeway Default is Rural Non-Freeway RSI_Location_Type | F17: Example: SFRAUS00040**C NLF_ID | G17: BEGIN_LOG | H17: END_LOG | I17: BEGIN_YEAR | J17: END_YEAR | K17: Length | L17: FilePath | M17: File Hyperlink | N17: Logged Crashes Only (Default - Leave Blank) For Logged and Unlogged Enter "U" in This Column | O17: Run All Crashes (Default - Leave Blank) To Exclude Animal Crashes Enter "A" in This Column To Exclude Work Zone Crashes Enter "W" in This Column To Exclude Both Animal & Work Zone Crashes Enter "B" in This Column | P17: WAADT | Q17: WATADT | R17: WA_VC | S17: MinFC | T17: MaxFC | X17: Total Crashes | Y17: Crash Rate | Z17: Crash Density (Crashes Per Mile Per Year) | AA17: EPDO | AB17: RSI | AF17: Fatalities | AG17: Serious Injury Supected | AH17: Minor Injury Suspected | AI17: Injury Possible | AJ17: (1) Fatal | AK17: (2) Serious Injury Suspected | AL17: (3) Minor Injury Suspected | AM17: (4) Injury Possible | AN17: (5) PDO/No Injury | AO17: =AP17-1 -> 2016 | AP17: 2017 | AQ17: 2018 | AR17: 2019 | AS17: 2020 | AT17: 2021 | AU17: 2022 | AV17: 2023 | AW17: =AX17-1 -> 2024 | AX17: =IF(MAX(J:J)=10,YEAR(NOW()),MAX(J:J)) -> 2025 | AY17: (1) Sunday | AZ17: (2) Monday | BA17: (3) Tuesday | BB17: (4) Wednesday | BC17: (5) Thursday | BD17: (6) Friday | BE17: (7) Saturday | BF17: Unknown | BG17: Head On | BH17: Rear End | BI17: Backing | BJ17: Sideswipe - Meeting | BK17: Sideswipe - Passing | BL17: Angle | BM17: Parked Vehicle | BN17: Pedestrian | BO17: Animal | BP17: Train | BQ17: Pedalcycles | BR17: Other Non-Vehicle | BS17: Fixed Object | BT17: Other Object | BU17: Falling From Or In Vehicle | BV17: Overturning | BW17: Other Non-Collision | BX17: Left Turn | BY17: Right Turn | BZ17: Dry | CA17: Wet | CB17: Snow | CC17: Ice | CD17: Sand, Mud, Dirt, Oil, Gravel | CE17: Water (Standing, Moving) | CF17: Slush | CG17: Other / Unknown | CH17: Straight Level | CI17: Straight Grade | CJ17: Curve Level | CK17: Curve Grade | CL17: Other / Unknown | CM17: Daylight | CN17: Dawn/Dusk | CO17: Dark - Lighted Roadway | CP17: Dark - Roadway Not Lighted | CQ17: Dark - Unknown Roadway Lighting | CR17: Other / Unknown | CS17: Data Not Valid or Not Provided | CT17: Not An Intersection | CU17: Four-Way Intersection | CV17: T-Intersection | CW17: Y-Intersection | CX17: Traffic Circle/Roundabout | CY17: 5 Or More Point Intersection | CZ17: On Ramp | DA17: Off Ramp | DB17: Crossover | DC17: Driveway/Alley Access | DD17: Railroad Grade Crossing | DE17: Shared-Use Paths Or Trails | DF17: Unknown | DG17: Roadway Departure | DH17: ODOT Intersection Related | DI17: Alcohol Related | DJ17: Marijuana Related | DK17: Drug Related | DL17: School Zone Related | DM17: Motorcycle Involved | DN17: Speed Related | DO17: Senior Driver Involved | DP17: ODOT Young Driver | DQ17: Work Zone Related | DR17: Following Too Closely/ACDA | DS17: Failure to Yield | DT17: Other Improper Action | DU17: Drove off Road | DV17: Improper Lane Change | DW17: Unsafe Speed | DX17: Improper Backing | DY17: Ran Red Light | DZ17: Improper Turn | EA17: Left of Center | EE17: PrjID | EF17: PrjType | EG17: SumPrjLen | EH17: SumPrjCrash | EI17: PrjCrRate | EJ17: PrjCrDensity (Crashes Per Mile Per Year) | EK17: PrjEPDO | EL17: PrjRSI | EM17: PrjADT | EN17: PrjPercentTruck | EO17: PrjTADT | EP17: PrjV/C | GI17: Row | GJ17: FileName | GK17: FileName_Path | GL17: NLF_ID | GM17: BLOG | GN17: ELOG | GO17: WAADT | GP17: WATADT | GQ17: WA_VC | GR17: MinFC | GS17: MaxFC | GT17: CongLen | GU17: RSI*Crashes | GV17: ADT*Miles | GW17: TADT*Miles | GX17: V/C*Miles

Sheet Query-CAMTOOL (hidden)
A4: ParameterTable
A5: PARAM | B5: VALUE
A6: NLFID | B6: SFRAUS00040**C | D6: Lookup Value | E6: B
A7: CTL_BEGIN_NBR | B7: 5 | D7: A | E7: AND CRASH_TYPE_CD NOT IN (9)
A8: CTL_END_NBR | B8: 10 | D8: W | E8: AND ODPS_WORK_ZONE_IND = 'N'
A9: BEGIN_YR | B9: 2015 | D9: B | E9: =E7 & E8 -> AND CRASH_TYPE_CD NOT IN (9) AND ODPS_WORK_ZONE_IND = 'N'
A10: END_YR | B10: 2019
A11: TYPE CODE | B11: A
A12: QUALIFIER | B12: =IFERROR(VLOOKUP($B$11,$D$7:$E$9,2,FALSE), "") -> AND CRASH_TYPE_CD NOT IN (9)
A20: DOCUMENT_NBR | B20: CRASH_YR | C20: LOCAL_REPORT_NUMBER_ID | D20: User_Defined | E20: SEVERITY_BY_TYPE_CD | F20: CRASH_TYPE_CD | G20: DISTRICT_NBR | H20: NLF_COUNTY_CD | I20: ODOT_CRASH_LOCATION_CD | J20: NLFID | K20: COUNTY_LOG_NBR | L20: STATE_TRUE_LOG_NBR | M20: ON_ROAD | N20: AT_ROAD | O20: ODOT_LATITUDE_NBR | P20: ODOT_LONGITUDE_NBR | Q20: ODOT_FIPS_CD | R20: ODOT_CITY_VILLAGE_TWP_NME | S20: ODOT_CITY_VILLAGE_TWP_CD | T20: ODPS_TOTAL_FATALITIES_NBR | U20: INCAPAC_INJURIES_NBR | V20: NON_INCAPAC_INJURIES_NBR | W20: POSSIBLE_INJURIES_NBR | X20: NO_INJURY_REPORTED_NBR | Y20: UNRESTRAIN_OCCUPANTS | Z20: NUMBER_OF_UNITS_NBR | AA20: NLF_JUR_CD | AB20: ODOT_LOC_ROUTE_PREFIX_CD | AC20: FACILITY_TYPE_CD | AD20: AREA_CODE | AE20: FUNCTIONAL_CLASS_CD | AF20: NHS_CD | AG20: ODOT_DIV_UNDIV_IND | AH20: ODOT_LANES_NBR | AI20: OPER_ACCESS_CONTROL_CD | AJ20: FREEWAY_IND | AK20: INTERSTATE_IND | AL20: ODOT_MAINTAINED_HWY_IND | AM20: MAINTENANCE_AUTHORITY_CD | AN20: CRASH_DATE | AO20: MONTH | AP20: HOUR_OF_CRASH | AQ20: DAY_IN_WEEK_CD | AR20: WEATHER_COND_CD | AS20: ROAD_COND_PRIMARY_CD | AT20: LIGHT_COND_PRIMARY_CD | AU20: ROAD_CONTOUR_CD | AV20: FHWA_RDWY_DEPARTURE_IND | AW20: ODOT_INTERSECTION_REL_IND | AX20: ODPS_ALCOHOL_IND | AY20: MARIJUANA_IND | AZ20: ODPS_DRUG_IND | BA20: ODPS_SCHOOL_ZONE_IND | BB20: ODPS_MOTORCYCLE_IND | BC20: ODPS_SPEED_IND | BD20: ODPS_SENIOR_DRIVER_IND | BE20: ODOT_YOUNG_DRIVER_IND | BF20: ODPS_WORK_ZONE_IND | BG20: ODPS_LOC_IN_WORK_ZONE_CD | BH20: ODPS_TYPE_OF_WORK_ZONE_CD | BI20: DISTRACTED_DRIVER_IND | BJ20: ODPS_CITY_VILLAGE_TWP_NME | BK20: ODPS_LOC_ROAD_DIRECTION_CD | BL20: ODPS_LOC_ROAD_NME | BM20: ODPS_LOC_ROAD_SUFFIX_CD | BN20: ODPS_LOC_DIR_SUFFIX_CD | BO20: ODPS_LOC_ROUTE_PREFIX_CD | BP20: ODPS_LOC_ROUTE_ID | BQ20: ODPS_LOC_ROUTE_SUFFIX_CD | BR20: ODPS_REF_DIRECTION_CD | BS20: ODPS_REF_GIVEN | BT20: ODPS_REF_SUFFIX_CD | BU20: ODPS_REF_DIR_SUFFIX_CD | BV20: ODPS_REF_ROUTE_PREFIX_CD | BW20: ODPS_REF_ROUTE_ID | BX20: ODPS_REF_ROUTE_SUFFIX_CD | BY20: ODPS_ADDRESS_REFERENCE | BZ20: ODPS_MILEPOST_REFERENCE | CA20: ODOT_REF_POINT_USED_CD | CB20: U1_AT_FAULT_IND | CC20: U1_ODPS_UNIT_NBR | CD20: U1_DIRECTION_FROM_CD | CE20: U1_DIRECTION_TO_CD | CF20: U1_TURN_CD | CG20: U1_TRAFFIC_CONTROL_CD | CH20: U1_TYPE_OF_UNIT_CD | CI20: U1_SPECIAL_FUNCTION_CD | CJ20: U1_UNIT_SPEED_NBR | CK20: U1_POSTED_SPEED_NBR | CL20: U1_PRECRASH_ACTION_CD | CM20: U1_CONT_CIR_PRIMARY_CD | CN20: U1_OBJECT_STRUCK | CO20: U1_SEQ_OF_EVENTS_1_CD | CP20: U1_SEQ_OF_EVENTS_2_CD | CQ20: U1_SEQ_OF_EVENTS_3_CD | CR20: U1_SEQ_OF_EVENTS_4_CD | CS20: U1_SEQ_OF_EVENTS_5_CD | CT20: U1_SEQ_OF_EVENTS_6_CD | CU20: U1_NON_MOTORIST_LOC_CD | CV20: U1_AGE_NBR | CW20: U1_GENDER_CD | CX20: U1_DISTRACTED_BY_1_CD | CY20: U2_ODPS_UNIT_NBR | CZ20: U2_DIRECTION_FROM_CD | DA20: U2_DIRECTION_TO_CD | DB20: U2_TURN_CD | DC20: U2_TRAFFIC_CONTROL_CD | DD20: U2_TYPE_OF_UNIT_CD | DE20: U2_SPECIAL_FUNCTION_CD | DF20: U2_UNIT_SPEED_NBR | DG20: U2_POSTED_SPEED_NBR | DH20: U2_PRECRASH_ACTION_CD | DI20: U2_CONT_CIR_PRIMARY_CD | DJ20: U2_SEQ_OF_EVENTS_1_CD | DK20: U2_SEQ_OF_EVENTS_2_CD | DL20: U2_SEQ_OF_EVENTS_3_CD | DM20: U2_SEQ_OF_EVENTS_4_CD | DN20: U2_SEQ_OF_EVENTS_5_CD | DO20: U2_SEQ_OF_EVENTS_6_CD | DP20: U2_NON_MOTORIST_LOC_CD | DQ20: U2_AGE_NBR | DR20: U2_GENDER_CD | DS20: U2_DISTRACTED_BY_1_CD | DT20: U3_ODPS_UNIT_NBR | DU20: U3_TRAFFIC_CONTROL_CD | DV20: U3_TYPE_OF_UNIT_CD | DW20: U3_SPECIAL_FUNCTION_CD | DX20: U3_PRECRASH_ACTION_CD | DY20: U3_CONT_CIR_PRIMARY_CD | DZ20: U3_SEQ_OF_EVENTS_1_CD | EA20: U3_SEQ_OF_EVENTS_2_CD | EB20: U3_SEQ_OF_EVENTS_3_CD | EC20: U3_SEQ_OF_EVENTS_4_CD | ED20: U3_SEQ_OF_EVENTS_5_CD | EE20: U3_SEQ_OF_EVENTS_6_CD | EF20: INTERSECTION_ID_CURRENT | EG20: INTERSECTION_LEG_ID | EH20: INTERCHANGE_ID | EI20: SA_RAMP_ID | EJ20: SA_SEGMENT_ID | EK20: Jurisdiction_Type | EL20: CRASH_REPORT_LINK | EM20: HistoricalImagePath
A21: 20194231263 | B21: 2019 | C21: 19149668 | E21: (4) Injury Possible | F21: Rear End | G21: 6 | H21: FRA | I21: 5 Or More Point Intersection | J21: SFRAUS00040**N | K21: 5.371 | L21: 93.191 | M21: US00040 | N21: STURBRIDGE RD | O21: 39.952003 | P21: -83.135304 | Q21: 64570 | R21: PRAIRIE TOWNSHIP | S21: 3 | T21: 0 | U21: 0 | V21: 0 | W21: 2 | X21: 1 | Y21: 0 | Z21: 2 | AA21: S | AB21: US | AC21: 2 | AD21: 19234 | AE21: Other Principal Arterial Roads | AG21: No | AH21: 4 | AI21: 3 | AJ21: No | AK21: No | AL21: Yes | AM21: ODOT Maintained | AN21: 2019-07-29T14:22:00 | AO21: (07) July | AP21: 14 | AQ21: (2) Monday | AR21: Cloudy | AS21: Dry | AT21: Daylight | AU21: Straight Level | AV21: No | AW21: Yes | AX21: No | AY21: No | AZ21: No | BA21: No | BB21: No | BC21: No | BD21: Yes | BE21: No | BF21: No | BG21: Unknown or Not in Work Zone | BH21: Unknown or Not in Work Zone | BI21: No | BJ21: PRAIRIE TOWNSHIP | BO21: US | BP21: 40 | BS21: STURBRIDGE | BT21: RD | CA21: Intersection | CB21: Yes | CC21: 1 | CD21: East | CE21: West | CF21: No Turn | CG21: Traffic Signal | CH21: Cargo Van | CI21: None | CJ21: 35 | CK21: 45 | CL21: Slowing Or Stopped In Traffic | CM21: Following Too Closely/ACDA | CN21: Nothing Struck | CO21: Motor Vehicle In Transport | CU21: Other/Unknown | CV21: 72 | CW21: Male | CX21: Not Distracted | CY21: 2 | CZ21: East | DA21: West | DB21: No Turn | DC21: Traffic Signal | DD21: Pickup | DE21: None | DF21: 0 | DG21: 45 | DH21: Slowing Or Stopped In Traffic | DI21: None | DJ21: Motor Vehicle In Transport | DP21: Other/Unknown | DQ21: 52 | DR21: Male | DS21: Not Distracted | EJ21: 307306 | EK21: State | EL21: https://hsip.dot.state.oh.us/report/?DOCNBR=20194231263

Sheet Query-RI (hidden)
A4: ParameterTable
A5: PARAM | B5: VALUE
A6: NLFID | B6: ='Query-CAMTOOL'!B6 -> SFRAUS00040**C | D6: Lookup Value | E6: B
A7: CTL_BEGIN_NBR | B7: ='Query-CAMTOOL'!B7 -> 5 | D7: A | E7: AND CRASH_TYPE_CD NOT IN (9)
A8: CTL_END_NBR | B8: ='Query-CAMTOOL'!B8 -> 10 | D8: W | E8: AND ODPS_WORK_ZONE_IND = 'N'
A9: BEGIN_YR | B9: ='Query-CAMTOOL'!B9 -> 2015 | D9: B | E9: =E7 & E8 -> AND CRASH_TYPE_CD NOT IN (9) AND ODPS_WORK_ZONE_IND = 'N'
A10: END_YR | B10: ='Query-CAMTOOL'!B10 -> 2019
A11: TYPE CODE | B11: ='Query-CAMTOOL'!B11 -> A
A12: QUALIFIER | B12: ='Query-CAMTOOL'!B12 -> AND CRASH_TYPE_CD NOT IN (9)
A20: NLF_ID | B20: CTL_BEGIN_NBR | C20: CTL_END_NBR | D20: SEGMENT_LENGTH_NBR | E20: SURFACE_TYPE_LEFT_CD | F20: SURFACE_TYPE_RIGHT_CD | G20: SURFACE_WIDTH | H20: ROADWAY_WIDTH_NBR | I20: SHOULDER_PVD_WIDTH_OUT_LT | J20: SURFACE_TYPE_LEFT_CD2 | K20: SURFACE_WIDTH_LEFT | L20: SHOULDER_PVD_WIDTH_IN_LT | M20: DIVIDED_HWY_IND | N20: MEDIAN_WIDTH_NBR | O20: HPMS_MEDIAN_WIDTH_NBR | P20: MEDIAN_TYPE_CD | Q20: SHOULDER_PVD_WIDTH_OUT_RT | R20: SURFACE_TYPE_RIGHT_CD2 | S20: SURFACE_WIDTH_RIGHT | T20: SHOULDER_PVD_WIDTH_IN_RT | U20: LANES_NBR | V20: LANE_WIDTH_NBR | W20: MILEAGE_CLASS | X20: FIPS_CD | Y20: STREET_PREFIX_DIR_CD | Z20: STREET_NAME | AA20: STREET_SUFFIX_CD | AB20: STREET_DIR_SUFFIX_CD | AC20: RT_NME_SPEC_SUFFIX_CD | AD20: MUNI_POPULATION | AE20: AREA_CODE_NBR | AF20: FUNCTION_CLASS_CD | AG20: PRIORITY_SYSTEM_CD | AH20: NHS_CD | AI20: NHS_INTERMODAL_FACILITY_CD | AJ20: FED_AID_PRIMARY_CD | AK20: ACCESS_CONTROL_CD | AL20: SPEED_LIMIT_NBR | AM20: ADT_PSNGR_CAR_NBR | AN20: ADT_TOTAL_NBR | AO20: ADT_YEAR_NBR
A21: SFRAUS00040**C | B21: 0 | C21: 0.46 | D21: 0.46 | E21: G | F21: G | G21: 48 | H21: 48 | I21: 3 | J21: G | K21: 24 | L21: 1 | M21: Y | N21: 4 | P21: 3 | Q21: 3 | R21: G | S21: 24 | T21: 1 | U21: 4 | V21: 12 | W21: 1 | X21: 64570 | Z21: NATIONAL | AA21: RD | AD21: 0 | AE21: 19234 | AF21: 3 | AG21: G | AK21: N | AL21: 55 | AM21: 9426 | AN21: 9616 | AO21: 2019

Sheet Query-Project (hidden)
A4: ParameterTable
A5: PARAM | B5: VALUE
A6: NLFID | B6: ='Query-CAMTOOL'!B6 -> SFRAUS00040**C | D6: Lookup Value | E6: B
A7: CTL_BEGIN_NBR | B7: ='Query-CAMTOOL'!B7 -> 5 | D7: A | E7: AND CRASH_TYPE_CD NOT IN (9)
A8: CTL_END_NBR | B8: ='Query-CAMTOOL'!B8 -> 10 | D8: W | E8: AND ODPS_WORK_ZONE_IND = 'N'
A9: BEGIN_YR | B9: ='Query-CAMTOOL'!B9 -> 2015 | D9: B | E9: =E7 & E8 -> AND CRASH_TYPE_CD NOT IN (9) AND ODPS_WORK_ZONE_IND = 'N'
A10: END_YR | B10: ='Query-CAMTOOL'!B10 -> 2019
A11: TYPE CODE | B11: ='Query-CAMTOOL'!B11 -> A
A12: QUALIFIER | B12: ='Query-CAMTOOL'!B12 -> AND CRASH_TYPE_CD NOT IN (9)
A20: NLF_ID | B20: LOGPOINT_COUNTY_BEGIN_NBR | C20: LOGPOINT_COUNTY_END_NBR | D20: LOCATION_TYPE | E20: PRIMARY_LOCATION_IND | F20: PID_NBR | G20: DISTRICT_NBR | H20: LOCALE_SHORT_NME | I20: PROJECT_NME | J20: PROJ_STATUS_TXT | K20: PROJ_LETTING_TYPE | L20: PRIMARY_WORK_CATEGORY | M20: TRAC_TIER_SHORT_NME | N20: PROGRAM_FAMILY_SHORT_NME | O20: PROJECT_MGR_NME | P20: ARRA_PROJECT_IND | Q20: MPO_STIMULUS_ALLOC | R20: ODOT_STIMULUS_PROJ | S20: RURAL_TRANSIT_STIMULUS_PROJ | T20: URBAN_TRANSIT_STIMULUS_PROJ | U20: AWARD_AMT | V20: COMMITTED_EST_AMT | W20: UNCOMMITTED_EST_AMT | X20: TOTAL_EST_AMT | Y20: TOTAL_AWARD_EST_AMT | Z20: COMMITTED_IND | AA20: ACT_CUR_AWARD_DT | AB20: PROJ_START_ACTUAL_DT | AC20: PROJ_START_EST_DT | AD20: PROJ_COMPL_ACTUAL_DT | AE20: PROJ_COMPL_EST_DT | AF20: LATITUDE_BEGIN_NBR | AG20: LOGPOINT_COUNTY_END_NBR2 | AH20: LONGITUDE_END_NBR | AI20: LATITUDE_END_NBR | AJ20: ACTUAL_PRIORITY_MILES | AK20: ACTUAL_URBAN_MILES | AL20: ACTUAL_GENERAL_MILES | AM20: TOTAL_LANE_MILES | AN20: SLM_MILES | AO20: IMPROVED_PCR | AP20: PVMNT_TRTMNT_CAT_LONG_NME | AQ20: STRUCTURE_FILE_NBR | AR20: BRG_STAT_DESC | AS20: MAJOR_BRG_SW | AT20: MAINT_RESP_DESC | AU20: MAIN_STRUC_TYPE | AV20: MAIN_SPAN_MATL_DESC | AW20: MAIN_SPAN_TYPE_DESC | AX20: MAIN_SPAN_DESC | AY20: DECK_AREA | AZ20: OVRL_STR_LEN | BA20: SUFF_RATING | BB20: DEF_FUNC_RATING_DESC | BC20: BRG_DEF_CD_IND | BD20: GENERAL_APPRAISAL_IND | BE20: FLOOR_CONDITION_IND | BF20: WEARING_SURFACE_IND | BG20: PAINT_IND | BH20: GENERAL_APPRAISAL_RATING | BI20: FLOOR_CONDITION_RATING | BJ20: WEARING_SURFACE_RATING | BK20: PAINT_CONDITION_RATING | BL20: SPOT_LOCATION_TYPE | BM20: SPOT_LOCATION_DESC | BN20: AWARD_ENC_REQ_SFY
A21: SFRAUS00040**C | B21: 0 | C21: 7.49 | D21: Road Segment | F21: 25882 | G21: 6 | H21: FRA | I21: FRA IR 70 0.00 | J21: Awarded | K21: ODOT Let | L21: Traffic Control (Safety) | O21: POLING, DAVID P | U21: 327295 | Y21: 327295 | Z21: Y | AA21: 2003-10-16 | AB21: 2004-01-20 | AC21: 2004-01-20 | AD21: 2004-07-02 | AE21: 2004-07-02 | AF21: 39.947366 | AG21: 7.49 | AH21: -83.095018 | AI21: 39.953949 | AJ21: 0 | AK21: 1.4 | AL21: 30.9 | AM21: 32.3 | AN21: 7.49 | BN21: 2004

Sheet Query-CMS (hidden)
A4: ParameterTable
A5: PARAM | B5: VALUE
A6: NLFID | B6: ='Query-CAMTOOL'!B6 -> SFRAUS00040**C | D6: Lookup Value | E6: B
A7: CTL_BEGIN_NBR | B7: ='Query-CAMTOOL'!B7 -> 5 | D7: A | E7: AND CRASH_TYPE_CD NOT IN (9)
A8: CTL_END_NBR | B8: ='Query-CAMTOOL'!B8 -> 10 | D8: W | E8: AND ODPS_WORK_ZONE_IND = 'N'
A9: BEGIN_YR | B9: ='Query-CAMTOOL'!B9 -> 2015 | D9: B | E9: =E7 & E8 -> AND CRASH_TYPE_CD NOT IN (9) AND ODPS_WORK_ZONE_IND = 'N'
A10: END_YR | B10: ='Query-CAMTOOL'!B10 -> 2019
A11: TYPE CODE | B11: ='Query-CAMTOOL'!B11 -> A
A12: QUALIFIER | B12: ='Query-CAMTOOL'!B12 -> AND CRASH_TYPE_CD NOT IN (9)
A20: NLF_ID | B20: CTL_BEGIN_NBR | C20: CTL_END_NBR | D20: TOTAL_VOLUME_NBR | E20: TRUCK_VOLUME_NBR | F20: VOLUME_CAPACITY_RATIO_NBR | G20: FUNCTIONAL_CLASS_CD | H20: SECTION_LENGTH_NBR
A21: SFRAUS00040**C | B21: 0 | C21: 0.46 | D21: 9616 | E21: 191 | F21: 0.13 | G21: 13 | H21: 0.46

Sheet Query-PMS (hidden)
A4: ParameterTable
A5: PARAM | B5: VALUE
A6: NLFID | B6: ='Query-CAMTOOL'!B6 -> SFRAUS00040**C | D6: Lookup Value | E6: B
A7: CTL_BEGIN_NBR | B7: ='Query-CAMTOOL'!B7 -> 5 | D7: A | E7: AND CRASH_TYPE_CD NOT IN (9)
A8: CTL_END_NBR | B8: ='Query-CAMTOOL'!B8 -> 10 | D8: W | E8: AND ODPS_WORK_ZONE_IND = 'N'
A9: BEGIN_YR | B9: ='Query-CAMTOOL'!B9 -> 2015 | D9: B | E9: =E7 & E8 -> AND CRASH_TYPE_CD NOT IN (9) AND ODPS_WORK_ZONE_IND = 'N'
A10: END_YR | B10: ='Query-CAMTOOL'!B10 -> 2019
A11: TYPE CODE | B11: ='Query-CAMTOOL'!B11 -> A
A12: QUALIFIER | B12: ='Query-CAMTOOL'!B12 -> AND CRASH_TYPE_CD NOT IN (9)
A20: NLF_ID | B20: LOGPOINT_COUNTY_BEGIN_NBR | C20: LOGPOINT_COUNTY_END_NBR | D20: SEGMENT_LENGTH_NBR | E20: PCR_NBR | F20: DEDUCT_TOTAL_NBR | G20: DEDUCT_STRUCTURAL_NBR | H20: DIVIDED_UNDIVIDED_IND | I20: DIRECTION_TXT | J20: PAVEMENT_TYPE_CD | K20: PAVEMENT_TYPE_TXT | L20: CODE_1 | M20: CODE_2 | N20: CODE_3 | O20: CODE_4 | P20: CODE_5 | Q20: CODE_6 | R20: CODE_7 | S20: CODE_8 | T20: CODE_9 | U20: CODE_10 | V20: CODE_11 | W20: CODE_12 | X20: CODE_13 | Y20: CODE_14 | Z20: CODE_15 | AA20: CODE_16 | AB20: CODE_17
A21: SFRAUS00040**C | B21: 0 | C21: 0.46 | D21: 0.46 | E21: 77 | F21: 22.8 | G21: 3.7 | H21: D | I21: UP | J21: 4 | K21: COMPOSITE | L21: HO | P21: LF | U21: MF | V21: LF | W21: MF | X21: LO | Y21: E

Sheet ImageQuery (hidden)
A3: =E12&"-"&E13&E14&" - ("&E15&"-"&E16&") "&"From "&E17&" to "&E18 -> - - (-) From to
A20: DocsFromData | B20: DOCUMENT_NBR | C20: FILENAME_NME

Sheet HistoricalImages (hidden)
A20: DocumentNbr | B20: FilePath

Sheet RefTables (hidden)
A1: Category Txt | B1: Code Id | C1: Code Txt | D1: Formatted Text | E1: Code Id | G1: ODOT Fips Cd | H1: Fips Nme | I1: Cvt Cd | M1: EPDO Values
A2: AREA_CODE | B2: 766 | C2: AKRON | D2: AKRON | E2: 766 | G2: 100 | H2: ABANAKA | I2: 3 | M2: Severity | N2: KA | O2: B | P2: C | Q2: O
A3: AREA_CODE | B3: 13375 | C3: CANTON | D3: CANTON | E3: 13375 | G3: 115 | H3: ABBEYVILLE | I3: 3 | M3: Multiplier | N3: 45.68 | O3: 6.55 | P3: 4.44 | Q3: 1
A4: AREA_CODE | B4: 16885 | C4: CINCINNATI | D4: CINCINNATI | E4: 16885 | G4: 128 | H4: ABBOTTSVILLE | I4: 3
A5: AREA_CODE | B5: 17668 | C5: CLEVELAND | D5: CLEVELAND | E5: 17668 | G5: 142 | H5: ABERDEEN | I5: 2
A6: AREA_CODE | B6: 19234 | C6: COLUMBUS | D6: COLUMBUS | E6: 19234 | G6: 156 | H6: ACADEMIA | I6: 3
A7: AREA_CODE | B7: 22528 | C7: DAYTON | D7: DAYTON | E7: 22528 | G7: 170 | H7: ACHOR | I7: 3
A8: AREA_CODE | B8: 40753 | C8: HUNTINGTON-ASHLAND | D8: HUNTINGTON-ASHLAND | E8: 40753 | G8: 184 | H8: ACME | I8: 3
A9: AREA_CODE | B9: 49852 | C9: LIMA | D9: LIMA | E9: 49852 | G9: 198 | H9: ADA | I9: 1
A10: AREA_CODE | B10: 51364 | C10: LORAIN-ELYRIA | D10: LORAIN-ELYRIA | E10: 51364 | G10: 205 | H10: ADAIR | I10: 3
A11: AREA_CODE | B11: 54091 | C11: MANSFIELD | D11: MANSFIELD | E11: 54091 | G11: 212 | H11: ADAMS TOWNSHIP | I11: 3
A12: AREA_CODE | B12: 56926 | C12: MIDDLETOWN | D12: MIDDLETOWN | E12: 56926 | G12: 226 | H12: ADAMS TOWNSHIP | I12: 3
A13: AREA_CODE | B13: 61705 | C13: NEWARK-HEATH | D13: NEWARK-HEATH | E13: 61705 | G13: 240 | H13: ADAMS TOWNSHIP | I13: 3
A14: AREA_CODE | B14: 67672 | C14: PARKERSBURG-BELPRE | D14: PARKERSBURG-BELPRE | E14: 67672 | G14: 254 | H14: ADAMS TOWNSHIP | I14: 3
A15: AREA_CODE | B15: 83980 | C15: SPRINGFIELD | D15: SPRINGFIELD | E15: 83980 | G15: 268 | H15: ADAMS TOWNSHIP | I15: 3
A16: AREA_CODE | B16: 87868 | C16: TOLEDO | D16: TOLEDO | E16: 87868 | G16: 282 | H16: ADAMS TOWNSHIP | I16: 3
A17: AREA_CODE | B17: 93592 | C17: STEUBENVILLE-WEIRTON | D17: STEUBENVILLE-WEIRTON | E17: 93592 | G17: 296 | H17: ADAMS TOWNSHIP | I17: 3
A18: AREA_CODE | B18: 94726 | C18: WHEELING-BRIDGEPORT | D18: WHEELING-BRIDGEPORT | E18: 94726 | G18: 310 | H18: ADAMS TOWNSHIP | I18: 3
A19: AREA_CODE | B19: 97831 | C19: YOUNGSTOWN-WARREN | D19: YOUNGSTOWN-WARREN | E19: 97831 | G19: 324 | H19: ADAMS TOWNSHIP | I19: 3
A20: AREA_CODE | B20: 99490 | C20: SANDUSKY | D20: SANDUSKY | E20: 99490 | G20: 338 | H20: ADAMS TOWNSHIP | I20: 3
A21: AREA_CODE | B21: 99701 | C21: ADA | D21: ADA | E21: 99701 | G21: 352 | H21: ADAMS MILLS | I21: 3
A22: AREA_CODE | B22: 99702 | C22: ALLIANCE | D22: ALLIANCE | E22: 99702 | G22: 366 | H22: ADAMSVILLE | I22: 3
A23: AREA_CODE | B23: 99703 | C23: ASHLAND | D23: ASHLAND | E23: 99703 | G23: 380 | H23: ADAMSVILLE | I23: 2
A24: AREA_CODE | B24: 99704 | C24: ASHTABULA | D24: ASHTABULA | E24: 99704 | G24: 394 | H24: ADARIO | I24: 3
A25: AREA_CODE | B25: 99705 | C25: ATHENS | D25: ATHENS | E25: 99705 | G25: 408 | H25: ADDISON | I25: 3
A26: AREA_CODE | B26: 99706 | C26: BELLEFONTAINE | D26: BELLEFONTAINE | E26: 99706 | G26: 422 | H26: ADDISON TOWNSHIP | I26: 3
A27: AREA_CODE | B27: 99707 | C27: BELLEVUE | D27: BELLEVUE | E27: 99707 | G27: 436 | H27: ADDYSTON | I27: 2
A28: AREA_CODE | B28: 99708 | C28: BOWLING GREEN | D28: BOWLING GREEN | E28: 99708 | G28: 450 | H28: ADELPHI | I28: 2
A29: AREA_CODE | B29: 99709 | C29: BRYAN | D29: BRYAN | E29: 99709 | G29: 464 | H29: ADENA | I29: 2
A30: AREA_CODE | B30: 99710 | C30: BUCYRUS | D30: BUCYRUS | E30: 99710 | G30: 478 | H30: ADRIAN | I30: 3
A31: AREA_CODE | B31: 99711 | C31: CAMBRIDGE | D31: CAMBRIDGE | E31: 99711 | G31: 485 | H31: ADVANCE | I31: 3
A32: AREA_CODE | B32: 99712 | C32: CELINA | D32: CELINA | E32: 99712 | G32: 492 | H32: AETNAVILLE | I32: 3
A33: AREA_CODE | B33: 99713 | C33: CHILLICOTHE | D33: CHILLICOTHE | E33: 99713 | G33: 506 | H33: AFRICA | I33: 3
A34: AREA_CODE | B34: 99714 | C34: CIRCLEVILLE | D34: CIRCLEVILLE | E34: 99714 | G34: 520 | H34: AFTON | I34: 3
A35: AREA_CODE | B35: 99715 | C35: CLYDE | D35: CLYDE | E35: 99715 | G35: 541 | H35: AI | I35: 3
A36: AREA_CODE | B36: 99718 | C36: COSHOCTON | D36: COSHOCTON | E36: 99718 | G36: 548 | H36: AID | I36: 3
A37: AREA_CODE | B37: 99720 | C37: DEFIANCE | D37: DEFIANCE | E37: 99720 | G37: 562 | H37: AID TOWNSHIP | I37: 3
A38: AREA_CODE | B38: 99722 | C38: DELPHOS | D38: DELPHOS | E38: 99722 | G38: 576 | H38: AINGER | I38: 3
A39: AREA_CODE | B39: 99723 | C39: DOVER-NEW PHILADELPHIA | D39: DOVER-NEW PHILADELPHIA | E39: 99723 | G39: 587 | H39: AIRHILL | I39: 3
A40: AREA_CODE | B40: 99724 | C40: EAST LIVERPOOL | D40: EAST LIVERPOOL | E40: 99724 | G40: 590 | H40: AIR LINE JUNCTION | I40: 3
A41: AREA_CODE | B41: 99726 | C41: EATON | D41: EATON | E41: 99726 | G41: 1000 | H41: AKRON | I41: 1
A42: AREA_CODE | B42: 99727 | C42: FINDLAY | D42: FINDLAY | E42: 99727 | G42: 1035 | H42: ALABAMA HILL | I42: 3
A43: AREA_CODE | B43: 99728 | C43: FOSTORIA | D43: FOSTORIA | E43: 99728 | G43: 1042 | H43: ALBANY | I43: 2
A44: AREA_CODE | B44: 99729 | C44: FREMONT | D44: FREMONT | E44: 99729 | G44: 1056 | H44: AL BAR MEADOWS | I44: 3
A45: AREA_CODE | B45: 99730 | C45: GALION | D45: GALION | E45: 99730 | G45: 1070 | H45: ALBION | I45: 3
A46: AREA_CODE | B46: 99731 | C46: GALLIPOLIS | D46: GALLIPOLIS | E46: 99731 | G46: 1084 | H46: ALCONY | I46: 3
A47: AREA_CODE | B47: 99734 | C47: GREENFIELD | D47: GREENFIELD | E47: 99734 | G47: 1098 | H47: ALDEN | I47: 3
A48: AREA_CODE | B48: 99735 | C48: GREENVILLE | D48: GREENVILLE | E48: 99735 | G48: 1105 | H48: ALERT | I48: 3
A49: AREA_CODE | B49: 99737 | C49: HILLSBORO | D49: HILLSBORO | E49: 99737 | G49: 1112 | H49: ALEXANDER TOWNSHIP | I49: 3
A50: AREA_CODE | B50: 99739 | C50: JACKSON | D50: JACKSON | E50: 99739 | G50: 1154 | H50: ALEXANDRIA | I50: 2
A51: AREA_CODE | B51: 99740 | C51: KENTON | D51: KENTON | E51: 99740 | G51: 1175 | H51: ALEXIS ADDITION | I51: 3
A52: AREA_CODE | B52: 99741 | C52: LANCASTER | D52: LANCASTER | E52: 99741 | G52: 1196 | H52: ALFRED | I52: 3
A53: AREA_CODE | B53: 99743 | C53: LOGAN | D53: LOGAN | E53: 99743 | G53: 1210 | H53: ALGER | I53: 2
A54: AREA_CODE | B54: 99744 | C54: LONDON | D54: LONDON | E54: 99744 | G54: 1230 | H54: ALICE | I54: 3
A55: AREA_CODE | B55: 99745 | C55: MARIETTA | D55: MARIETTA | E55: 99745 | G55: 1238 | H55: ALIKANNA | I55: 3
A56: AREA_CODE | B56: 99746 | C56: MARION | D56: MARION | E56: 99746 | G56: 1280 | H56: ALLEDONIA | I56: 3
A57: AREA_CODE | B57: 99747 | C57: MARYSVILLE | D57: MARYSVILLE | E57: 99747 | G57: 1294 | H57: ALLEN TOWNSHIP | I57: 3
A58: AREA_CODE | B58: 99749 | C58: MT VERNON | D58: MT VERNON | E58: 99749 | G58: 1308 | H58: ALLEN TOWNSHIP | I58: 3
A59: AREA_CODE | B59: 99750 | C59: NAPOLEON | D59: NAPOLEON | E59: 99750 | G59: 1322 | H59: ALLEN TOWNSHIP | I59: 3
A60: AREA_CODE | B60: 99754 | C60: NORWALK | D60: NORWALK | E60: 99754 | G60: 1336 | H60: ALLEN TOWNSHIP | I60: 3
A61: AREA_CODE | B61: 99756 | C61: ORRVILLE | D61: ORRVILLE | E61: 99756 | G61: 1350 | H61: ALLEN CENTER | I61: 3
A62: AREA_CODE | B62: 99757 | C62: OXFORD | D62: OXFORD | E62: 99757 | G62: 1364 | H62: ALLENSBURG | I62: 3
A63: AREA_CODE | B63: 99759 | C63: PIQUA | D63: PIQUA | E63: 99759 | G63: 1378 | H63: ALLENSVILLE | I63: 3
A64: AREA_CODE | B64: 99760 | C64: PORT CLINTON | D64: PORT CLINTON | E64: 99760 | G64: 1392 | H64: ALLENTOWN | I64: 3
A65: AREA_CODE | B65: 99761 | C65: PORTSMOUTH | D65: PORTSMOUTH | E65: 99761 | G65: 1406 | H65: ALLENTOWN | I65: 3
A66: AREA_CODE | B66: 99764 | C66: ST. MARYS | D66: ST. MARYS | E66: 99764 | G66: 1420 | H66: ALLIANCE | I66: 1
A67: AREA_CODE | B67: 99765 | C67: SALEM | D67: SALEM | E67: 99765 | G67: 1425 | H67: ALLIANCE JUNCTION | I67: 3
A68: AREA_CODE | B68: 99768 | C68: SHELBY | D68: SHELBY | E68: 99768 | G68: 1434 | H68: ALMA | I68: 3
A69: AREA_CODE | B69: 99769 | C69: SIDNEY | D69: SIDNEY | E69: 99769 | G69: 1448 | H69: ALPHA | I69: 3
A70: AREA_CODE | B70: 99770 | C70: TIFFIN | D70: TIFFIN | E70: 99770 | G70: 1462 | H70: ALPINE TERRACE | I70: 3
A71: AREA_CODE | B71: 99775 | C71: UPPER SANDUSKY | D71: UPPER SANDUSKY | E71: 99775 | G71: 1490 | H71: ALTA | I71: 3
A72: AREA_CODE | B72: 99776 | C72: URBANA | D72: URBANA | E72: 99776 | G72: 1495 | H72: ALTAMONT | I72: 3
A73: AREA_CODE | B73: 99777 | C73: VAN WERT | D73: VAN WERT | E73: 99777 | G73: 1525 | H73: ALTITUDE | I73: 3
A74: AREA_CODE | B74: 99778 | C74: WAPAKONETA | D74: WAPAKONETA | E74: 99778 | G74: 1532 | H74: ALTON | I74: 3
A75: AREA_CODE | B75: 99779 | C75: WASHINGTON C.H. | D75: WASHINGTON C.H. | E75: 99779 | G75: 1546 | H75: ALTOONA | I75: 3
A76: AREA_CODE | B76: 99780 | C76: WAUSEON | D76: WAUSEON | E76: 99780 | G76: 1560 | H76: ALVADA | I76: 3
A77: AREA_CODE | B77: 99783 | C77: WILLARD | D77: WILLARD | E77: 99783 | G77: 1588 | H77: ALVORDTON | I77: 2
A78: AREA_CODE | B78: 99784 | C78: WILMINGTON | D78: WILMINGTON | E78: 99784 | G78: 1602 | H78: AMANDA TOWNSHIP | I78: 3
A79: AREA_CODE | B79: 99785 | C79: WOOSTER | D79: WOOSTER | E79: 99785 | G79: 1630 | H79: AMANDA | I79: 2
A80: AREA_CODE | B80: 99786 | C80: ZANESVILLE | D80: ZANESVILLE | E80: 99786 | G80: 1637 | H80: AMANDA TOWNSHIP | I80: 3
A81: AREA_CODE | B81: 99787 | C81: ASHVILLE-S. BLOOMFIELD | D81: ASHVILLE-S. BLOOMFIELD | E81: 99787 | G81: 1644 | H81: AMANDA TOWNSHIP | I81: 3
A82: AREA_CODE | B82: 99789 | C82: COLUMBIANA | D82: COLUMBIANA | E82: 99789 | G82: 1672 | H82: AMBERLEY | I82: 2
A83: AREA_CODE | B83: 99791 | C83: LISBON | D83: LISBON | E83: 99791 | G83: 1705 | H83: AM-BETH ACRES | I83: 3
A84: AREA_CODE | B84: 99792 | C84: MAYSVILLE, KY | D84: MAYSVILLE, KY | E84: 99792 | G84: 1714 | H84: AMBOY | I84: 3
A85: AREA_CODE | B85: 99794 | C85: NELSONVILLE | D85: NELSONVILLE | E85: 99794 | G85: 1728 | H85: AMBOY TOWNSHIP | I85: 3
A86: AREA_CODE | B86: 99795 | C86: NEW BREMEN | D86: NEW BREMEN | E86: 99795 | G86: 1742 | H86: AMELIA | I86: 2
A87: AREA_CODE | B87: 99796 | C87: NEW MARTINSVILLE, WVA | D87: NEW MARTINSVILLE, WVA | E87: 99796 | G87: 1756 | H87: AMERICAN TOWNSHIP | I87: 3
A88: AREA_CODE | B88: 99797 | C88: OTTAWA-GLANDORF | D88: OTTAWA-GLANDORF | E88: 99797 | G88: 1770 | H88: AMES TOWNSHIP | I88: 3
A89: AREA_CODE | B89: 99798 | C89: RUSSELLS POINT | D89: RUSSELLS POINT | E89: 99798 | G89: 1784 | H89: AMESVILLE | I89: 2
A90: AREA_CODE | B90: 99800 | C90: UNION CITY | D90: UNION CITY | E90: 99800 | G90: 1798 | H90: AMHERST | I90: 1
A91: AREA_CODE | B91: 99801 | C91: WAVERLY | D91: WAVERLY | E91: 99801 | G91: 1812 | H91: AMHERST TOWNSHIP | I91: 3
A92: AREA_CODE | B92: 99802 | C92: GARRETTSVILLE | D92: GARRETTSVILLE | E92: 99802 | G92: 1826 | H92: AMHERST HEIGHTS | I92: 3
A93: AREA_CODE | B93: 99803 | C93: SEVILLE | D93: SEVILLE | E93: 99803 | G93: 1830 | H93: AMITY | I93: 3
A94: AREA_CODE | B94: 99804 | C94: CALDWELL | D94: CALDWELL | E94: 99804 | G94: 1840 | H94: AMITY | I94: 3
A95: AREA_CODE | B95: 99805 | C95: CONNEAUT | D95: CONNEAUT | E95: 99805 | G95: 1854 | H95: AMITY | I95: 3
A96: AREA_CODE | B96: 99806 | C96: DARBYDALE | D96: DARBYDALE | E96: 99806 | G96: 1868 | H96: AMITY | I96: 3
A97: AREA_CODE | B97: 99807 | C97: GENEVA | D97: GENEVA | E97: 99807 | G97: 1882 | H97: AMLIN | I97: 3
A98: AREA_CODE | B98: 99808 | C98: MIDDLEPORT | D98: MIDDLEPORT | E98: 99808 | G98: 1910 | H98: AMOY | I98: 3
A99: AREA_CODE | B99: 99809 | C99: POMEROY | D99: POMEROY | E99: 99809 | G99: 1924 | H99: AMSDEN | I99: 3
A100: AREA_CODE | B100: 99810 | C100: CHARDON | D100: CHARDON | E100: 99810 | G100: 1938 | H100: AMSTERDAM | I100: 2
A101: AREA_CODE | B101: 99811 | C101: RICHMOND, IN | D101: RICHMOND, IN | E101: 99811 | G101: 1952 | H101: AMSTERDAM | I101: 3
A102: AREA_CODE | B102: 99999 | C102: RURAL | D102: RURAL | E102: 99999 | G102: 1966 | H102: ANCOR | I102: 3
A103: CRASH_TYPE_CD | B103: 0 | C103: Unknown | D103: Unknown | E103: 0 | G103: 1980 | H103: ANDERSON TOWNSHIP | I103: 3
A104: CRASH_TYPE_CD | B104: 1 | C104: Head On | D104: Head On | E104: 1 | G104: 1990 | H104: ANDERSON | I104: 3
A105: CRASH_TYPE_CD | B105: 2 | C105: Rear End | D105: Rear End | E105: 2 | G105: 2008 | H105: ANDERSON FERRY | I105: 3
A106: CRASH_TYPE_CD | B106: 3 | C106: Backing | D106: Backing | E106: 3 | G106: 2022 | H106: ANDERSONVILLE | I106: 2
A107: CRASH_TYPE_CD | B107: 4 | C107: Sideswipe - Meeting | D107: Sideswipe - Meeting | E107: 4 | G107: 2036 | H107: ANDIS | I107: 3
A108: CRASH_TYPE_CD | B108: 5 | C108: Sideswipe - Passing | D108: Sideswipe - Passing | E108: 5 | G108: 2050 | H108: ANDOVER | I108: 2
A109: CRASH_TYPE_CD | B109: 6 | C109: Angle | D109: Angle | E109: 6 | G109: 2064 | H109: ANDOVER TOWNSHIP | I109: 3
A110: CRASH_TYPE_CD | B110: 7 | C110: Parked Vehicle | D110: Parked Vehicle | E110: 7 | G110: 2070 | H110: ANGEL | I110: 3
A111: CRASH_TYPE_CD | B111: 8 | C111: Pedestrian | D111: Pedestrian | E111: 8 | G111: 2074 | H111: ANGUS | I111: 3
A112: CRASH_TYPE_CD | B112: 9 | C112: Animal | D112: Animal | E112: 9 | G112: 2078 | H112: ANKENYTOWN | I112: 3
A113: CRASH_TYPE_CD | B113: 10 | C113: Train | D113: Train | E113: 10 | G113: 2085 | H113: ANLO | I113: 3
A114: CRASH_TYPE_CD | B114: 11 | C114: Pedalcycles | D114: Pedalcycles | E114: 11 | G114: 2092 | H114: ANNA | I114: 2
A115: CRASH_TYPE_CD | B115: 12 | C115: Other Non-Vehicle | D115: Other Non-Vehicle | E115: 12 | G115: 2106 | H115: ANNAPOLIS | I115: 3
A116: CRASH_TYPE_CD | B116: 13 | C116: Fixed Object | D116: Fixed Object | E116: 13 | G116: 2120 | H116: ANSONIA | I116: 2
A117: CRASH_TYPE_CD | B117: 14 | C117: Other Object | D117: Other Object | E117: 14 | G117: 2125 | H117: ANTHONY | I117: 3
A118: CRASH_TYPE_CD | B118: 15 | C118: Falling From Or In Vehicle | D118: Falling From Or In Vehicle | E118: 15 | G118: 2134 | H118: ANTIOCH | I118: 3
A119: CRASH_TYPE_CD | B119: 16 | C119: Overturning | D119: Overturning | E119: 16 | G119: 2148 | H119: ANTIOCH | I119: 2
A120: CRASH_TYPE_CD | B120: 17 | C120: Other Non-Collision | D120: Other Non-Collision | E120: 17 | G120: 2162 | H120: ANTIQUITY | I120: 3
A121: CRASH_TYPE_CD | B121: 18 | C121: Left Turn | D121: Left Turn | E121: 18 | G121: 2170 | H121: ANTONIS | I121: 3
A122: CRASH_TYPE_CD | B122: 19 | C122: Right Turn | D122: Right Turn | E122: 19 | G122: 2176 | H122: ANTRIM | I122: 3
A123: DAY_IN_WEEK_CD | B123: 1 | C123: (1) Sunday | D123: (1) Sunday | E123: 1 | G123: 2190 | H123: ANTRIM TOWNSHIP | I123: 3
A124: DAY_IN_WEEK_CD | B124: 2 | C124: (2) Monday | D124: (2) Monday | E124: 2 | G124: 2204 | H124: ANTWERP | I124: 2
A125: DAY_IN_WEEK_CD | B125: 3 | C125: (3) Tuesday | D125: (3) Tuesday | E125: 3 | G125: 2225 | H125: APEX | I125: 3
A126: DAY_IN_WEEK_CD | B126: 4 | C126: (4) Wednesday | D126: (4) Wednesday | E126: 4 | G126: 2228 | H126: APPLE | I126: 3
A127: DAY_IN_WEEK_CD | B127: 5 | C127: (5) Thursday | D127: (5) Thursday | E127: 5 | G127: 2232 | H127: APPLE CREEK | I127: 2
A128: DAY_IN_WEEK_CD | B128: 6 | C128: (6) Friday | D128: (6) Friday | E128: 6 | G128: 2246 | H128: APPLE GROVE | I128: 3
A129: DAY_IN_WEEK_CD | B129: 7 | C129: (7) Saturday | D129: (7) Saturday | E129: 7 | G129: 2260 | H129: APPLETON | I129: 3
A130: DAY_IN_WEEK_CD | G130: 2266 | H130: APPLE VALLEY | I130: 1
A131: DAY_IN_WEEK_CD | G131: 2274 | H131: AQUILLA | I131: 2
A132: DAY_IN_WEEK_CD | G132: 2288 | H132: ARABIA | I132: 3
A133: DAY_IN_WEEK_CD | G133: 2295 | H133: ARBAUGH | I133: 3
A134: DAY_IN_WEEK_CD | G134: 2302 | H134: ARBOCREST ACRES | I134: 3
A135: DAY_IN_WEEK_CD | G135: 2316 | H135: ARCADIA | I135: 2
A136: DAY_IN_WEEK_CD | G136: 2330 | H136: ARCANUM | I136: 2
A137: DISTRACTED_DRIVER_IND | B137: N | C137: No | D137: No | E137: N | G137: 2344 | H137: ARCHBOLD | I137: 2
A138: DISTRACTED_DRIVER_IND | B138: Y | C138: Yes | D138: Yes | E138: Y | G138: 2358 | H138: ARCHER TOWNSHIP | I138: 3
A139: FACILITY_TYPE_CD | B139: 1 | C139: One Way Roadway | D139: One Way Roadway | E139: 1 | G139: 2372 | H139: ARCHERS FORK | I139: 3
A140: FACILITY_TYPE_CD | B140: 2 | C140: Two Way Roadway | D140: Two Way Roadway | E140: 2 | G140: 2386 | H140: ARION | I140: 3
A141: FACILITY_TYPE_CD | B141: 3 | C141: Couplet | D141: Couplet | E141: 3 | G141: 2395 | H141: ARKOE | I141: 3
A142: FACILITY_TYPE_CD | B142: 4 | C142: Ramp | D142: Ramp | E142: 4 | G142: 2400 | H142: ARLINGTON | I142: 2
A143: FACILITY_TYPE_CD | B143: 5 | C143: Non-Mainline | D143: Non-Mainline | E143: 5 | G143: 2414 | H143: ARLINGTON | I143: 3
A144: FACILITY_TYPE_CD | B144: 6 | C144: Non-Inventory | D144: Non-Inventory | E144: 6 | G144: 2420 | H144: ARLINGTON | I144: 3
A145: FHWA_RDWY_DEPARTURE_IND | B145: N | C145: No | D145: No | E145: N | G145: 2428 | H145: ARLINGTON HEIGHTS | I145: 2
A146: FHWA_RDWY_DEPARTURE_IND | B146: Y | C146: Yes | D146: Yes | E146: Y | G146: 2460 | H146: ARMADALE | I146: 3
A147: FREEWAY_IND | B147: N | C147: No | D147: No | E147: N | G147: 2470 | H147: ARMITAGE | I147: 3
A148: FREEWAY_IND | B148: Y | C148: Yes | D148: Yes | E148: Y | G148: 2478 | H148: ARMSTRONG | I148: 3
A149: FUNCTIONAL_CLASS_CD | B149: 1 | C149: Interstate Route | D149: Interstate Route | E149: 1 | G149: 2484 | H149: ARMSTRONGS MILLS | I149: 3
A150: FUNCTIONAL_CLASS_CD | B150: 2 | C150: Other Freeways or Expressways | D150: Other Freeways or Expressways | E150: 2 | G150: 2498 | H150: ARNHEIM | I150: 3
A151: FUNCTIONAL_CLASS_CD | B151: 3 | C151: Other Principal Arterial Roads | D151: Other Principal Arterial Roads | E151: 3 | G151: 2512 | H151: ARNOLD | I151: 3
A152: FUNCTIONAL_CLASS_CD | B152: 4 | C152: Minor Arterial Roads | D152: Minor Arterial Roads | E152: 4 | G152: 2526 | H152: ARTANNA | I152: 3
A153: FUNCTIONAL_CLASS_CD | B153: 5 | C153: Major Collector Roads | D153: Major Collector Roads | E153: 5 | G153: 2540 | H153: ARTHUR | I153: 3
A154: FUNCTIONAL_CLASS_CD | B154: 6 | C154: Minor Collector Roads | D154: Minor Collector Roads | E154: 6 | G154: 2555 | H154: ASBURY | I154: 3
A155: FUNCTIONAL_CLASS_CD | B155: 7 | C155: Local Roads | D155: Local Roads | E155: 7 | G155: 2559 | H155: ASH | I155: 3
A156: INTERSTATE_IND | B156: N | C156: No | D156: No | E156: N | G156: 2568 | H156: ASHLAND | I156: 1
A157: INTERSTATE_IND | B157: Y | C157: Yes | D157: Yes | E157: Y | G157: 2582 | H157: ASHLEY | I157: 2
A158: LIGHT_COND_PRIMARY_CD | B158: 1 | C158: Daylight | D158: Daylight | E158: 1 | G158: 2596 | H158: ASHLEY CORNER | I158: 3
A159: LIGHT_COND_PRIMARY_CD | B159: 2 | C159: Dawn/Dusk | D159: Dawn/Dusk | E159: 2 | G159: 2624 | H159: ASH RIDGE | I159: 3
A160: LIGHT_COND_PRIMARY_CD | B160: 3 | C160: Dark - Lighted Roadway | D160: Dark - Lighted Roadway | E160: 3 | G160: 2638 | H160: ASHTABULA | I160: 1
A161: LIGHT_COND_PRIMARY_CD | B161: 4 | C161: Dark - Roadway Not Lighted | D161: Dark - Roadway Not Lighted | E161: 4 | G161: 2652 | H161: ASHTABULA TOWNSHIP | I161: 3
A162: LIGHT_COND_PRIMARY_CD | B162: 5 | C162: Dark - Unknown Roadway Lighting | D162: Dark - Unknown Roadway Lighting | E162: 5 | G162: 2675 | H162: ASHTON | I162: 3
A163: LIGHT_COND_PRIMARY_CD | B163: 9 | C163: Other / Unknown | D163: Other / Unknown | E163: 9 | G163: 2680 | H163: ASHVILLE | I163: 2
A164: LIGHT_COND_PRIMARY_CD | G164: 2708 | H164: ASSUMPTION | I164: 3
A165: LIGHT_COND_PRIMARY_CD | G165: 2715 | H165: ASTORIA | I165: 3
A166: LIGHT_COND_PRIMARY_CD | G166: 2722 | H166: ATHALIA | I166: 2
A167: NHS_CD | B167: 2 | C167: Major Airport | D167: Major Airport | E167: 2 | G167: 2736 | H167: ATHENS | I167: 1
A168: NHS_CD | B168: 3 | C168: Major Port Facility | D168: Major Port Facility | E168: 3 | G168: 2750 | H168: ATHENS TOWNSHIP | I168: 3
A169: NHS_CD | B169: 4 | C169: Major Amtrak Station | D169: Major Amtrak Station | E169: 4 | G169: 2764 | H169: ATHENS TOWNSHIP | I169: 3
A170: NHS_CD | B170: 5 | C170: Major Rail/Truck Terminal | D170: Major Rail/Truck Terminal | E170: 5 | G170: 2770 | H170: ATHERTON | I170: 3
A171: NHS_CD | B171: 6 | C171: Major Intercity Bus Terminal | D171: Major Intercity Bus Terminal | E171: 6 | G171: 2778 | H171: ATLANTA | I171: 3
A172: NHS_CD | B172: 7 | C172: Major Public Transit Terminal or Multi-modal Passenger Terminal | D172: Major Public Transit Terminal or Multi-modal Passenger Terminal | E172: 7 | G172: 2820 | H172: ATTICA | I172: 2
A173: NHS_CD | B173: 8 | C173: Major Pipeline Terminal | D173: Major Pipeline Terminal | E173: 8 | G173: 2834 | H173: ATTICA JUNCTION | I173: 3
A174: NHS_CD | B174: 9 | C174: Major Ferry Terminal | D174: Major Ferry Terminal | E174: 9 | G174: 2848 | H174: ATWATER | I174: 2
A175: NHS_CD | B175: C | C175: Strahnet Connectors | D175: Strahnet Connectors | E175: C | G175: 2862 | H175: ATWATER TOWNSHIP | I175: 3
A176: NHS_CD | B176: H | C176: Congressional Corridors | D176: Congressional Corridors | E176: H | G176: 2869 | H176: ATWATER CENTER | I176: 3
A177: NHS_CD | B177: N | C177: National Highway System (regular) | D177: National Highway System (regular) | E177: N | G177: 2876 | H177: AUBURN | I177: 3
A178: NHS_CD | B178: S | C178: Strahnet | D178: Strahnet | E178: S | G178: 2890 | H178: AUBURN TOWNSHIP | I178: 3
A179: ODOT_CRASH_LOCATION_CD | B179: 0 | C179: Data Not Valid or Not Provided | D179: Data Not Valid or Not Provided | E179: 0 | G179: 2904 | H179: AUBURN TOWNSHIP | I179: 3
A180: ODOT_CRASH_LOCATION_CD | B180: 1 | C180: Not An Intersection | D180: Not An Intersection | E180: 1 | G180: 2918 | H180: AUBURN TOWNSHIP | I180: 3
A181: ODOT_CRASH_LOCATION_CD | B181: 2 | C181: Four-Way Intersection | D181: Four-Way Intersection | E181: 2 | G181: 2932 | H181: AUBURN CENTER | I181: 3
A182: ODOT_CRASH_LOCATION_CD | B182: 3 | C182: T-Intersection | D182: T-Intersection | E182: 3 | G182: 2946 | H182: AUBURN CENTER | I182: 3
A183: ODOT_CRASH_LOCATION_CD | B183: 4 | C183: Y-Intersection | D183: Y-Intersection | E183: 4 | G183: 2960 | H183: AUBURN CORNERS | I183: 3
A184: ODOT_CRASH_LOCATION_CD | B184: 5 | C184: Traffic Circle/Roundabout | D184: Traffic Circle/Roundabout | E184: 5 | G184: 2970 | H184: AUGERBURG | I184: 3
A185: ODOT_CRASH_LOCATION_CD | B185: 6 | C185: 5 Or More Point Intersection | D185: 5 Or More Point Intersection | E185: 6 | G185: 2988 | H185: AUGLAIZE TOWNSHIP | I185: 3
A186: ODOT_CRASH_LOCATION_CD | B186: 7 | C186: On Ramp | D186: On Ramp | E186: 7 | G186: 3002 | H186: AUGLAIZE TOWNSHIP | I186: 3
A187: ODOT_CRASH_LOCATION_CD | B187: 8 | C187: Off Ramp | D187: Off Ramp | E187: 8 | G187: 3016 | H187: AUGUSTA | I187: 3
A188: ODOT_CRASH_LOCATION_CD | B188: 9 | C188: Crossover | D188: Crossover | E188: 9 | G188: 3030 | H188: AUGUSTA TOWNSHIP | I188: 3
A189: ODOT_CRASH_LOCATION_CD | B189: 10 | C189: Driveway/Alley Access | D189: Driveway/Alley Access | E189: 10 | G189: 3037 | H189: AUKERMAN | I189: 3
A190: ODOT_CRASH_LOCATION_CD | B190: 11 | C190: Railroad Grade Crossing | D190: Railroad Grade Crossing | E190: 11 | G190: 3058 | H190: AULTMAN | I190: 3
A191: ODOT_CRASH_LOCATION_CD | B191: 12 | C191: Shared-Use Paths Or Trails | D191: Shared-Use Paths Or Trails | E191: 12 | G191: 3072 | H191: AURELIUS TOWNSHIP | I191: 3
A192: ODOT_CRASH_LOCATION_CD | B192: 99 | C192: Unknown | D192: Unknown | E192: 99 | G192: 3086 | H192: AURORA | I192: 1
A193: ODOT_DIV_UNDIV_IND | B193: Y | C193: Divided | D193: Divided | E193: Y | G193: 3128 | H193: AUSTIN | I193: 3
A194: ODOT_DIV_UNDIV_IND | B194: N | C194: Undivided | D194: Undivided | E194: N | G194: 3142 | H194: AUSTINBURG | I194: 2
A195: ODOT_DIV_UNDIV_IND | B195: U | C195: Unknown/Missing | D195: Unknown/Missing | E195: U | G195: 3156 | H195: AUSTINBURG TOWNSHIP | I195: 3
A196: ODOT_INTERSECTION_REL_IND | B196: N | C196: No | D196: No | E196: N | G196: 3184 | H196: AUSTINTOWN | I196: 1
A197: ODOT_INTERSECTION_REL_IND | B197: Y | C197: Yes | D197: Yes | E197: Y | G197: 3198 | H197: AUSTINTOWN TOWNSHIP | I197: 3
A198: ODOT_MAINTAINED_HWY_IND | B198: N | C198: No | D198: No | E198: N | G198: 3220 | H198: AUSTIN VILLAGE | I198: 3
A199: ODOT_MAINTAINED_HWY_IND | B199: Y | C199: Yes | D199: Yes | E199: Y | G199: 3226 | H199: AUTUMN ACRES | I199: 3
A200: ODOT_YOUNG_DRIVER_IND | B200: N | C200: No | D200: No | E200: N | G200: 3240 | H200: AVA | I200: 3
... 5737 more rows

Sheet Data (hidden)
B11: 21
Q18: =P19+1 -> 17
A19: 1 | B19: =A19+1 -> 2 | C19: =B19+1 -> 3 | D19: 4 | E19: 5 | F19: 6 | G19: 7 | H19: 8 | I19: 9 | J19: 10 | K19: 11 | L19: 12 | M19: 13 | N19: 14 | O19: 15 | P19: 16 | Q19: 99 | R19: =Q18+1 -> 18 | S19: 19 | T19: 20 | U19: 21 | V19: 22 | W19: 23 | X19: 24 | Y19: =X19+1 -> 25 | Z19: =Y19+1 -> 26 | AA19: =Z19+1 -> 27 | AB19: =AA19+1 -> 28 | AC19: =AB19+1 -> 29 | AD19: =AC19+1 -> 30 | AE19: =AD19+1 -> 31 | AF19: =AE19+1 -> 32 | AG19: =AF19+1 -> 33 | AH19: =AG19+1 -> 34 | AI19: =AH19+1 -> 35 | AJ19: =AI19+1 -> 36 | AK19: =AJ19+1 -> 37 | AL19: =AK19+1 -> 38 | AM19: =AL19+1 -> 39 | AN19: =AM19+1 -> 40 | AO19: =AN19+1 -> 41 | AP19: =AO19+1 -> 42 | AQ19: =AP19+1 -> 43 | AR19: =AQ19+1 -> 44 | AS19: =AR19+1 -> 45 | AT19: =AS19+1 -> 46 | AU19: =AT19+1 -> 47 | AV19: =AU19+1 -> 48 | AW19: =AV19+1 -> 49 | AX19: =AW19+1 -> 50 | AY19: =AX19+1 -> 51 | AZ19: =AY19+1 -> 52 | BA19: =AZ19+1 -> 53 | BB19: =BA19+1 -> 54 | BC19: =BB19+1 -> 55 | BD19: =BC19+1 -> 56 | BE19: =BD19+1 -> 57 | BF19: =BE19+1 -> 58 | BG19: =BF19+1 -> 59 | BH19: =BG19+1 -> 60 | BI19: =BH19+1 -> 61 | BJ19: =BI19+1 -> 62 | BK19: =BJ19+1 -> 63 | BL19: =BK19+1 -> 64 | BM19: =BL19+1 -> 65 | BN19: =BM19+1 -> 66 | BO19: =BN19+1 -> 67 | BP19: =BO19+1 -> 68 | BQ19: =BP19+1 -> 69 | BR19: =BQ19+1 -> 70 | BS19: =BR19+1 -> 71 | BT19: =BS19+1 -> 72 | BU19: =BT19+1 -> 73 | BV19: =BU19+1 -> 74 | BW19: =BV19+1 -> 75 | BX19: =BW19+1 -> 76 | BY19: =BX19+1 -> 77 | BZ19: =BY19+1 -> 78 | CA19: =BZ19+1 -> 79 | CB19: =CA19+1 -> 80 | CC19: =CB19+1 -> 81 | CD19: =CC19+1 -> 82 | CE19: =CD19+1 -> 83 | CF19: =CE19+1 -> 84 | CG19: =CF19+1 -> 85 | CH19: =CG19+1 -> 86 | CI19: =CH19+1 -> 87 | CJ19: =CI19+1 -> 88 | CK19: =CJ19+1 -> 89 | CL19: =CK19+1 -> 90 | CM19: =CL19+1 -> 91 | CN19: =CM19+1 -> 92 | CO19: =CN19+1 -> 93 | CP19: =CO19+1 -> 94 | CQ19: =CP19+1 -> 95 | CR19: =CQ19+1 -> 96 | CS19: =CR19+1 -> 97 | CT19: =CS19+1 -> 98 | CU19: =CT19+1 -> 99 | CV19: =CU19+1 -> 100 | CW19: =CV19+1 -> 101 | CX19: =CW19+1 -> 102 | CY19: =CX19+1 -> 103 | CZ19: =CY19+1 -> 104 | DA19: =CZ19+1 -> 105 | DB19: =DA19+1 -> 106 | DC19: =DB19+1 -> 107 | DD19: =DC19+1 -> 108 | DE19: =DD19+1 -> 109 | DF19: =DE19+1 -> 110 | DG19: =DF19+1 -> 111 | DH19: =DG19+1 -> 112 | DI19: =DH19+1 -> 113 | DJ19: =DI19+1 -> 114 | DK19: =DJ19+1 -> 115 | DL19: =DK19+1 -> 116 | DM19: =DL19+1 -> 117 | DN19: =DM19+1 -> 118 | DO19: =DN19+1 -> 119 | DP19: =DO19+1 -> 120 | DQ19: =DP19+1 -> 121 | DR19: =DQ19+1 -> 122 | DS19: =DR19+1 -> 123 | DT19: =DS19+1 -> 124 | DU19: =DT19+1 -> 125 | DV19: =DU19+1 -> 126 | DW19: =DV19+1 -> 127 | DX19: =DW19+1 -> 128 | DY19: =DX19+1 -> 129 | DZ19: =DY19+1 -> 130 | EA19: =DZ19+1 -> 131 | EB19: =EA19+1 -> 132 | EC19: =EB19+1 -> 133 | ED19: =EC19+1 -> 134 | EE19: =ED19+1 -> 135 | EF19: =EE19+1 -> 136 | EG19: =EF19+1 -> 137 | EH19: =EG19+1 -> 138 | EI19: =EH19+1 -> 139 | EJ19: =EI19+1 -> 140 | EK19: =EJ19+1 -> 141 | EL19: =EK19+1 -> 142 | EM19: =EL19+1 -> 143 | EN19: =EM19+1 -> 144 | EO19: =EN19+1 -> 145 | EP19: =EO19+1 -> 146 | EQ19: =EP19+1 -> 147 | ER19: =EQ19+1 -> 148 | ES19: =ER19+1 -> 149
A20: HYPERLINK | B20: DOCUMENT_NBR | C20: CRASH_REPORT_LINK | D20: CRASH_YR | E20: CRASH_MONTH_YEAR | F20: DISTRICT_NBR | G20: NLFID | H20: NLF_JUR_CD | I20: NLF_COUNTY_CD | J20: COUNTY_LOG_NBR | K20: ODOT_LATITUDE_NBR | L20: ODOT_LONGITUDE_NBR | M20: ODOT_FIPS_CD | N20: AREA_CODE | O20: CRASH_DATE | P20: CRASH_SEVERITY_CD | Q20: CRASH_TYPE_CD | R20: DAY_IN_WEEK_CD | S20: DISTRACTED_DRIVER_IND | T20: FACILITY_TYPE_CD | U20: FHWA_RDWY_DEPARTURE_IND | V20: FREEWAY_IND | W20: FUNCTIONAL_CLASS_CD | X20: HOUR_OF_CRASH | Y20: INCAPAC_INJURIES_NBR | Z20: INTERCHANGE_ID | AA20: INTERSECTION_ID_CURRENT | AB20: INTERSECTION_LEG_ID | AC20: INTERSTATE_IND | AD20: INV_LOG_NBR | AE20: INV_NLFID | AF20: IS_COMMERCIAL_RELATED | AG20: LIGHT_COND_PRIMARY_CD | AH20: LOCAL_REPORT_NUMBER_ID | AI20: MAINTENANCE_AUTHORITY_CD | AJ20: MONTH_OF_CRASH | AK20: NHS_CD | AL20: NO_INJURY_REPORTED_NBR | AM20: NON_INCAPAC_INJURIES_NBR | AN20: NUMBER_OF_UNITS_NBR | AO20: ODOT_CITY_VILLAGE_TWP_NME | AP20: ODOT_CRASH_LOCATION_CD | AQ20: ODOT_DIR_FROM_REF_CD | AR20: ODOT_DIV_UNDIV_IND | AS20: ODOT_INTERSECTION_REL_IND | AT20: ODOT_LANES_NBR | AU20: ODOT_MAINTAINED_HWY_IND | AV20: ODOT_MILES_FROM_REF_NBR | AW20: ODOT_REF_ROUTE_PREFIX_CD | AX20: ODOT_YOUNG_DRIVER_IND | AY20: ODPS_ADDRESS_REFERENCE | AZ20: ODPS_ALCOHOL_IND | BA20: ODPS_CITY_VILLAGE_TWP_NME | BB20: ODPS_DRUG_IND | BC20: ODPS_LOC_DIR_SUFFIX_CD | BD20: ODPS_LOC_IN_WORK_ZONE_CD | BE20: ODPS_LOC_ROAD_DIRECTION_CD | BF20: ODPS_LOC_ROAD_NME | BG20: ODPS_LOC_ROAD_SUFFIX_CD | BH20: ODPS_LOC_ROUTE_ID | BI20: ODPS_LOC_ROUTE_PREFIX_CD | BJ20: ODPS_LOC_ROUTE_SUFFIX_CD | BK20: ODPS_MILEPOST_REFERENCE | BL20: ODPS_MOTORCYCLE_IND | BM20: ODPS_REF_DIR_SUFFIX_CD | BN20: ODPS_REF_DIRECTION_CD | BO20: ODPS_REF_GIVEN | BP20: ODPS_REF_POINT_USED_CD | BQ20: ODPS_REF_ROUTE_ID | BR20: ODPS_REF_ROUTE_PREFIX_CD | BS20: ODPS_REF_ROUTE_SUFFIX_CD | BT20: ODPS_REF_SUFFIX_CD | BU20: ODPS_SCHOOL_ZONE_IND | BV20: ODPS_SENIOR_DRIVER_IND | BW20: ODPS_SPEED_IND | BX20: ODPS_TOTAL_FATALITIES_NBR | BY20: ODPS_TYPE_OF_WORK_ZONE_CD | BZ20: ODPS_WORK_ZONE_IND | CA20: OPER_ACCESS_CONTROL_CD | CB20: POSSIBLE_INJURIES_NBR | CC20: ROAD_COND_PRIMARY_CD | CD20: ROAD_CONTOUR_CD | CE20: SA_RAMP_ID | CF20: SA_SEGMENT_ID | CG20: SECONDARY_CRASH | CH20: STATE_TRUE_LOG_NBR | CI20: U1_AGE_NBR | CJ20: U1_AT_FAULT_IND | CK20: U1_CONT_CIR_PRIMARY_CD | CL20: U1_DIRECTION_FROM_CD | CM20: U1_DIRECTION_TO_CD | CN20: U1_DISTRACTED_BY_1_CD | CO20: U1_GENDER_CD | CP20: U1_IS_ALCOHOL_SUSPECTED | CQ20: U1_IS_MARIJUANA_SUSPECTED | CR20: U1_IS_OTHER_DRUG_SUSPECTED | CS20: U1_NON_MOTORIST_LOC_CD | CT20: U1_NUMBER_OF_THRU_LANES | CU20: U1_OBJECT_STRUCK | CV20: U1_ODPS_UNIT_NBR | CW20: U1_OPERATINGIN_AUTONOMOUS_MODE | CX20: U1_POSTED_SPEED_NBR | CY20: U1_PRECRASH_ACTION_CD | CZ20: U1_SEQ_OF_EVENTS_1_CD | DA20: U1_SEQ_OF_EVENTS_2_CD | DB20: U1_SEQ_OF_EVENTS_3_CD | DC20: U1_SEQ_OF_EVENTS_4_CD | DD20: U1_SEQ_OF_EVENTS_5_CD | DE20: U1_SEQ_OF_EVENTS_6_CD | DF20: U1_SPECIAL_FUNCTION_CD | DG20: U1_TRAFFIC_CONTROL_CD | DH20: U1_TURN_CD | DI20: U1_TYPE_OF_UNIT_CD | DJ20: U1_UNIT_SPEED_NBR | DK20: U2_AGE_NBR | DL20: U2_CONT_CIR_PRIMARY_CD | DM20: U2_DIRECTION_FROM_CD | DN20: U2_DIRECTION_TO_CD | DO20: U2_DISTRACTED_BY_1_CD | DP20: U2_GENDER_CD | DQ20: U2_NON_MOTORIST_LOC_CD | DR20: U2_ODPS_UNIT_NBR | DS20: U2_POSTED_SPEED_NBR | DT20: U2_PRECRASH_ACTION_CD | DU20: U2_SEQ_OF_EVENTS_1_CD | DV20: U2_SEQ_OF_EVENTS_2_CD | DW20: U2_SEQ_OF_EVENTS_3_CD | DX20: U2_SEQ_OF_EVENTS_4_CD | DY20: U2_SEQ_OF_EVENTS_5_CD | DZ20: U2_SEQ_OF_EVENTS_6_CD | EA20: U2_SPECIAL_FUNCTION_CD | EB20: U2_TRAFFIC_CONTROL_CD | EC20: U2_TURN_CD | ED20: U2_TYPE_OF_UNIT_CD | EE20: U2_UNIT_SPEED_NBR | EF20: U3_CONT_CIR_PRIMARY_CD | EG20: U3_ODPS_UNIT_NBR | EH20: U3_PRECRASH_ACTION_CD | EI20: U3_SEQ_OF_EVENTS_1_CD | EJ20: U3_SEQ_OF_EVENTS_2_CD | EK20: U3_SEQ_OF_EVENTS_3_CD | EL20: U3_SEQ_OF_EVENTS_4_CD | EM20: U3_SEQ_OF_EVENTS_5_CD | EN20: U3_SEQ_OF_EVENTS_6_CD | EO20: U3_SPECIAL_FUNCTION_CD | EP20: U3_TRAFFIC_CONTROL_CD | EQ20: U3_TYPE_OF_UNIT_CD | ER20: UNRESTRAIN_OCCUPANTS | ES20: WEATHER_COND_CD

Sheet Metadata (hidden)
A1: Metadata
A2: 43907
A4: Column Name | B4: Definition
A5: Document Number | B5: Unique number assigned to each crash. It will be the same for the crash level record, unit level record and people level record. The first four numbers will designate the crash year.
A6: Year | B6: Year of Crash
A7: Local Report Number | B7: The unique identifier within a given year that identifies a given crash within a reporting agency.
A8: User Defined | B8: User Defined - Can be used to code crashes as necessary
A9: Severity | B9: Indicates the five-level severity of the crash
A10: Crash Type | B10: ODOT's calculated crash type similar to manner of collision but has been expanded for engineering purposes.
A11: ODOT District | B11: ODOT District
A12: County Cd | B12: County abbreviation for the section of roadway in which the crash occurred.
A13: ODOT Crash Location | B13: The type of location that best describes where the first event of the crash occurred.
A14: NLFID | B14: ODOT’s graphic roadway network geometric segments unique identifier upon which the crash occurred
A15: County True Log | B15: The county based straight line mileage of the route, at which the crash occurred based on three decimals.
A16: State True Log | B16: The state based straight line mileage of the route, at which the crash occurred based on three decimals.
A17: On Road | B17: The street name upon which the crash occurred
A18: At Road | B18: The street name upon which the crash occurred at
A19: ODOT Latitude | B19: The angular distance, measured in degrees, north or south from the equator at which the crash occurred and is directly related to ODOT's LRS.
A20: ODOT Longitude | B20: Distance East or West on the Earth's surface measured as an arc of the equator (in degrees up to 180 degrees) between the meridian passing through a particular place and a standard or prime meridian, usually the one passing through Greenwich, England, at which the crash occurred and is directly related to ODOT's LRS.
A21: ODOT FIPS | B21: Jurisdictional boundary code corresponding to a named place recognized by the U.S. Bureau of the Census based on information provided by State, county, and local governments.
A22: ODOT FIPS Name | B22: Jurisdiction Name Related to FIPS Code
A23: ODOT FIPS CVT Code | B23: Code related to type jurisdiction on the crash report form
A24: Fatalities | B24: Total Number of Fatalities
A25: Serious Injuries | B25: Total Number of Suspected Serious Injuries
A26: Non Serious Injuries | B26: Total Number of Suspected Minor Injuries
A27: Possible Injuries | B27: Total Number of Possible Injuries
A28: No Injuries | B28: Total Number of no Injuries reported
A29: Unrestrained Occupants | B29: Total number of unrestrained occupants in the crash
A30: Number of Units | B30: Total number of units involved in the crash
A31: NLFID Jurisdiction | B31: Jurisdiction of the section of roadway upon which the crash occurred.
A32: NLFID Route Type | B32: The route type associated with the route upon which the crash occurred.
A33: Facility Type | B33: The operational characteristics of the section of roadway (i.e. one way, two way, ramp).
A34: Urban Area | B34: U.S. Census Urban Area Code associated with the section of roadway where the crash occurred.
A35: Functional Class | B35: The roadway classes for the FHWA approved Functional Class system. This is based upon assignment of roads into systems according to the character of service they provide in relation to the total road network upon which the crash occurred.
A36: NHS | B36: Indicates the Roadway section that is part of the National Highway System upon which the crash occurred.
A37: Divided Hwy | B37: Indicates whether a roadway section is part of a divided highway upon which the crash occurred.
A38: ODOT Number of Lanes | B38: The number of lanes in both directions carrying through traffic upon which the crash occurred.
A39: Operational Access Control | B39: The control as it actually exists on the roadway where the crash occurred.
A40: Freeway | B40: Flag that indicates that the crash occurred on a freeway or freeway look a like facility
A41: Interstate | B41: Flag that indicates the crash occurred on an interstate route.
A42: ODOT Maintained | B42: Flag that indicates the crash occurred upon a segment of roadway maintained by ODOT.
A43: Maintenance Authority | B43: Maintenance Authority Code of the roadway segment on which the crash was located.
A44: Date | B44: Date of Crash
A45: Month | B45: Month of Crash
A46: Hour | B46: Hour of Crash
A47: Day in Week | B47: Number associated with the day of week the crash occurred.
A48: Weather Condition | B48: The prevailing atmospheric conditions at the time of the crash.
A49: Road Condition | B49: The roadway surface condition at the location of the first event.
A50: Light Condition | B50: The lighting conditions at the time of the crash
A51: Road Contour | B51: The alignment and grade characteristics that best describe the roadway at the location of the first event
A52: Roadway Departure | B52: Indicates when a vehicles leaves its lane of travel (left or right).
A53: ODOT Intersection Related | B53: ODOT's calculated intersection related based on ODPS's intersection related flag and if a unit had traffic control that occurs at intersections.
A54: Alcohol Related | B54: Flag indicating alcohol involved
A55: Marijuana Related | B55: Flag indicating marijuana involved
A56: Drug Related | B56: Flag indicating other drugs involved
A57: School Zone Related | B57: Flag indicating that the crash occurred in an active school zone
A58: Motorcycle Involved | B58: Flag indicating motorcycle involved
A59: Speed Related | B59: Flag indicating excessive speed involved
A60: Senior Driver Involved | B60: Flag indicating a senor driver (age 65 and older) was involved.
A61: ODOT Young Driver | B61: Flag indicating a youthful driver (age 15-25) was involved.
A62: Work Zone Related | B62: Flag indicating the crash occurred in a work zone.
A63: Location in Work Zone | B63: Codes indicating where in the work zone the crash occurred.
A64: Type of Work Zone | B64: Codes indicating what type of work zone was in place at the time of the crash.
A65: Distracted Driver | B65: Flag indicating the driver was distracted
A66: ODPS FIPS Name | B66: Jurisdictional boundary named place recognized by the U.S. Bureau of the Census based on information provided by State, county, and local governments.
A67: ODPS On Road Name Prefix | B67: The street name prefix or direction upon which the crash occurred
A68: ODPS On Road Name | B68: The street name upon which the crash occurred
A69: ODPS On Road Name Suffix | B69: The street name suffix upon which the crash occurred
A70: ODPS On Road Name Directional Suffix | B70: ODPS street name directional suffix (i.e. NW, SE) upon which the crash occurred.
A71: ODPS On Route Type | B71: The route prefix upon which the crash occurred
A72: ODPS On Route Number | B72: The route ID upon which the crash occurred
A73: ODPS On Route Suffix | B73: ODPS routes suffix upon which the crash occurred (state or local).
A74: ODPS At Road Name Prefix | B74: The street name prefix or direction at which the crash occurred
A75: ODPS At Road Name | B75: Street Name or House Number or Mile Post Number
A76: ODPS At Road Name Suffix | B76: The street name suffix at which the crash occurred.
A77: ODPS At Road Name Directional Suffix | B77: ODPS street name directional suffix (i.e. NW, SE) at which the crash occurred (intersection reference type).
A78: ODPS At Route Type | B78: The route prefix or type at which the crash occurred
A79: ODPS At Route Number | B79: The route ID at which the crash occurred.
A80: ODPS At Route Suffix | B80: ODPS routes suffix at which the crash occurred (state or local) (intersection reference type).
A81: ODPS Address Reference | B81: ODPS address box number at which crash occurred (address reference type)
A82: ODPS Mile Post Reference | B82: ODPS milepost sign number at which the crash occurred (milepost reference type)
A83: ODPS Reference Point Used | B83: Type of reference used (includes converted codes form the 2001 crash report form).
A84: Unit 1 At Fault Ind | B84: Flag indicating that ODO Unit 1 (U1) was identified as fault
A85: Unit 1 ODPS Unit Nbr | B85: ODPS Unit Number for ODOT Unit 1
A86: Unit 1 Direction From Cd | B86: Direction from which the vehicle/non-motorist was traveling.
A87: Unit 1 Direction To Cd | B87: Direction toward which the vehicle/non-motorist was traveling.
A88: Unit 1 Turn Cd | B88: ODOT's calculated Unit 1 derived action prior to the crash based on officer provided pre-crash actions or from/to directions.
A89: Unit 1 Traffic Control Cd | B89: Codes indicating the type of Roadway Traffic Control device for Unit 1.
A90: Unit 1 Type Of Unit Cd | B90: Codes indicating the general configuration or shape of Unit 1 distinguished by characteristics such as number of doors, rows of seats, windows, or roof line.
A91: Unit 1 Special Function Cd | B91: Codes indicating the special function served by Unit 1, whether or not the function is marked on the vehicle.
A92: Unit 1 Unit Speed Nbr | B92: Actual or estimated speed of Unit 1 at time of crash.
A93: Unit 1 Posted Speed Nbr | B93: Posted Speed for Unit 1 at the time of the crash.
A94: Unit 1 Precrash Action Cd | B94: Unit 1's activity immediately prior to the crash.
A95: Unit 1 Cont Cir Primary Cd | B95: Actions of Unit 1 that may have contributed to the crash.
A96: Unit 1 Object Struck | B96: Code indicating that Unit 1 struck an object as part of one of the six sequence of events. (codes relate solely to sequence of events)
A97: Unit 1 Seq Of Events 1 Cd | B97: Unit 1's sequence 1 of 6 for the events of the crash.
A98: Unit 1 Seq Of Events 2 Cd | B98: Unit 1's sequence 2 of 6 for the events of the crash.
A99: Unit 1 Seq Of Events 3 Cd | B99: Unit 1's sequence 3 of 6 for the events of the crash.
A100: Unit 1 Seq Of Events 4 Cd | B100: Unit 1's sequence 4 of 6 for the events of the crash.
A101: Unit 1 Seq Of Events 5 Cd | B101: Unit 1's sequence 5 of 6 for the events of the crash.
A102: Unit 1 Seq Of Events 6 Cd | B102: Unit 1's sequence 6 of 6 for the events of the crash.
A103: Unit 1 Non Motorist Loc Cd | B103: The location of the non-motorist with respect to the roadway prior to the time of the crash.
A104: Unit 1 Age Nbr | B104: Age of the Driver of Unit 1
A105: Unit 1 Gender Cd | B105: Codes indicating the gender of the Driver of Unit 1
A106: Unit 1 Distracted By 1 Cd | B106: Codes indicating the distractions which may have influenced the driver's performance of Unit 1.
A107: Unit 2 ODPS Unit Nbr | B107: ODPS number for ODOT Unit 2
A108: Unit 2 Direction From Cd | B108: Direction from which the vehicle/non-motorist was traveling.
A109: Unit 2 Direction To Cd | B109: Direction toward which the vehicle/non-motorist was traveling.
A110: Unit 2 Turn Cd | B110: ODOT's calculated Unit 2 derived action prior to the crash based on officer provided pre-crash actions or from/to directions.
A111: Unit 2 Traffic Control Cd | B111: Codes indicating the type of Roadway Traffic Control device for Unit 2.
A112: Unit 2 Type Of Unit Cd | B112: Codes indicating the general configuration or shape of Unit 2 distinguished by characteristics such as number of doors, rows of seats, windows, or roof line.
A113: Unit 2 Special Function Cd | B113: Codes indicating the special function served by Unit 2, whether or not the function is marked on the vehicle.
A114: Unit 2 Unit Speed Nbr | B114: Actual or estimated speed of Unit 2 at time of crash.
A115: Unit 2 Posted Speed Nbr | B115: Posted Speed for Unit 2 at the time of the crash.
A116: Unit 2 Precrash Action Cd | B116: Unit 2's activity immediately prior to the crash.
A117: Unit 2 Cont Cir Primary Cd | B117: Actions of Unit 2 that may have contributed to the crash.
A118: Unit 2 Seq Of Events 1 Cd | B118: Unit 2's sequence 1 of 6 for the events of the crash.
A119: Unit 2 Seq Of Events 2 Cd | B119: Unit 2's sequence 2 of 6 for the events of the crash.
A120: Unit 2 Seq Of Events 3 Cd | B120: Unit 2's sequence 3 of 6 for the events of the crash.
A121: Unit 2 Seq Of Events 4 Cd | B121: Unit 2's sequence 4 of 6 for the events of the crash.
A122: Unit 2 Seq Of Events 5 Cd | B122: Unit 2's sequence 5 of 6 for the events of the crash.
A123: Unit 2 Seq Of Events 6 Cd | B123: Unit 2's sequence 6 of 6 for the events of the crash.
A124: Unit 2 Non Motorist Loc Cd | B124: The location of the non-motorist with respect to the roadway prior to the time of the crash.
A125: Unit 2 Age Nbr | B125: Age of the Driver of Unit 2
A126: Unit 2 Gender Cd | B126: Codes indicating the gender of the Driver of Unit 2
A127: Unit 2 Distracted By 1 Cd | B127: Codes indicating the distractions which may have influenced the driver's performance of Unit 2.
A128: Unit 3 ODPS Unit Nbr | B128: ODPS number for ODOT Unit 3
A129: Unit 3 Traffic Control Cd | B129: Codes indicating the type of Roadway Traffic Control device for Unit 3.
A130: Unit 3 Type Of Unit Cd | B130: Codes indicating the general configuration or shape of Unit 3 distinguished by characteristics such as number of doors, rows of seats, windows, or roof line.
A131: Unit 3 Special Function Cd | B131: Codes indicating the special function served by Unit 3, whether or not the function is marked on the vehicle.
A132: Unit 3 Precrash Action Cd | B132: Unit 3's activity immediately prior to the crash.
A133: Unit 3 Cont Cir Primary Cd | B133: Actions of Unit 3 that may have contributed to the crash.
A134: Unit 3 Seq Of Events 1 Cd | B134: Unit 3's sequence 1 of 6 for the events of the crash.
A135: Unit 3 Seq Of Events 2 Cd | B135: Unit 3's sequence 2 of 6 for the events of the crash.
A136: Unit 3 Seq Of Events 3 Cd | B136: Unit 3's sequence 3 of 6 for the events of the crash.
A137: Unit 3 Seq Of Events 4 Cd | B137: Unit 3's sequence 4 of 6 for the events of the crash.
A138: Unit 3 Seq Of Events 5 Cd | B138: Unit 3's sequence 5 of 6 for the events of the crash.
A139: Unit 3 Seq Of Events 6 Cd | B139: Unit 3's sequence 6 of 6 for the events of the crash.
A140: Intersection ID | B140: Unique Intersection ID that associates the crash with the intersection referenced or by a spatial join of the crash to the intersection
A141: Intersection Leg | B141: Leg ID of the Intersection upon which the crash occurred (from Intersection Inventory)
A142: Interchange ID | B142: Unique Interchange ID that associates the crash with the intersection referenced or by a spatial join of the crash to the interchange.
A143: SA Ramp ID | B143: Ramp ID from SA Inventory
A144: SA Segment ID | B144: Segment ID from SA Inventory
A145: Jurisdiction Type | B145: Aggregated Jurisdiction
A146: Crash Report Link | B146: Calculated field to display the crash image
A147: HistoricalImagePath | B147: Historical path to display the crash image
A148: Roadview | B148: Link to Pathways Roadviewer
A149: Google | B149: Link to Google Maps
A150: Mashed Map | B150: Link to Mashed Map

Sheet Full Crash Data
H1: N | EO1: N
B2: version: 20241018
A3: Type 'Heading' Here
N16: =IF(RIGHT(K19,3)="**C","",IF(RIGHT(K19,2)="*C","",MID(K19,13,1))) -> 
A17: =IF(C17*1>2010,HYPERLINK(EM17,"Crash Report"),IF(EN17="","",HYPERLINK(EN17,"Crash Report"))) ->  | G17: HL | I17: HL | J17: HL | K17: HL | L17: HL | N17: =IF(K19<>"",MID(K19,5,2)&IFERROR(MID(K19,7,5)*1,MID(K19,7,5)),) ->  | P17: HL | Q17: HL | R17: HL | AW17: HL | AX17: HL | BL17: HL | BM17: HL | BN17: HL | BO17: HL | BP17: HL | BQ17: HL | BR17: HL | BS17: HL | BT17: HL | BU17: HL | BV17: HL | BW17: HL | BX17: HL | BY17: HL | BZ17: HL | CA17: HL | CB17: HL | EG17: HL | EH17: HL | EI17: HL | EJ17: HL | EK17: HL
A18: 1 | B18: =A18+1 -> 2 | C18: =EM18+1 -> 4 | D18: =CB18+1 -> 75 | F18: =R18+1 -> 14 | G18: =AA18+1 -> 22 | H18: =C18+1 -> 5 | I18: =AB18+1 -> 8 | J18: =AX18+1 -> 25 | K18: =H18+1 -> 6 | L18: =AC18+1 -> 10 | M18: =EK18+1 -> 137 | P18: =L18+1 -> 11 | Q18: =P18+1 -> 12 | R18: =Q18+1 -> 13 | S18: =AN18+1 -> 37 | U18: =F18+1 -> 15 | V18: =U18+1 -> 16 | W18: 17 | X18: 18 | Y18: 19 | Z18: 20 | AA18: 21 | AB18: =K18+1 -> 7 | AC18: =I18+1 -> 9 | AD18: =J18+1 -> 26 | AE18: =AD18+1 -> 27 | AF18: 28 | AG18: 29 | AH18: 30 | AI18: 31 | AJ18: 32 | AK18: 33 | AL18: 34 | AM18: 35 | AN18: 36 | AO18: =S18+1 -> 38 | AP18: =AO18+1 -> 39 | AQ18: 40 | AR18: 41 | AS18: 42 | AT18: 43 | AU18: =AT18+1 -> 44 | AV18: 45 | AW18: =G18+1 -> 23 | AX18: =AW18+1 -> 24 | AY18: =AV18+1 -> 46 | BA18: =AY18+1 -> 47 | BB18: =BA18+1 -> 48 | BC18: =BB18+1 -> 49 | BD18: =BC18+1 -> 50 | BE18: =BD18+1 -> 51 | BF18: =BI18+1 -> 55 | BG18: =BE18+1 -> 52 | BH18: =BG18+1 -> 53 | BI18: =BH18+1 -> 54 | BJ18: =BF18+1 -> 56 | BK18: =BJ18+1 -> 57 | BL18: 58 | BM18: 59 | BN18: 60 | BO18: 61 | BP18: 62 | BQ18: 63 | BR18: 64 | BS18: 65 | BT18: 66 | BU18: 67 | BV18: 68 | BW18: 69 | BX18: 70 | BY18: 71 | BZ18: 72 | CA18: 73 | CB18: 74 | CC18: =D18+1 -> 76 | CD18: =CC18+1 -> 77 | CE18: 78 | CF18: 79 | CG18: 80 | CH18: 81 | CI18: 82 | CJ18: 83 | CK18: 84 | CL18: 85 | CM18: 86 | CN18: 87 | CO18: 88 | CP18: 89 | CQ18: 90 | CR18: 91 | CS18: 92 | CT18: 93 | CU18: 94 | CV18: 95 | CW18: 96 | CX18: 97 | CY18: 98 | CZ18: 99 | DA18: 100 | DB18: 101 | DC18: 102 | DD18: 103 | DE18: 104 | DF18: 105 | DG18: =DF18+1 -> 106 | DH18: 107 | DI18: 108 | DJ18: 109 | DK18: 110 | DL18: 111 | DM18: 112 | DN18: 113 | DO18: 114 | DP18: 115 | DQ18: 116 | DR18: 117 | DS18: 118 | DT18: 119 | DU18: =DT18+1 -> 120 | DV18: =DU18+1 -> 121 | DW18: 122 | DX18: 123 | DY18: 124 | DZ18: 125 | EA18: 126 | EB18: 127 | EC18: 128 | ED18: 129 | EE18: 130 | EF18: 131 | EG18: 132 | EH18: 133 | EI18: 134 | EJ18: 135 | EK18: 136 | EM18: =B18+1 -> 3 | EO18: =M18+1 -> 138 | EP18: =EO18+1 -> 139 | EQ18: =EP18+1 -> 140 | ER18: =EQ18+1 -> 141 | ES18: 142 | ET18: 143
A19: =IF(C19*1>2010,HYPERLINK(EM19,"Crash Report"),IF(EM19="","","Restricted Access")) ->  | B19: =Data!B19*1 -> 2 | C19: =Data!D19 -> 4 | D19: =IF(Data!AH19="","",Data!AH19) -> 34 | F19: =IFERROR(VLOOKUP(Data!P19,RefTables!$B$274:$D$278,3,FALSE),"") ->  | G19: =IFERROR(VLOOKUP(Data!Q19,RefTables!$B$103:$D$122,3,FALSE),"") ->  | H19: =Data!F19 -> 6 | I19: =Data!I19 -> 9 | J19: =IFERROR(VLOOKUP(Data!AP19,RefTables!$B$179:$D$192,3,FALSE),"") ->  | K19: =IF(Data!G19="","",Data!G19) -> 7 | L19: =IF(Data!J19="","",Data!J19) -> 10 | M19: =IF(Data!CH19="","",Data!CH19) -> 86 | N19: =IFERROR(IF(K19<>"",MID(K19,5,2)&IFERROR(MID(K19,7,5)*1,MID(K19,7,5))&IF(LEFT(K19,1)="S",IF(OR(RIGHT(K19,2)="*C",RIGHT(K19,2)="*N"),"",MID(K19,13,1)),IF(OR(RIGHT(K19,3)="**C",RIGHT(K19,3)="**N"),"",MID(K19,12,1))),TRIM(IF('Full Crash Data'!BQ19<>"",'Full Crash Data'!BP19&'Full Crash Data'!BQ19&'Full Crash Data'!BR19,IF('Full Crash Data'!BL19="","",'Full Crash Data'!BL19&" ")&IF('Full Crash Data'!BM19="","",'Full Crash Data'!BM19&" ")&IF('Full Crash Data'!BN19="","",'Full Crash Data'!BN19&" ")&IF('Full Crash Data'!BO19="","",'Full Crash Data'!BO19)))),"") ->  | O19: =IFERROR(IF(CA19<>"","MP"&CA19,IF(BZ19<>"",BZ19,TRIM(IF('Full Crash Data'!BX19<>"",'Full Crash Data'!BW19&'Full Crash Data'!BX19&'Full Crash Data'!BY19,IF('Full Crash Data'!BS19="","",'Full Crash Data'!BS19&" ")&IF('Full Crash Data'!BT19="","",'Full Crash Data'!BT19&" ")&IF('Full Crash Data'!BU19="","",'Full Crash Data'!BU19&" ")&IF('Full Crash Data'!BV19="","",'Full Crash Data'!BV19))))),"") -> MP63 | P19: =IF(Data!K19="","",Data!K19) -> 11 | Q19: =IF(Data!L19="","",Data!L19) -> 12 | R19: =IF(Data!M19="","",Data!M19) -> 13 | S19: =IF(Data!AO19="","",Data!AO19) -> 41 | T19: =IFERROR(VLOOKUP(R19,RefTables!G:I,3,FALSE),3) -> 3 | U19: =IF(Data!BX19="","",Data!BX19) -> 76 | V19: =IF(Data!Y19="","",Data!Y19) -> 25 | W19: =IF(Data!AM19="","",Data!AM19) -> 39 | X19: =IF(Data!CB19="","",Data!CB19) -> 80 | Y19: =IF(Data!AL19="","",Data!AL19) -> 38 | Z19: =IF(Data!ER19="","",Data!ER19) -> 148 | AA19: =IF(Data!AN19="","",Data!AN19) -> 40 | AB19: =IF(K19="",Data!H19,LEFT(K19,1)) -> 7 | AC19: =IF(K19="",Data!BI19,MID(K19,5,2)) ->  | AD19: =IFERROR(VLOOKUP(Data!T19,RefTables!$B$139:$D$144,3,FALSE),"") ->  | AE19: =IFERROR(VLOOKUP(Data!N19,RefTables!$B$2:$D$102,3,FALSE),"") ->  | AF19: =IFERROR(VLOOKUP(Data!W19,RefTables!$B$149:$D$155,3,FALSE),"") ->  | AG19: =IFERROR(VLOOKUP(Data!AK19,RefTables!$B$167:$D$178,3,FALSE),"") ->  | AH19: =IF(Data!AR19="Y","Yes","No") -> No | AI19: =IF(Data!AT19="","",Data!AT19) -> 46 | AJ19: =IF(Data!CA19="","",IFERROR(VLOOKUP(Data!CA19,RefTables!$B$575:$D$577,3,FALSE),"")) ->  | AK19: =IF(Data!V19="Y","Yes","No") -> No | AL19: =IF(Data!AC19="Y","Yes","No") -> No | AM19: =IF(Data!AU19="Y","Yes","No") -> No | AN19: =IF(Data!AI19<>80,VLOOKUP(Data!AI19,RefTables!$B$578:$D$604,3,FALSE),IFERROR(VLOOKUP(IF(AND(T19=3,AB19="S"),1,IF(AC19="IR",1,IF(AND(T19=3,AB19="C"),2,IF(AND(T19=3,AB19="T"),3,IF(AB19="F",60,4))))),RefTables!$B$578:$D$604,3,FALSE),"Other")) ->  | AO19: =IF(Data!O19="","",Data!O19) -> 15 | AP19: =IF(Data!AJ19="","",Data!AJ19) -> 36 | AQ19: =Data!X19 -> 24 | AR19: =IFERROR(VLOOKUP(Data!R19,RefTables!$B$123:$D$136,3,FALSE),"") ->  | AS19: =IFERROR(VLOOKUP(Data!ES19,RefTables!$B$556:$D$574,3,FALSE),"Unknown") -> Unknown | AT19: =IFERROR(VLOOKUP(Data!CC19,RefTables!$B$242:$D$252,3,FALSE),"Other / Unknown") -> Other / Unknown | AU19: =IFERROR(VLOOKUP(Data!AG19,RefTables!$B$158:$D$166,3,FALSE),"") ->  | AV19: =IFERROR(VLOOKUP(Data!CD19,RefTables!$B$264:$D$273,3,FALSE),"") ->  | AW19: =IF(Data!U19="Y","Yes","No") -> No | AX19: =IF(Data!AS19="Y","Yes","No") -> No | AY19: =IF(Data!AZ19="Y","Yes","No") -> No | AZ19: =IF(Data!CQ19="Y","Yes","No") -> No | BA19: =IF(Data!BB19="Y","Yes","No") -> No | BB19: =IF(Data!BU19="Y","Yes","No") -> No | BC19: =IF(Data!BL19="Y","Yes","No") -> No | BD19: =IF(Data!BW19="Y","Yes","No") -> No | BE19: =IF(Data!BV19="Y","Yes","No") -> No | BF19: =IF(Data!AX19="Y","Yes","No") -> No | BG19: =IF(Data!BZ19="Y","Yes","No") -> No | BH19: =IFERROR(VLOOKUP(Data!BD19,RefTables!$B$206:$D$211,3,FALSE),"") ->  | BI19: =IFERROR(VLOOKUP(Data!BY19,RefTables!$B$230:$D$235,3,FALSE),"") ->  | BJ19: =IF(Data!S19="Y","Yes","No") -> No | BK19: =IF(Data!BA19="","",Data!BA19) -> 53 | BL19: =IF(Data!BE19="","",Data!BE19) -> 57 | BM19: =IF(Data!BF19="","",Data!BF19) -> 58 | BN19: =IF(Data!BG19="","",Data!BG19) -> 59 | BO19: =IF(Data!BC19="","",Data!BC19) -> 55 | BP19: =IF(Data!BI19="","",Data!BI19) -> 61 | BQ19: =IF(Data!BH19="","",Data!BH19) -> 60 | BR19: =IF(Data!BJ19="","",Data!BJ19) -> 62 | BS19: =IF(Data!BN19="","",Data!BN19) -> 66 | BT19: =IF(Data!BO19="","",Data!BO19) -> 67 | BU19: =IF(Data!BT19="","",Data!BT19) -> 72 | BV19: =IF(Data!BM19="","",Data!BM19) -> 65 | BW19: =IF(Data!BR19="","",Data!BR19) -> 70 | BX19: =IF(Data!BQ19="","",Data!BQ19) -> 69 | BY19: =IF(Data!BS19="","",Data!BS19) -> 71 | BZ19: =IF(Data!AY19="","",Data!AY19) -> 51 | CA19: =IF(Data!BK19="","",Data!BK19) -> 63 | CB19: =IFERROR(VLOOKUP(Data!BP19,RefTables!$B$214:$D$223,3,FALSE),"") ->  | CC19: =IF(Data!CJ19="Y","Yes","No") -> No | CD19: =IF(Data!CV19="","",Data!CV19) -> 100 | CE19: =IF(Data!CL19="","",IFERROR(VLOOKUP(Data!CL19*1,RefTables!$B$353:$D$361,3,FALSE),"")) ->  | CF19: =IF(Data!CM19="","",IFERROR(VLOOKUP(Data!CM19*1,RefTables!$B$362:$D$370,3,FALSE),"")) ->  | CG19: =IF(Data!DH19="","",IFERROR(VLOOKUP(Data!DH19,RefTables!$B$523:$D$526,3,FALSE),"")) ->  | CH19: =IF(Data!DG19="","",IFERROR(VLOOKUP(Data!DG19,RefTables!$B$507:$D$522,3,FALSE),"")) ->  | CI19: =IF(Data!DI19="","",IFERROR(VLOOKUP(Data!DI19,RefTables!$B$527:$D$604,3,FALSE),"")) ->  | CJ19: =IF(Data!DF19="","",IFERROR(VLOOKUP(Data!DF19,RefTables!$B$485:$D$506,3,FALSE),"")) ->  | CK19: =IF(Data!DJ19="","",Data!DJ19) -> 114 | CL19: =IF(Data!CX19="","",IF(Data!CX19*1>70,70,IF(OR(RIGHT(Data!CX19,1)*1=5,RIGHT(Data!CX19,1)*1=0),Data!CX19,IF(RIGHT(Data!CX19,1)*1>5,ROUNDDOWN(Data!CX19,-1)+5,ROUNDDOWN(Data!CX19,-1))))) -> 70 | CM19: =IF(Data!CY19="","",IFERROR(VLOOKUP(Data!CY19,RefTables!$B$406:$D$428,3,FALSE),"")) ->  | CN19: =IF(Data!CK19="","",IFERROR(VLOOKUP(Data!CK19,RefTables!$B$287:$D$319,3,FALSE),"")) ->  | CO19: =IF(Data!CU19="","",IFERROR(VLOOKUP(Data!CU19,RefTables!$B$605:$D$636,3,FALSE),"")) -> Other / Unknown | CP19: =IF(Data!CZ19="","",IFERROR(VLOOKUP(Data!CZ19,RefTables!$B$429:$D$484,3,FALSE),"")) ->  | CQ19: =IF(Data!DA19=0,"",IFERROR(VLOOKUP(Data!DA19,RefTables!$B$429:$D$484,3,FALSE),"")) ->  | CR19: =IF(Data!DB19=0,"",IFERROR(VLOOKUP(Data!DB19,RefTables!$B$429:$D$484,3,FALSE),"")) ->  | CS19: =IF(Data!DC19=0,"",IFERROR(VLOOKUP(Data!DC19,RefTables!$B$429:$D$484,3,FALSE),"")) ->  | CT19: =IF(Data!DD19=0,"",IFERROR(VLOOKUP(Data!DD19,RefTables!$B$429:$D$484,3,FALSE),"")) ->  | CU19: =IF(Data!DE19=0,"",IFERROR(VLOOKUP(Data!DE19,RefTables!$B$429:$D$484,3,FALSE),"")) ->  | CV19: =IF(Data!CS19="","",IFERROR(VLOOKUP(Data!CS19,RefTables!$B$392:$D$405,3,FALSE),"")) ->  | CW19: =IF(Data!CI19="",0,Data!CI19*1) -> 87 | CX19: =IF(Data!CO19="","",IFERROR(VLOOKUP(Data!CO19,RefTables!$B$389:$D$391,3,FALSE),"")) ->  | CY19: =IF(Data!CN19="","Other / Unknown",IFERROR(VLOOKUP(Data!CN19,RefTables!$B$371:$D$379,3,FALSE),"Other / Unknown")) -> Other / Unknown | CZ19: =IF(Data!DR19="","",Data!DR19) -> 122 | DA19: =IF(Data!DM19="","",IFERROR(VLOOKUP(Data!DM19*1,RefTables!$B$353:$D$361,3,FALSE),"")) ->  | DB19: =IF(Data!DN19="","",IFERROR(VLOOKUP(Data!DN19*1,RefTables!$B$362:$D$370,3,FALSE),"")) ->  | DC19: =IF(Data!EC19="","",IFERROR(VLOOKUP(Data!EC19*1,RefTables!$B$523:$D$526,3,FALSE),"")) ->  | DD19: =IF(Data!EB19="","",IFERROR(VLOOKUP(Data!EB19,RefTables!$B$507:$D$522,3,FALSE),"")) ->  | DE19: =IF(Data!ED19="","",IFERROR(VLOOKUP(Data!ED19,RefTables!$B$527:$D$604,3,FALSE),"")) ->  | DF19: =IF(Data!EA19="","",IFERROR(VLOOKUP(Data!EA19,RefTables!$B$485:$D$506,3,FALSE),"")) ->  | DG19: =IF(Data!EE19="","",Data!EE19) -> 135 | DH19: =IF(Data!DS19="","",Data!DS19) -> 123 | DI19: =IF(Data!DT19="","",IFERROR(VLOOKUP(Data!DT19,RefTables!$B$406:$D$428,3,FALSE),"")) ->  | DJ19: =IF(Data!DL19="","",IFERROR(VLOOKUP(Data!DL19,RefTables!$B$287:$D$319,3,FALSE),"")) ->  | DK19: =IF(Data!DU19="","",IFERROR(VLOOKUP(Data!DU19,RefTables!$B$429:$D$484,3,FALSE),"")) ->  | DL19: =IF(Data!DV19=0,"",IFERROR(VLOOKUP(Data!DV19,RefTables!$B$429:$D$484,3,FALSE),"")) ->  | DM19: =IF(Data!DW19=0,"",IFERROR(VLOOKUP(Data!DW19,RefTables!$B$429:$D$484,3,FALSE),"")) ->  | DN19: =IF(Data!DX19=0,"",IFERROR(VLOOKUP(Data!DX19,RefTables!$B$429:$D$484,3,FALSE),"")) ->  | DO19: =IF(Data!DY19=0,"",IFERROR(VLOOKUP(Data!DY19,RefTables!$B$429:$D$484,3,FALSE),"")) ->  | DP19: =IF(Data!DZ19=0,"",IFERROR(VLOOKUP(Data!DZ19,RefTables!$B$429:$D$484,3,FALSE),"")) ->  | DQ19: =IF(Data!DQ19="","",IFERROR(VLOOKUP(Data!DQ19,RefTables!$B$429:$D$484,3,FALSE),"")) ->  | DR19: =IF(Data!DK19="",0,Data!DK19*1) -> 115 | DS19: =IF(Data!DP19="","",IFERROR(VLOOKUP(Data!DP19,RefTables!$B$389:$D$391,3,FALSE),"")) ->  | DT19: =IF(Data!DO19="","",IFERROR(VLOOKUP(Data!DO19,RefTables!$B$371:$D$379,3,FALSE),"")) ->  | DU19: =IF(Data!EG19="","",Data!EG19) -> 137 | DV19: =IF(Data!EP19="","",IFERROR(VLOOKUP(Data!EP19,RefTables!$B$507:$D$522,3,FALSE),"")) ->  | DW19: =IF(Data!EQ19="","",IFERROR(VLOOKUP(Data!EQ19,RefTables!$B$527:$D$604,3,FALSE),"")) ->  | DX19: =IF(Data!EO19="","",IFERROR(VLOOKUP(Data!EO19,RefTables!$B$485:$D$506,3,FALSE),"")) ->  | DY19: =IF(Data!EH19="","",IFERROR(VLOOKUP(Data!EH19,RefTables!$B$406:$D$428,3,FALSE),"")) ->  | DZ19: =IF(Data!EF19="","",IFERROR(VLOOKUP(Data!EF19,RefTables!$B$287:$D$319,3,FALSE),"")) ->  | EA19: =IF(Data!EI19="","",IFERROR(VLOOKUP(Data!EI19,RefTables!$B$429:$D$484,3,FALSE),"")) ->  | EB19: =IF(Data!EJ19=0,"",IFERROR(VLOOKUP(Data!EJ19,RefTables!$B$429:$D$484,3,FALSE),"")) ->  | EC19: =IF(Data!EK19=0,"",IFERROR(VLOOKUP(Data!EK19,RefTables!$B$429:$D$484,3,FALSE),"")) ->  | ED19: =IF(Data!EL19=0,"",IFERROR(VLOOKUP(Data!EL19,RefTables!$B$429:$D$484,3,FALSE),"")) ->  | EE19: =IF(Data!EM19=0,"",IFERROR(VLOOKUP(Data!EM19,RefTables!$B$429:$D$484,3,FALSE),"")) ->  | EF19: =IF(Data!EN19=0,"",IFERROR(VLOOKUP(Data!EN19,RefTables!$B$429:$D$484,3,FALSE),"")) ->  | EG19: =IF(Data!AA19="","",Data!AA19) -> 27 | EH19: =IF(Data!AB19="","",Data!AB19) -> 28 | EI19: =IF(Data!Z19="","",Data!Z19) -> 26 | EJ19: =IF(Data!CE19="","",Data!CE19) -> 83 | EK19: =IF(Data!CF19="","",Data!CF19) -> 84 | EL19: =IF(OR(LEFT(AN19,1)="S",AN19="Other Federal Agency"),"State","Local") ->  | EM19: =IF(C19>2010,Data!C19,"") ->  | EN19: =IFERROR(VLOOKUP(B19,HistoricalImages!A:B,2,FALSE),"") ->  | EO19: =+HYPERLINK(CONCATENATE("http://pathweb.pathwayservices.com/ohiopublic/?nlfid='",+K19,"'&logpoint=",+L19),"Pathweb") -> Pathweb | EP19: =HYPERLINK(CONCATENATE("http://maps.google.com/maps?q=",+P19,",+",+Q19,"+(Crash+Location)&iwloc=A&hl=en"),"Google Maps") -> Google Maps | EQ19: =HYPERLINK(CONCATENATE("http://data.mashedworld.com/dualmaps/map.htm?x=",Q19,"&y=",P19,"&z=15&gm=0&ve=5&gc=0&bz=1&bd=0&mw=1&sv=1&svb=0&svp=0&svz=0&svm=2&svf=0"),"Mashed Map") -> Mashed Map | ER19: =IFERROR(IF(OR(Data!Q19=1,Data!Q19=2,Data!Q19=3,Data!Q19=4,Data!Q19=5,Data!Q19=6,Data!Q19=18,Data!Q19=19),"MV","SV"),"SV") -> SV | ES19: =IFERROR(IF(Data!P19*1<5,"FI","PDO"),"PDO") -> PDO | ET19: =IF(Data!AV19="","",Data!AV19) -> 48
A20: HYPERLINK | B20: Document Number | C20: Year | D20: Local Report Number | E20: User Defined | F20: Severity | G20: Crash Type | H20: ODOT District | I20: County Cd | J20: ODOT Crash Location | K20: NLFID | L20: County True Log | M20: State True Log | N20: On Road | O20: At Road | P20: ODOT Latitude | Q20: ODOT Longitude | R20: ODOT FIPS | S20: ODOT FIPS Name | T20: ODOT FIPS CVT Code | U20: Fatalities | V20: Serious Injuries | W20: Non Serious Injuries | X20: Possible Injuries | Y20: No Injuries | Z20: Unrestrained Occupants | AA20: Number of Units | AB20: NLFID Jurisdiction | AC20: NLFID Route Type | AD20: Facility Type | AE20: Urban Area | AF20: Functional Class | AG20: NHS | AH20: Divided Hwy | AI20: ODOT Number of Lanes | AJ20: Operational Access Control | AK20: Freeway | AL20: Interstate | AM20: ODOT Maintained | AN20: Maintenance Authority | AO20: Date | AP20: Month | AQ20: Hour | AR20: Day in Week | AS20: Weather Condition | AT20: Road Condition | AU20: Light Condition | AV20: Road Contour | AW20: Roadway Departure | AX20: ODOT Intersection Related | AY20: Alcohol Related | AZ20: Marijuana Related | BA20: Drug Related | BB20: School Zone Related | BC20: Motorcycle Involved | BD20: Speed Related | BE20: Senior Driver Involved | BF20: ODOT Young Driver | BG20: Work Zone Related | BH20: Location in Work Zone | BI20: Type of Work Zone | BJ20: Distracted Driver | BK20: ODPS FIPS Name | BL20: ODPS On Road Name Prefix | BM20: ODPS On Road Name | BN20: ODPS On Road Name Suffix | BO20: ODPS On Road Name Directional Suffix | BP20: ODPS On Route Type | BQ20: ODPS On Route Number | BR20: ODPS On Route Suffix | BS20: ODPS At Road Name Prefix | BT20: ODPS At Road Name | BU20: ODPS At Road Name Suffix | BV20: ODPS At Road Name Directional Suffix | BW20: ODPS At Route Type | BX20: ODPS At Route Number | BY20: ODPS At Route Suffix | BZ20: ODPS Address Reference | CA20: ODPS Mile Post Reference | CB20: ODPS Reference Point Used | CC20: Unit 1 At Fault Ind | CD20: Unit 1 ODPS Unit Nbr | CE20: Unit 1 Direction From Cd | CF20: Unit 1 Direction To Cd | CG20: Unit 1 Turn Cd | CH20: Unit 1 Traffic Control Cd | CI20: Unit 1 Type Of Unit Cd | CJ20: Unit 1 Special Function Cd | CK20: Unit 1 Unit Speed Nbr | CL20: Unit 1 Posted Speed Nbr | CM20: Unit 1 Precrash Action Cd | CN20: Unit 1 Cont Cir Primary Cd | CO20: Unit 1 Object Struck | CP20: Unit 1 Seq Of Events 1 Cd | CQ20: Unit 1 Seq Of Events 2 Cd | CR20: Unit 1 Seq Of Events 3 Cd | CS20: Unit 1 Seq Of Events 4 Cd | CT20: Unit 1 Seq Of Events 5 Cd | CU20: Unit 1 Seq Of Events 6 Cd | CV20: Unit 1 Non Motorist Loc Cd | CW20: Unit 1 Age Nbr | CX20: Unit 1 Gender Cd | CY20: Unit 1 Distracted By 1 Cd | CZ20: Unit 2 ODPS Unit Nbr | DA20: Unit 2 Direction From Cd | DB20: Unit 2 Direction To Cd | DC20: Unit 2 Turn Cd | DD20: Unit 2 Traffic Control Cd | DE20: Unit 2 Type Of Unit Cd | DF20: Unit 2 Special Function Cd | DG20: Unit 2 Unit Speed Nbr | DH20: Unit 2 Posted Speed Nbr | DI20: Unit 2 Precrash Action Cd | DJ20: Unit 2 Cont Cir Primary Cd | DK20: Unit 2 Seq Of Events 1 Cd | DL20: Unit 2 Seq Of Events 2 Cd | DM20: Unit 2 Seq Of Events 3 Cd | DN20: Unit 2 Seq Of Events 4 Cd | DO20: Unit 2 Seq Of Events 5 Cd | DP20: Unit 2 Seq Of Events 6 Cd | DQ20: Unit 2 Non Motorist Loc Cd | DR20: Unit 2 Age Nbr | DS20: Unit 2 Gender Cd | DT20: Unit 2 Distracted By 1 Cd | DU20: Unit 3 ODPS Unit Nbr | DV20: Unit 3 Traffic Control Cd | DW20: Unit 3 Type Of Unit Cd | DX20: Unit 3 Special Function Cd | DY20: Unit 3 Precrash Action Cd | DZ20: Unit 3 Cont Cir Primary Cd | EA20: Unit 3 Seq Of Events 1 Cd | EB20: Unit 3 Seq Of Events 2 Cd | EC20: Unit 3 Seq Of Events 3 Cd | ED20: Unit 3 Seq Of Events 4 Cd | EE20: Unit 3 Seq Of Events 5 Cd | EF20: Unit 3 Seq Of Events 6 Cd | EG20: Intersection ID | EH20: Intersection Leg | EI20: Interchange ID | EJ20: SA Ramp ID | EK20: SA Segment ID | EL20: Jurisdiction Type | EM20: CRASH_REPORT_LINK | EN20: HistoricalImagePath | EO20: Roadview | EP20: Google | EQ20: Mashed Map | ER20: HSM_MV_SV | ES20: HSM_Severity | ET20: Miles from Reference
A21: =IF(C21*1>2010,HYPERLINK(EM21,"Crash Report"),IF(EM21="","","Restricted Access")) -> Crash Report | B21: 20225011334 | C21: 2022 | D21: 14-0060-14 | E21: 1 | F21: (5) PDO/No Injury | G21: Angle | H21: 8 | I21: CLI | J21: Four-Way Intersection | K21: SCLIUS00022**C | L21: 2.619 | M21: 41.54 | N21: US22 | O21: SR380 | P21: 39.435706 | Q21: -83.945278 | R21: 00226 | S21: ADAMS TOWNSHIP | T21: 3 | U21: 0 | V21: 0 | W21: 0 | X21: 0 | Y21: 7 | Z21: 0 | AA21: 2 | AB21: S | AC21: US | AD21: Two Way Roadway | AF21: Major Collector Roads | AH21: No | AI21: 2 | AJ21: 3 | AK21: No | AL21: No | AM21: Yes | AN21: State Highway Agency | AO21: 44581 | AP21: 1 | AQ21: 17 | AR21: (5) Thursday | AS21: Cloudy | AT21: Dry | AU21: Dawn/Dusk | AV21: Straight Level | AW21: No | AX21: Yes | AY21: No | AZ21: No | BA21: No | BB21: No | BC21: No | BD21: No | BE21: No | BF21: No | BG21: No | BH21: Unknown or Not in Work Zone | BI21: Unknown or Not in Work Zone | BJ21: No | BK21: ADAMS TOWNSHIP | BP21: US | BQ21: 22 | BW21: SR | BX21: 380 | CB21: Intersection | CC21: Yes | CD21: 1 | CE21: Northeast | CF21: Southwest | CG21: No Turn | CH21: Stop Sign | CI21: Passenger Car | CJ21: None | CK21: 10 | CL21: 55 | CM21: Straight Ahead | CN21: Failure to Yield | CO21: Nothing Struck | CP21: Motor Vehicle In Transport | CV21: Data Not Valid or Not Provided | CW21: 37 | CX21: Male | CY21: Not Distracted | CZ21: 2 | DA21: Southwest | DB21: Northeast | DD21: No Control | DE21: Sport Utility Vehicle | DF21: None | DG21: 50 | DH21: 55 | DI21: Straight Ahead | DJ21: None | DK21: Motor Vehicle In Transport | DR21: 29 | DS21: Female | DT21: Not Distracted | EG21: ee96493a-716c-46bb-92d0-11524214e2ca | EH21: fd9f062d-c3e4-4747-9060-dc6ceee20ac8 | EL21: State | EM21: https://hsip.dot.state.oh.us/api/report/20225011334 | EO21: =+HYPERLINK(CONCATENATE("http://pathweb.pathwayservices.com/ohiopublic/?nlfid='",+K21,"'&logpoint=",+L21),"Pathweb") -> Pathweb | EP21: =HYPERLINK(CONCATENATE("http://maps.google.com/maps?q=",+P21,",+",+Q21,"+(Crash+Location)&iwloc=A&hl=en"),"Google Maps") -> Google Maps | EQ21: =HYPERLINK(CONCATENATE("http://data.mashedworld.com/dualmaps/map.htm?x=",Q21,"&y=",P21,"&z=15&gm=0&ve=5&gc=0&bz=1&bd=0&mw=1&sv=1&svb=0&svp=0&svz=0&svm=2&svf=0"),"Mashed Map") -> Mashed Map | ER21: MV | ES21: PDO | ET21: 0
A22: =IF(C22*1>2010,HYPERLINK(EM22,"Crash Report"),IF(EM22="","","Restricted Access")) -> Crash Report | B22: 20225016029 | C22: 2022 | D22: 14-0091-14 | E22: 2 | F22: (3) Minor Injury Suspected | G22: Angle | H22: 8 | I22: CLI | J22: Four-Way Intersection | K22: SCLIUS00022**C | L22: 2.637 | M22: 41.558 | N22: US22 | O22: SR380 | P22: 39.435801 | Q22: -83.944954 | R22: 00226 | S22: ADAMS TOWNSHIP | T22: 3 | U22: 0 | V22: 0 | W22: 2 | X22: 0 | Y22: 0 | Z22: 0 | AA22: 2 | AB22: S | AC22: US | AD22: Two Way Roadway | AF22: Major Collector Roads | AH22: No | AI22: 2 | AJ22: 3 | AK22: No | AL22: No | AM22: Yes | AN22: State Highway Agency | AO22: 44591 | AP22: 1 | AQ22: 17 | AR22: (1) Sunday | AS22: Clear | AT22: Dry | AU22: Dawn/Dusk | AV22: Straight Level | AW22: No | AX22: Yes | AY22: No | AZ22: No | BA22: No | BB22: No | BC22: No | BD22: No | BE22: No | BF22: Yes | BG22: No | BH22: Unknown or Not in Work Zone | BI22: Unknown or Not in Work Zone | BJ22: No | BK22: ADAMS TOWNSHIP | BP22: US | BQ22: 22 | BW22: SR | BX22: 380 | CB22: Intersection | CC22: Yes | CD22: 1 | CE22: South | CF22: North | CG22: No Turn | CH22: Stop Sign | CI22: Cargo Van | CJ22: None | CK22: 0 | CL22: 55 | CM22: Straight Ahead | CN22: Failure to Yield | CO22: Nothing Struck | CP22: Motor Vehicle In Transport | CQ22: Overturn/Rollover | CV22: Data Not Valid or Not Provided | CW22: 35 | CX22: Female | CY22: Not Distracted | CZ22: 2 | DA22: Northeast | DB22: Southwest | DD22: No Control | DE22: Pick up | DF22: None | DG22: 55 | DH22: 55 | DI22: Straight Ahead | DJ22: None | DK22: Motor Vehicle In Transport | DR22: 17 | DS22: Female | DT22: Not Distracted | EG22: ee96493a-716c-46bb-92d0-11524214e2ca | EH22: 24eb9716-3de9-4360-89e3-79f9845ee8b4 | EL22: State | EM22: https://hsip.dot.state.oh.us/api/report/20225016029 | EO22: =+HYPERLINK(CONCATENATE("http://pathweb.pathwayservices.com/ohiopublic/?nlfid='",+K22,"'&logpoint=",+L22),"Pathweb") -> Pathweb | EP22: =HYPERLINK(CONCATENATE("http://maps.google.com/maps?q=",+P22,",+",+Q22,"+(Crash+Location)&iwloc=A&hl=en"),"Google Maps") -> Google Maps | EQ22: =HYPERLINK(CONCATENATE("http://data.mashedworld.com/dualmaps/map.htm?x=",Q22,"&y=",P22,"&z=15&gm=0&ve=5&gc=0&bz=1&bd=0&mw=1&sv=1&svb=0&svp=0&svz=0&svm=2&svf=0"),"Mashed Map") -> Mashed Map | ER22: MV | ES22: FI | ET22: 0
A23: =IF(C23*1>2010,HYPERLINK(EM23,"Crash Report"),IF(EM23="","","Restricted Access")) -> Crash Report | B23: 20225065588 | C23: 2022 | D23: 14-0296-14 | E23: 3 | F23: (5) PDO/No Injury | G23: Angle | H23: 8 | I23: CLI | J23: Data Not Valid or Not Provided | K23: SCLIUS00022**C | L23: 2.621 | M23: 41.542 | N23: US22 | O23: SR380 | P23: 39.435719 | Q23: -83.945234 | R23: 00226 | S23: ADAMS TOWNSHIP | T23: 3 | U23: 0 | V23: 0 | W23: 0 | X23: 0 | Y23: 3 | Z23: 1 | AA23: 2 | AB23: S | AC23: US | AD23: Two Way Roadway | AF23: Major Collector Roads | AH23: No | AI23: 2 | AJ23: 3 | AK23: No | AL23: No | AM23: Yes | AN23: State Highway Agency | AO23: 44668 | AP23: 4 | AQ23: 14 | AR23: (1) Sunday | AS23: Clear | AT23: Dry | AU23: Daylight | AV23: Straight Level | AW23: No | AX23: Yes | AY23: No | AZ23: No | BA23: No | BB23: No | BC23: No | BD23: No | BE23: Yes | BF23: No | BG23: No | BH23: Unknown or Not in Work Zone | BI23: Unknown or Not in Work Zone | BJ23: No | BK23: ADAMS TOWNSHIP | BP23: US | BQ23: 22 | BW23: SR | BX23: 380 | CB23: Intersection | CC23: Yes | CD23: 1 | CE23: North | CF23: South | CG23: No Turn | CH23: Stop Sign | CI23: Passenger Car | CJ23: None | CK23: 3 | CL23: 55 | CM23: Straight Ahead | CN23: Failure to Yield | CO23: Nothing Struck | CP23: Motor Vehicle In Transport | CV23: Data Not Valid or Not Provided | CW23: 87 | CX23: Male | CY23: Not Distracted | CZ23: 2 | DA23: Northeast | DB23: Southwest | DD23: No Control | DE23: Passenger Car | DF23: None | DG23: 55 | DH23: 55 | DI23: Straight Ahead | DJ23: None | DK23: Motor Vehicle In Transport | DR23: 49 | DS23: Male | DT23: Not Distracted | EG23: ee96493a-716c-46bb-92d0-11524214e2ca | EH23: fd9f062d-c3e4-4747-9060-dc6ceee20ac8 | EL23: State | EM23: https://hsip.dot.state.oh.us/api/report/20225065588 | EO23: =+HYPERLINK(CONCATENATE("http://pathweb.pathwayservices.com/ohiopublic/?nlfid='",+K23,"'&logpoint=",+L23),"Pathweb") -> Pathweb | EP23: =HYPERLINK(CONCATENATE("http://maps.google.com/maps?q=",+P23,",+",+Q23,"+(Crash+Location)&iwloc=A&hl=en"),"Google Maps") -> Google Maps | EQ23: =HYPERLINK(CONCATENATE("http://data.mashedworld.com/dualmaps/map.htm?x=",Q23,"&y=",P23,"&z=15&gm=0&ve=5&gc=0&bz=1&bd=0&mw=1&sv=1&svb=0&svp=0&svz=0&svm=2&svf=0"),"Mashed Map") -> Mashed Map | ER23: MV | ES23: PDO | ET23: 0
A24: =IF(C24*1>2010,HYPERLINK(EM24,"Crash Report"),IF(EM24="","","Restricted Access")) -> Crash Report | B24: 20225247134 | C24: 2022 | D24: 14-0978-14 | E24: 4 | F24: (2) Serious Injury Suspected | G24: Angle | H24: 8 | I24: CLI | J24: Data Not Valid or Not Provided | K24: SCLIUS00022**C | L24: 2.61 | M24: 41.531 | N24: US22 | O24: SR380 | P24: 39.435663 | Q24: -83.945425 | R24: 00226 | S24: ADAMS TOWNSHIP | T24: 3 | U24: 0 | V24: 2 | W24: 0 | X24: 0 | Y24: 2 | Z24: 0 | AA24: 2 | AB24: S | AC24: US | AD24: Two Way Roadway | AF24: Major Collector Roads | AH24: No | AI24: 2 | AJ24: 3 | AK24: No | AL24: No | AM24: Yes | AN24: State Highway Agency | AO24: 44912 | AP24: 12 | AQ24: 18 | AR24: (7) Saturday | AS24: Snow | AT24: Wet | AU24: Dark - Roadway Not Lighted | AV24: Straight Level | AW24: No | AX24: Yes | AY24: No | AZ24: No | BA24: No | BB24: No | BC24: No | BD24: No | BE24: No | BF24: No | BG24: No | BH24: Unknown or Not in Work Zone | BI24: Unknown or Not in Work Zone | BJ24: No | BK24: ADAMS TOWNSHIP | BP24: US | BQ24: 22 | BW24: SR | BX24: 380 | CB24: Intersection | CC24: Yes | CD24: 1 | CE24: North | CF24: South | CG24: No Turn | CH24: Stop Sign | CI24: Sport Utility Vehicle | CJ24: None | CK24: 30 | CL24: 55 | CM24: Straight Ahead | CN24: Ran Stop Sign | CO24: Nothing Struck | CP24: Motor Vehicle In Transport | CV24: Data Not Valid or Not Provided | CW24: 30 | CX24: Female | CY24: Not Distracted | CZ24: 2 | DA24: Southwest | DB24: Northeast | DD24: No Control | DE24: Pick up | DF24: None | DG24: 45 | DH24: 55 | DI24: Straight Ahead | DJ24: None | DK24: Motor Vehicle In Transport | DL24: Ran Off Road Right | DM24: Tree | DR24: 54 | DS24: Male | DT24: Not Distracted | EG24: ee96493a-716c-46bb-92d0-11524214e2ca | EH24: fd9f062d-c3e4-4747-9060-dc6ceee20ac8 | EL24: State | EM24: https://hsip.dot.state.oh.us/api/report/20225247134 | EO24: =+HYPERLINK(CONCATENATE("http://pathweb.pathwayservices.com/ohiopublic/?nlfid='",+K24,"'&logpoint=",+L24),"Pathweb") -> Pathweb | EP24: =HYPERLINK(CONCATENATE("http://maps.google.com/maps?q=",+P24,",+",+Q24,"+(Crash+Location)&iwloc=A&hl=en"),"Google Maps") -> Google Maps | EQ24: =HYPERLINK(CONCATENATE("http://data.mashedworld.com/dualmaps/map.htm?x=",Q24,"&y=",P24,"&z=15&gm=0&ve=5&gc=0&bz=1&bd=0&mw=1&sv=1&svb=0&svp=0&svz=0&svm=2&svf=0"),"Mashed Map") -> Mashed Map | ER24: MV | ES24: FI | ET24: 0
A25: =IF(C25*1>2010,HYPERLINK(EM25,"Crash Report"),IF(EM25="","","Restricted Access")) -> Crash Report | B25: 20235035455 | C25: 2023 | D25: 14-0171-14 | E25: 5 | F25: (3) Minor Injury Suspected | G25: Fixed Object | H25: 8 | I25: CLI | J25: Data Not Valid or Not Provided | K25: SCLIUS00022**C | L25: 2.623 | M25: 41.544 | N25: US22 | O25: SR380 | P25: 39.43573 | Q25: -83.945196 | R25: 00226 | S25: ADAMS TOWNSHIP | T25: 3 | U25: 0 | V25: 0 | W25: 1 | X25: 0 | Y25: 0 | Z25: 0 | AA25: 1 | AB25: S | AC25: US | AD25: Two Way Roadway | AF25: Major Collector Roads | AH25: No | AI25: 2 | AJ25: 3 | AK25: No | AL25: No | AM25: Yes | AN25: State Highway Agency | AO25: 44987.56806 | AP25: 3 | AQ25: 13 | AR25: (5) Thursday | AS25: Clear | AT25: Dry | AU25: Daylight | AV25: Straight Level | AW25: Yes | AX25: Yes | AY25: No | AZ25: No | BA25: No | BB25: No | BC25: No | BD25: No | BE25: Yes | BF25: No | BG25: No | BH25: Unknown or Not in Work Zone | BI25: Unknown or Not in Work Zone | BJ25: No | BK25: ADAMS TOWNSHIP | BP25: US | BQ25: 22 | BW25: SR | BX25: 380 | CB25: Intersection | CC25: Yes | CD25: 1 | CE25: North | CF25: East | CG25: Left Turn | CH25: No Control | CI25: Sport Utility Vehicle | CJ25: None | CK25: 15 | CL25: 55 | CM25: Making Left Turn | CN25: Drove off Road | CO25: Guardrail End | CP25: Ran Off Road Right | CQ25: Guardrail End | CV25: Data Not Valid or Not Provided | CW25: 72 | CX25: Female | CY25: Not Distracted | DR25: 0 | EG25: ee96493a-716c-46bb-92d0-11524214e2ca | EH25: 176f787f-0bab-49c7-a293-1b2149a36978 | EK25: 382876 | EL25: State | EM25: https://hsip.dot.state.oh.us/api/report/20235035455 | EO25: =+HYPERLINK(CONCATENATE("http://pathweb.pathwayservices.com/ohiopublic/?nlfid='",+K25,"'&logpoint=",+L25),"Pathweb") -> Pathweb | EP25: =HYPERLINK(CONCATENATE("http://maps.google.com/maps?q=",+P25,",+",+Q25,"+(Crash+Location)&iwloc=A&hl=en"),"Google Maps") -> Google Maps | EQ25: =HYPERLINK(CONCATENATE("http://data.mashedworld.com/dualmaps/map.htm?x=",Q25,"&y=",P25,"&z=15&gm=0&ve=5&gc=0&bz=1&bd=0&mw=1&sv=1&svb=0&svp=0&svz=0&svm=2&svf=0"),"Mashed Map") -> Mashed Map | ER25: SV | ES25: FI | ET25: 0.003
A26: =IF(C26*1>2010,HYPERLINK(EM26,"Crash Report"),IF(EM26="","","Restricted Access")) -> Crash Report | B26: 20235033801 | C26: 2023 | D26: 14-0172-14 | E26: 6 | F26: (5) PDO/No Injury | G26: Rear End | H26: 8 | I26: CLI | J26: Data Not Valid or Not Provided | K26: SCLISR00380**C | L26: 0 | M26: 0 | N26: SR380 | O26: US22 | P26: 39.435729 | Q26: -83.9452 | R26: 00226 | S26: ADAMS TOWNSHIP | T26: 3 | U26: 0 | V26: 0 | W26: 0 | X26: 0 | Y26: 2 | Z26: 1 | AA26: 2 | AB26: S | AC26: SR | AD26: Two Way Roadway | AF26: Major Collector Roads | AH26: No | AI26: 2 | AJ26: 3 | AK26: No | AL26: No | AM26: Yes | AN26: State Highway Agency | AO26: 44988.69167 | AP26: 3 | AQ26: 16 | AR26: (6) Friday | AS26: Rain | AT26: Wet | AU26: Daylight | AV26: Straight Level | AW26: No | AX26: Yes | AY26: No | AZ26: No | BA26: No | BB26: No | BC26: No | BD26: No | BE26: Yes | BF26: No | BG26: No | BH26: Unknown or Not in Work Zone | BI26: Unknown or Not in Work Zone | BJ26: No | BK26: ADAMS TOWNSHIP | BP26: SR | BQ26: 380 | BW26: US | BX26: 22 | CB26: Intersection | CC26: Yes | CD26: 1 | CE26: Northeast | CF26: Southwest | CG26: No Turn | CH26: Stop Sign | CI26: Sport Utility Vehicle | CJ26: None | CK26: 10 | CL26: 55 | CM26: Slowing or Stopped In Traffic | CN26: Following Too Closely/ACDA | CO26: Nothing Struck | CP26: Motor Vehicle In Transport | CV26: Data Not Valid or Not Provided | CW26: 34 | CX26: Female | CY26: Not Distracted | CZ26: 2 | DA26: Northwest | DB26: Southeast | DD26: Stop Sign | DE26: Passenger Car | DF26: None | DG26: 0 | DH26: 55 | DI26: Slowing or Stopped In Traffic | DJ26: None | DK26: Motor Vehicle In Transport | DR26: 68 | DS26: Male | DT26: Not Distracted | EG26: ee96493a-716c-46bb-92d0-11524214e2ca | EH26: d361faf7-8289-4a75-9691-825b4978c46a | EK26: 244197 | EL26: State | EM26: https://hsip.dot.state.oh.us/api/report/20235033801 | EO26: =+HYPERLINK(CONCATENATE("http://pathweb.pathwayservices.com/ohiopublic/?nlfid='",+K26,"'&logpoint=",+L26),"Pathweb") -> Pathweb | EP26: =HYPERLINK(CONCATENATE("http://maps.google.com/maps?q=",+P26,",+",+Q26,"+(Crash+Location)&iwloc=A&hl=en"),"Google Maps") -> Google Maps | EQ26: =HYPERLINK(CONCATENATE("http://data.mashedworld.com/dualmaps/map.htm?x=",Q26,"&y=",P26,"&z=15&gm=0&ve=5&gc=0&bz=1&bd=0&mw=1&sv=1&svb=0&svp=0&svz=0&svm=2&svf=0"),"Mashed Map") -> Mashed Map | ER26: MV | ES26: PDO | ET26: 0
A27: =IF(C27*1>2010,HYPERLINK(EM27,"Crash Report"),IF(EM27="","","Restricted Access")) -> Crash Report | B27: 20235056953 | C27: 2023 | D27: 14-0261-14 | E27: 7 | F27: (3) Minor Injury Suspected | G27: Head On | H27: 8 | I27: CLI | J27: Data Not Valid or Not Provided | K27: SCLIUS00022**C | L27: 2.623 | M27: 41.544 | N27: US22 | O27: SR380 | P27: 39.435729 | Q27: -83.9452 | R27: 00226 | S27: ADAMS TOWNSHIP | T27: 3 | U27: 0 | V27: 0 | W27: 3 | X27: 1 | Y27: 1 | Z27: 1 | AA27: 3 | AB27: S | AC27: US | AD27: Two Way Roadway | AF27: Major Collector Roads | AH27: No | AI27: 2 | AJ27: 3 | AK27: No | AL27: No | AM27: Yes | AN27: State Highway Agency | AO27: 45023.77778 | AP27: 4 | AQ27: 18 | AR27: (6) Friday | AS27: Clear | AT27: Dry | AU27: Daylight | AV27: Straight Level | AW27: Yes | AX27: Yes | AY27: No | AZ27: Yes | BA27: Yes | BB27: No | BC27: No | BD27: No | BE27: Yes | BF27: Yes | BG27: No | BH27: Unknown or Not in Work Zone | BI27: Unknown or Not in Work Zone | BJ27: Yes | BK27: ADAMS TOWNSHIP | BP27: US | BQ27: 22 | BW27: SR | BX27: 380 | CB27: Intersection | CC27: Yes | CD27: 1 | CE27: Southwest | CF27: North | CG27: Left Turn | CH27: No Control | CI27: Sport Utility Vehicle | CJ27: None | CK27: 5 | CL27: 55 | CM27: Making Left Turn | CN27: Failure to Yield | CO27: Traffic Sign Post | CP27: Cross Centerline – Opposite direction of travel | CQ27: Motor Vehicle In Transport | CR27: Motor Vehicle In Transport | CS27: Ran Off Road Left | CT27: Traffic Sign Post | CV27: Data Not Valid or Not Provided | CW27: 20 | CX27: Male | CY27: Passenger | CZ27: 2 | DA27: Northeast | DB27: Southwest | DD27: No Control | DE27: Passenger Car | DF27: None | DG27: 55 | DH27: 55 | DI27: Straight Ahead | DJ27: None | DK27: Motor Vehicle In Transport | DR27: 66 | DS27: Female | DT27: Not Distracted | DU27: 3 | DV27: Stop Sign | DW27: Pick up | DX27: None | DY27: Slowing or Stopped In Traffic | DZ27: None | EA27: Motor Vehicle In Transport | EG27: ee96493a-716c-46bb-92d0-11524214e2ca | EH27: 00b80ffe-763c-454a-9785-b6880b753a51 | EK27: 382876 | EL27: State | EM27: https://hsip.dot.state.oh.us/api/report/20235056953 | EO27: =+HYPERLINK(CONCATENATE("http://pathweb.pathwayservices.com/ohiopublic/?nlfid='",+K27,"'&logpoint=",+L27),"Pathweb") -> Pathweb | EP27: =HYPERLINK(CONCATENATE("http://maps.google.com/maps?q=",+P27,",+",+Q27,"+(Crash+Location)&iwloc=A&hl=en"),"Google Maps") -> Google Maps | EQ27: =HYPERLINK(CONCATENATE("http://data.mashedworld.com/dualmaps/map.htm?x=",Q27,"&y=",P27,"&z=15&gm=0&ve=5&gc=0&bz=1&bd=0&mw=1&sv=1&svb=0&svp=0&svz=0&svm=2&svf=0"),"Mashed Map") -> Mashed Map | ER27: MV | ES27: FI | ET27: 0
A28: =IF(C28*1>2010,HYPERLINK(EM28,"Crash Report"),IF(EM28="","","Restricted Access")) -> Crash Report | B28: 20235090733 | C28: 2023 | D28: 14-0388-14 | E28: 8 | F28: (5) PDO/No Injury | G28: Angle | H28: 8 | I28: CLI | J28: Data Not Valid or Not Provided | K28: SCLIUS00022**C | L28: 2.633 | M28: 41.554 | N28: US22 | O28: SR380 | P28: 39.43578 | Q28: -83.945027 | R28: 00226 | S28: ADAMS TOWNSHIP | T28: 3 | U28: 0 | V28: 0 | W28: 0 | X28: 0 | Y28: 2 | Z28: 0 | AA28: 2 | AB28: S | AC28: US | AD28: Two Way Roadway | AF28: Major Collector Roads | AH28: No | AI28: 2 | AJ28: 3 | AK28: No | AL28: No | AM28: Yes | AN28: State Highway Agency | AO28: 45073.59653 | AP28: 5 | AQ28: 14 | AR28: (7) Saturday | AS28: Cloudy | AT28: Dry | AU28: Daylight | AV28: Straight Grade | AW28: No | AX28: Yes | AY28: No | AZ28: No | BA28: No | BB28: No | BC28: No | BD28: Yes | BE28: Yes | BF28: No | BG28: No | BH28: Unknown or Not in Work Zone | BI28: Unknown or Not in Work Zone | BJ28: No | BK28: ADAMS TOWNSHIP | BP28: US | BQ28: 22 | BW28: SR | BX28: 380 | CB28: Intersection | CC28: Yes | CD28: 1 | CE28: South | CF28: North | CG28: No Turn | CH28: Stop Sign | CI28: Pick up | CJ28: None | CK28: 5 | CL28: 55 | CM28: Straight Ahead | CN28: Failure to Yield | CO28: Nothing Struck | CP28: Motor Vehicle In Transport | CV28: Data Not Valid or Not Provided | CW28: 83 | CX28: Male | CY28: Not Distracted | CZ28: 2 | DA28: Northeast | DB28: Southwest | DD28: No Control | DE28: Passenger Car | DF28: None | DG28: 60 | DH28: 55 | DI28: Straight Ahead | DJ28: None | DK28: Motor Vehicle In Transport | DR28: 28 | DS28: Female | DT28: Not Distracted | EG28: ee96493a-716c-46bb-92d0-11524214e2ca | EH28: 176f787f-0bab-49c7-a293-1b2149a36978 | EK28: 382876 | EL28: State | EM28: https://hsip.dot.state.oh.us/api/report/20235090733 | EO28: =+HYPERLINK(CONCATENATE("http://pathweb.pathwayservices.com/ohiopublic/?nlfid='",+K28,"'&logpoint=",+L28),"Pathweb") -> Pathweb | EP28: =HYPERLINK(CONCATENATE("http://maps.google.com/maps?q=",+P28,",+",+Q28,"+(Crash+Location)&iwloc=A&hl=en"),"Google Maps") -> Google Maps | EQ28: =HYPERLINK(CONCATENATE("http://data.mashedworld.com/dualmaps/map.htm?x=",Q28,"&y=",P28,"&z=15&gm=0&ve=5&gc=0&bz=1&bd=0&mw=1&sv=1&svb=0&svp=0&svz=0&svm=2&svf=0"),"Mashed Map") -> Mashed Map | ER28: MV | ES28: PDO | ET28: 0
A29: =IF(C29*1>2010,HYPERLINK(EM29,"Crash Report"),IF(EM29="","","Restricted Access")) -> Crash Report | B29: 20235154757 | C29: 2023 | D29: 14-0664-14 | E29: 9 | F29: (3) Minor Injury Suspected | G29: Angle | H29: 8 | I29: CLI | J29: Data Not Valid or Not Provided | K29: CCLICR00004**C | L29: 2.875 | M29: 2.875 | N29: CR4 | O29: US22 | P29: 39.435725 | Q29: -83.945199 | R29: 00226 | S29: ADAMS TOWNSHIP | T29: 3 | U29: 0 | V29: 0 | W29: 1 | X29: 0 | Y29: 3 | Z29: 0 | AA29: 2 | AB29: C | AC29: CR | AF29: Local Roads | AH29: No | AI29: 2 | AK29: No | AL29: No | AM29: No | AN29: County Highway Agency | AO29: 45170.63194 | AP29: 9 | AQ29: 15 | AR29: (6) Friday | AS29: Clear | AT29: Dry | AU29: Daylight | AV29: Straight Level | AW29: No | AX29: Yes | AY29: No | AZ29: No | BA29: No | BB29: No | BC29: No | BD29: No | BE29: No | BF29: No | BG29: No | BH29: Unknown or Not in Work Zone | BI29: Unknown or Not in Work Zone | BJ29: No | BK29: ADAMS TOWNSHIP | BM29: CREEK | BN29: RD | BW29: US | BX29: 22 | CB29: Intersection | CC29: Yes | CD29: 1 | CE29: South | CF29: North | CG29: No Turn | CH29: Stop Sign | CI29: Sport Utility Vehicle | CJ29: None | CK29: 10 | CL29: 55 | CM29: Straight Ahead | CN29: Failure to Yield | CO29: Nothing Struck | CP29: Motor Vehicle In Transport | CQ29: Ran Off Road Right | CV29: Data Not Valid or Not Provided | CW29: 58 | CX29: Female | CY29: Not Distracted | CZ29: 2 | DA29: East | DB29: West | DD29: No Control | DE29: Sport Utility Vehicle | DF29: None | DG29: 55 | DH29: 55 | DI29: Straight Ahead | DJ29: None | DK29: Motor Vehicle In Transport | DL29: Ran Off Road Right | DR29: 37 | DS29: Male | DT29: Not Distracted | EG29: ee96493a-716c-46bb-92d0-11524214e2ca | EH29: 730c2155-5b58-4259-a3b4-c00854792c50 | EK29: 2465 | EL29: Local | EM29: https://hsip.dot.state.oh.us/api/report/20235154757 | EO29: =+HYPERLINK(CONCATENATE("http://pathweb.pathwayservices.com/ohiopublic/?nlfid='",+K29,"'&logpoint=",+L29),"Pathweb") -> Pathweb | EP29: =HYPERLINK(CONCATENATE("http://maps.google.com/maps?q=",+P29,",+",+Q29,"+(Crash+Location)&iwloc=A&hl=en"),"Google Maps") -> Google Maps | EQ29: =HYPERLINK(CONCATENATE("http://data.mashedworld.com/dualmaps/map.htm?x=",Q29,"&y=",P29,"&z=15&gm=0&ve=5&gc=0&bz=1&bd=0&mw=1&sv=1&svb=0&svp=0&svz=0&svm=2&svf=0"),"Mashed Map") -> Mashed Map | ER29: MV | ES29: FI | ET29: 0
A30: =IF(C30*1>2010,HYPERLINK(EM30,"Crash Report"),IF(EM30="","","Restricted Access")) -> Crash Report | B30: 20235163676 | C30: 2023 | D30: 14-0715-14 | E30: 10 | F30: (4) Injury Possible | G30: Angle | H30: 8 | I30: CLI | J30: Data Not Valid or Not Provided | K30: SCLIUS00022**C | L30: 2.627 | M30: 41.548 | N30: US22 | O30: SR380 | P30: 39.43575 | Q30: -83.945127 | R30: 00226 | S30: ADAMS TOWNSHIP | T30: 3 | U30: 0 | V30: 0 | W30: 0 | X30: 1 | Y30: 1 | Z30: 0 | AA30: 2 | AB30: S | AC30: US | AD30: Two Way Roadway | AF30: Major Collector Roads | AH30: No | AI30: 2 | AJ30: 3 | AK30: No | AL30: No | AM30: Yes | AN30: State Highway Agency | AO30: 45188.45903 | AP30: 9 | AQ30: 11 | AR30: (3) Tuesday | AS30: Clear | AT30: Dry | AU30: Daylight | AV30: Straight Level | AW30: No | AX30: Yes | AY30: No | AZ30: No | BA30: No | BB30: No | BC30: No | BD30: No | BE30: No | BF30: No | BG30: No | BH30: Unknown or Not in Work Zone | BI30: Unknown or Not in Work Zone | BJ30: No | BK30: ADAMS TOWNSHIP | BP30: US | BQ30: 22 | BW30: SR | BX30: 380 | CB30: Intersection | CC30: Yes | CD30: 1 | CE30: North | CF30: East | CG30: Left Turn | CH30: Stop Sign | CI30: Semi-Tractor | CJ30: None | CK30: 0 | CL30: 55 | CM30: Making Left Turn | CN30: Failure to Yield | CO30: Nothing Struck | CP30: Motor Vehicle In Transport | CV30: Data Not Valid or Not Provided | CW30: 45 | CX30: Male | CY30: Not Distracted | CZ30: 2 | DA30: East | DB30: West | DD30: No Control | DE30: Passenger Car | DF30: None | DG30: 55 | DH30: 55 | DI30: Straight Ahead | DJ30: None | DK30: Motor Vehicle In Transport | DL30: Ran Off Road Right | DR30: 60 | DS30: Female | DT30: Not Distracted | EG30: ee96493a-716c-46bb-92d0-11524214e2ca | EH30: 176f787f-0bab-49c7-a293-1b2149a36978 | EK30: 382876 | EL30: State | EM30: https://hsip.dot.state.oh.us/api/report/20235163676 | EO30: =+HYPERLINK(CONCATENATE("http://pathweb.pathwayservices.com/ohiopublic/?nlfid='",+K30,"'&logpoint=",+L30),"Pathweb") -> Pathweb | EP30: =HYPERLINK(CONCATENATE("http://maps.google.com/maps?q=",+P30,",+",+Q30,"+(Crash+Location)&iwloc=A&hl=en"),"Google Maps") -> Google Maps | EQ30: =HYPERLINK(CONCATENATE("http://data.mashedworld.com/dualmaps/map.htm?x=",Q30,"&y=",P30,"&z=15&gm=0&ve=5&gc=0&bz=1&bd=0&mw=1&sv=1&svb=0&svp=0&svz=0&svm=2&svf=0"),"Mashed Map") -> Mashed Map | ER30: MV | ES30: FI | ET30: 0
A31: =IF(C31*1>2010,HYPERLINK(EM31,"Crash Report"),IF(EM31="","","Restricted Access")) -> Crash Report | B31: 20235174077 | C31: 2023 | D31: 14-0743-14 | E31: 11 | F31: (3) Minor Injury Suspected | G31: Angle | H31: 8 | I31: CLI | J31: Data Not Valid or Not Provided | K31: SCLIUS00022**C | L31: 2.644 | M31: 41.565 | N31: US22 | O31: SR380 | P31: 39.435833 | Q31: -83.944845 | R31: 00226 | S31: ADAMS TOWNSHIP | T31: 3 | U31: 0 | V31: 0 | W31: 1 | X31: 0 | Y31: 1 | Z31: 0 | AA31: 2 | AB31: S | AC31: US | AD31: Two Way Roadway | AF31: Major Collector Roads | AH31: No | AI31: 2 | AJ31: 3 | AK31: No | AL31: No | AM31: Yes | AN31: State Highway Agency | AO31: 45200.35972 | AP31: 10 | AQ31: 8 | AR31: (1) Sunday | AS31: Clear | AT31: Dry | AU31: Daylight | AV31: Straight Level | AW31: No | AX31: Yes | AY31: No | AZ31: No | BA31: No | BB31: No | BC31: No | BD31: No | BE31: Yes | BF31: Yes | BG31: No | BH31: Unknown or Not in Work Zone | BI31: Unknown or Not in Work Zone | BJ31: No | BK31: ADAMS TOWNSHIP | BP31: US | BQ31: 22 | BW31: SR | BX31: 380 | CB31: Intersection | CC31: Yes | CD31: 2 | CE31: North | CF31: East | CG31: Left Turn | CH31: Stop Sign | CI31: Passenger Car | CJ31: None | CK31: 0 | CL31: 55 | CM31: Entering Traffic Lane | CN31: Failure to Yield | CO31: Nothing Struck | CP31: Motor Vehicle In Transport | CV31: Data Not Valid or Not Provided | CW31: 72 | CX31: Female | CY31: Not Distracted | CZ31: 1 | DA31: West | DB31: East | DD31: No Control | DE31: Passenger Car | DF31: None | DG31: 55 | DH31: 55 | DI31: Straight Ahead | DJ31: None | DK31: Motor Vehicle In Transport | DR31: 19 | DS31: Female | DT31: Not Distracted | EG31: ee96493a-716c-46bb-92d0-11524214e2ca | EH31: 176f787f-0bab-49c7-a293-1b2149a36978 | EK31: 382876 | EL31: State | EM31: https://hsip.dot.state.oh.us/api/report/20235174077 | EO31: =+HYPERLINK(CONCATENATE("http://pathweb.pathwayservices.com/ohiopublic/?nlfid='",+K31,"'&logpoint=",+L31),"Pathweb") -> Pathweb | EP31: =HYPERLINK(CONCATENATE("http://maps.google.com/maps?q=",+P31,",+",+Q31,"+(Crash+Location)&iwloc=A&hl=en"),"Google Maps") -> Google Maps | EQ31: =HYPERLINK(CONCATENATE("http://data.mashedworld.com/dualmaps/map.htm?x=",Q31,"&y=",P31,"&z=15&gm=0&ve=5&gc=0&bz=1&bd=0&mw=1&sv=1&svb=0&svp=0&svz=0&svm=2&svf=0"),"Mashed Map") -> Mashed Map | ER31: MV | ES31: FI | ET31: 0
A32: =IF(C32*1>2010,HYPERLINK(EM32,"Crash Report"),IF(EM32="","","Restricted Access")) -> Crash Report | B32: 20245003272 | C32: 2024 | D32: 14-0021-14 | E32: 12 | F32: (3) Minor Injury Suspected | G32: Angle | H32: 8 | I32: CLI | J32: Four-Way Intersection | K32: SCLIUS00022**C | L32: 2.618 | M32: 41.539 | N32: US22 | O32: CREEK RD | P32: 39.435704 | Q32: -83.945284 | R32: 00226 | S32: ADAMS TOWNSHIP | T32: 3 | U32: 0 | V32: 0 | W32: 1 | X32: 1 | Y32: 0 | Z32: 0 | AA32: 2 | AB32: S | AC32: US | AD32: Two Way Roadway | AF32: Major Collector Roads | AH32: No | AI32: 2 | AJ32: 3 | AK32: No | AL32: No | AM32: Yes | AN32: State Highway Agency | AO32: 45299.22847 | AP32: 1 | AQ32: 5 | AR32: (2) Monday | AS32: Cloudy | AT32: Wet | AU32: Dark - Roadway Not Lighted | AV32: Straight Level | AW32: No | AX32: Yes | AY32: No | AZ32: No | BA32: No | BB32: No | BC32: No | BD32: No | BE32: No | BF32: No | BG32: No | BH32: Unknown or Not in Work Zone | BI32: Unknown or Not in Work Zone | BJ32: No | BK32: ADAMS TOWNSHIP | BP32: US | BQ32: 22 | BT32: CREEK | BU32: RD | CB32: Intersection | CC32: Yes | CD32: 1 | CE32: South | CF32: North | CG32: No Turn | CH32: Stop Sign | CI32: Sport Utility Vehicle | CJ32: None | CK32: 45 | CL32: 55 | CM32: Straight Ahead | CN32: Ran Stop Sign | CO32: Traffic Sign Post | CP32: Motor Vehicle In Transport | CQ32: Ran Off Road Right | CR32: Traffic Sign Post | CV32: Data Not Valid or Not Provided | CW32: 52 | CX32: Female | CY32: Not Distracted | CZ32: 2 | DA32: West | DB32: East | DD32: No Control | DE32: Sport Utility Vehicle | DF32: None | DG32: 50 | DH32: 55 | DI32: Straight Ahead | DJ32: None | DK32: Motor Vehicle In Transport | DR32: 32 | DS32: Male | DT32: Not Distracted | EG32: ee96493a-716c-46bb-92d0-11524214e2ca | EH32: 00b80ffe-763c-454a-9785-b6880b753a51 | EK32: 382876 | EL32: State | EM32: https://hsip.dot.state.oh.us/api/report/20245003272 | EO32: =+HYPERLINK(CONCATENATE("http://pathweb.pathwayservices.com/ohiopublic/?nlfid='",+K32,"'&logpoint=",+L32),"Pathweb") -> Pathweb | EP32: =HYPERLINK(CONCATENATE("http://maps.google.com/maps?q=",+P32,",+",+Q32,"+(Crash+Location)&iwloc=A&hl=en"),"Google Maps") -> Google Maps | EQ32: =HYPERLINK(CONCATENATE("http://data.mashedworld.com/dualmaps/map.htm?x=",Q32,"&y=",P32,"&z=15&gm=0&ve=5&gc=0&bz=1&bd=0&mw=1&sv=1&svb=0&svp=0&svz=0&svm=2&svf=0"),"Mashed Map") -> Mashed Map | ER32: MV | ES32: FI | ET32: 0
A33: =IF(C33*1>2010,HYPERLINK(EM33,"Crash Report"),IF(EM33="","","Restricted Access")) -> Crash Report | B33: 20243012919 | C33: 2024 | D33: 24-06 | E33: 13 | F33: (5) PDO/No Injury | G33: Sideswipe - Passing | H33: 8 | I33: CLI | J33: Not An Intersection | K33: SCLIUS00022**C | L33: 2.623 | M33: 41.544 | N33: US22 | O33: CREEK RD | P33: 39.435729 | Q33: -83.9452 | R33: 00226 | S33: ADAMS TOWNSHIP | T33: 3 | U33: 0 | V33: 0 | W33: 0 | X33: 0 | Y33: 2 | Z33: 0 | AA33: 2 | AB33: S | AC33: US | AD33: Two Way Roadway | AF33: Major Collector Roads | AH33: No | AI33: 2 | AJ33: 3 | AK33: No | AL33: No | AM33: Yes | AN33: State Highway Agency | AO33: 45306.30833 | AP33: 1 | AQ33: 7 | AR33: (2) Monday | AS33: Clear | AT33: Dry | AU33: Daylight | AV33: Straight Grade | AW33: No | AX33: No | AY33: No | AZ33: No | BA33: No | BB33: No | BC33: No | BD33: No | BE33: No | BF33: No | BG33: No | BH33: Unknown or Not in Work Zone | BI33: Unknown or Not in Work Zone | BJ33: No | BK33: ADAMS TOWNSHIP | BP33: US | BQ33: 22 | BT33: CREEK | BU33: RD | CB33: Intersection | CC33: Yes | CD33: 2 | CE33: East | CF33: West | CG33: No Turn | CH33: No Control | CI33: Passenger Car | CJ33: None | CK33: 0 | CL33: 55 | CM33: Slowing or Stopped In Traffic | CN33: None | CO33: Nothing Struck | CP33: Motor Vehicle In Transport | CV33: Data Not Valid or Not Provided | CW33: 28 | CX33: Male | CY33: Not Distracted | CZ33: 1 | DA33: East | DB33: West | DD33: No Control | DE33: Passenger Car | DF33: None | DG33: 50 | DH33: 55 | DI33: Straight Ahead | DJ33: Following Too Closely/ACDA | DK33: Motor Vehicle In Transport | DL33: Traffic Sign Post | DM33: Ran Off Road Right | DR33: 55 | DS33: Male | DT33: Not Distracted | EG33: ee96493a-716c-46bb-92d0-11524214e2ca | EH33: 176f787f-0bab-49c7-a293-1b2149a36978 | EK33: 382876 | EL33: State | EM33: https://hsip.dot.state.oh.us/api/report/20243012919 | EO33: =+HYPERLINK(CONCATENATE("http://pathweb.pathwayservices.com/ohiopublic/?nlfid='",+K33,"'&logpoint=",+L33),"Pathweb") -> Pathweb | EP33: =HYPERLINK(CONCATENATE("http://maps.google.com/maps?q=",+P33,",+",+Q33,"+(Crash+Location)&iwloc=A&hl=en"),"Google Maps") -> Google Maps | EQ33: =HYPERLINK(CONCATENATE("http://data.mashedworld.com/dualmaps/map.htm?x=",Q33,"&y=",P33,"&z=15&gm=0&ve=5&gc=0&bz=1&bd=0&mw=1&sv=1&svb=0&svp=0&svz=0&svm=2&svf=0"),"Mashed Map") -> Mashed Map | ER33: MV | ES33: PDO | ET33: 0
A34: =IF(C34*1>2010,HYPERLINK(EM34,"Crash Report"),IF(EM34="","","Restricted Access")) -> Crash Report | B34: 20245022292 | C34: 2024 | D34: 14-0132-14 | E34: 14 | F34: (3) Minor Injury Suspected | G34: Angle | H34: 8 | I34: CLI | J34: Four-Way Intersection | K34: SCLIUS00022**C | L34: 2.636 | M34: 41.557 | N34: US22 | O34: SR380 | P34: 39.435796 | Q34: -83.944972 | R34: 00226 | S34: ADAMS TOWNSHIP | T34: 3 | U34: 0 | V34: 0 | W34: 2 | X34: 0 | Y34: 1 | Z34: 0 | AA34: 3 | AB34: S | AC34: US | AD34: Two Way Roadway | AF34: Major Collector Roads | AH34: No | AI34: 2 | AJ34: 3 | AK34: No | AL34: No | AM34: Yes | AN34: State Highway Agency | AO34: 45328.74306 | AP34: 2 | AQ34: 17 | AR34: (3) Tuesday | AS34: Clear | AT34: Dry | AU34: Daylight | AV34: Straight Level | AW34: No | AX34: Yes | AY34: No | AZ34: No | BA34: No | BB34: No | BC34: No | BD34: No | BE34: Yes | BF34: Yes | BG34: No | BH34: Unknown or Not in Work Zone | BI34: Unknown or Not in Work Zone | BJ34: No | BK34: ADAMS TOWNSHIP | BP34: US | BQ34: 22 | BW34: SR | BX34: 380 | CB34: Intersection | CC34: Yes | CD34: 1 | CE34: South | CF34: North | CG34: No Turn | CH34: Stop Sign | CI34: Sport Utility Vehicle | CJ34: None | CK34: 10 | CL34: 55 | CM34: Straight Ahead | CN34: Failure to Yield | CO34: Nothing Struck | CP34: Motor Vehicle In Transport | CQ34: Motor Vehicle In Transport | CV34: Data Not Valid or Not Provided | CW34: 22 | CX34: Male | CY34: Not Distracted | CZ34: 2 | DA34: North | DB34: South | DD34: Stop Sign | DE34: Sport Utility Vehicle | DF34: None | DG34: 0 | DH34: 55 | DI34: Slowing or Stopped In Traffic | DJ34: None | DK34: Motor Vehicle In Transport | DR34: 35 | DS34: Male | DT34: Not Distracted | DU34: 3 | DV34: No Control | DW34: Pick up | DX34: None | DY34: Straight Ahead | DZ34: None | EA34: Motor Vehicle In Transport | EB34: Ran Off Road Right | EC34: Traffic Sign Post | ED34: Ditch | EG34: ee96493a-716c-46bb-92d0-11524214e2ca | EH34: 176f787f-0bab-49c7-a293-1b2149a36978 | EK34: 382876 | EL34: State | EM34: https://hsip.dot.state.oh.us/api/report/20245022292 | EO34: =+HYPERLINK(CONCATENATE("http://pathweb.pathwayservices.com/ohiopublic/?nlfid='",+K34,"'&logpoint=",+L34),"Pathweb") -> Pathweb | EP34: =HYPERLINK(CONCATENATE("http://maps.google.com/maps?q=",+P34,",+",+Q34,"+(Crash+Location)&iwloc=A&hl=en"),"Google Maps") -> Google Maps | EQ34: =HYPERLINK(CONCATENATE("http://data.mashedworld.com/dualmaps/map.htm?x=",Q34,"&y=",P34,"&z=15&gm=0&ve=5&gc=0&bz=1&bd=0&mw=1&sv=1&svb=0&svp=0&svz=0&svm=2&svf=0"),"Mashed Map") -> Mashed Map | ER34: MV | ES34: FI | ET34: 0
A35: =IF(C35*1>2010,HYPERLINK(EM35,"Crash Report"),IF(EM35="","","Restricted Access")) -> Crash Report | B35: 20245109582 | C35: 2024 | D35: 14-0500-14 | E35: 15 | F35: (5) PDO/No Injury | G35: Angle | H35: 8 | I35: CLI | J35: Four-Way Intersection | K35: SCLIUS00022**C | L35: 2.637 | M35: 41.558 | N35: US22 | O35: CREEK RD | P35: 39.435798 | Q35: -83.944966 | R35: 00226 | S35: ADAMS TOWNSHIP | T35: 3 | U35: 0 | V35: 0 | W35: 0 | X35: 0 | Y35: 2 | Z35: 0 | AA35: 2 | AB35: S | AC35: US | AD35: Two Way Roadway | AF35: Major Collector Roads | AH35: No | AI35: 2 | AJ35: 3 | AK35: No | AL35: No | AM35: Yes | AN35: State Highway Agency | AO35: 45467.31736 | AP35: 6 | AQ35: 7 | AR35: (2) Monday | AS35: Clear | AT35: Dry | AU35: Daylight | AV35: Straight Level | AW35: No | AX35: Yes | AY35: No | AZ35: No | BA35: No | BB35: No | BC35: No | BD35: No | BE35: No | BF35: No | BG35: No | BH35: Unknown or Not in Work Zone | BI35: Unknown or Not in Work Zone | BJ35: No | BK35: ADAMS TOWNSHIP | BP35: US | BQ35: 22 | BT35: CREEK | BU35: RD | CB35: Intersection | CC35: Yes | CD35: 1 | CE35: South | CF35: North | CG35: No Turn | CH35: Stop Sign | CI35: Passenger Car | CJ35: None | CK35: 10 | CL35: 55 | CM35: Straight Ahead | CN35: Failure to Yield | CO35: Nothing Struck | CP35: Motor Vehicle In Transport | CV35: Data Not Valid or Not Provided | CW35: 49 | CX35: Female | CY35: Not Distracted | CZ35: 2 | DA35: East | DB35: West | DD35: No Control | DE35: Pick up | DF35: None | DG35: 55 | DH35: 55 | DI35: Straight Ahead | DJ35: None | DK35: Motor Vehicle In Transport | DR35: 41 | DS35: Male | DT35: Not Distracted | EG35: ee96493a-716c-46bb-92d0-11524214e2ca | EH35: 176f787f-0bab-49c7-a293-1b2149a36978 | EK35: 382876 | EL35: State | EM35: https://hsip.dot.state.oh.us/api/report/20245109582 | EO35: =+HYPERLINK(CONCATENATE("http://pathweb.pathwayservices.com/ohiopublic/?nlfid='",+K35,"'&logpoint=",+L35),"Pathweb") -> Pathweb | EP35: =HYPERLINK(CONCATENATE("http://maps.google.com/maps?q=",+P35,",+",+Q35,"+(Crash+Location)&iwloc=A&hl=en"),"Google Maps") -> Google Maps | EQ35: =HYPERLINK(CONCATENATE("http://data.mashedworld.com/dualmaps/map.htm?x=",Q35,"&y=",P35,"&z=15&gm=0&ve=5&gc=0&bz=1&bd=0&mw=1&sv=1&svb=0&svp=0&svz=0&svm=2&svf=0"),"Mashed Map") -> Mashed Map | ER35: MV | ES35: PDO | ET35: 0
A36: =IF(C36*1>2010,HYPERLINK(EM36,"Crash Report"),IF(EM36="","","Restricted Access")) -> Crash Report | B36: 20245174141 | C36: 2024 | D36: 14-0788-14 | E36: 16 | F36: (5) PDO/No Injury | G36: Angle | H36: 8 | I36: CLI | J36: Four-Way Intersection | K36: SCLIUS00022**C | L36: 2.623 | M36: 41.544 | N36: US22 | O36: CREEK RD | P36: 39.435729 | Q36: -83.9452 | R36: 00226 | S36: ADAMS TOWNSHIP | T36: 3 | U36: 0 | V36: 0 | W36: 0 | X36: 0 | Y36: 2 | Z36: 0 | AA36: 2 | AB36: S | AC36: US | AD36: Two Way Roadway | AF36: Major Collector Roads | AH36: No | AI36: 2 | AJ36: 3 | AK36: No | AL36: No | AM36: Yes | AN36: State Highway Agency | AO36: 45562.54861 | AP36: 9 | AQ36: 13 | AR36: (6) Friday | AS36: Rain | AT36: Wet | AU36: Daylight | AV36: Straight Grade | AW36: No | AX36: Yes | AY36: No | AZ36: No | BA36: No | BB36: No | BC36: No | BD36: No | BE36: No | BF36: Yes | BG36: No | BH36: Unknown or Not in Work Zone | BI36: Unknown or Not in Work Zone | BJ36: No | BK36: ADAMS TOWNSHIP | BP36: US | BQ36: 22 | BT36: CREEK | BU36: RD | CB36: Intersection | CC36: Yes | CD36: 2 | CE36: East | CF36: West | CG36: No Turn | CH36: No Control | CI36: Passenger Van (minivan) | CJ36: None | CK36: 55 | CL36: 55 | CM36: Straight Ahead | CN36: None | CO36: Nothing Struck | CP36: Motor Vehicle In Transport | CQ36: Ran Off Road Right | CV36: Data Not Valid or Not Provided | CW36: 59 | CX36: Female | CY36: Not Distracted | CZ36: 1 | DA36: South | DB36: North | DD36: Stop Sign | DE36: Pick up | DF36: None | DG36: 5 | DH36: 55 | DI36: Straight Ahead | DJ36: Failure to Yield | DK36: Motor Vehicle In Transport | DR36: 21 | DS36: Male | DT36: Not Distracted | EG36: ee96493a-716c-46bb-92d0-11524214e2ca | EH36: 176f787f-0bab-49c7-a293-1b2149a36978 | EK36: 382876 | EL36: State | EM36: https://hsip.dot.state.oh.us/api/report/20245174141 | EO36: =+HYPERLINK(CONCATENATE("http://pathweb.pathwayservices.com/ohiopublic/?nlfid='",+K36,"'&logpoint=",+L36),"Pathweb") -> Pathweb | EP36: =HYPERLINK(CONCATENATE("http://maps.google.com/maps?q=",+P36,",+",+Q36,"+(Crash+Location)&iwloc=A&hl=en"),"Google Maps") -> Google Maps | EQ36: =HYPERLINK(CONCATENATE("http://data.mashedworld.com/dualmaps/map.htm?x=",Q36,"&y=",P36,"&z=15&gm=0&ve=5&gc=0&bz=1&bd=0&mw=1&sv=1&svb=0&svp=0&svz=0&svm=2&svf=0"),"Mashed Map") -> Mashed Map | ER36: MV | ES36: PDO | ET36: 0
A37: =IF(C37*1>2010,HYPERLINK(EM37,"Crash Report"),IF(EM37="","","Restricted Access")) -> Crash Report | B37: 20245182387 | C37: 2024 | D37: 14-0828-14 | E37: 17 | F37: (3) Minor Injury Suspected | G37: Angle | H37: 8 | I37: CLI | J37: Four-Way Intersection | K37: SCLIUS00022**C | L37: 2.65 | M37: 41.571 | N37: US22 | O37: SR380 | P37: 39.435864 | Q37: -83.944739 | R37: 00226 | S37: ADAMS TOWNSHIP | T37: 3 | U37: 0 | V37: 0 | W37: 1 | X37: 0 | Y37: 1 | Z37: 0 | AA37: 2 | AB37: S | AC37: US | AD37: Two Way Roadway | AF37: Major Collector Roads | AH37: No | AI37: 2 | AJ37: 3 | AK37: No | AL37: No | AM37: Yes | AN37: State Highway Agency | AO37: 45572.55833 | AP37: 10 | AQ37: 13 | AR37: (2) Monday | AS37: Clear | AT37: Dry | AU37: Daylight | AV37: Straight Grade | AW37: No | AX37: Yes | AY37: No | AZ37: No | BA37: No | BB37: No | BC37: No | BD37: No | BE37: Yes | BF37: No | BG37: No | BH37: Unknown or Not in Work Zone | BI37: Unknown or Not in Work Zone | BJ37: No | BK37: ADAMS TOWNSHIP | BP37: US | BQ37: 22 | BW37: SR | BX37: 380 | CB37: Intersection | CC37: Yes | CD37: 2 | CE37: North | CF37: South | CG37: No Turn | CH37: Stop Sign | CI37: Cargo Van | CJ37: Other / Unknown | CK37: 10 | CL37: 55 | CM37: Straight Ahead | CN37: Failure to Yield | CO37: Nothing Struck | CP37: Motor Vehicle In Transport | CV37: Data Not Valid or Not Provided | CW37: 32 | CX37: Female | CY37: Not Distracted | CZ37: 1 | DA37: West | DB37: East | DD37: No Control | DE37: Pick up | DF37: None | DG37: 50 | DH37: 55 | DI37: Straight Ahead | DJ37: None | DK37: Motor Vehicle In Transport | DL37: Ran Off Road Right | DM37: Guardrail End | DR37: 69 | DS37: Male | DT37: Not Distracted | EG37: ee96493a-716c-46bb-92d0-11524214e2ca | EH37: 176f787f-0bab-49c7-a293-1b2149a36978 | EK37: 382876 | EL37: State | EM37: https://hsip.dot.state.oh.us/api/report/20245182387 | EO37: =+HYPERLINK(CONCATENATE("http://pathweb.pathwayservices.com/ohiopublic/?nlfid='",+K37,"'&logpoint=",+L37),"Pathweb") -> Pathweb | EP37: =HYPERLINK(CONCATENATE("http://maps.google.com/maps?q=",+P37,",+",+Q37,"+(Crash+Location)&iwloc=A&hl=en"),"Google Maps") -> Google Maps | EQ37: =HYPERLINK(CONCATENATE("http://data.mashedworld.com/dualmaps/map.htm?x=",Q37,"&y=",P37,"&z=15&gm=0&ve=5&gc=0&bz=1&bd=0&mw=1&sv=1&svb=0&svp=0&svz=0&svm=2&svf=0"),"Mashed Map") -> Mashed Map | ER37: MV | ES37: FI | ET37: 0
A38: =IF(C38*1>2010,HYPERLINK(EM38,"Crash Report"),IF(EM38="","","Restricted Access")) -> Crash Report | B38: 20245180474 | C38: 2024 | D38: 14-0833-14 | E38: 18 | F38: (5) PDO/No Injury | G38: Angle | H38: 8 | I38: CLI | J38: Four-Way Intersection | K38: SCLIUS00022**C | L38: 2.621 | M38: 41.542 | N38: US22 | O38: SR380 | P38: 39.43572 | Q38: -83.945231 | R38: 00226 | S38: ADAMS TOWNSHIP | T38: 3 | U38: 0 | V38: 0 | W38: 0 | X38: 0 | Y38: 2 | Z38: 0 | AA38: 2 | AB38: S | AC38: US | AD38: Two Way Roadway | AF38: Major Collector Roads | AH38: No | AI38: 2 | AJ38: 3 | AK38: No | AL38: No | AM38: Yes | AN38: State Highway Agency | AO38: 45573.83125 | AP38: 10 | AQ38: 19 | AR38: (3) Tuesday | AS38: Clear | AT38: Dry | AU38: Dark - Roadway Not Lighted | AV38: Straight Level | AW38: No | AX38: Yes | AY38: No | AZ38: No | BA38: No | BB38: No | BC38: No | BD38: No | BE38: No | BF38: No | BG38: No | BH38: Unknown or Not in Work Zone | BI38: Unknown or Not in Work Zone | BJ38: No | BK38: ADAMS TOWNSHIP | BP38: US | BQ38: 22 | BW38: SR | BX38: 380 | CB38: Intersection | CC38: Yes | CD38: 1 | CE38: North | CF38: South | CG38: No Turn | CH38: Stop Sign | CI38: Passenger Car | CJ38: None | CK38: 20 | CL38: 55 | CM38: Straight Ahead | CN38: Failure to Yield | CO38: Nothing Struck | CP38: Motor Vehicle In Transport | CV38: Data Not Valid or Not Provided | CW38: 40 | CX38: Male | CY38: Not Distracted | CZ38: 2 | DA38: West | DB38: East | DD38: No Control | DE38: Pick up | DF38: None | DG38: 55 | DH38: 55 | DI38: Straight Ahead | DJ38: None | DK38: Motor Vehicle In Transport | DR38: 35 | DS38: Male | DT38: Not Distracted | EG38: ee96493a-716c-46bb-92d0-11524214e2ca | EH38: 00b80ffe-763c-454a-9785-b6880b753a51 | EK38: 382876 | EL38: State | EM38: https://hsip.dot.state.oh.us/api/report/20245180474 | EO38: =+HYPERLINK(CONCATENATE("http://pathweb.pathwayservices.com/ohiopublic/?nlfid='",+K38,"'&logpoint=",+L38),"Pathweb") -> Pathweb | EP38: =HYPERLINK(CONCATENATE("http://maps.google.com/maps?q=",+P38,",+",+Q38,"+(Crash+Location)&iwloc=A&hl=en"),"Google Maps") -> Google Maps | EQ38: =HYPERLINK(CONCATENATE("http://data.mashedworld.com/dualmaps/map.htm?x=",Q38,"&y=",P38,"&z=15&gm=0&ve=5&gc=0&bz=1&bd=0&mw=1&sv=1&svb=0&svp=0&svz=0&svm=2&svf=0"),"Mashed Map") -> Mashed Map | ER38: MV | ES38: PDO | ET38: 0
A39: =IF(C39*1>2010,HYPERLINK(EM39,"Crash Report"),IF(EM39="","","Restricted Access")) -> Crash Report | B39: 20245186850 | C39: 2024 | D39: 14-0839-14 | E39: 19 | F39: (3) Minor Injury Suspected | G39: Angle | H39: 8 | I39: CLI | J39: Four-Way Intersection | K39: SCLISR00380**C | L39: 0 | M39: 0 | N39: SR380 | O39: US22 | P39: 39.435729 | Q39: -83.9452 | R39: 00226 | S39: ADAMS TOWNSHIP | T39: 3 | U39: 0 | V39: 0 | W39: 1 | X39: 0 | Y39: 1 | Z39: 0 | AA39: 2 | AB39: S | AC39: SR | AD39: Two Way Roadway | AF39: Major Collector Roads | AH39: No | AI39: 2 | AJ39: 3 | AK39: No | AL39: No | AM39: Yes | AN39: State Highway Agency | AO39: 45576.57153 | AP39: 10 | AQ39: 13 | AR39: (6) Friday | AS39: Clear | AT39: Dry | AU39: Daylight | AV39: Straight Level | AW39: No | AX39: Yes | AY39: No | AZ39: No | BA39: No | BB39: No | BC39: No | BD39: No | BE39: No | BF39: No | BG39: No | BH39: Unknown or Not in Work Zone | BI39: Unknown or Not in Work Zone | BJ39: No | BK39: ADAMS TOWNSHIP | BP39: SR | BQ39: 380 | BW39: US | BX39: 22 | CB39: Intersection | CC39: Yes | CD39: 1 | CE39: North | CF39: South | CG39: No Turn | CH39: Stop Sign | CI39: Cargo Van | CJ39: None | CK39: 10 | CL39: 55 | CM39: Entering Traffic Lane | CN39: Failure to Yield | CO39: Nothing Struck | CP39: Motor Vehicle In Transport | CV39: Data Not Valid or Not Provided | CW39: 45 | CX39: Male | CY39: Not Distracted | CZ39: 2 | DA39: West | DB39: East | DD39: No Control | DE39: Passenger Car | DF39: None | DG39: 55 | DH39: 55 | DI39: Straight Ahead | DJ39: None | DK39: Motor Vehicle In Transport | DL39: Ran Off Road Right | DR39: 42 | DS39: Male | DT39: Not Distracted | EG39: ee96493a-716c-46bb-92d0-11524214e2ca | EH39: d361faf7-8289-4a75-9691-825b4978c46a | EK39: 244197 | EL39: State | EM39: https://hsip.dot.state.oh.us/api/report/20245186850 | EO39: =+HYPERLINK(CONCATENATE("http://pathweb.pathwayservices.com/ohiopublic/?nlfid='",+K39,"'&logpoint=",+L39),"Pathweb") -> Pathweb | EP39: =HYPERLINK(CONCATENATE("http://maps.google.com/maps?q=",+P39,",+",+Q39,"+(Crash+Location)&iwloc=A&hl=en"),"Google Maps") -> Google Maps | EQ39: =HYPERLINK(CONCATENATE("http://data.mashedworld.com/dualmaps/map.htm?x=",Q39,"&y=",P39,"&z=15&gm=0&ve=5&gc=0&bz=1&bd=0&mw=1&sv=1&svb=0&svp=0&svz=0&svm=2&svf=0"),"Mashed Map") -> Mashed Map | ER39: MV | ES39: FI | ET39: 0
A40: =IF(C40*1>2010,HYPERLINK(EM40,"Crash Report"),IF(EM40="","","Restricted Access")) -> Crash Report | B40: 20245196237 | C40: 2024 | D40: 14-0918-14 | E40: 20 | F40: (3) Minor Injury Suspected | G40: Rear End | H40: 8 | I40: CLI | J40: Four-Way Intersection | K40: SCLIUS00022**C | L40: 2.623 | M40: 41.544 | N40: US22 | O40: SR380 | P40: 39.435727 | Q40: -83.945206 | R40: 00226 | S40: ADAMS TOWNSHIP | T40: 3 | U40: 0 | V40: 0 | W40: 1 | X40: 0 | Y40: 1 | Z40: 1 | AA40: 2 | AB40: S | AC40: US | AD40: Two Way Roadway | AF40: Major Collector Roads | AH40: No | AI40: 2 | AJ40: 3 | AK40: No | AL40: No | AM40: Yes | AN40: State Highway Agency | AO40: 45593.37917 | AP40: 10 | AQ40: 9 | AR40: (2) Monday | AS40: Clear | AT40: Dry | AU40: Daylight | AV40: Straight Level | AW40: No | AX40: Yes | AY40: No | AZ40: No | BA40: No | BB40: No | BC40: No | BD40: No | BE40: No | BF40: No | BG40: No | BH40: Unknown or Not in Work Zone | BI40: Unknown or Not in Work Zone | BJ40: Yes | BK40: ADAMS TOWNSHIP | BP40: US | BQ40: 22 | BW40: SR | BX40: 380 | CB40: Intersection | CC40: Yes | CD40: 1 | CE40: West | CF40: East | CG40: No Turn | CH40: No Control | CI40: Van (9-15 Seats) | CJ40: None | CK40: 0 | CL40: 55 | CM40: Slowing or Stopped In Traffic | CN40: None | CO40: Nothing Struck | CP40: Motor Vehicle In Transport | CQ40: Ran Off Road Left | CV40: Data Not Valid or Not Provided | CW40: 58 | CX40: Male | CY40: Not Distracted | CZ40: 2 | DA40: West | DB40: East | DD40: No Control | DE40: Passenger Van (minivan) | DF40: None | DG40: 55 | DH40: 55 | DI40: Straight Ahead | DJ40: Following Too Closely/ACDA | DK40: Motor Vehicle In Transport | DL40: Ran Off Road Right | DM40: Guardrail Face | DR40: 26 | DS40: Male | DT40: Other distraction inside the vehicle | EG40: ee96493a-716c-46bb-92d0-11524214e2ca | EH40: 00b80ffe-763c-454a-9785-b6880b753a51 | EK40: 382876 | EL40: State | EM40: https://hsip.dot.state.oh.us/api/report/20245196237 | EO40: =+HYPERLINK(CONCATENATE("http://pathweb.pathwayservices.com/ohiopublic/?nlfid='",+K40,"'&logpoint=",+L40),"Pathweb") -> Pathweb | EP40: =HYPERLINK(CONCATENATE("http://maps.google.com/maps?q=",+P40,",+",+Q40,"+(Crash+Location)&iwloc=A&hl=en"),"Google Maps") -> Google Maps | EQ40: =HYPERLINK(CONCATENATE("http://data.mashedworld.com/dualmaps/map.htm?x=",Q40,"&y=",P40,"&z=15&gm=0&ve=5&gc=0&bz=1&bd=0&mw=1&sv=1&svb=0&svp=0&svz=0&svm=2&svf=0"),"Mashed Map") -> Mashed Map | ER40: MV | ES40: FI | ET40: 0

Sheet Quick Summary
B1: ='Full Crash Data'!A3 -> Type 'Heading' Here
B2: Crash Summary Sheet
F3: Crashes Per Year | G3: =ROUND(COUNT('Full Crash Data'!$B$21:$B$999999) / (MAX('Full Crash Data'!$C$21:$C$999999)-MIN('Full Crash Data'!$C$21:$C$999999)+1),2) -> 6.67
B4: Fatalities | C4: =SUM('Full Crash Data'!$U$21:$U$999999) -> 0 | F4: Fatal and All Injury Crashes | G4: =COUNT('Full Crash Data'!$B$21:$B$999999)-COUNTIFS('Full Crash Data'!$F:$F,"(5) PDO/No Injury") -> 12
B5: Serious Injuries | C5: =SUM('Full Crash Data'!$V$21:$V$999999) -> 2 | F5: Percent Injury | G5: =1-(COUNTIFS('Full Crash Data'!$F:$F,"(5) PDO/No Injury")/COUNT('Full Crash Data'!$B$21:$B$999999)) -> 0.6
B6: Other Injuries | C6: =SUM('Full Crash Data'!$W$21:$W$999999)+SUM('Full Crash Data'!$X$21:$X$999999) -> 17 | F6: Equivalent PDO Index Value | G6: =IFERROR(ROUND(((COUNTIFS('Full Crash Data'!$F:$F,"(1) Fatal")+COUNTIFS('Full Crash Data'!$F:$F,"(2) Serious Injury Suspected"))*RefTables!$N$3+COUNTIFS('Full Crash Data'!$F:$F,"(3) Minor Injury Suspected")*RefTables!O3+COUNTIFS('Full Crash Data'!$F:$F,"(4) Injury Possible")*RefTables!$P$3+COUNTIFS('Full Crash Data'!$F:$F,"(5) PDO/No Injury")*RefTables!$Q$3)/COUNT('Full Crash Data'!$B$21:$B$999999),2),0) -> 6.18
B8: Crash Severity | C8: Crashes | D8: % | F8: Year | G8: Crashes | H8: %
B9: (2) Serious Injury Suspected | C9: 1 | D9: 0.05 | F9: 2022 | G9: 4 | H9: 0.2
B10: (3) Minor Injury Suspected | C10: 10 | D10: 0.5 | F10: 2023 | G10: 7 | H10: 0.35
B11: (4) Injury Possible | C11: 1 | D11: 0.05 | F11: 2024 | G11: 9 | H11: 0.45
B12: (5) PDO/No Injury | C12: 8 | D12: 0.4 | F12: Grand Total | G12: 20 | H12: 1
B13: Grand Total | C13: 20 | D13: 1
B17: Day of Week | C17: Crashes | D17: %
B18: (1) Sunday | C18: 3 | D18: 0.15
B19: (2) Monday | C19: 5 | D19: 0.25
B20: (3) Tuesday | C20: 3 | D20: 0.15
B21: (5) Thursday | C21: 2 | D21: 0.1
B22: (6) Friday | C22: 5 | D22: 0.25
B23: (7) Saturday | C23: 2 | D23: 0.1
B24: Grand Total | C24: 20 | D24: 1
F27: Crash Type | G27: Crashes | H27: %
B28: Hour of Day | C28: Crashes | D28: % | F28: Angle | G28: 15 | H28: 0.75
B29: 5 | C29: 1 | D29: 0.05 | F29: Rear End | G29: 2 | H29: 0.1
B30: 7 | C30: 2 | D30: 0.1 | F30: Sideswipe - Passing | G30: 1 | H30: 0.05
B31: 8 | C31: 1 | D31: 0.05 | F31: Fixed Object | G31: 1 | H31: 0.05
B32: 9 | C32: 1 | D32: 0.05 | F32: Head On | G32: 1 | H32: 0.05
B33: 11 | C33: 1 | D33: 0.05 | F33: Grand Total | G33: 20 | H33: 1
B34: 13 | C34: 4 | D34: 0.2
B35: 14 | C35: 2 | D35: 0.1
B36: 15 | C36: 1 | D36: 0.05
B37: 16 | C37: 1 | D37: 0.05
B38: 17 | C38: 3 | D38: 0.15
B39: 18 | C39: 2 | D39: 0.1
B40: 19 | C40: 1 | D40: 0.05
B41: Grand Total | C41: 20 | D41: 1
F50: Month | G50: Crashes | H50: %
F51: 1 | G51: 4 | H51: 0.2
F52: 2 | G52: 1 | H52: 0.05
F53: 3 | G53: 2 | H53: 0.1
F54: 4 | G54: 2 | H54: 0.1
F55: 5 | G55: 1 | H55: 0.05
F56: 6 | G56: 1 | H56: 0.05
F57: 9 | G57: 3 | H57: 0.15
F58: 10 | G58: 5 | H58: 0.25
F59: 12 | G59: 1 | H59: 0.05
F60: Grand Total | G60: 20 | H60: 1
B65: Weather Condition | C65: Crashes | D65: % | F65: Road Condition | G65: Crashes | H65: %
B66: Clear | C66: 14 | D66: 0.7 | F66: Dry | G66: 16 | H66: 0.8
B67: Cloudy | C67: 3 | D67: 0.15 | F67: Wet | G67: 4 | H67: 0.2
B68: Rain | C68: 2 | D68: 0.1 | F68: Grand Total | G68: 20 | H68: 1
B69: Snow | C69: 1 | D69: 0.05
B70: Grand Total | C70: 20 | D70: 1
B79: Light Condition | C79: Crashes | D79: % | F79: Number of Units | G79: Crashes | H79: %
B80: Daylight | C80: 15 | D80: 0.75 | F80: 2 | G80: 17 | H80: 0.85
B81: Dark - Roadway Not Lighted | C81: 3 | D81: 0.15 | F81: 3 | G81: 2 | H81: 0.1
B82: Dawn/Dusk | C82: 2 | D82: 0.1 | F82: 1 | G82: 1 | H82: 0.05
B83: Grand Total | C83: 20 | D83: 1 | F83: Grand Total | G83: 20 | H83: 1
B89: ODOT Location | C89: Crashes | D89: %
B90: Four-Way Intersection | C90: 10 | D90: 0.5
B91: Data Not Valid or Not Provided | C91: 9 | D91: 0.45
B92: Not An Intersection | C92: 1 | D92: 0.05
B93: Grand Total | C93: 20 | D93: 1
F94: Work Zone Related | G94: Crashes | H94: %
F95: No | G95: 20 | H95: 1
F96: Grand Total | G96: 20 | H96: 1
F99: Alcohol Related | G99: Crashes | H99: %
F100: No | G100: 20 | H100: 1
F101: Grand Total | G101: 20 | H101: 1
F104: Drug Related (Inc. Marijuana) | G104: Crashes | H104: %
F105: No | G105: 19 | H105: 0.95
B106: Contour | C106: Crashes | D106: % | F106: Yes | G106: 1 | H106: 0.05
B107: Straight Grade | C107: 4 | D107: 0.2 | F107: Grand Total | G107: 20 | H107: 1
B108: Straight Level | C108: 16 | D108: 0.8
B109: Grand Total | C109: 20 | D109: 1 | F109: Marijuana Related | G109: Crashes | H109: %
F110: No | G110: 19 | H110: 0.95
F111: Yes | G111: 1 | H111: 0.05
F112: Grand Total | G112: 20 | H112: 1
B114: Roadway Departure | C114: Crashes | D114: % | F114: Older Driver (65+) | G114: Crashes | H114: %
B115: No | C115: 18 | D115: 0.9 | F115: No | G115: 12 | H115: 0.6
B116: Yes | C116: 2 | D116: 0.1 | F116: Yes | G116: 8 | H116: 0.4
B117: Grand Total | C117: 20 | D117: 1 | F117: Grand Total | G117: 20 | H117: 1
B119: Intersection Related | C119: Crashes | D119: % | F119: Young Driver (15-25) | G119: Crashes | H119: %
B120: Yes | C120: 19 | D120: 0.95 | F120: No | G120: 15 | H120: 0.75
B121: No | C121: 1 | D121: 0.05 | F121: Yes | G121: 5 | H121: 0.25
B122: Grand Total | C122: 20 | D122: 1 | F122: Grand Total | G122: 20 | H122: 1
B124: Speed Related | C124: Crashes | D124: % | F124: Motorcycle Involved | G124: Crashes | H124: %
B125: No | C125: 19 | D125: 0.95 | F125: No | G125: 20 | H125: 1
B126: Yes | C126: 1 | D126: 0.05 | F126: Grand Total | G126: 20 | H126: 1
B127: Grand Total | C127: 20 | D127: 1
B132: Unit 1 Summary
B134: Unit 1 Pre-Crash Action | C134: Crashes | D134: % | F134: Unit 1 Contributing Factor | G134: Crashes | H134: %
B135: Straight Ahead | C135: 12 | D135: 0.6 | F135: Failure to Yield | G135: 13 | H135: 0.65
B136: Slowing or Stopped In Traffic | C136: 3 | D136: 0.15 | F136: None | G136: 3 | H136: 0.15
B137: Making Left Turn | C137: 3 | D137: 0.15 | F137: Ran Stop Sign | G137: 2 | H137: 0.1
B138: Entering Traffic Lane | C138: 2 | D138: 0.1 | F138: Following Too Closely/ACDA | G138: 1 | H138: 0.05
B139: Grand Total | C139: 20 | D139: 1 | F139: Drove off Road | G139: 1 | H139: 0.05
F140: Grand Total | G140: 20 | H140: 1
B158: Unit 1 Object Struck | C158: Crashes | D158: %
B159: Nothing Struck | C159: 17 | D159: 0.85
B160: Traffic Sign Post | C160: 2 | D160: 0.1
B161: Guardrail End | C161: 1 | D161: 0.05
B162: Grand Total | C162: 20 | D162: 1 | F162: Unit 1 Traffic Control | G162: Crashes | H162: %
F163: Stop Sign | G163: 15 | H163: 0.75
F164: No Control | G164: 5 | H164: 0.25
F165: Grand Total | G165: 20 | H165: 1
F172: Unit 1 Posted Speed | G172: Crashes | H172: % | K172: Unit 1 Estimated Speed | L172: Crashes | M172: %
F173: 55 | G173: 20 | H173: 1 | K173: <15 | L173: 15 | M173: 0.75
F174: Grand Total | G174: 20 | H174: 1 | K174: 15-19 | L174: 1 | M174: 0.05
K175: 20-24 | L175: 1 | M175: 0.05
K176: 30-34 | L176: 1 | M176: 0.05
K177: 45-49 | L177: 1 | M177: 0.05
K178: 55-59 | L178: 1 | M178: 0.05
K179: Grand Total | L179: 20 | M179: 1
B193: Unit 1 Direction From | C193: Crashes | D193: % | F193: Unit 1 Direction To | G193: Crashes | H193: %
B194: North | C194: 8 | D194: 0.4 | F194: North | G194: 7 | H194: 0.35
B195: South | C195: 6 | D195: 0.3 | F195: South | G195: 5 | H195: 0.25
B196: East | C196: 2 | D196: 0.1 | F196: East | G196: 4 | H196: 0.2
B197: Northeast | C197: 2 | D197: 0.1 | F197: West | G197: 2 | H197: 0.1
B198: West | C198: 1 | D198: 0.05 | F198: Southwest | G198: 2 | H198: 0.1
B199: Southwest | C199: 1 | D199: 0.05 | F199: Grand Total | G199: 20 | H199: 1
B200: Grand Total | C200: 20 | D200: 1
B205: Unit 1 Summary
B207: Unit 1 Type | C207: Crashes | D207: % | F207: Unit 1 Special Function | G207: Crashes | H207: %
B208: Sport Utility Vehicle | C208: 7 | D208: 0.35 | F208: None | G208: 19 | H208: 0.95
B209: Passenger Car | C209: 6 | D209: 0.3 | F209: Other / Unknown | G209: 1 | H209: 0.05
B210: Cargo Van | C210: 3 | D210: 0.15 | F210: Grand Total | G210: 20 | H210: 1
B211: Semi-Tractor | C211: 1 | D211: 0.05
B212: Van (9-15 Seats) | C212: 1 | D212: 0.05
B213: Passenger Van (minivan) | C213: 1 | D213: 0.05
B214: Pick up | C214: 1 | D214: 0.05
B215: Grand Total | C215: 20 | D215: 1
B232: Unit 2 Summary
B234: Unit 2 Pre-Crash Action | C234: Crashes | D234: % | F234: Unit 2 Contributing Factor | G234: Crashes | H234: %
B235: Straight Ahead | C235: 17 | D235: 0.85 | F235: None | G235: 16 | H235: 0.8
B236: Slowing or Stopped In Traffic | C236: 2 | D236: 0.1 | F236: Following Too Closely/ACDA | G236: 2 | H236: 0.1
C237: 1 | D237: 0.05 | G237: 1 | H237: 0.05
B238: Grand Total | C238: 20 | D238: 1 | F238: Failure to Yield | G238: 1 | H238: 0.05
F239: Grand Total | G239: 20 | H239: 1
B263: Unit 2 Direction From | C263: Crashes | D263: % | F263: Unit 2 Direction To | G263: Crashes | H263: %
C264: 1 | D264: 0.05 | G264: 1 | H264: 0.05
B265: East | C265: 4 | D265: 0.2 | F265: East | G265: 6 | H265: 0.3
B266: North | C266: 1 | D266: 0.05 | F266: North | G266: 1 | H266: 0.05
B267: Northeast | C267: 4 | D267: 0.2 | F267: Northeast | G267: 2 | H267: 0.1
B268: Northwest | C268: 1 | D268: 0.05 | F268: South | G268: 1 | H268: 0.05
B269: South | C269: 1 | D269: 0.05 | F269: Southeast | G269: 1 | H269: 0.05
B270: Southwest | C270: 2 | D270: 0.1 | F270: Southwest | G270: 4 | H270: 0.2
B271: West | C271: 6 | D271: 0.3 | F271: West | G271: 4 | H271: 0.2
B272: Grand Total | C272: 20 | D272: 1 | F272: Grand Total | G272: 20 | H272: 1
B277: Unit 2 Type | C277: Crashes | D277: % | F277: Unit 2 Special Function | G277: Crashes | H277: %
B278: Passenger Car | C278: 8 | D278: 0.4 | F278: None | G278: 19 | H278: 0.95
B279: Pick up | C279: 6 | D279: 0.3 | G279: 1 | H279: 0.05
B280: Sport Utility Vehicle | C280: 4 | D280: 0.2 | F280: Grand Total | G280: 20 | H280: 1
C281: 1 | D281: 0.05
B282: Passenger Van (minivan) | C282: 1 | D282: 0.05
B283: Grand Total | C283: 20 | D283: 1

Sheet Crash Analysis
B1: CLI US 22 2.62 (SR-380/Creek Rd)
B2: Crash Summary Sheet | D2: Crashes Per Year | F2: =ROUND(COUNT('Full Crash Data'!$B$21:$B$999999) / (MAX('Full Crash Data'!$C$21:$C$999999)-MIN('Full Crash Data'!$C$21:$C$999999)+1),2) -> 6.67 | G2: Percent Injury | I2: =1-(COUNTIFS('Full Crash Data'!$F:$F,"(5) PDO/No Injury")/COUNT('Full Crash Data'!$B$21:$B$999999)) -> 0.6 | J2: EPDO | L2: =IFERROR(ROUND(((COUNTIFS('Full Crash Data'!$F:$F,"(1) Fatal")+COUNTIFS('Full Crash Data'!$F:$F,"(2) Serious Injury Suspected"))*RefTables!$N$3+COUNTIFS('Full Crash Data'!$F:$F,"(3) Minor Injury Suspected")*RefTables!O3+COUNTIFS('Full Crash Data'!$F:$F,"(4) Injury Possible")*RefTables!$P$3+COUNTIFS('Full Crash Data'!$F:$F,"(5) PDO/No Injury")*RefTables!$Q$3)/COUNT('Full Crash Data'!$B$21:$B$999999),2),0) -> 6.18
P3: Year | Q3: Fatalities | R3: Serious Injuries | U3: Year | V3: Count of Document Number | AA3: Total Crashes | AB3: Column Labels
B4: Year | C4: Total Crashes | D4: Fatalities | E4: Serious Injuries | P4: 2022 | Q4: 0 | R4: 2 | U4: 2022 | V4: 4 | AB4: SV | AC4: MV | AE4: Grand Total
B5: 2022 | C5: 4 | D5: 0 | E5: 2 | P5: 2023 | Q5: 0 | R5: 0 | U5: 2023 | V5: 7 | AA5: Year | AB5: FI | AC5: FI | AD5: PDO
B6: 2023 | C6: 7 | D6: 0 | E6: 0 | P6: 2024 | Q6: 0 | R6: 0 | U6: 2024 | V6: 9 | AA6: 2022 | AB6: 0 | AC6: 2 | AD6: 2 | AE6: 4
B7: 2024 | C7: 9 | D7: 0 | E7: 0 | P7: Grand Total | Q7: 0 | R7: 2 | U7: Grand Total | V7: 20 | AA7: 2023 | AB7: 1 | AC7: 4 | AD7: 2 | AE7: 7
B8: Grand Total | C8: 20 | D8: 0 | E8: 2 | AA8: 2024 | AB8: 0 | AC8: 5 | AD8: 4 | AE8: 9
AA9: Grand Total | AB9: 1 | AC9: 11 | AD9: 8 | AE9: 20
B24: Total Crashes | C24: Injury Level | P24: Count of Document Number | Q24: Column Labels
B25: Crash Type | C25: (2) Serious Injury Suspected | D25: (3) Minor Injury Suspected | E25: (4) Injury Possible | F25: (5) PDO/No Injury | G25: Grand Total | P25: Crash Type | Q25: (5) PDO/No Injury | R25: (3) Minor Injury Suspected | S25: (4) Injury Possible | T25: (2) Serious Injury Suspected | U25: Grand Total
B26: Angle | C26: 1 | D26: 7 | E26: 1 | F26: 6 | G26: 15 | P26: Angle | Q26: 6 | R26: 7 | S26: 1 | T26: 1 | U26: 15
B27: Rear End | C27: 0 | D27: 1 | E27: 0 | F27: 1 | G27: 2 | P27: Fixed Object | Q27: 0 | R27: 1 | S27: 0 | T27: 0 | U27: 1
B28: Sideswipe - Passing | C28: 0 | D28: 0 | E28: 0 | F28: 1 | G28: 1 | P28: Head On | Q28: 0 | R28: 1 | S28: 0 | T28: 0 | U28: 1
B29: Fixed Object | C29: 0 | D29: 1 | E29: 0 | F29: 0 | G29: 1 | P29: Rear End | Q29: 1 | R29: 1 | S29: 0 | T29: 0 | U29: 2
B30: Head On | C30: 0 | D30: 1 | E30: 0 | F30: 0 | G30: 1 | P30: Sideswipe - Passing | Q30: 1 | R30: 0 | S30: 0 | T30: 0 | U30: 1
B31: Grand Total | C31: 1 | D31: 10 | E31: 1 | F31: 8 | G31: 20 | P31: Grand Total | Q31: 8 | R31: 10 | S31: 1 | T31: 1 | U31: 20
B48: Road Condition | C48: Total Crashes | D48: Fatalities | E48: Serious Injuries | G48: Hour of Day | H48: Total Crashes | J48: Month | K48: Total Crashes
B49: Dry | C49: 16 | D49: 0 | E49: 0 | G49: 5 | H49: 1 | J49: January | K49: 4
B50: Wet | C50: 4 | D50: 0 | E50: 2 | G50: 7 | H50: 2 | J50: February | K50: 1
B51: Grand Total | C51: 20 | D51: 0 | E51: 2 | G51: 8 | H51: 1 | J51: March | K51: 2
G52: 9 | H52: 1 | J52: April | K52: 2
G53: 11 | H53: 1 | J53: May | K53: 1
G54: 13 | H54: 4 | J54: June | K54: 1
G55: 14 | H55: 2 | J55: September | K55: 3
G56: 15 | H56: 1 | J56: October | K56: 5
G57: 16 | H57: 1 | J57: December | K57: 1
G58: 17 | H58: 3 | J58: Grand Total | K58: 20
G59: 18 | H59: 2
G60: 19 | H60: 1
G61: Grand Total | H61: 20
B62: Weather | C62: Total Crashes | D62: Fatalities | E62: Serious Injuries
B63: Clear | C63: 14 | D63: 0 | E63: 0 | J63: Day in Week | K63: Total Crashes
B64: Cloudy | C64: 3 | D64: 0 | E64: 0 | J64: (1) Sunday | K64: 3
B65: Rain | C65: 2 | D65: 0 | E65: 0 | J65: (2) Monday | K65: 5
B66: Snow | C66: 1 | D66: 0 | E66: 2 | J66: (3) Tuesday | K66: 3
B67: Grand Total | C67: 20 | D67: 0 | E67: 2 | J67: (5) Thursday | K67: 2
J68: (6) Friday | K68: 5
J69: (7) Saturday | K69: 2
J70: Grand Total | K70: 20
B75: Crash Location | C75: Total Crashes | D75: Fatalities | E75: Serious Injuries
B76: Four-Way Intersection | C76: 10 | D76: 0 | E76: 0
B77: Not An Intersection | C77: 1 | D77: 0 | E77: 0
B78: Data Not Valid or Not Provided | C78: 9 | D78: 0 | E78: 2
B79: Grand Total | C79: 20 | D79: 0 | E79: 2
B92: Roadway Contour | C92: Total Crashes | D92: Fatalities | E92: Serious Injuries
B93: Straight Level | C93: 16 | D93: 0 | E93: 2
B94: Straight Grade | C94: 4 | D94: 0 | E94: 0
B95: Grand Total | C95: 20 | D95: 0 | E95: 2

Sheet Unit 1 Analysis
B1: ='Crash Analysis'!B1 -> CLI US 22 2.62 (SR-380/Creek Rd) | G1: =B1 -> CLI US 22 2.62 (SR-380/Creek Rd)
B2: Unit 1 Crash Summary | G2: Unit 1 Crash Summary
B4: Type of Unit | C4: Total Crashes | D4: Fatalities | E4: Serious Injuries | G4: Traffic Control | H4: Total Crashes | I4: Fatalities | J4: Serious Injuries
B5: Sport Utility Vehicle | C5: 7 | D5: 0 | E5: 2 | G5: Stop Sign | H5: 15 | I5: 0 | J5: 2
B6: Passenger Car | C6: 6 | D6: 0 | E6: 0 | G6: No Control | H6: 5 | I6: 0 | J6: 0
B7: Cargo Van | C7: 3 | D7: 0 | E7: 0 | G7: Grand Total | H7: 20 | I7: 0 | J7: 2
B8: Pick up | C8: 1 | D8: 0 | E8: 0
B9: Van (9-15 Seats) | C9: 1 | D9: 0 | E9: 0
B10: Semi-Tractor | C10: 1 | D10: 0 | E10: 0
B11: Passenger Van (minivan) | C11: 1 | D11: 0 | E11: 0
B12: Grand Total | C12: 20 | D12: 0 | E12: 2
G23: Object Struck | H23: Total Crashes | I23: Fatalities | J23: Serious Injuries
G24: Traffic Sign Post | H24: 2 | I24: 0 | J24: 0
G25: Guardrail End | H25: 1 | I25: 0 | J25: 0
G26: Grand Total | H26: 3 | I26: 0 | J26: 0
B34: Special Function | C34: Total Crashes | D34: Fatalities | E34: Serious Injuries
B35: None | C35: 19 | D35: 0 | E35: 2
B36: Other / Unknown | C36: 1 | D36: 0 | E36: 0
B37: Grand Total | C37: 20 | D37: 0 | E37: 2
G47: Contributing Circumstances | H47: Total Crashes | I47: Fatalities | J47: Serious Injuries
G48: Failure to Yield | H48: 13 | I48: 0 | J48: 0
G49: None | H49: 3 | I49: 0 | J49: 0
G50: Ran Stop Sign | H50: 2 | I50: 0 | J50: 2
G51: Following Too Closely/ACDA | H51: 1 | I51: 0 | J51: 0
G52: Drove off Road | H52: 1 | I52: 0 | J52: 0
G53: Grand Total | H53: 20 | I53: 0 | J53: 2
B58: Pre-Crash Action | C58: Total Crashes | D58: Fatalities | E58: Serious Injuries
B59: Straight Ahead | C59: 12 | D59: 0 | E59: 2
B60: Slowing or Stopped In Traffic | C60: 3 | D60: 0 | E60: 0
B61: Making Left Turn | C61: 3 | D61: 0 | E61: 0
B62: Entering Traffic Lane | C62: 2 | D62: 0 | E62: 0
B63: Grand Total | C63: 20 | D63: 0 | E63: 2
B87: Gender | C87: Total Crashes | D87: Fatalities | E87: Serious Injuries
B88: Male | C88: 10 | D88: 0 | E88: 0 | G88: Alcohol Involved | H88: Total Crashes | I88: Fatalities | J88: Serious Injuries | L88: Marijuana Involved | M88: Total Crashes | N88: Fatalities | O88: Serious Injuries
B89: Female | C89: 10 | D89: 0 | E89: 2 | G89: No | H89: 20 | I89: 0 | J89: 2 | L89: No | M89: 19 | N89: 0 | O89: 2
B90: Grand Total | C90: 20 | D90: 0 | E90: 2 | G90: Grand Total | H90: 20 | I90: 0 | J90: 2 | L90: Yes | M90: 1 | N90: 0 | O90: 0
L91: Grand Total | M91: 20 | N91: 0 | O91: 2
B94: Driver Age | C94: Total Crashes | D94: Fatalities | E94: Serious Injuries | L94: Other Drugs Involved | M94: Total Crashes | N94: Fatalities | O94: Serious Injuries
B95: 20-24 | C95: 2 | D95: 0 | E95: 0 | L95: No | M95: 19 | N95: 0 | O95: 2
B96: 25-29 | C96: 1 | D96: 0 | E96: 0 | L96: Yes | M96: 1 | N96: 0 | O96: 0
B97: 30-34 | C97: 3 | D97: 0 | E97: 2 | L97: Grand Total | M97: 20 | N97: 0 | O97: 2
B98: 35-39 | C98: 2 | D98: 0 | E98: 0 | G98: Distracted By | H98: Total Crashes | I98: Fatalities | J98: Serious Injuries
B99: 40-44 | C99: 1 | D99: 0 | E99: 0 | G99: Not Distracted | H99: 19 | I99: 0 | J99: 2
B100: 45-49 | C100: 3 | D100: 0 | E100: 0 | G100: Passenger | H100: 1 | I100: 0 | J100: 0
B101: 50-54 | C101: 1 | D101: 0 | E101: 0 | G101: Grand Total | H101: 20 | I101: 0 | J101: 2
B102: 55-59 | C102: 3 | D102: 0 | E102: 0
B103: 70-74 | C103: 2 | D103: 0 | E103: 0
B104: 80-84 | C104: 1 | D104: 0 | E104: 0
B105: 85-90 | C105: 1 | D105: 0 | E105: 0
B106: Grand Total | C106: 20 | D106: 0 | E106: 2
G111: Non-Motorist Location | H111: Total Crashes | I111: Fatalities | J111: Serious Injuries
G112: Grand Total | H112: 0 | I112: 0 | J112: 0
G127: Estimated Speed | H127: Total Crashes | I127: Fatalities | J127: Serious Injuries | L127: Posted Speed | M127: Total Crashes | N127: Fatalities | O127: Serious Injuries
G128: <15 | H128: 15 | I128: 0 | J128: 0 | L128: 55 | M128: 20 | N128: 0 | O128: 2
G129: 15-19 | H129: 1 | I129: 0 | J129: 0 | L129: Grand Total | M129: 20 | N129: 0 | O129: 2
G130: 20-24 | H130: 1 | I130: 0 | J130: 0
G131: 30-34 | H131: 1 | I131: 0 | J131: 2
G132: 45-49 | H132: 1 | I132: 0 | J132: 0
G133: 55-59 | H133: 1 | I133: 0 | J133: 0
G134: Grand Total | H134: 20 | I134: 0 | J134: 2

Sheet RelativeSeverityIndex
A1: Relative Severity Index Calculation | AI1: All Sites
A2: ODOT District | B2: STW | AA2: NLFID: | AE2: FindTruck | AF2: 0 | AI2: HSM Elements Only | BA2: Crash Costs (2023)
A3: Urban Area | AA3: Blog: | AE3: FindVC | AF3: 0 | AI3: Observed Elements Only | BA3: KA | BB3: B | BC3: C | BD3: O
A4: Freeway | AA4: Elog: | BA4: 502809 | BB4: 72068 | BC4: 48848 | BD4: 11008
AA5: WAADT: | BA5: =ROUND(BA4/$BD$4,2) -> 45.68 | BB5: =ROUND(BB4/$BD$4,2) -> 6.55 | BC5: =ROUND(BC4/$BD$4,2) -> 4.44 | BD5: =ROUND(BD4/$BD$4,2) -> 1
A6: Fill in the Number of Crashes by Crash Type | AA6: WAADTT:
A7: Crash Type | B7: Number of Crashes | C7: Crash Type Severity Calc | D7: RSI Multiplier | AA7: WVCRatio:
A8: Unknown | B8: =IF('Full Crash Data'!$G$21="","",COUNTIFS('Full Crash Data'!$G:$G,$A8)) -> 0 | C8: =IF(OR($B$2="",$B$3="",$B$4=""),"",B8*D8) ->  | D8: =IFERROR(ROUND(IF($B$2="STW",SUMIFS(RSI_Data!$F:$F,RSI_Data!$C:$C,$B$3,RSI_Data!$D:$D,$B$4,RSI_Data!$E:$E,$A8)/SUMIFS(RSI_Data!$G:$G,RSI_Data!$C:$C,$B$3,RSI_Data!$D:$D,$B$4,RSI_Data!$E:$E,$A8),SUMIFS(RSI_Data!$F:$F,RSI_Data!$C:$C,$B$3,RSI_Data!$D:$D,$B$4,RSI_Data!$A:$A,$B$2,RSI_Data!$E:$E,$A8)/SUMIFS(RSI_Data!$G:$G,RSI_Data!$C:$C,$B$3,RSI_Data!$D:$D,$B$4,RSI_Data!$A:$A,$B$2,RSI_Data!$E:$E,$A8)),0),0) -> 0 | AA8: TotalLength:
A9: Head On | B9: =IF('Full Crash Data'!$G$21="","",COUNTIFS('Full Crash Data'!$G:$G,$A9)) -> 1 | C9: =IF(OR($B$2="",$B$3="",$B$4=""),"",B9*D9) ->  | D9: =IFERROR(ROUND(IF($B$2="STW",SUMIFS(RSI_Data!$F:$F,RSI_Data!$C:$C,$B$3,RSI_Data!$D:$D,$B$4,RSI_Data!$E:$E,$A9)/SUMIFS(RSI_Data!$G:$G,RSI_Data!$C:$C,$B$3,RSI_Data!$D:$D,$B$4,RSI_Data!$E:$E,$A9),SUMIFS(RSI_Data!$F:$F,RSI_Data!$C:$C,$B$3,RSI_Data!$D:$D,$B$4,RSI_Data!$A:$A,$B$2,RSI_Data!$E:$E,$A9)/SUMIFS(RSI_Data!$G:$G,RSI_Data!$C:$C,$B$3,RSI_Data!$D:$D,$B$4,RSI_Data!$A:$A,$B$2,RSI_Data!$E:$E,$A9)),0),0) -> 0 | AA9: Functional Class:
A10: Rear End | B10: =IF('Full Crash Data'!$G$21="","",COUNTIFS('Full Crash Data'!$G:$G,$A10)) -> 2 | D10: =IFERROR(ROUND(IF($B$2="STW",SUMIFS(RSI_Data!$F:$F,RSI_Data!$C:$C,$B$3,RSI_Data!$D:$D,$B$4,RSI_Data!$E:$E,$A10)/SUMIFS(RSI_Data!$G:$G,RSI_Data!$C:$C,$B$3,RSI_Data!$D:$D,$B$4,RSI_Data!$E:$E,$A10),SUMIFS(RSI_Data!$F:$F,RSI_Data!$C:$C,$B$3,RSI_Data!$D:$D,$B$4,RSI_Data!$A:$A,$B$2,RSI_Data!$E:$E,$A10)/SUMIFS(RSI_Data!$G:$G,RSI_Data!$C:$C,$B$3,RSI_Data!$D:$D,$B$4,RSI_Data!$A:$A,$B$2,RSI_Data!$E:$E,$A10)),0),0) -> 0 | AA10: Truck %: | AB10: =IFERROR(ROUND(AB6/AB5,4),"") -> 
A11: Backing | B11: =IF('Full Crash Data'!$G$21="","",COUNTIFS('Full Crash Data'!$G:$G,$A11)) -> 0 | D11: =IFERROR(ROUND(IF($B$2="STW",SUMIFS(RSI_Data!$F:$F,RSI_Data!$C:$C,$B$3,RSI_Data!$D:$D,$B$4,RSI_Data!$E:$E,$A11)/SUMIFS(RSI_Data!$G:$G,RSI_Data!$C:$C,$B$3,RSI_Data!$D:$D,$B$4,RSI_Data!$E:$E,$A11),SUMIFS(RSI_Data!$F:$F,RSI_Data!$C:$C,$B$3,RSI_Data!$D:$D,$B$4,RSI_Data!$A:$A,$B$2,RSI_Data!$E:$E,$A11)/SUMIFS(RSI_Data!$G:$G,RSI_Data!$C:$C,$B$3,RSI_Data!$D:$D,$B$4,RSI_Data!$A:$A,$B$2,RSI_Data!$E:$E,$A11)),0),0) -> 0
A12: Sideswipe - Meeting | B12: =IF('Full Crash Data'!$G$21="","",COUNTIFS('Full Crash Data'!$G:$G,$A12)) -> 0 | D12: =IFERROR(ROUND(IF($B$2="STW",SUMIFS(RSI_Data!$F:$F,RSI_Data!$C:$C,$B$3,RSI_Data!$D:$D,$B$4,RSI_Data!$E:$E,$A12)/SUMIFS(RSI_Data!$G:$G,RSI_Data!$C:$C,$B$3,RSI_Data!$D:$D,$B$4,RSI_Data!$E:$E,$A12),SUMIFS(RSI_Data!$F:$F,RSI_Data!$C:$C,$B$3,RSI_Data!$D:$D,$B$4,RSI_Data!$A:$A,$B$2,RSI_Data!$E:$E,$A12)/SUMIFS(RSI_Data!$G:$G,RSI_Data!$C:$C,$B$3,RSI_Data!$D:$D,$B$4,RSI_Data!$A:$A,$B$2,RSI_Data!$E:$E,$A12)),0),0) -> 0
A13: Sideswipe - Passing | B13: =IF('Full Crash Data'!$G$21="","",COUNTIFS('Full Crash Data'!$G:$G,$A13)) -> 1 | D13: =IFERROR(ROUND(IF($B$2="STW",SUMIFS(RSI_Data!$F:$F,RSI_Data!$C:$C,$B$3,RSI_Data!$D:$D,$B$4,RSI_Data!$E:$E,$A13)/SUMIFS(RSI_Data!$G:$G,RSI_Data!$C:$C,$B$3,RSI_Data!$D:$D,$B$4,RSI_Data!$E:$E,$A13),SUMIFS(RSI_Data!$F:$F,RSI_Data!$C:$C,$B$3,RSI_Data!$D:$D,$B$4,RSI_Data!$A:$A,$B$2,RSI_Data!$E:$E,$A13)/SUMIFS(RSI_Data!$G:$G,RSI_Data!$C:$C,$B$3,RSI_Data!$D:$D,$B$4,RSI_Data!$A:$A,$B$2,RSI_Data!$E:$E,$A13)),0),0) -> 0
A14: Angle | B14: =IF('Full Crash Data'!$G$21="","",COUNTIFS('Full Crash Data'!$G:$G,$A14)) -> 15 | D14: =IFERROR(ROUND(IF($B$2="STW",SUMIFS(RSI_Data!$F:$F,RSI_Data!$C:$C,$B$3,RSI_Data!$D:$D,$B$4,RSI_Data!$E:$E,$A14)/SUMIFS(RSI_Data!$G:$G,RSI_Data!$C:$C,$B$3,RSI_Data!$D:$D,$B$4,RSI_Data!$E:$E,$A14),SUMIFS(RSI_Data!$F:$F,RSI_Data!$C:$C,$B$3,RSI_Data!$D:$D,$B$4,RSI_Data!$A:$A,$B$2,RSI_Data!$E:$E,$A14)/SUMIFS(RSI_Data!$G:$G,RSI_Data!$C:$C,$B$3,RSI_Data!$D:$D,$B$4,RSI_Data!$A:$A,$B$2,RSI_Data!$E:$E,$A14)),0),0) -> 0
A15: Parked Vehicle | B15: =IF('Full Crash Data'!$G$21="","",COUNTIFS('Full Crash Data'!$G:$G,$A15)) -> 0 | D15: =IFERROR(ROUND(IF($B$2="STW",SUMIFS(RSI_Data!$F:$F,RSI_Data!$C:$C,$B$3,RSI_Data!$D:$D,$B$4,RSI_Data!$E:$E,$A15)/SUMIFS(RSI_Data!$G:$G,RSI_Data!$C:$C,$B$3,RSI_Data!$D:$D,$B$4,RSI_Data!$E:$E,$A15),SUMIFS(RSI_Data!$F:$F,RSI_Data!$C:$C,$B$3,RSI_Data!$D:$D,$B$4,RSI_Data!$A:$A,$B$2,RSI_Data!$E:$E,$A15)/SUMIFS(RSI_Data!$G:$G,RSI_Data!$C:$C,$B$3,RSI_Data!$D:$D,$B$4,RSI_Data!$A:$A,$B$2,RSI_Data!$E:$E,$A15)),0),0) -> 0
A16: Pedestrian | B16: =IF('Full Crash Data'!$G$21="","",COUNTIFS('Full Crash Data'!$G:$G,$A16)) -> 0 | D16: =IFERROR(ROUND(IF($B$2="STW",SUMIFS(RSI_Data!$F:$F,RSI_Data!$C:$C,$B$3,RSI_Data!$D:$D,$B$4,RSI_Data!$E:$E,$A16)/SUMIFS(RSI_Data!$G:$G,RSI_Data!$C:$C,$B$3,RSI_Data!$D:$D,$B$4,RSI_Data!$E:$E,$A16),SUMIFS(RSI_Data!$F:$F,RSI_Data!$C:$C,$B$3,RSI_Data!$D:$D,$B$4,RSI_Data!$A:$A,$B$2,RSI_Data!$E:$E,$A16)/SUMIFS(RSI_Data!$G:$G,RSI_Data!$C:$C,$B$3,RSI_Data!$D:$D,$B$4,RSI_Data!$A:$A,$B$2,RSI_Data!$E:$E,$A16)),0),0) -> 0
A17: Animal | B17: =IF('Full Crash Data'!$G$21="","",COUNTIFS('Full Crash Data'!$G:$G,$A17)) -> 0 | D17: =IFERROR(ROUND(IF($B$2="STW",SUMIFS(RSI_Data!$F:$F,RSI_Data!$C:$C,$B$3,RSI_Data!$D:$D,$B$4,RSI_Data!$E:$E,$A17)/SUMIFS(RSI_Data!$G:$G,RSI_Data!$C:$C,$B$3,RSI_Data!$D:$D,$B$4,RSI_Data!$E:$E,$A17),SUMIFS(RSI_Data!$F:$F,RSI_Data!$C:$C,$B$3,RSI_Data!$D:$D,$B$4,RSI_Data!$A:$A,$B$2,RSI_Data!$E:$E,$A17)/SUMIFS(RSI_Data!$G:$G,RSI_Data!$C:$C,$B$3,RSI_Data!$D:$D,$B$4,RSI_Data!$A:$A,$B$2,RSI_Data!$E:$E,$A17)),0),0) -> 0
A18: Train | B18: =IF('Full Crash Data'!$G$21="","",COUNTIFS('Full Crash Data'!$G:$G,$A18)) -> 0 | D18: =IFERROR(ROUND(IF($B$2="STW",SUMIFS(RSI_Data!$F:$F,RSI_Data!$C:$C,$B$3,RSI_Data!$D:$D,$B$4,RSI_Data!$E:$E,$A18)/SUMIFS(RSI_Data!$G:$G,RSI_Data!$C:$C,$B$3,RSI_Data!$D:$D,$B$4,RSI_Data!$E:$E,$A18),SUMIFS(RSI_Data!$F:$F,RSI_Data!$C:$C,$B$3,RSI_Data!$D:$D,$B$4,RSI_Data!$A:$A,$B$2,RSI_Data!$E:$E,$A18)/SUMIFS(RSI_Data!$G:$G,RSI_Data!$C:$C,$B$3,RSI_Data!$D:$D,$B$4,RSI_Data!$A:$A,$B$2,RSI_Data!$E:$E,$A18)),0),0) -> 0
A19: Pedalcycles | B19: =IF('Full Crash Data'!$G$21="","",COUNTIFS('Full Crash Data'!$G:$G,$A19)) -> 0 | D19: =IFERROR(ROUND(IF($B$2="STW",SUMIFS(RSI_Data!$F:$F,RSI_Data!$C:$C,$B$3,RSI_Data!$D:$D,$B$4,RSI_Data!$E:$E,$A19)/SUMIFS(RSI_Data!$G:$G,RSI_Data!$C:$C,$B$3,RSI_Data!$D:$D,$B$4,RSI_Data!$E:$E,$A19),SUMIFS(RSI_Data!$F:$F,RSI_Data!$C:$C,$B$3,RSI_Data!$D:$D,$B$4,RSI_Data!$A:$A,$B$2,RSI_Data!$E:$E,$A19)/SUMIFS(RSI_Data!$G:$G,RSI_Data!$C:$C,$B$3,RSI_Data!$D:$D,$B$4,RSI_Data!$A:$A,$B$2,RSI_Data!$E:$E,$A19)),0),0) -> 0
A20: Other Non-Vehicle | B20: =IF('Full Crash Data'!$G$21="","",COUNTIFS('Full Crash Data'!$G:$G,$A20)) -> 0 | D20: =IFERROR(ROUND(IF($B$2="STW",SUMIFS(RSI_Data!$F:$F,RSI_Data!$C:$C,$B$3,RSI_Data!$D:$D,$B$4,RSI_Data!$E:$E,$A20)/SUMIFS(RSI_Data!$G:$G,RSI_Data!$C:$C,$B$3,RSI_Data!$D:$D,$B$4,RSI_Data!$E:$E,$A20),SUMIFS(RSI_Data!$F:$F,RSI_Data!$C:$C,$B$3,RSI_Data!$D:$D,$B$4,RSI_Data!$A:$A,$B$2,RSI_Data!$E:$E,$A20)/SUMIFS(RSI_Data!$G:$G,RSI_Data!$C:$C,$B$3,RSI_Data!$D:$D,$B$4,RSI_Data!$A:$A,$B$2,RSI_Data!$E:$E,$A20)),0),0) -> 0
A21: Fixed Object | B21: =IF('Full Crash Data'!$G$21="","",COUNTIFS('Full Crash Data'!$G:$G,$A21)) -> 1 | D21: =IFERROR(ROUND(IF($B$2="STW",SUMIFS(RSI_Data!$F:$F,RSI_Data!$C:$C,$B$3,RSI_Data!$D:$D,$B$4,RSI_Data!$E:$E,$A21)/SUMIFS(RSI_Data!$G:$G,RSI_Data!$C:$C,$B$3,RSI_Data!$D:$D,$B$4,RSI_Data!$E:$E,$A21),SUMIFS(RSI_Data!$F:$F,RSI_Data!$C:$C,$B$3,RSI_Data!$D:$D,$B$4,RSI_Data!$A:$A,$B$2,RSI_Data!$E:$E,$A21)/SUMIFS(RSI_Data!$G:$G,RSI_Data!$C:$C,$B$3,RSI_Data!$D:$D,$B$4,RSI_Data!$A:$A,$B$2,RSI_Data!$E:$E,$A21)),0),0) -> 0
A22: Other Object | B22: =IF('Full Crash Data'!$G$21="","",COUNTIFS('Full Crash Data'!$G:$G,$A22)) -> 0 | D22: =IFERROR(ROUND(IF($B$2="STW",SUMIFS(RSI_Data!$F:$F,RSI_Data!$C:$C,$B$3,RSI_Data!$D:$D,$B$4,RSI_Data!$E:$E,$A22)/SUMIFS(RSI_Data!$G:$G,RSI_Data!$C:$C,$B$3,RSI_Data!$D:$D,$B$4,RSI_Data!$E:$E,$A22),SUMIFS(RSI_Data!$F:$F,RSI_Data!$C:$C,$B$3,RSI_Data!$D:$D,$B$4,RSI_Data!$A:$A,$B$2,RSI_Data!$E:$E,$A22)/SUMIFS(RSI_Data!$G:$G,RSI_Data!$C:$C,$B$3,RSI_Data!$D:$D,$B$4,RSI_Data!$A:$A,$B$2,RSI_Data!$E:$E,$A22)),0),0) -> 0
A23: Overturning | B23: =IF('Full Crash Data'!$G$21="","",COUNTIFS('Full Crash Data'!$G:$G,$A23)) -> 0 | D23: =IFERROR(ROUND(IF($B$2="STW",SUMIFS(RSI_Data!$F:$F,RSI_Data!$C:$C,$B$3,RSI_Data!$D:$D,$B$4,RSI_Data!$E:$E,$A23)/SUMIFS(RSI_Data!$G:$G,RSI_Data!$C:$C,$B$3,RSI_Data!$D:$D,$B$4,RSI_Data!$E:$E,$A23),SUMIFS(RSI_Data!$F:$F,RSI_Data!$C:$C,$B$3,RSI_Data!$D:$D,$B$4,RSI_Data!$A:$A,$B$2,RSI_Data!$E:$E,$A23)/SUMIFS(RSI_Data!$G:$G,RSI_Data!$C:$C,$B$3,RSI_Data!$D:$D,$B$4,RSI_Data!$A:$A,$B$2,RSI_Data!$E:$E,$A23)),0),0) -> 0
A24: Other Non-Collision | B24: =IF('Full Crash Data'!$G$21="","",COUNTIFS('Full Crash Data'!$G:$G,$A24)) -> 0 | D24: =IFERROR(ROUND(IF($B$2="STW",SUMIFS(RSI_Data!$F:$F,RSI_Data!$C:$C,$B$3,RSI_Data!$D:$D,$B$4,RSI_Data!$E:$E,$A24)/SUMIFS(RSI_Data!$G:$G,RSI_Data!$C:$C,$B$3,RSI_Data!$D:$D,$B$4,RSI_Data!$E:$E,$A24),SUMIFS(RSI_Data!$F:$F,RSI_Data!$C:$C,$B$3,RSI_Data!$D:$D,$B$4,RSI_Data!$A:$A,$B$2,RSI_Data!$E:$E,$A24)/SUMIFS(RSI_Data!$G:$G,RSI_Data!$C:$C,$B$3,RSI_Data!$D:$D,$B$4,RSI_Data!$A:$A,$B$2,RSI_Data!$E:$E,$A24)),0),0) -> 0
A25: Left Turn | B25: =IF('Full Crash Data'!$G$21="","",COUNTIFS('Full Crash Data'!$G:$G,$A25)) -> 0 | D25: =IFERROR(ROUND(IF($B$2="STW",SUMIFS(RSI_Data!$F:$F,RSI_Data!$C:$C,$B$3,RSI_Data!$D:$D,$B$4,RSI_Data!$E:$E,$A25)/SUMIFS(RSI_Data!$G:$G,RSI_Data!$C:$C,$B$3,RSI_Data!$D:$D,$B$4,RSI_Data!$E:$E,$A25),SUMIFS(RSI_Data!$F:$F,RSI_Data!$C:$C,$B$3,RSI_Data!$D:$D,$B$4,RSI_Data!$A:$A,$B$2,RSI_Data!$E:$E,$A25)/SUMIFS(RSI_Data!$G:$G,RSI_Data!$C:$C,$B$3,RSI_Data!$D:$D,$B$4,RSI_Data!$A:$A,$B$2,RSI_Data!$E:$E,$A25)),0),0) -> 0
A26: Right Turn | B26: =IF('Full Crash Data'!$G$21="","",COUNTIFS('Full Crash Data'!$G:$G,$A26)) -> 0 | D26: =IFERROR(ROUND(IF($B$2="STW",SUMIFS(RSI_Data!$F:$F,RSI_Data!$C:$C,$B$3,RSI_Data!$D:$D,$B$4,RSI_Data!$E:$E,$A26)/SUMIFS(RSI_Data!$G:$G,RSI_Data!$C:$C,$B$3,RSI_Data!$D:$D,$B$4,RSI_Data!$E:$E,$A26),SUMIFS(RSI_Data!$F:$F,RSI_Data!$C:$C,$B$3,RSI_Data!$D:$D,$B$4,RSI_Data!$A:$A,$B$2,RSI_Data!$E:$E,$A26)/SUMIFS(RSI_Data!$G:$G,RSI_Data!$C:$C,$B$3,RSI_Data!$D:$D,$B$4,RSI_Data!$A:$A,$B$2,RSI_Data!$E:$E,$A26)),0),0) -> 0
A27: Totals | B27: =SUM(B8:B26) -> 20 | C27: =SUM(C8:C26) -> 0
A29: RSI Value = | B29: =IFERROR(ROUND(C27/B27,2),0) -> 0

Sheet Emphasis Area
A1: ='Crash Analysis'!B1 -> CLI US 22 2.62 (SR-380/Creek Rd)
A2: Select Authority: | B2: All
A4: OHIO SHSP EMPHASIS AREAS (Fatalities) | B4: =B5 -> 2024 | D4: =D5 -> 2023 | F4: =F5 -> 2022 | H4: =H5 -> 2021 | J4: =J5 -> 2020 | L4: =L5 -> 2019 | N4: =N5 -> 2018 | P4: =P5 -> 2017 | R4: =R5 -> 2016 | T4: =T5 -> 2015 | V4: =V5 -> 2014 | AA4: All | AE4: 1
B5: =MAX('Full Crash Data'!C:C) -> 2024 | C5: =B5 -> 2024 | D5: =B5-1 -> 2023 | E5: =D5 -> 2023 | F5: =D5-1 -> 2022 | G5: =F5 -> 2022 | H5: =F5-1 -> 2021 | I5: =H5 -> 2021 | J5: =H5-1 -> 2020 | K5: =J5 -> 2020 | L5: =J5-1 -> 2019 | M5: =L5 -> 2019 | N5: =L5-1 -> 2018 | O5: =N5 -> 2018 | P5: =N5-1 -> 2017 | Q5: =P5 -> 2017 | R5: =P5-1 -> 2016 | S5: =R5 -> 2016 | T5: =R5-1 -> 2015 | U5: =T5 -> 2015 | V5: =T5-1 -> 2014 | W5: =V5 -> 2014 | AA5: State Highway Agency | AE5: 2
A6: Target Group | B6: Fatalities | C6: % of Total Fatalities | D6: Fatalities | E6: % of Total Fatalities | F6: Fatalities | G6: % of Total Fatalities | H6: Fatalities | I6: % of Total Fatalities | J6: Fatalities | K6: % of Total Fatalities | L6: Fatalities | M6: % of Total Fatalities | N6: Fatalities | O6: % of Total Fatalities | P6: Fatalities | Q6: % of Total Fatalities | R6: Fatalities | S6: % of Total Fatalities | T6: Fatalities | U6: % of Total Fatalities | V6: Fatalities | W6: % of Total Fatalities | AA6: County Highway Agency | AE6: 3
AA7: Township Highway Agency | AE7: 4
A8: Total Fatalities by Year | B8: =IF($B$2="All",SUMIFS('Full Crash Data'!$U:$U,'Full Crash Data'!$C:$C,B$5),IF($B$2="State Highway Agency",SUMIFS('Full Crash Data'!$U:$U,'Full Crash Data'!$C:$C,B$5,'Full Crash Data'!$AN:$AN,"State Highway Agency"),IF($B$2="County Highway Agency",SUMIFS('Full Crash Data'!$U:$U,'Full Crash Data'!$C:$C,B$5,'Full Crash Data'!$AN:$AN,"County Highway Agency"),IF($B$2="Township Highway Agency",SUMIFS('Full Crash Data'!$U:$U,'Full Crash Data'!$C:$C,B$5,'Full Crash Data'!$AN:$AN,"Township Highway Agency"),IF($B$2="City or Village Highway Agency",SUMIFS('Full Crash Data'!$U:$U,'Full Crash Data'!$C:$C,B$5,'Full Crash Data'!$AN:$AN,"City or Village Highway Agency")))))) -> 0 | D8: =IF($B$2="All",SUMIFS('Full Crash Data'!$U:$U,'Full Crash Data'!$C:$C,D$5),IF($B$2="State Highway Agency",SUMIFS('Full Crash Data'!$U:$U,'Full Crash Data'!$C:$C,D$5,'Full Crash Data'!$AN:$AN,"State Highway Agency"),IF($B$2="County Highway Agency",SUMIFS('Full Crash Data'!$U:$U,'Full Crash Data'!$C:$C,D$5,'Full Crash Data'!$AN:$AN,"County Highway Agency"),IF($B$2="Township Highway Agency",SUMIFS('Full Crash Data'!$U:$U,'Full Crash Data'!$C:$C,D$5,'Full Crash Data'!$AN:$AN,"Township Highway Agency"),IF($B$2="City or Village Highway Agency",SUMIFS('Full Crash Data'!$U:$U,'Full Crash Data'!$C:$C,D$5,'Full Crash Data'!$AN:$AN,"City or Village Highway Agency")))))) -> 0 | F8: =IF($B$2="All",SUMIFS('Full Crash Data'!$U:$U,'Full Crash Data'!$C:$C,F$5),IF($B$2="State Highway Agency",SUMIFS('Full Crash Data'!$U:$U,'Full Crash Data'!$C:$C,F$5,'Full Crash Data'!$AN:$AN,"State Highway Agency"),IF($B$2="County Highway Agency",SUMIFS('Full Crash Data'!$U:$U,'Full Crash Data'!$C:$C,F$5,'Full Crash Data'!$AN:$AN,"County Highway Agency"),IF($B$2="Township Highway Agency",SUMIFS('Full Crash Data'!$U:$U,'Full Crash Data'!$C:$C,F$5,'Full Crash Data'!$AN:$AN,"Township Highway Agency"),IF($B$2="City or Village Highway Agency",SUMIFS('Full Crash Data'!$U:$U,'Full Crash Data'!$C:$C,F$5,'Full Crash Data'!$AN:$AN,"City or Village Highway Agency")))))) -> 0 | H8: =IF($B$2="All",SUMIFS('Full Crash Data'!$U:$U,'Full Crash Data'!$C:$C,H$5),IF($B$2="State Highway Agency",SUMIFS('Full Crash Data'!$U:$U,'Full Crash Data'!$C:$C,H$5,'Full Crash Data'!$AN:$AN,"State Highway Agency"),IF($B$2="County Highway Agency",SUMIFS('Full Crash Data'!$U:$U,'Full Crash Data'!$C:$C,H$5,'Full Crash Data'!$AN:$AN,"County Highway Agency"),IF($B$2="Township Highway Agency",SUMIFS('Full Crash Data'!$U:$U,'Full Crash Data'!$C:$C,H$5,'Full Crash Data'!$AN:$AN,"Township Highway Agency"),IF($B$2="City or Village Highway Agency",SUMIFS('Full Crash Data'!$U:$U,'Full Crash Data'!$C:$C,H$5,'Full Crash Data'!$AN:$AN,"City or Village Highway Agency")))))) -> 0 | J8: =IF($B$2="All",SUMIFS('Full Crash Data'!$U:$U,'Full Crash Data'!$C:$C,J$5),IF($B$2="State Highway Agency",SUMIFS('Full Crash Data'!$U:$U,'Full Crash Data'!$C:$C,J$5,'Full Crash Data'!$AN:$AN,"State Highway Agency"),IF($B$2="County Highway Agency",SUMIFS('Full Crash Data'!$U:$U,'Full Crash Data'!$C:$C,J$5,'Full Crash Data'!$AN:$AN,"County Highway Agency"),IF($B$2="Township Highway Agency",SUMIFS('Full Crash Data'!$U:$U,'Full Crash Data'!$C:$C,J$5,'Full Crash Data'!$AN:$AN,"Township Highway Agency"),IF($B$2="City or Village Highway Agency",SUMIFS('Full Crash Data'!$U:$U,'Full Crash Data'!$C:$C,J$5,'Full Crash Data'!$AN:$AN,"City or Village Highway Agency")))))) -> 0 | L8: =IF($B$2="All",SUMIFS('Full Crash Data'!$U:$U,'Full Crash Data'!$C:$C,L$5),IF($B$2="State Highway Agency",SUMIFS('Full Crash Data'!$U:$U,'Full Crash Data'!$C:$C,L$5,'Full Crash Data'!$AN:$AN,"State Highway Agency"),IF($B$2="County Highway Agency",SUMIFS('Full Crash Data'!$U:$U,'Full Crash Data'!$C:$C,L$5,'Full Crash Data'!$AN:$AN,"County Highway Agency"),IF($B$2="Township Highway Agency",SUMIFS('Full Crash Data'!$U:$U,'Full Crash Data'!$C:$C,L$5,'Full Crash Data'!$AN:$AN,"Township Highway Agency"),IF($B$2="City or Village Highway Agency",SUMIFS('Full Crash Data'!$U:$U,'Full Crash Data'!$C:$C,L$5,'Full Crash Data'!$AN:$AN,"City or Village Highway Agency")))))) -> 0 | N8: =IF($B$2="All",SUMIFS('Full Crash Data'!$U:$U,'Full Crash Data'!$C:$C,N$5),IF($B$2="State Highway Agency",SUMIFS('Full Crash Data'!$U:$U,'Full Crash Data'!$C:$C,N$5,'Full Crash Data'!$AN:$AN,"State Highway Agency"),IF($B$2="County Highway Agency",SUMIFS('Full Crash Data'!$U:$U,'Full Crash Data'!$C:$C,N$5,'Full Crash Data'!$AN:$AN,"County Highway Agency"),IF($B$2="Township Highway Agency",SUMIFS('Full Crash Data'!$U:$U,'Full Crash Data'!$C:$C,N$5,'Full Crash Data'!$AN:$AN,"Township Highway Agency"),IF($B$2="City or Village Highway Agency",SUMIFS('Full Crash Data'!$U:$U,'Full Crash Data'!$C:$C,N$5,'Full Crash Data'!$AN:$AN,"City or Village Highway Agency")))))) -> 0 | P8: =IF($B$2="All",SUMIFS('Full Crash Data'!$U:$U,'Full Crash Data'!$C:$C,P$5),IF($B$2="State Highway Agency",SUMIFS('Full Crash Data'!$U:$U,'Full Crash Data'!$C:$C,P$5,'Full Crash Data'!$AN:$AN,"State Highway Agency"),IF($B$2="County Highway Agency",SUMIFS('Full Crash Data'!$U:$U,'Full Crash Data'!$C:$C,P$5,'Full Crash Data'!$AN:$AN,"County Highway Agency"),IF($B$2="Township Highway Agency",SUMIFS('Full Crash Data'!$U:$U,'Full Crash Data'!$C:$C,P$5,'Full Crash Data'!$AN:$AN,"Township Highway Agency"),IF($B$2="City or Village Highway Agency",SUMIFS('Full Crash Data'!$U:$U,'Full Crash Data'!$C:$C,P$5,'Full Crash Data'!$AN:$AN,"City or Village Highway Agency")))))) -> 0 | R8: =IF($B$2="All",SUMIFS('Full Crash Data'!$U:$U,'Full Crash Data'!$C:$C,R$5),IF($B$2="State Highway Agency",SUMIFS('Full Crash Data'!$U:$U,'Full Crash Data'!$C:$C,R$5,'Full Crash Data'!$AN:$AN,"State Highway Agency"),IF($B$2="County Highway Agency",SUMIFS('Full Crash Data'!$U:$U,'Full Crash Data'!$C:$C,R$5,'Full Crash Data'!$AN:$AN,"County Highway Agency"),IF($B$2="Township Highway Agency",SUMIFS('Full Crash Data'!$U:$U,'Full Crash Data'!$C:$C,R$5,'Full Crash Data'!$AN:$AN,"Township Highway Agency"),IF($B$2="City or Village Highway Agency",SUMIFS('Full Crash Data'!$U:$U,'Full Crash Data'!$C:$C,R$5,'Full Crash Data'!$AN:$AN,"City or Village Highway Agency")))))) -> 0 | T8: =IF($B$2="All",SUMIFS('Full Crash Data'!$U:$U,'Full Crash Data'!$C:$C,T$5),IF($B$2="State Highway Agency",SUMIFS('Full Crash Data'!$U:$U,'Full Crash Data'!$C:$C,T$5,'Full Crash Data'!$AN:$AN,"State Highway Agency"),IF($B$2="County Highway Agency",SUMIFS('Full Crash Data'!$U:$U,'Full Crash Data'!$C:$C,T$5,'Full Crash Data'!$AN:$AN,"County Highway Agency"),IF($B$2="Township Highway Agency",SUMIFS('Full Crash Data'!$U:$U,'Full Crash Data'!$C:$C,T$5,'Full Crash Data'!$AN:$AN,"Township Highway Agency"),IF($B$2="City or Village Highway Agency",SUMIFS('Full Crash Data'!$U:$U,'Full Crash Data'!$C:$C,T$5,'Full Crash Data'!$AN:$AN,"City or Village Highway Agency")))))) -> 0 | V8: =IF($B$2="All",SUMIFS('Full Crash Data'!$U:$U,'Full Crash Data'!$C:$C,V$5),IF($B$2="State Highway Agency",SUMIFS('Full Crash Data'!$U:$U,'Full Crash Data'!$C:$C,V$5,'Full Crash Data'!$AN:$AN,"State Highway Agency"),IF($B$2="County Highway Agency",SUMIFS('Full Crash Data'!$U:$U,'Full Crash Data'!$C:$C,V$5,'Full Crash Data'!$AN:$AN,"County Highway Agency"),IF($B$2="Township Highway Agency",SUMIFS('Full Crash Data'!$U:$U,'Full Crash Data'!$C:$C,V$5,'Full Crash Data'!$AN:$AN,"Township Highway Agency"),IF($B$2="City or Village Highway Agency",SUMIFS('Full Crash Data'!$U:$U,'Full Crash Data'!$C:$C,V$5,'Full Crash Data'!$AN:$AN,"City or Village Highway Agency")))))) -> 0 | AA8: City or Village Highway Agency | AE8: 5
A9: Roadway Departure | B9: =IF($B$2="All",SUMIFS('Full Crash Data'!$U:$U,'Full Crash Data'!$C:$C,B$5,'Full Crash Data'!$AW:$AW,"Yes"),IF($B$2="State Highway Agency",SUMIFS('Full Crash Data'!$U:$U,'Full Crash Data'!$C:$C,B$5,'Full Crash Data'!$AN:$AN,"State Highway Agency",'Full Crash Data'!$AW:$AW,"Yes"),IF($B$2="County Highway Agency",SUMIFS('Full Crash Data'!$U:$U,'Full Crash Data'!$C:$C,B$5,'Full Crash Data'!$AN:$AN,"County Highway Agency",'Full Crash Data'!$AW:$AW,"Yes"),IF($B$2="Township Highway Agency",SUMIFS('Full Crash Data'!$U:$U,'Full Crash Data'!$C:$C,B$5,'Full Crash Data'!$AN:$AN,"Township Highway Agency",'Full Crash Data'!$AW:$AW,"Yes"),IF($B$2="City or Village Highway Agency",SUMIFS('Full Crash Data'!$U:$U,'Full Crash Data'!$C:$C,B$5,'Full Crash Data'!$AN:$AN,"City or Village Highway Agency",'Full Crash Data'!$AW:$AW,"Yes")))))) -> 0 | C9: =IFERROR(ROUND(B9/B$8,2),0) -> 0 | D9: =IF($B$2="All",SUMIFS('Full Crash Data'!$U:$U,'Full Crash Data'!$C:$C,D$5,'Full Crash Data'!$AW:$AW,"Yes"),IF($B$2="State Highway Agency",SUMIFS('Full Crash Data'!$U:$U,'Full Crash Data'!$C:$C,D$5,'Full Crash Data'!$AN:$AN,"State Highway Agency",'Full Crash Data'!$AW:$AW,"Yes"),IF($B$2="County Highway Agency",SUMIFS('Full Crash Data'!$U:$U,'Full Crash Data'!$C:$C,D$5,'Full Crash Data'!$AN:$AN,"County Highway Agency",'Full Crash Data'!$AW:$AW,"Yes"),IF($B$2="Township Highway Agency",SUMIFS('Full Crash Data'!$U:$U,'Full Crash Data'!$C:$C,D$5,'Full Crash Data'!$AN:$AN,"Township Highway Agency",'Full Crash Data'!$AW:$AW,"Yes"),IF($B$2="City or Village Highway Agency",SUMIFS('Full Crash Data'!$U:$U,'Full Crash Data'!$C:$C,D$5,'Full Crash Data'!$AN:$AN,"City or Village Highway Agency",'Full Crash Data'!$AW:$AW,"Yes")))))) -> 0 | E9: =IFERROR(ROUND(D9/D$8,2),0) -> 0 | F9: =IF($B$2="All",SUMIFS('Full Crash Data'!$U:$U,'Full Crash Data'!$C:$C,F$5,'Full Crash Data'!$AW:$AW,"Yes"),IF($B$2="State Highway Agency",SUMIFS('Full Crash Data'!$U:$U,'Full Crash Data'!$C:$C,F$5,'Full Crash Data'!$AN:$AN,"State Highway Agency",'Full Crash Data'!$AW:$AW,"Yes"),IF($B$2="County Highway Agency",SUMIFS('Full Crash Data'!$U:$U,'Full Crash Data'!$C:$C,F$5,'Full Crash Data'!$AN:$AN,"County Highway Agency",'Full Crash Data'!$AW:$AW,"Yes"),IF($B$2="Township Highway Agency",SUMIFS('Full Crash Data'!$U:$U,'Full Crash Data'!$C:$C,F$5,'Full Crash Data'!$AN:$AN,"Township Highway Agency",'Full Crash Data'!$AW:$AW,"Yes"),IF($B$2="City or Village Highway Agency",SUMIFS('Full Crash Data'!$U:$U,'Full Crash Data'!$C:$C,F$5,'Full Crash Data'!$AN:$AN,"City or Village Highway Agency",'Full Crash Data'!$AW:$AW,"Yes")))))) -> 0 | G9: =IFERROR(ROUND(F9/F$8,2),0) -> 0 | H9: =IF($B$2="All",SUMIFS('Full Crash Data'!$U:$U,'Full Crash Data'!$C:$C,H$5,'Full Crash Data'!$AW:$AW,"Yes"),IF($B$2="State Highway Agency",SUMIFS('Full Crash Data'!$U:$U,'Full Crash Data'!$C:$C,H$5,'Full Crash Data'!$AN:$AN,"State Highway Agency",'Full Crash Data'!$AW:$AW,"Yes"),IF($B$2="County Highway Agency",SUMIFS('Full Crash Data'!$U:$U,'Full Crash Data'!$C:$C,H$5,'Full Crash Data'!$AN:$AN,"County Highway Agency",'Full Crash Data'!$AW:$AW,"Yes"),IF($B$2="Township Highway Agency",SUMIFS('Full Crash Data'!$U:$U,'Full Crash Data'!$C:$C,H$5,'Full Crash Data'!$AN:$AN,"Township Highway Agency",'Full Crash Data'!$AW:$AW,"Yes"),IF($B$2="City or Village Highway Agency",SUMIFS('Full Crash Data'!$U:$U,'Full Crash Data'!$C:$C,H$5,'Full Crash Data'!$AN:$AN,"City or Village Highway Agency",'Full Crash Data'!$AW:$AW,"Yes")))))) -> 0 | I9: =IFERROR(ROUND(H9/H$8,2),0) -> 0 | J9: =IF($B$2="All",SUMIFS('Full Crash Data'!$U:$U,'Full Crash Data'!$C:$C,J$5,'Full Crash Data'!$AW:$AW,"Yes"),IF($B$2="State Highway Agency",SUMIFS('Full Crash Data'!$U:$U,'Full Crash Data'!$C:$C,J$5,'Full Crash Data'!$AN:$AN,"State Highway Agency",'Full Crash Data'!$AW:$AW,"Yes"),IF($B$2="County Highway Agency",SUMIFS('Full Crash Data'!$U:$U,'Full Crash Data'!$C:$C,J$5,'Full Crash Data'!$AN:$AN,"County Highway Agency",'Full Crash Data'!$AW:$AW,"Yes"),IF($B$2="Township Highway Agency",SUMIFS('Full Crash Data'!$U:$U,'Full Crash Data'!$C:$C,J$5,'Full Crash Data'!$AN:$AN,"Township Highway Agency",'Full Crash Data'!$AW:$AW,"Yes"),IF($B$2="City or Village Highway Agency",SUMIFS('Full Crash Data'!$U:$U,'Full Crash Data'!$C:$C,J$5,'Full Crash Data'!$AN:$AN,"City or Village Highway Agency",'Full Crash Data'!$AW:$AW,"Yes")))))) -> 0 | K9: =IFERROR(ROUND(J9/J$8,2),0) -> 0 | L9: =IF($B$2="All",SUMIFS('Full Crash Data'!$U:$U,'Full Crash Data'!$C:$C,L$5,'Full Crash Data'!$AW:$AW,"Yes"),IF($B$2="State Highway Agency",SUMIFS('Full Crash Data'!$U:$U,'Full Crash Data'!$C:$C,L$5,'Full Crash Data'!$AN:$AN,"State Highway Agency",'Full Crash Data'!$AW:$AW,"Yes"),IF($B$2="County Highway Agency",SUMIFS('Full Crash Data'!$U:$U,'Full Crash Data'!$C:$C,L$5,'Full Crash Data'!$AN:$AN,"County Highway Agency",'Full Crash Data'!$AW:$AW,"Yes"),IF($B$2="Township Highway Agency",SUMIFS('Full Crash Data'!$U:$U,'Full Crash Data'!$C:$C,L$5,'Full Crash Data'!$AN:$AN,"Township Highway Agency",'Full Crash Data'!$AW:$AW,"Yes"),IF($B$2="City or Village Highway Agency",SUMIFS('Full Crash Data'!$U:$U,'Full Crash Data'!$C:$C,L$5,'Full Crash Data'!$AN:$AN,"City or Village Highway Agency",'Full Crash Data'!$AW:$AW,"Yes")))))) -> 0 | M9: =IFERROR(ROUND(L9/L$8,2),0) -> 0 | N9: =IF($B$2="All",SUMIFS('Full Crash Data'!$U:$U,'Full Crash Data'!$C:$C,N$5,'Full Crash Data'!$AW:$AW,"Yes"),IF($B$2="State Highway Agency",SUMIFS('Full Crash Data'!$U:$U,'Full Crash Data'!$C:$C,N$5,'Full Crash Data'!$AN:$AN,"State Highway Agency",'Full Crash Data'!$AW:$AW,"Yes"),IF($B$2="County Highway Agency",SUMIFS('Full Crash Data'!$U:$U,'Full Crash Data'!$C:$C,N$5,'Full Crash Data'!$AN:$AN,"County Highway Agency",'Full Crash Data'!$AW:$AW,"Yes"),IF($B$2="Township Highway Agency",SUMIFS('Full Crash Data'!$U:$U,'Full Crash Data'!$C:$C,N$5,'Full Crash Data'!$AN:$AN,"Township Highway Agency",'Full Crash Data'!$AW:$AW,"Yes"),IF($B$2="City or Village Highway Agency",SUMIFS('Full Crash Data'!$U:$U,'Full Crash Data'!$C:$C,N$5,'Full Crash Data'!$AN:$AN,"City or Village Highway Agency",'Full Crash Data'!$AW:$AW,"Yes")))))) -> 0 | O9: =IFERROR(ROUND(N9/N$8,2),0) -> 0 | P9: =IF($B$2="All",SUMIFS('Full Crash Data'!$U:$U,'Full Crash Data'!$C:$C,P$5,'Full Crash Data'!$AW:$AW,"Yes"),IF($B$2="State Highway Agency",SUMIFS('Full Crash Data'!$U:$U,'Full Crash Data'!$C:$C,P$5,'Full Crash Data'!$AN:$AN,"State Highway Agency",'Full Crash Data'!$AW:$AW,"Yes"),IF($B$2="County Highway Agency",SUMIFS('Full Crash Data'!$U:$U,'Full Crash Data'!$C:$C,P$5,'Full Crash Data'!$AN:$AN,"County Highway Agency",'Full Crash Data'!$AW:$AW,"Yes"),IF($B$2="Township Highway Agency",SUMIFS('Full Crash Data'!$U:$U,'Full Crash Data'!$C:$C,P$5,'Full Crash Data'!$AN:$AN,"Township Highway Agency",'Full Crash Data'!$AW:$AW,"Yes"),IF($B$2="City or Village Highway Agency",SUMIFS('Full Crash Data'!$U:$U,'Full Crash Data'!$C:$C,P$5,'Full Crash Data'!$AN:$AN,"City or Village Highway Agency",'Full Crash Data'!$AW:$AW,"Yes")))))) -> 0 | Q9: =IFERROR(ROUND(P9/P$8,2),0) -> 0 | R9: =IF($B$2="All",SUMIFS('Full Crash Data'!$U:$U,'Full Crash Data'!$C:$C,R$5,'Full Crash Data'!$AW:$AW,"Yes"),IF($B$2="State Highway Agency",SUMIFS('Full Crash Data'!$U:$U,'Full Crash Data'!$C:$C,R$5,'Full Crash Data'!$AN:$AN,"State Highway Agency",'Full Crash Data'!$AW:$AW,"Yes"),IF($B$2="County Highway Agency",SUMIFS('Full Crash Data'!$U:$U,'Full Crash Data'!$C:$C,R$5,'Full Crash Data'!$AN:$AN,"County Highway Agency",'Full Crash Data'!$AW:$AW,"Yes"),IF($B$2="Township Highway Agency",SUMIFS('Full Crash Data'!$U:$U,'Full Crash Data'!$C:$C,R$5,'Full Crash Data'!$AN:$AN,"Township Highway Agency",'Full Crash Data'!$AW:$AW,"Yes"),IF($B$2="City or Village Highway Agency",SUMIFS('Full Crash Data'!$U:$U,'Full Crash Data'!$C:$C,R$5,'Full Crash Data'!$AN:$AN,"City or Village Highway Agency",'Full Crash Data'!$AW:$AW,"Yes")))))) -> 0 | S9: =IFERROR(ROUND(R9/R$8,2),0) -> 0 | T9: =IF($B$2="All",SUMIFS('Full Crash Data'!$U:$U,'Full Crash Data'!$C:$C,T$5,'Full Crash Data'!$AW:$AW,"Yes"),IF($B$2="State Highway Agency",SUMIFS('Full Crash Data'!$U:$U,'Full Crash Data'!$C:$C,T$5,'Full Crash Data'!$AN:$AN,"State Highway Agency",'Full Crash Data'!$AW:$AW,"Yes"),IF($B$2="County Highway Agency",SUMIFS('Full Crash Data'!$U:$U,'Full Crash Data'!$C:$C,T$5,'Full Crash Data'!$AN:$AN,"County Highway Agency",'Full Crash Data'!$AW:$AW,"Yes"),IF($B$2="Township Highway Agency",SUMIFS('Full Crash Data'!$U:$U,'Full Crash Data'!$C:$C,T$5,'Full Crash Data'!$AN:$AN,"Township Highway Agency",'Full Crash Data'!$AW:$AW,"Yes"),IF($B$2="City or Village Highway Agency",SUMIFS('Full Crash Data'!$U:$U,'Full Crash Data'!$C:$C,T$5,'Full Crash Data'!$AN:$AN,"City or Village Highway Agency",'Full Crash Data'!$AW:$AW,"Yes")))))) -> 0 | U9: =IFERROR(ROUND(T9/T$8,2),0) -> 0 | V9: =IF($B$2="All",SUMIFS('Full Crash Data'!$U:$U,'Full Crash Data'!$C:$C,V$5,'Full Crash Data'!$AW:$AW,"Yes"),IF($B$2="State Highway Agency",SUMIFS('Full Crash Data'!$U:$U,'Full Crash Data'!$C:$C,V$5,'Full Crash Data'!$AN:$AN,"State Highway Agency",'Full Crash Data'!$AW:$AW,"Yes"),IF($B$2="County Highway Agency",SUMIFS('Full Crash Data'!$U:$U,'Full Crash Data'!$C:$C,V$5,'Full Crash Data'!$AN:$AN,"County Highway Agency",'Full Crash Data'!$AW:$AW,"Yes"),IF($B$2="Township Highway Agency",SUMIFS('Full Crash Data'!$U:$U,'Full Crash Data'!$C:$C,V$5,'Full Crash Data'!$AN:$AN,"Township Highway Agency",'Full Crash Data'!$AW:$AW,"Yes"),IF($B$2="City or Village Highway Agency",SUMIFS('Full Crash Data'!$U:$U,'Full Crash Data'!$C:$C,V$5,'Full Crash Data'!$AN:$AN,"City or Village Highway Agency",'Full Crash Data'!$AW:$AW,"Yes")))))) -> 0 | W9: =IFERROR(ROUND(V9/V$8,2),0) -> 0 | AE9: 6
A10: Intersection | B10: =IF($B$2="All",SUMIFS('Full Crash Data'!$U:$U,'Full Crash Data'!$C:$C,B$5,'Full Crash Data'!$AX:$AX,"Yes"),IF($B$2="State Highway Agency",SUMIFS('Full Crash Data'!$U:$U,'Full Crash Data'!$C:$C,B$5,'Full Crash Data'!$AN:$AN,"State Highway Agency",'Full Crash Data'!$AX:$AX,"Yes"),IF($B$2="County Highway Agency",SUMIFS('Full Crash Data'!$U:$U,'Full Crash Data'!$C:$C,B$5,'Full Crash Data'!$AN:$AN,"County Highway Agency",'Full Crash Data'!$AX:$AX,"Yes"),IF($B$2="Township Highway Agency",SUMIFS('Full Crash Data'!$U:$U,'Full Crash Data'!$C:$C,B$5,'Full Crash Data'!$AN:$AN,"Township Highway Agency",'Full Crash Data'!$AX:$AX,"Yes"),IF($B$2="City or Village Highway Agency",SUMIFS('Full Crash Data'!$U:$U,'Full Crash Data'!$C:$C,B$5,'Full Crash Data'!$AN:$AN,"City or Village Highway Agency",'Full Crash Data'!$AX:$AX,"Yes")))))) -> 0 | C10: =IFERROR(ROUND(B10/B$8,2),0) -> 0 | D10: =IF($B$2="All",SUMIFS('Full Crash Data'!$U:$U,'Full Crash Data'!$C:$C,D$5,'Full Crash Data'!$AX:$AX,"Yes"),IF($B$2="State Highway Agency",SUMIFS('Full Crash Data'!$U:$U,'Full Crash Data'!$C:$C,D$5,'Full Crash Data'!$AN:$AN,"State Highway Agency",'Full Crash Data'!$AX:$AX,"Yes"),IF($B$2="County Highway Agency",SUMIFS('Full Crash Data'!$U:$U,'Full Crash Data'!$C:$C,D$5,'Full Crash Data'!$AN:$AN,"County Highway Agency",'Full Crash Data'!$AX:$AX,"Yes"),IF($B$2="Township Highway Agency",SUMIFS('Full Crash Data'!$U:$U,'Full Crash Data'!$C:$C,D$5,'Full Crash Data'!$AN:$AN,"Township Highway Agency",'Full Crash Data'!$AX:$AX,"Yes"),IF($B$2="City or Village Highway Agency",SUMIFS('Full Crash Data'!$U:$U,'Full Crash Data'!$C:$C,D$5,'Full Crash Data'!$AN:$AN,"City or Village Highway Agency",'Full Crash Data'!$AX:$AX,"Yes")))))) -> 0 | E10: 0 | F10: =IF($B$2="All",SUMIFS('Full Crash Data'!$U:$U,'Full Crash Data'!$C:$C,F$5,'Full Crash Data'!$AX:$AX,"Yes"),IF($B$2="State Highway Agency",SUMIFS('Full Crash Data'!$U:$U,'Full Crash Data'!$C:$C,F$5,'Full Crash Data'!$AN:$AN,"State Highway Agency",'Full Crash Data'!$AX:$AX,"Yes"),IF($B$2="County Highway Agency",SUMIFS('Full Crash Data'!$U:$U,'Full Crash Data'!$C:$C,F$5,'Full Crash Data'!$AN:$AN,"County Highway Agency",'Full Crash Data'!$AX:$AX,"Yes"),IF($B$2="Township Highway Agency",SUMIFS('Full Crash Data'!$U:$U,'Full Crash Data'!$C:$C,F$5,'Full Crash Data'!$AN:$AN,"Township Highway Agency",'Full Crash Data'!$AX:$AX,"Yes"),IF($B$2="City or Village Highway Agency",SUMIFS('Full Crash Data'!$U:$U,'Full Crash Data'!$C:$C,F$5,'Full Crash Data'!$AN:$AN,"City or Village Highway Agency",'Full Crash Data'!$AX:$AX,"Yes")))))) -> 0 | G10: =IFERROR(ROUND(F10/F$8,2),0) -> 0 | H10: =IF($B$2="All",SUMIFS('Full Crash Data'!$U:$U,'Full Crash Data'!$C:$C,H$5,'Full Crash Data'!$AX:$AX,"Yes"),IF($B$2="State Highway Agency",SUMIFS('Full Crash Data'!$U:$U,'Full Crash Data'!$C:$C,H$5,'Full Crash Data'!$AN:$AN,"State Highway Agency",'Full Crash Data'!$AX:$AX,"Yes"),IF($B$2="County Highway Agency",SUMIFS('Full Crash Data'!$U:$U,'Full Crash Data'!$C:$C,H$5,'Full Crash Data'!$AN:$AN,"County Highway Agency",'Full Crash Data'!$AX:$AX,"Yes"),IF($B$2="Township Highway Agency",SUMIFS('Full Crash Data'!$U:$U,'Full Crash Data'!$C:$C,H$5,'Full Crash Data'!$AN:$AN,"Township Highway Agency",'Full Crash Data'!$AX:$AX,"Yes"),IF($B$2="City or Village Highway Agency",SUMIFS('Full Crash Data'!$U:$U,'Full Crash Data'!$C:$C,H$5,'Full Crash Data'!$AN:$AN,"City or Village Highway Agency",'Full Crash Data'!$AX:$AX,"Yes")))))) -> 0 | I10: =IFERROR(ROUND(H10/H$8,2),0) -> 0 | J10: =IF($B$2="All",SUMIFS('Full Crash Data'!$U:$U,'Full Crash Data'!$C:$C,J$5,'Full Crash Data'!$AX:$AX,"Yes"),IF($B$2="State Highway Agency",SUMIFS('Full Crash Data'!$U:$U,'Full Crash Data'!$C:$C,J$5,'Full Crash Data'!$AN:$AN,"State Highway Agency",'Full Crash Data'!$AX:$AX,"Yes"),IF($B$2="County Highway Agency",SUMIFS('Full Crash Data'!$U:$U,'Full Crash Data'!$C:$C,J$5,'Full Crash Data'!$AN:$AN,"County Highway Agency",'Full Crash Data'!$AX:$AX,"Yes"),IF($B$2="Township Highway Agency",SUMIFS('Full Crash Data'!$U:$U,'Full Crash Data'!$C:$C,J$5,'Full Crash Data'!$AN:$AN,"Township Highway Agency",'Full Crash Data'!$AX:$AX,"Yes"),IF($B$2="City or Village Highway Agency",SUMIFS('Full Crash Data'!$U:$U,'Full Crash Data'!$C:$C,J$5,'Full Crash Data'!$AN:$AN,"City or Village Highway Agency",'Full Crash Data'!$AX:$AX,"Yes")))))) -> 0 | K10: =IFERROR(ROUND(J10/J$8,2),0) -> 0 | L10: =IF($B$2="All",SUMIFS('Full Crash Data'!$U:$U,'Full Crash Data'!$C:$C,L$5,'Full Crash Data'!$AX:$AX,"Yes"),IF($B$2="State Highway Agency",SUMIFS('Full Crash Data'!$U:$U,'Full Crash Data'!$C:$C,L$5,'Full Crash Data'!$AN:$AN,"State Highway Agency",'Full Crash Data'!$AX:$AX,"Yes"),IF($B$2="County Highway Agency",SUMIFS('Full Crash Data'!$U:$U,'Full Crash Data'!$C:$C,L$5,'Full Crash Data'!$AN:$AN,"County Highway Agency",'Full Crash Data'!$AX:$AX,"Yes"),IF($B$2="Township Highway Agency",SUMIFS('Full Crash Data'!$U:$U,'Full Crash Data'!$C:$C,L$5,'Full Crash Data'!$AN:$AN,"Township Highway Agency",'Full Crash Data'!$AX:$AX,"Yes"),IF($B$2="City or Village Highway Agency",SUMIFS('Full Crash Data'!$U:$U,'Full Crash Data'!$C:$C,L$5,'Full Crash Data'!$AN:$AN,"City or Village Highway Agency",'Full Crash Data'!$AX:$AX,"Yes")))))) -> 0 | M10: =IFERROR(ROUND(L10/L$8,2),0) -> 0 | N10: =IF($B$2="All",SUMIFS('Full Crash Data'!$U:$U,'Full Crash Data'!$C:$C,N$5,'Full Crash Data'!$AX:$AX,"Yes"),IF($B$2="State Highway Agency",SUMIFS('Full Crash Data'!$U:$U,'Full Crash Data'!$C:$C,N$5,'Full Crash Data'!$AN:$AN,"State Highway Agency",'Full Crash Data'!$AX:$AX,"Yes"),IF($B$2="County Highway Agency",SUMIFS('Full Crash Data'!$U:$U,'Full Crash Data'!$C:$C,N$5,'Full Crash Data'!$AN:$AN,"County Highway Agency",'Full Crash Data'!$AX:$AX,"Yes"),IF($B$2="Township Highway Agency",SUMIFS('Full Crash Data'!$U:$U,'Full Crash Data'!$C:$C,N$5,'Full Crash Data'!$AN:$AN,"Township Highway Agency",'Full Crash Data'!$AX:$AX,"Yes"),IF($B$2="City or Village Highway Agency",SUMIFS('Full Crash Data'!$U:$U,'Full Crash Data'!$C:$C,N$5,'Full Crash Data'!$AN:$AN,"City or Village Highway Agency",'Full Crash Data'!$AX:$AX,"Yes")))))) -> 0 | O10: =IFERROR(ROUND(N10/N$8,2),0) -> 0 | P10: =IF($B$2="All",SUMIFS('Full Crash Data'!$U:$U,'Full Crash Data'!$C:$C,P$5,'Full Crash Data'!$AX:$AX,"Yes"),IF($B$2="State Highway Agency",SUMIFS('Full Crash Data'!$U:$U,'Full Crash Data'!$C:$C,P$5,'Full Crash Data'!$AN:$AN,"State Highway Agency",'Full Crash Data'!$AX:$AX,"Yes"),IF($B$2="County Highway Agency",SUMIFS('Full Crash Data'!$U:$U,'Full Crash Data'!$C:$C,P$5,'Full Crash Data'!$AN:$AN,"County Highway Agency",'Full Crash Data'!$AX:$AX,"Yes"),IF($B$2="Township Highway Agency",SUMIFS('Full Crash Data'!$U:$U,'Full Crash Data'!$C:$C,P$5,'Full Crash Data'!$AN:$AN,"Township Highway Agency",'Full Crash Data'!$AX:$AX,"Yes"),IF($B$2="City or Village Highway Agency",SUMIFS('Full Crash Data'!$U:$U,'Full Crash Data'!$C:$C,P$5,'Full Crash Data'!$AN:$AN,"City or Village Highway Agency",'Full Crash Data'!$AX:$AX,"Yes")))))) -> 0 | Q10: =IFERROR(ROUND(P10/P$8,2),0) -> 0 | R10: =IF($B$2="All",SUMIFS('Full Crash Data'!$U:$U,'Full Crash Data'!$C:$C,R$5,'Full Crash Data'!$AX:$AX,"Yes"),IF($B$2="State Highway Agency",SUMIFS('Full Crash Data'!$U:$U,'Full Crash Data'!$C:$C,R$5,'Full Crash Data'!$AN:$AN,"State Highway Agency",'Full Crash Data'!$AX:$AX,"Yes"),IF($B$2="County Highway Agency",SUMIFS('Full Crash Data'!$U:$U,'Full Crash Data'!$C:$C,R$5,'Full Crash Data'!$AN:$AN,"County Highway Agency",'Full Crash Data'!$AX:$AX,"Yes"),IF($B$2="Township Highway Agency",SUMIFS('Full Crash Data'!$U:$U,'Full Crash Data'!$C:$C,R$5,'Full Crash Data'!$AN:$AN,"Township Highway Agency",'Full Crash Data'!$AX:$AX,"Yes"),IF($B$2="City or Village Highway Agency",SUMIFS('Full Crash Data'!$U:$U,'Full Crash Data'!$C:$C,R$5,'Full Crash Data'!$AN:$AN,"City or Village Highway Agency",'Full Crash Data'!$AX:$AX,"Yes")))))) -> 0 | S10: =IFERROR(ROUND(R10/R$8,2),0) -> 0 | T10: =IF($B$2="All",SUMIFS('Full Crash Data'!$U:$U,'Full Crash Data'!$C:$C,T$5,'Full Crash Data'!$AX:$AX,"Yes"),IF($B$2="State Highway Agency",SUMIFS('Full Crash Data'!$U:$U,'Full Crash Data'!$C:$C,T$5,'Full Crash Data'!$AN:$AN,"State Highway Agency",'Full Crash Data'!$AX:$AX,"Yes"),IF($B$2="County Highway Agency",SUMIFS('Full Crash Data'!$U:$U,'Full Crash Data'!$C:$C,T$5,'Full Crash Data'!$AN:$AN,"County Highway Agency",'Full Crash Data'!$AX:$AX,"Yes"),IF($B$2="Township Highway Agency",SUMIFS('Full Crash Data'!$U:$U,'Full Crash Data'!$C:$C,T$5,'Full Crash Data'!$AN:$AN,"Township Highway Agency",'Full Crash Data'!$AX:$AX,"Yes"),IF($B$2="City or Village Highway Agency",SUMIFS('Full Crash Data'!$U:$U,'Full Crash Data'!$C:$C,T$5,'Full Crash Data'!$AN:$AN,"City or Village Highway Agency",'Full Crash Data'!$AX:$AX,"Yes")))))) -> 0 | U10: =IFERROR(ROUND(T10/T$8,2),0) -> 0 | V10: =IF($B$2="All",SUMIFS('Full Crash Data'!$U:$U,'Full Crash Data'!$C:$C,V$5,'Full Crash Data'!$AX:$AX,"Yes"),IF($B$2="State Highway Agency",SUMIFS('Full Crash Data'!$U:$U,'Full Crash Data'!$C:$C,V$5,'Full Crash Data'!$AN:$AN,"State Highway Agency",'Full Crash Data'!$AX:$AX,"Yes"),IF($B$2="County Highway Agency",SUMIFS('Full Crash Data'!$U:$U,'Full Crash Data'!$C:$C,V$5,'Full Crash Data'!$AN:$AN,"County Highway Agency",'Full Crash Data'!$AX:$AX,"Yes"),IF($B$2="Township Highway Agency",SUMIFS('Full Crash Data'!$U:$U,'Full Crash Data'!$C:$C,V$5,'Full Crash Data'!$AN:$AN,"Township Highway Agency",'Full Crash Data'!$AX:$AX,"Yes"),IF($B$2="City or Village Highway Agency",SUMIFS('Full Crash Data'!$U:$U,'Full Crash Data'!$C:$C,V$5,'Full Crash Data'!$AN:$AN,"City or Village Highway Agency",'Full Crash Data'!$AX:$AX,"Yes")))))) -> 0 | W10: =IFERROR(ROUND(V10/V$8,2),0) -> 0 | AE10: 7
A11: Railroad Crossing | B11: =IF($B$2="All",SUMIFS('Full Crash Data'!$U:$U,'Full Crash Data'!$C:$C,B$5,'Full Crash Data'!$G:$G,"Train"),IF($B$2="State Highway Agency",SUMIFS('Full Crash Data'!$U:$U,'Full Crash Data'!$C:$C,B$5,'Full Crash Data'!$AN:$AN,"State Highway Agency",'Full Crash Data'!$G:$G,"Train"),IF($B$2="County Highway Agency",SUMIFS('Full Crash Data'!$U:$U,'Full Crash Data'!$C:$C,B$5,'Full Crash Data'!$AN:$AN,"County Highway Agency",'Full Crash Data'!$G:$G,"Train"),IF($B$2="Township Highway Agency",SUMIFS('Full Crash Data'!$U:$U,'Full Crash Data'!$C:$C,B$5,'Full Crash Data'!$AN:$AN,"Township Highway Agency",'Full Crash Data'!$G:$G,"Train"),IF($B$2="City or Village Highway Agency",SUMIFS('Full Crash Data'!$U:$U,'Full Crash Data'!$C:$C,B$5,'Full Crash Data'!$AN:$AN,"City or Village Highway Agency",'Full Crash Data'!$G:$G,"Train")))))) -> 0 | C11: 0 | D11: =IF($B$2="All",SUMIFS('Full Crash Data'!$U:$U,'Full Crash Data'!$C:$C,D$5,'Full Crash Data'!$G:$G,"Train"),IF($B$2="State Highway Agency",SUMIFS('Full Crash Data'!$U:$U,'Full Crash Data'!$C:$C,D$5,'Full Crash Data'!$AN:$AN,"State Highway Agency",'Full Crash Data'!$G:$G,"Train"),IF($B$2="County Highway Agency",SUMIFS('Full Crash Data'!$U:$U,'Full Crash Data'!$C:$C,D$5,'Full Crash Data'!$AN:$AN,"County Highway Agency",'Full Crash Data'!$G:$G,"Train"),IF($B$2="Township Highway Agency",SUMIFS('Full Crash Data'!$U:$U,'Full Crash Data'!$C:$C,D$5,'Full Crash Data'!$AN:$AN,"Township Highway Agency",'Full Crash Data'!$G:$G,"Train"),IF($B$2="City or Village Highway Agency",SUMIFS('Full Crash Data'!$U:$U,'Full Crash Data'!$C:$C,D$5,'Full Crash Data'!$AN:$AN,"City or Village Highway Agency",'Full Crash Data'!$G:$G,"Train")))))) -> 0 | E11: 0 | F11: =IF($B$2="All",SUMIFS('Full Crash Data'!$U:$U,'Full Crash Data'!$C:$C,F$5,'Full Crash Data'!$G:$G,"Train"),IF($B$2="State Highway Agency",SUMIFS('Full Crash Data'!$U:$U,'Full Crash Data'!$C:$C,F$5,'Full Crash Data'!$AN:$AN,"State Highway Agency",'Full Crash Data'!$G:$G,"Train"),IF($B$2="County Highway Agency",SUMIFS('Full Crash Data'!$U:$U,'Full Crash Data'!$C:$C,F$5,'Full Crash Data'!$AN:$AN,"County Highway Agency",'Full Crash Data'!$G:$G,"Train"),IF($B$2="Township Highway Agency",SUMIFS('Full Crash Data'!$U:$U,'Full Crash Data'!$C:$C,F$5,'Full Crash Data'!$AN:$AN,"Township Highway Agency",'Full Crash Data'!$G:$G,"Train"),IF($B$2="City or Village Highway Agency",SUMIFS('Full Crash Data'!$U:$U,'Full Crash Data'!$C:$C,F$5,'Full Crash Data'!$AN:$AN,"City or Village Highway Agency",'Full Crash Data'!$G:$G,"Train")))))) -> 0 | G11: =IFERROR(ROUND(F11/F$8,2),0) -> 0 | H11: =IF($B$2="All",SUMIFS('Full Crash Data'!$U:$U,'Full Crash Data'!$C:$C,H$5,'Full Crash Data'!$G:$G,"Train"),IF($B$2="State Highway Agency",SUMIFS('Full Crash Data'!$U:$U,'Full Crash Data'!$C:$C,H$5,'Full Crash Data'!$AN:$AN,"State Highway Agency",'Full Crash Data'!$G:$G,"Train"),IF($B$2="County Highway Agency",SUMIFS('Full Crash Data'!$U:$U,'Full Crash Data'!$C:$C,H$5,'Full Crash Data'!$AN:$AN,"County Highway Agency",'Full Crash Data'!$G:$G,"Train"),IF($B$2="Township Highway Agency",SUMIFS('Full Crash Data'!$U:$U,'Full Crash Data'!$C:$C,H$5,'Full Crash Data'!$AN:$AN,"Township Highway Agency",'Full Crash Data'!$G:$G,"Train"),IF($B$2="City or Village Highway Agency",SUMIFS('Full Crash Data'!$U:$U,'Full Crash Data'!$C:$C,H$5,'Full Crash Data'!$AN:$AN,"City or Village Highway Agency",'Full Crash Data'!$G:$G,"Train")))))) -> 0 | I11: =IFERROR(ROUND(H11/H$8,2),0) -> 0 | J11: =IF($B$2="All",SUMIFS('Full Crash Data'!$U:$U,'Full Crash Data'!$C:$C,J$5,'Full Crash Data'!$G:$G,"Train"),IF($B$2="State Highway Agency",SUMIFS('Full Crash Data'!$U:$U,'Full Crash Data'!$C:$C,J$5,'Full Crash Data'!$AN:$AN,"State Highway Agency",'Full Crash Data'!$G:$G,"Train"),IF($B$2="County Highway Agency",SUMIFS('Full Crash Data'!$U:$U,'Full Crash Data'!$C:$C,J$5,'Full Crash Data'!$AN:$AN,"County Highway Agency",'Full Crash Data'!$G:$G,"Train"),IF($B$2="Township Highway Agency",SUMIFS('Full Crash Data'!$U:$U,'Full Crash Data'!$C:$C,J$5,'Full Crash Data'!$AN:$AN,"Township Highway Agency",'Full Crash Data'!$G:$G,"Train"),IF($B$2="City or Village Highway Agency",SUMIFS('Full Crash Data'!$U:$U,'Full Crash Data'!$C:$C,J$5,'Full Crash Data'!$AN:$AN,"City or Village Highway Agency",'Full Crash Data'!$G:$G,"Train")))))) -> 0 | K11: =IFERROR(ROUND(J11/J$8,2),0) -> 0 | L11: =IF($B$2="All",SUMIFS('Full Crash Data'!$U:$U,'Full Crash Data'!$C:$C,L$5,'Full Crash Data'!$G:$G,"Train"),IF($B$2="State Highway Agency",SUMIFS('Full Crash Data'!$U:$U,'Full Crash Data'!$C:$C,L$5,'Full Crash Data'!$AN:$AN,"State Highway Agency",'Full Crash Data'!$G:$G,"Train"),IF($B$2="County Highway Agency",SUMIFS('Full Crash Data'!$U:$U,'Full Crash Data'!$C:$C,L$5,'Full Crash Data'!$AN:$AN,"County Highway Agency",'Full Crash Data'!$G:$G,"Train"),IF($B$2="Township Highway Agency",SUMIFS('Full Crash Data'!$U:$U,'Full Crash Data'!$C:$C,L$5,'Full Crash Data'!$AN:$AN,"Township Highway Agency",'Full Crash Data'!$G:$G,"Train"),IF($B$2="City or Village Highway Agency",SUMIFS('Full Crash Data'!$U:$U,'Full Crash Data'!$C:$C,L$5,'Full Crash Data'!$AN:$AN,"City or Village Highway Agency",'Full Crash Data'!$G:$G,"Train")))))) -> 0 | M11: =IFERROR(ROUND(L11/L$8,2),0) -> 0 | N11: =IF($B$2="All",SUMIFS('Full Crash Data'!$U:$U,'Full Crash Data'!$C:$C,N$5,'Full Crash Data'!$G:$G,"Train"),IF($B$2="State Highway Agency",SUMIFS('Full Crash Data'!$U:$U,'Full Crash Data'!$C:$C,N$5,'Full Crash Data'!$AN:$AN,"State Highway Agency",'Full Crash Data'!$G:$G,"Train"),IF($B$2="County Highway Agency",SUMIFS('Full Crash Data'!$U:$U,'Full Crash Data'!$C:$C,N$5,'Full Crash Data'!$AN:$AN,"County Highway Agency",'Full Crash Data'!$G:$G,"Train"),IF($B$2="Township Highway Agency",SUMIFS('Full Crash Data'!$U:$U,'Full Crash Data'!$C:$C,N$5,'Full Crash Data'!$AN:$AN,"Township Highway Agency",'Full Crash Data'!$G:$G,"Train"),IF($B$2="City or Village Highway Agency",SUMIFS('Full Crash Data'!$U:$U,'Full Crash Data'!$C:$C,N$5,'Full Crash Data'!$AN:$AN,"City or Village Highway Agency",'Full Crash Data'!$G:$G,"Train")))))) -> 0 | O11: =IFERROR(ROUND(N11/N$8,2),0) -> 0 | P11: =IF($B$2="All",SUMIFS('Full Crash Data'!$U:$U,'Full Crash Data'!$C:$C,P$5,'Full Crash Data'!$G:$G,"Train"),IF($B$2="State Highway Agency",SUMIFS('Full Crash Data'!$U:$U,'Full Crash Data'!$C:$C,P$5,'Full Crash Data'!$AN:$AN,"State Highway Agency",'Full Crash Data'!$G:$G,"Train"),IF($B$2="County Highway Agency",SUMIFS('Full Crash Data'!$U:$U,'Full Crash Data'!$C:$C,P$5,'Full Crash Data'!$AN:$AN,"County Highway Agency",'Full Crash Data'!$G:$G,"Train"),IF($B$2="Township Highway Agency",SUMIFS('Full Crash Data'!$U:$U,'Full Crash Data'!$C:$C,P$5,'Full Crash Data'!$AN:$AN,"Township Highway Agency",'Full Crash Data'!$G:$G,"Train"),IF($B$2="City or Village Highway Agency",SUMIFS('Full Crash Data'!$U:$U,'Full Crash Data'!$C:$C,P$5,'Full Crash Data'!$AN:$AN,"City or Village Highway Agency",'Full Crash Data'!$G:$G,"Train")))))) -> 0 | Q11: =IFERROR(ROUND(P11/P$8,2),0) -> 0 | R11: =IF($B$2="All",SUMIFS('Full Crash Data'!$U:$U,'Full Crash Data'!$C:$C,R$5,'Full Crash Data'!$G:$G,"Train"),IF($B$2="State Highway Agency",SUMIFS('Full Crash Data'!$U:$U,'Full Crash Data'!$C:$C,R$5,'Full Crash Data'!$AN:$AN,"State Highway Agency",'Full Crash Data'!$G:$G,"Train"),IF($B$2="County Highway Agency",SUMIFS('Full Crash Data'!$U:$U,'Full Crash Data'!$C:$C,R$5,'Full Crash Data'!$AN:$AN,"County Highway Agency",'Full Crash Data'!$G:$G,"Train"),IF($B$2="Township Highway Agency",SUMIFS('Full Crash Data'!$U:$U,'Full Crash Data'!$C:$C,R$5,'Full Crash Data'!$AN:$AN,"Township Highway Agency",'Full Crash Data'!$G:$G,"Train"),IF($B$2="City or Village Highway Agency",SUMIFS('Full Crash Data'!$U:$U,'Full Crash Data'!$C:$C,R$5,'Full Crash Data'!$AN:$AN,"City or Village Highway Agency",'Full Crash Data'!$G:$G,"Train")))))) -> 0 | S11: =IFERROR(ROUND(R11/R$8,2),0) -> 0 | T11: =IF($B$2="All",SUMIFS('Full Crash Data'!$U:$U,'Full Crash Data'!$C:$C,T$5,'Full Crash Data'!$G:$G,"Train"),IF($B$2="State Highway Agency",SUMIFS('Full Crash Data'!$U:$U,'Full Crash Data'!$C:$C,T$5,'Full Crash Data'!$AN:$AN,"State Highway Agency",'Full Crash Data'!$G:$G,"Train"),IF($B$2="County Highway Agency",SUMIFS('Full Crash Data'!$U:$U,'Full Crash Data'!$C:$C,T$5,'Full Crash Data'!$AN:$AN,"County Highway Agency",'Full Crash Data'!$G:$G,"Train"),IF($B$2="Township Highway Agency",SUMIFS('Full Crash Data'!$U:$U,'Full Crash Data'!$C:$C,T$5,'Full Crash Data'!$AN:$AN,"Township Highway Agency",'Full Crash Data'!$G:$G,"Train"),IF($B$2="City or Village Highway Agency",SUMIFS('Full Crash Data'!$U:$U,'Full Crash Data'!$C:$C,T$5,'Full Crash Data'!$AN:$AN,"City or Village Highway Agency",'Full Crash Data'!$G:$G,"Train")))))) -> 0 | U11: =IFERROR(ROUND(T11/T$8,2),0) -> 0 | V11: =IF($B$2="All",SUMIFS('Full Crash Data'!$U:$U,'Full Crash Data'!$C:$C,V$5,'Full Crash Data'!$G:$G,"Train"),IF($B$2="State Highway Agency",SUMIFS('Full Crash Data'!$U:$U,'Full Crash Data'!$C:$C,V$5,'Full Crash Data'!$AN:$AN,"State Highway Agency",'Full Crash Data'!$G:$G,"Train"),IF($B$2="County Highway Agency",SUMIFS('Full Crash Data'!$U:$U,'Full Crash Data'!$C:$C,V$5,'Full Crash Data'!$AN:$AN,"County Highway Agency",'Full Crash Data'!$G:$G,"Train"),IF($B$2="Township Highway Agency",SUMIFS('Full Crash Data'!$U:$U,'Full Crash Data'!$C:$C,V$5,'Full Crash Data'!$AN:$AN,"Township Highway Agency",'Full Crash Data'!$G:$G,"Train"),IF($B$2="City or Village Highway Agency",SUMIFS('Full Crash Data'!$U:$U,'Full Crash Data'!$C:$C,V$5,'Full Crash Data'!$AN:$AN,"City or Village Highway Agency",'Full Crash Data'!$G:$G,"Train")))))) -> 0 | W11: =IFERROR(ROUND(V11/V$8,2),0) -> 0 | AE11: 10
A12: Alcohol Related Involvement | B12: =IF($B$2="All",SUMIFS('Full Crash Data'!$U:$U,'Full Crash Data'!$C:$C,B$5,'Full Crash Data'!$AY:$AY,"Yes"),IF($B$2="State Highway Agency",SUMIFS('Full Crash Data'!$U:$U,'Full Crash Data'!$C:$C,B$5,'Full Crash Data'!$AN:$AN,"State Highway Agency",'Full Crash Data'!$AY:$AY,"Yes"),IF($B$2="County Highway Agency",SUMIFS('Full Crash Data'!$U:$U,'Full Crash Data'!$C:$C,B$5,'Full Crash Data'!$AN:$AN,"County Highway Agency",'Full Crash Data'!$AY:$AY,"Yes"),IF($B$2="Township Highway Agency",SUMIFS('Full Crash Data'!$U:$U,'Full Crash Data'!$C:$C,B$5,'Full Crash Data'!$AN:$AN,"Township Highway Agency",'Full Crash Data'!$AY:$AY,"Yes"),IF($B$2="City or Village Highway Agency",SUMIFS('Full Crash Data'!$U:$U,'Full Crash Data'!$C:$C,B$5,'Full Crash Data'!$AN:$AN,"City or Village Highway Agency",'Full Crash Data'!$AY:$AY,"Yes")))))) -> 0 | C12: 0 | D12: =IF($B$2="All",SUMIFS('Full Crash Data'!$U:$U,'Full Crash Data'!$C:$C,D$5,'Full Crash Data'!$AY:$AY,"Yes"),IF($B$2="State Highway Agency",SUMIFS('Full Crash Data'!$U:$U,'Full Crash Data'!$C:$C,D$5,'Full Crash Data'!$AN:$AN,"State Highway Agency",'Full Crash Data'!$AY:$AY,"Yes"),IF($B$2="County Highway Agency",SUMIFS('Full Crash Data'!$U:$U,'Full Crash Data'!$C:$C,D$5,'Full Crash Data'!$AN:$AN,"County Highway Agency",'Full Crash Data'!$AY:$AY,"Yes"),IF($B$2="Township Highway Agency",SUMIFS('Full Crash Data'!$U:$U,'Full Crash Data'!$C:$C,D$5,'Full Crash Data'!$AN:$AN,"Township Highway Agency",'Full Crash Data'!$AY:$AY,"Yes"),IF($B$2="City or Village Highway Agency",SUMIFS('Full Crash Data'!$U:$U,'Full Crash Data'!$C:$C,D$5,'Full Crash Data'!$AN:$AN,"City or Village Highway Agency",'Full Crash Data'!$AY:$AY,"Yes")))))) -> 0 | E12: 0 | F12: =IF($B$2="All",SUMIFS('Full Crash Data'!$U:$U,'Full Crash Data'!$C:$C,F$5,'Full Crash Data'!$AY:$AY,"Yes"),IF($B$2="State Highway Agency",SUMIFS('Full Crash Data'!$U:$U,'Full Crash Data'!$C:$C,F$5,'Full Crash Data'!$AN:$AN,"State Highway Agency",'Full Crash Data'!$AY:$AY,"Yes"),IF($B$2="County Highway Agency",SUMIFS('Full Crash Data'!$U:$U,'Full Crash Data'!$C:$C,F$5,'Full Crash Data'!$AN:$AN,"County Highway Agency",'Full Crash Data'!$AY:$AY,"Yes"),IF($B$2="Township Highway Agency",SUMIFS('Full Crash Data'!$U:$U,'Full Crash Data'!$C:$C,F$5,'Full Crash Data'!$AN:$AN,"Township Highway Agency",'Full Crash Data'!$AY:$AY,"Yes"),IF($B$2="City or Village Highway Agency",SUMIFS('Full Crash Data'!$U:$U,'Full Crash Data'!$C:$C,F$5,'Full Crash Data'!$AN:$AN,"City or Village Highway Agency",'Full Crash Data'!$AY:$AY,"Yes")))))) -> 0 | G12: =IFERROR(ROUND(F12/F$8,2),0) -> 0 | H12: =IF($B$2="All",SUMIFS('Full Crash Data'!$U:$U,'Full Crash Data'!$C:$C,H$5,'Full Crash Data'!$AY:$AY,"Yes"),IF($B$2="State Highway Agency",SUMIFS('Full Crash Data'!$U:$U,'Full Crash Data'!$C:$C,H$5,'Full Crash Data'!$AN:$AN,"State Highway Agency",'Full Crash Data'!$AY:$AY,"Yes"),IF($B$2="County Highway Agency",SUMIFS('Full Crash Data'!$U:$U,'Full Crash Data'!$C:$C,H$5,'Full Crash Data'!$AN:$AN,"County Highway Agency",'Full Crash Data'!$AY:$AY,"Yes"),IF($B$2="Township Highway Agency",SUMIFS('Full Crash Data'!$U:$U,'Full Crash Data'!$C:$C,H$5,'Full Crash Data'!$AN:$AN,"Township Highway Agency",'Full Crash Data'!$AY:$AY,"Yes"),IF($B$2="City or Village Highway Agency",SUMIFS('Full Crash Data'!$U:$U,'Full Crash Data'!$C:$C,H$5,'Full Crash Data'!$AN:$AN,"City or Village Highway Agency",'Full Crash Data'!$AY:$AY,"Yes")))))) -> 0 | I12: =IFERROR(ROUND(H12/H$8,2),0) -> 0 | J12: =IF($B$2="All",SUMIFS('Full Crash Data'!$U:$U,'Full Crash Data'!$C:$C,J$5,'Full Crash Data'!$AY:$AY,"Yes"),IF($B$2="State Highway Agency",SUMIFS('Full Crash Data'!$U:$U,'Full Crash Data'!$C:$C,J$5,'Full Crash Data'!$AN:$AN,"State Highway Agency",'Full Crash Data'!$AY:$AY,"Yes"),IF($B$2="County Highway Agency",SUMIFS('Full Crash Data'!$U:$U,'Full Crash Data'!$C:$C,J$5,'Full Crash Data'!$AN:$AN,"County Highway Agency",'Full Crash Data'!$AY:$AY,"Yes"),IF($B$2="Township Highway Agency",SUMIFS('Full Crash Data'!$U:$U,'Full Crash Data'!$C:$C,J$5,'Full Crash Data'!$AN:$AN,"Township Highway Agency",'Full Crash Data'!$AY:$AY,"Yes"),IF($B$2="City or Village Highway Agency",SUMIFS('Full Crash Data'!$U:$U,'Full Crash Data'!$C:$C,J$5,'Full Crash Data'!$AN:$AN,"City or Village Highway Agency",'Full Crash Data'!$AY:$AY,"Yes")))))) -> 0 | K12: =IFERROR(ROUND(J12/J$8,2),0) -> 0 | L12: =IF($B$2="All",SUMIFS('Full Crash Data'!$U:$U,'Full Crash Data'!$C:$C,L$5,'Full Crash Data'!$AY:$AY,"Yes"),IF($B$2="State Highway Agency",SUMIFS('Full Crash Data'!$U:$U,'Full Crash Data'!$C:$C,L$5,'Full Crash Data'!$AN:$AN,"State Highway Agency",'Full Crash Data'!$AY:$AY,"Yes"),IF($B$2="County Highway Agency",SUMIFS('Full Crash Data'!$U:$U,'Full Crash Data'!$C:$C,L$5,'Full Crash Data'!$AN:$AN,"County Highway Agency",'Full Crash Data'!$AY:$AY,"Yes"),IF($B$2="Township Highway Agency",SUMIFS('Full Crash Data'!$U:$U,'Full Crash Data'!$C:$C,L$5,'Full Crash Data'!$AN:$AN,"Township Highway Agency",'Full Crash Data'!$AY:$AY,"Yes"),IF($B$2="City or Village Highway Agency",SUMIFS('Full Crash Data'!$U:$U,'Full Crash Data'!$C:$C,L$5,'Full Crash Data'!$AN:$AN,"City or Village Highway Agency",'Full Crash Data'!$AY:$AY,"Yes")))))) -> 0 | M12: =IFERROR(ROUND(L12/L$8,2),0) -> 0 | N12: =IF($B$2="All",SUMIFS('Full Crash Data'!$U:$U,'Full Crash Data'!$C:$C,N$5,'Full Crash Data'!$AY:$AY,"Yes"),IF($B$2="State Highway Agency",SUMIFS('Full Crash Data'!$U:$U,'Full Crash Data'!$C:$C,N$5,'Full Crash Data'!$AN:$AN,"State Highway Agency",'Full Crash Data'!$AY:$AY,"Yes"),IF($B$2="County Highway Agency",SUMIFS('Full Crash Data'!$U:$U,'Full Crash Data'!$C:$C,N$5,'Full Crash Data'!$AN:$AN,"County Highway Agency",'Full Crash Data'!$AY:$AY,"Yes"),IF($B$2="Township Highway Agency",SUMIFS('Full Crash Data'!$U:$U,'Full Crash Data'!$C:$C,N$5,'Full Crash Data'!$AN:$AN,"Township Highway Agency",'Full Crash Data'!$AY:$AY,"Yes"),IF($B$2="City or Village Highway Agency",SUMIFS('Full Crash Data'!$U:$U,'Full Crash Data'!$C:$C,N$5,'Full Crash Data'!$AN:$AN,"City or Village Highway Agency",'Full Crash Data'!$AY:$AY,"Yes")))))) -> 0 | O12: =IFERROR(ROUND(N12/N$8,2),0) -> 0 | P12: =IF($B$2="All",SUMIFS('Full Crash Data'!$U:$U,'Full Crash Data'!$C:$C,P$5,'Full Crash Data'!$AY:$AY,"Yes"),IF($B$2="State Highway Agency",SUMIFS('Full Crash Data'!$U:$U,'Full Crash Data'!$C:$C,P$5,'Full Crash Data'!$AN:$AN,"State Highway Agency",'Full Crash Data'!$AY:$AY,"Yes"),IF($B$2="County Highway Agency",SUMIFS('Full Crash Data'!$U:$U,'Full Crash Data'!$C:$C,P$5,'Full Crash Data'!$AN:$AN,"County Highway Agency",'Full Crash Data'!$AY:$AY,"Yes"),IF($B$2="Township Highway Agency",SUMIFS('Full Crash Data'!$U:$U,'Full Crash Data'!$C:$C,P$5,'Full Crash Data'!$AN:$AN,"Township Highway Agency",'Full Crash Data'!$AY:$AY,"Yes"),IF($B$2="City or Village Highway Agency",SUMIFS('Full Crash Data'!$U:$U,'Full Crash Data'!$C:$C,P$5,'Full Crash Data'!$AN:$AN,"City or Village Highway Agency",'Full Crash Data'!$AY:$AY,"Yes")))))) -> 0 | Q12: =IFERROR(ROUND(P12/P$8,2),0) -> 0 | R12: =IF($B$2="All",SUMIFS('Full Crash Data'!$U:$U,'Full Crash Data'!$C:$C,R$5,'Full Crash Data'!$AY:$AY,"Yes"),IF($B$2="State Highway Agency",SUMIFS('Full Crash Data'!$U:$U,'Full Crash Data'!$C:$C,R$5,'Full Crash Data'!$AN:$AN,"State Highway Agency",'Full Crash Data'!$AY:$AY,"Yes"),IF($B$2="County Highway Agency",SUMIFS('Full Crash Data'!$U:$U,'Full Crash Data'!$C:$C,R$5,'Full Crash Data'!$AN:$AN,"County Highway Agency",'Full Crash Data'!$AY:$AY,"Yes"),IF($B$2="Township Highway Agency",SUMIFS('Full Crash Data'!$U:$U,'Full Crash Data'!$C:$C,R$5,'Full Crash Data'!$AN:$AN,"Township Highway Agency",'Full Crash Data'!$AY:$AY,"Yes"),IF($B$2="City or Village Highway Agency",SUMIFS('Full Crash Data'!$U:$U,'Full Crash Data'!$C:$C,R$5,'Full Crash Data'!$AN:$AN,"City or Village Highway Agency",'Full Crash Data'!$AY:$AY,"Yes")))))) -> 0 | S12: =IFERROR(ROUND(R12/R$8,2),0) -> 0 | T12: =IF($B$2="All",SUMIFS('Full Crash Data'!$U:$U,'Full Crash Data'!$C:$C,T$5,'Full Crash Data'!$AY:$AY,"Yes"),IF($B$2="State Highway Agency",SUMIFS('Full Crash Data'!$U:$U,'Full Crash Data'!$C:$C,T$5,'Full Crash Data'!$AN:$AN,"State Highway Agency",'Full Crash Data'!$AY:$AY,"Yes"),IF($B$2="County Highway Agency",SUMIFS('Full Crash Data'!$U:$U,'Full Crash Data'!$C:$C,T$5,'Full Crash Data'!$AN:$AN,"County Highway Agency",'Full Crash Data'!$AY:$AY,"Yes"),IF($B$2="Township Highway Agency",SUMIFS('Full Crash Data'!$U:$U,'Full Crash Data'!$C:$C,T$5,'Full Crash Data'!$AN:$AN,"Township Highway Agency",'Full Crash Data'!$AY:$AY,"Yes"),IF($B$2="City or Village Highway Agency",SUMIFS('Full Crash Data'!$U:$U,'Full Crash Data'!$C:$C,T$5,'Full Crash Data'!$AN:$AN,"City or Village Highway Agency",'Full Crash Data'!$AY:$AY,"Yes")))))) -> 0 | U12: =IFERROR(ROUND(T12/T$8,2),0) -> 0 | V12: =IF($B$2="All",SUMIFS('Full Crash Data'!$U:$U,'Full Crash Data'!$C:$C,V$5,'Full Crash Data'!$AY:$AY,"Yes"),IF($B$2="State Highway Agency",SUMIFS('Full Crash Data'!$U:$U,'Full Crash Data'!$C:$C,V$5,'Full Crash Data'!$AN:$AN,"State Highway Agency",'Full Crash Data'!$AY:$AY,"Yes"),IF($B$2="County Highway Agency",SUMIFS('Full Crash Data'!$U:$U,'Full Crash Data'!$C:$C,V$5,'Full Crash Data'!$AN:$AN,"County Highway Agency",'Full Crash Data'!$AY:$AY,"Yes"),IF($B$2="Township Highway Agency",SUMIFS('Full Crash Data'!$U:$U,'Full Crash Data'!$C:$C,V$5,'Full Crash Data'!$AN:$AN,"Township Highway Agency",'Full Crash Data'!$AY:$AY,"Yes"),IF($B$2="City or Village Highway Agency",SUMIFS('Full Crash Data'!$U:$U,'Full Crash Data'!$C:$C,V$5,'Full Crash Data'!$AN:$AN,"City or Village Highway Agency",'Full Crash Data'!$AY:$AY,"Yes")))))) -> 0 | W12: =IFERROR(ROUND(V12/V$8,2),0) -> 0 | AE12: 11
A13: Restraints Not Used Driver/Occupants | B13: =IF($B$2="All",SUMIFS('Full Crash Data'!$U:$U,'Full Crash Data'!$C:$C,B$5,'Full Crash Data'!$Z:$Z,">0"),IF($B$2="State Highway Agency",SUMIFS('Full Crash Data'!$U:$U,'Full Crash Data'!$C:$C,B$5,'Full Crash Data'!$AN:$AN,"State Highway Agency",'Full Crash Data'!$Z:$Z,">0"),IF($B$2="County Highway Agency",SUMIFS('Full Crash Data'!$U:$U,'Full Crash Data'!$C:$C,B$5,'Full Crash Data'!$AN:$AN,"County Highway Agency",'Full Crash Data'!$Z:$Z,">0"),IF($B$2="Township Highway Agency",SUMIFS('Full Crash Data'!$U:$U,'Full Crash Data'!$C:$C,B$5,'Full Crash Data'!$AN:$AN,"Township Highway Agency",'Full Crash Data'!$Z:$Z,">0"),IF($B$2="City or Village Highway Agency",SUMIFS('Full Crash Data'!$U:$U,'Full Crash Data'!$C:$C,B$5,'Full Crash Data'!$AN:$AN,"City or Village Highway Agency",'Full Crash Data'!$Z:$Z,">0")))))) -> 0 | C13: 0 | D13: =IF($B$2="All",SUMIFS('Full Crash Data'!$U:$U,'Full Crash Data'!$C:$C,D$5,'Full Crash Data'!$Z:$Z,">0"),IF($B$2="State Highway Agency",SUMIFS('Full Crash Data'!$U:$U,'Full Crash Data'!$C:$C,D$5,'Full Crash Data'!$AN:$AN,"State Highway Agency",'Full Crash Data'!$Z:$Z,">0"),IF($B$2="County Highway Agency",SUMIFS('Full Crash Data'!$U:$U,'Full Crash Data'!$C:$C,D$5,'Full Crash Data'!$AN:$AN,"County Highway Agency",'Full Crash Data'!$Z:$Z,">0"),IF($B$2="Township Highway Agency",SUMIFS('Full Crash Data'!$U:$U,'Full Crash Data'!$C:$C,D$5,'Full Crash Data'!$AN:$AN,"Township Highway Agency",'Full Crash Data'!$Z:$Z,">0"),IF($B$2="City or Village Highway Agency",SUMIFS('Full Crash Data'!$U:$U,'Full Crash Data'!$C:$C,D$5,'Full Crash Data'!$AN:$AN,"City or Village Highway Agency",'Full Crash Data'!$Z:$Z,">0")))))) -> 0 | E13: 0 | F13: =IF($B$2="All",SUMIFS('Full Crash Data'!$U:$U,'Full Crash Data'!$C:$C,F$5,'Full Crash Data'!$Z:$Z,">0"),IF($B$2="State Highway Agency",SUMIFS('Full Crash Data'!$U:$U,'Full Crash Data'!$C:$C,F$5,'Full Crash Data'!$AN:$AN,"State Highway Agency",'Full Crash Data'!$Z:$Z,">0"),IF($B$2="County Highway Agency",SUMIFS('Full Crash Data'!$U:$U,'Full Crash Data'!$C:$C,F$5,'Full Crash Data'!$AN:$AN,"County Highway Agency",'Full Crash Data'!$Z:$Z,">0"),IF($B$2="Township Highway Agency",SUMIFS('Full Crash Data'!$U:$U,'Full Crash Data'!$C:$C,F$5,'Full Crash Data'!$AN:$AN,"Township Highway Agency",'Full Crash Data'!$Z:$Z,">0"),IF($B$2="City or Village Highway Agency",SUMIFS('Full Crash Data'!$U:$U,'Full Crash Data'!$C:$C,F$5,'Full Crash Data'!$AN:$AN,"City or Village Highway Agency",'Full Crash Data'!$Z:$Z,">0")))))) -> 0 | G13: =IFERROR(ROUND(F13/F$8,2),0) -> 0 | H13: =IF($B$2="All",SUMIFS('Full Crash Data'!$U:$U,'Full Crash Data'!$C:$C,H$5,'Full Crash Data'!$Z:$Z,">0"),IF($B$2="State Highway Agency",SUMIFS('Full Crash Data'!$U:$U,'Full Crash Data'!$C:$C,H$5,'Full Crash Data'!$AN:$AN,"State Highway Agency",'Full Crash Data'!$Z:$Z,">0"),IF($B$2="County Highway Agency",SUMIFS('Full Crash Data'!$U:$U,'Full Crash Data'!$C:$C,H$5,'Full Crash Data'!$AN:$AN,"County Highway Agency",'Full Crash Data'!$Z:$Z,">0"),IF($B$2="Township Highway Agency",SUMIFS('Full Crash Data'!$U:$U,'Full Crash Data'!$C:$C,H$5,'Full Crash Data'!$AN:$AN,"Township Highway Agency",'Full Crash Data'!$Z:$Z,">0"),IF($B$2="City or Village Highway Agency",SUMIFS('Full Crash Data'!$U:$U,'Full Crash Data'!$C:$C,H$5,'Full Crash Data'!$AN:$AN,"City or Village Highway Agency",'Full Crash Data'!$Z:$Z,">0")))))) -> 0 | I13: =IFERROR(ROUND(H13/H$8,2),0) -> 0 | J13: =IF($B$2="All",SUMIFS('Full Crash Data'!$U:$U,'Full Crash Data'!$C:$C,J$5,'Full Crash Data'!$Z:$Z,">0"),IF($B$2="State Highway Agency",SUMIFS('Full Crash Data'!$U:$U,'Full Crash Data'!$C:$C,J$5,'Full Crash Data'!$AN:$AN,"State Highway Agency",'Full Crash Data'!$Z:$Z,">0"),IF($B$2="County Highway Agency",SUMIFS('Full Crash Data'!$U:$U,'Full Crash Data'!$C:$C,J$5,'Full Crash Data'!$AN:$AN,"County Highway Agency",'Full Crash Data'!$Z:$Z,">0"),IF($B$2="Township Highway Agency",SUMIFS('Full Crash Data'!$U:$U,'Full Crash Data'!$C:$C,J$5,'Full Crash Data'!$AN:$AN,"Township Highway Agency",'Full Crash Data'!$Z:$Z,">0"),IF($B$2="City or Village Highway Agency",SUMIFS('Full Crash Data'!$U:$U,'Full Crash Data'!$C:$C,J$5,'Full Crash Data'!$AN:$AN,"City or Village Highway Agency",'Full Crash Data'!$Z:$Z,">0")))))) -> 0 | K13: =IFERROR(ROUND(J13/J$8,2),0) -> 0 | L13: =IF($B$2="All",SUMIFS('Full Crash Data'!$U:$U,'Full Crash Data'!$C:$C,L$5,'Full Crash Data'!$Z:$Z,">0"),IF($B$2="State Highway Agency",SUMIFS('Full Crash Data'!$U:$U,'Full Crash Data'!$C:$C,L$5,'Full Crash Data'!$AN:$AN,"State Highway Agency",'Full Crash Data'!$Z:$Z,">0"),IF($B$2="County Highway Agency",SUMIFS('Full Crash Data'!$U:$U,'Full Crash Data'!$C:$C,L$5,'Full Crash Data'!$AN:$AN,"County Highway Agency",'Full Crash Data'!$Z:$Z,">0"),IF($B$2="Township Highway Agency",SUMIFS('Full Crash Data'!$U:$U,'Full Crash Data'!$C:$C,L$5,'Full Crash Data'!$AN:$AN,"Township Highway Agency",'Full Crash Data'!$Z:$Z,">0"),IF($B$2="City or Village Highway Agency",SUMIFS('Full Crash Data'!$U:$U,'Full Crash Data'!$C:$C,L$5,'Full Crash Data'!$AN:$AN,"City or Village Highway Agency",'Full Crash Data'!$Z:$Z,">0")))))) -> 0 | M13: =IFERROR(ROUND(L13/L$8,2),0) -> 0 | N13: =IF($B$2="All",SUMIFS('Full Crash Data'!$U:$U,'Full Crash Data'!$C:$C,N$5,'Full Crash Data'!$Z:$Z,">0"),IF($B$2="State Highway Agency",SUMIFS('Full Crash Data'!$U:$U,'Full Crash Data'!$C:$C,N$5,'Full Crash Data'!$AN:$AN,"State Highway Agency",'Full Crash Data'!$Z:$Z,">0"),IF($B$2="County Highway Agency",SUMIFS('Full Crash Data'!$U:$U,'Full Crash Data'!$C:$C,N$5,'Full Crash Data'!$AN:$AN,"County Highway Agency",'Full Crash Data'!$Z:$Z,">0"),IF($B$2="Township Highway Agency",SUMIFS('Full Crash Data'!$U:$U,'Full Crash Data'!$C:$C,N$5,'Full Crash Data'!$AN:$AN,"Township Highway Agency",'Full Crash Data'!$Z:$Z,">0"),IF($B$2="City or Village Highway Agency",SUMIFS('Full Crash Data'!$U:$U,'Full Crash Data'!$C:$C,N$5,'Full Crash Data'!$AN:$AN,"City or Village Highway Agency",'Full Crash Data'!$Z:$Z,">0")))))) -> 0 | O13: =IFERROR(ROUND(N13/N$8,2),0) -> 0 | P13: =IF($B$2="All",SUMIFS('Full Crash Data'!$U:$U,'Full Crash Data'!$C:$C,P$5,'Full Crash Data'!$Z:$Z,">0"),IF($B$2="State Highway Agency",SUMIFS('Full Crash Data'!$U:$U,'Full Crash Data'!$C:$C,P$5,'Full Crash Data'!$AN:$AN,"State Highway Agency",'Full Crash Data'!$Z:$Z,">0"),IF($B$2="County Highway Agency",SUMIFS('Full Crash Data'!$U:$U,'Full Crash Data'!$C:$C,P$5,'Full Crash Data'!$AN:$AN,"County Highway Agency",'Full Crash Data'!$Z:$Z,">0"),IF($B$2="Township Highway Agency",SUMIFS('Full Crash Data'!$U:$U,'Full Crash Data'!$C:$C,P$5,'Full Crash Data'!$AN:$AN,"Township Highway Agency",'Full Crash Data'!$Z:$Z,">0"),IF($B$2="City or Village Highway Agency",SUMIFS('Full Crash Data'!$U:$U,'Full Crash Data'!$C:$C,P$5,'Full Crash Data'!$AN:$AN,"City or Village Highway Agency",'Full Crash Data'!$Z:$Z,">0")))))) -> 0 | Q13: =IFERROR(ROUND(P13/P$8,2),0) -> 0 | R13: =IF($B$2="All",SUMIFS('Full Crash Data'!$U:$U,'Full Crash Data'!$C:$C,R$5,'Full Crash Data'!$Z:$Z,">0"),IF($B$2="State Highway Agency",SUMIFS('Full Crash Data'!$U:$U,'Full Crash Data'!$C:$C,R$5,'Full Crash Data'!$AN:$AN,"State Highway Agency",'Full Crash Data'!$Z:$Z,">0"),IF($B$2="County Highway Agency",SUMIFS('Full Crash Data'!$U:$U,'Full Crash Data'!$C:$C,R$5,'Full Crash Data'!$AN:$AN,"County Highway Agency",'Full Crash Data'!$Z:$Z,">0"),IF($B$2="Township Highway Agency",SUMIFS('Full Crash Data'!$U:$U,'Full Crash Data'!$C:$C,R$5,'Full Crash Data'!$AN:$AN,"Township Highway Agency",'Full Crash Data'!$Z:$Z,">0"),IF($B$2="City or Village Highway Agency",SUMIFS('Full Crash Data'!$U:$U,'Full Crash Data'!$C:$C,R$5,'Full Crash Data'!$AN:$AN,"City or Village Highway Agency",'Full Crash Data'!$Z:$Z,">0")))))) -> 0 | S13: =IFERROR(ROUND(R13/R$8,2),0) -> 0 | T13: =IF($B$2="All",SUMIFS('Full Crash Data'!$U:$U,'Full Crash Data'!$C:$C,T$5,'Full Crash Data'!$Z:$Z,">0"),IF($B$2="State Highway Agency",SUMIFS('Full Crash Data'!$U:$U,'Full Crash Data'!$C:$C,T$5,'Full Crash Data'!$AN:$AN,"State Highway Agency",'Full Crash Data'!$Z:$Z,">0"),IF($B$2="County Highway Agency",SUMIFS('Full Crash Data'!$U:$U,'Full Crash Data'!$C:$C,T$5,'Full Crash Data'!$AN:$AN,"County Highway Agency",'Full Crash Data'!$Z:$Z,">0"),IF($B$2="Township Highway Agency",SUMIFS('Full Crash Data'!$U:$U,'Full Crash Data'!$C:$C,T$5,'Full Crash Data'!$AN:$AN,"Township Highway Agency",'Full Crash Data'!$Z:$Z,">0"),IF($B$2="City or Village Highway Agency",SUMIFS('Full Crash Data'!$U:$U,'Full Crash Data'!$C:$C,T$5,'Full Crash Data'!$AN:$AN,"City or Village Highway Agency",'Full Crash Data'!$Z:$Z,">0")))))) -> 0 | U13: =IFERROR(ROUND(T13/T$8,2),0) -> 0 | V13: =IF($B$2="All",SUMIFS('Full Crash Data'!$U:$U,'Full Crash Data'!$C:$C,V$5,'Full Crash Data'!$Z:$Z,">0"),IF($B$2="State Highway Agency",SUMIFS('Full Crash Data'!$U:$U,'Full Crash Data'!$C:$C,V$5,'Full Crash Data'!$AN:$AN,"State Highway Agency",'Full Crash Data'!$Z:$Z,">0"),IF($B$2="County Highway Agency",SUMIFS('Full Crash Data'!$U:$U,'Full Crash Data'!$C:$C,V$5,'Full Crash Data'!$AN:$AN,"County Highway Agency",'Full Crash Data'!$Z:$Z,">0"),IF($B$2="Township Highway Agency",SUMIFS('Full Crash Data'!$U:$U,'Full Crash Data'!$C:$C,V$5,'Full Crash Data'!$AN:$AN,"Township Highway Agency",'Full Crash Data'!$Z:$Z,">0"),IF($B$2="City or Village Highway Agency",SUMIFS('Full Crash Data'!$U:$U,'Full Crash Data'!$C:$C,V$5,'Full Crash Data'!$AN:$AN,"City or Village Highway Agency",'Full Crash Data'!$Z:$Z,">0")))))) -> 0 | W13: =IFERROR(ROUND(V13/V$8,2),0) -> 0 | AE13: 12
A14: Speed Related Involvement | B14: =IF($B$2="All",SUMIFS('Full Crash Data'!$U:$U,'Full Crash Data'!$C:$C,B$5,'Full Crash Data'!$BD:$BD,"Yes"),IF($B$2="State Highway Agency",SUMIFS('Full Crash Data'!$U:$U,'Full Crash Data'!$C:$C,B$5,'Full Crash Data'!$AN:$AN,"State Highway Agency",'Full Crash Data'!$BD:$BD,"Yes"),IF($B$2="County Highway Agency",SUMIFS('Full Crash Data'!$U:$U,'Full Crash Data'!$C:$C,B$5,'Full Crash Data'!$AN:$AN,"County Highway Agency",'Full Crash Data'!$BD:$BD,"Yes"),IF($B$2="Township Highway Agency",SUMIFS('Full Crash Data'!$U:$U,'Full Crash Data'!$C:$C,B$5,'Full Crash Data'!$AN:$AN,"Township Highway Agency",'Full Crash Data'!$BD:$BD,"Yes"),IF($B$2="City or Village Highway Agency",SUMIFS('Full Crash Data'!$U:$U,'Full Crash Data'!$C:$C,B$5,'Full Crash Data'!$AN:$AN,"City or Village Highway Agency",'Full Crash Data'!$BD:$BD,"Yes")))))) -> 0 | C14: 0 | D14: =IF($B$2="All",SUMIFS('Full Crash Data'!$U:$U,'Full Crash Data'!$C:$C,D$5,'Full Crash Data'!$BD:$BD,"Yes"),IF($B$2="State Highway Agency",SUMIFS('Full Crash Data'!$U:$U,'Full Crash Data'!$C:$C,D$5,'Full Crash Data'!$AN:$AN,"State Highway Agency",'Full Crash Data'!$BD:$BD,"Yes"),IF($B$2="County Highway Agency",SUMIFS('Full Crash Data'!$U:$U,'Full Crash Data'!$C:$C,D$5,'Full Crash Data'!$AN:$AN,"County Highway Agency",'Full Crash Data'!$BD:$BD,"Yes"),IF($B$2="Township Highway Agency",SUMIFS('Full Crash Data'!$U:$U,'Full Crash Data'!$C:$C,D$5,'Full Crash Data'!$AN:$AN,"Township Highway Agency",'Full Crash Data'!$BD:$BD,"Yes"),IF($B$2="City or Village Highway Agency",SUMIFS('Full Crash Data'!$U:$U,'Full Crash Data'!$C:$C,D$5,'Full Crash Data'!$AN:$AN,"City or Village Highway Agency",'Full Crash Data'!$BD:$BD,"Yes")))))) -> 0 | E14: 0 | F14: =IF($B$2="All",SUMIFS('Full Crash Data'!$U:$U,'Full Crash Data'!$C:$C,F$5,'Full Crash Data'!$BD:$BD,"Yes"),IF($B$2="State Highway Agency",SUMIFS('Full Crash Data'!$U:$U,'Full Crash Data'!$C:$C,F$5,'Full Crash Data'!$AN:$AN,"State Highway Agency",'Full Crash Data'!$BD:$BD,"Yes"),IF($B$2="County Highway Agency",SUMIFS('Full Crash Data'!$U:$U,'Full Crash Data'!$C:$C,F$5,'Full Crash Data'!$AN:$AN,"County Highway Agency",'Full Crash Data'!$BD:$BD,"Yes"),IF($B$2="Township Highway Agency",SUMIFS('Full Crash Data'!$U:$U,'Full Crash Data'!$C:$C,F$5,'Full Crash Data'!$AN:$AN,"Township Highway Agency",'Full Crash Data'!$BD:$BD,"Yes"),IF($B$2="City or Village Highway Agency",SUMIFS('Full Crash Data'!$U:$U,'Full Crash Data'!$C:$C,F$5,'Full Crash Data'!$AN:$AN,"City or Village Highway Agency",'Full Crash Data'!$BD:$BD,"Yes")))))) -> 0 | G14: =IFERROR(ROUND(F14/F$8,2),0) -> 0 | H14: =IF($B$2="All",SUMIFS('Full Crash Data'!$U:$U,'Full Crash Data'!$C:$C,H$5,'Full Crash Data'!$BD:$BD,"Yes"),IF($B$2="State Highway Agency",SUMIFS('Full Crash Data'!$U:$U,'Full Crash Data'!$C:$C,H$5,'Full Crash Data'!$AN:$AN,"State Highway Agency",'Full Crash Data'!$BD:$BD,"Yes"),IF($B$2="County Highway Agency",SUMIFS('Full Crash Data'!$U:$U,'Full Crash Data'!$C:$C,H$5,'Full Crash Data'!$AN:$AN,"County Highway Agency",'Full Crash Data'!$BD:$BD,"Yes"),IF($B$2="Township Highway Agency",SUMIFS('Full Crash Data'!$U:$U,'Full Crash Data'!$C:$C,H$5,'Full Crash Data'!$AN:$AN,"Township Highway Agency",'Full Crash Data'!$BD:$BD,"Yes"),IF($B$2="City or Village Highway Agency",SUMIFS('Full Crash Data'!$U:$U,'Full Crash Data'!$C:$C,H$5,'Full Crash Data'!$AN:$AN,"City or Village Highway Agency",'Full Crash Data'!$BD:$BD,"Yes")))))) -> 0 | I14: =IFERROR(ROUND(H14/H$8,2),0) -> 0 | J14: =IF($B$2="All",SUMIFS('Full Crash Data'!$U:$U,'Full Crash Data'!$C:$C,J$5,'Full Crash Data'!$BD:$BD,"Yes"),IF($B$2="State Highway Agency",SUMIFS('Full Crash Data'!$U:$U,'Full Crash Data'!$C:$C,J$5,'Full Crash Data'!$AN:$AN,"State Highway Agency",'Full Crash Data'!$BD:$BD,"Yes"),IF($B$2="County Highway Agency",SUMIFS('Full Crash Data'!$U:$U,'Full Crash Data'!$C:$C,J$5,'Full Crash Data'!$AN:$AN,"County Highway Agency",'Full Crash Data'!$BD:$BD,"Yes"),IF($B$2="Township Highway Agency",SUMIFS('Full Crash Data'!$U:$U,'Full Crash Data'!$C:$C,J$5,'Full Crash Data'!$AN:$AN,"Township Highway Agency",'Full Crash Data'!$BD:$BD,"Yes"),IF($B$2="City or Village Highway Agency",SUMIFS('Full Crash Data'!$U:$U,'Full Crash Data'!$C:$C,J$5,'Full Crash Data'!$AN:$AN,"City or Village Highway Agency",'Full Crash Data'!$BD:$BD,"Yes")))))) -> 0 | K14: =IFERROR(ROUND(J14/J$8,2),0) -> 0 | L14: =IF($B$2="All",SUMIFS('Full Crash Data'!$U:$U,'Full Crash Data'!$C:$C,L$5,'Full Crash Data'!$BD:$BD,"Yes"),IF($B$2="State Highway Agency",SUMIFS('Full Crash Data'!$U:$U,'Full Crash Data'!$C:$C,L$5,'Full Crash Data'!$AN:$AN,"State Highway Agency",'Full Crash Data'!$BD:$BD,"Yes"),IF($B$2="County Highway Agency",SUMIFS('Full Crash Data'!$U:$U,'Full Crash Data'!$C:$C,L$5,'Full Crash Data'!$AN:$AN,"County Highway Agency",'Full Crash Data'!$BD:$BD,"Yes"),IF($B$2="Township Highway Agency",SUMIFS('Full Crash Data'!$U:$U,'Full Crash Data'!$C:$C,L$5,'Full Crash Data'!$AN:$AN,"Township Highway Agency",'Full Crash Data'!$BD:$BD,"Yes"),IF($B$2="City or Village Highway Agency",SUMIFS('Full Crash Data'!$U:$U,'Full Crash Data'!$C:$C,L$5,'Full Crash Data'!$AN:$AN,"City or Village Highway Agency",'Full Crash Data'!$BD:$BD,"Yes")))))) -> 0 | M14: =IFERROR(ROUND(L14/L$8,2),0) -> 0 | N14: =IF($B$2="All",SUMIFS('Full Crash Data'!$U:$U,'Full Crash Data'!$C:$C,N$5,'Full Crash Data'!$BD:$BD,"Yes"),IF($B$2="State Highway Agency",SUMIFS('Full Crash Data'!$U:$U,'Full Crash Data'!$C:$C,N$5,'Full Crash Data'!$AN:$AN,"State Highway Agency",'Full Crash Data'!$BD:$BD,"Yes"),IF($B$2="County Highway Agency",SUMIFS('Full Crash Data'!$U:$U,'Full Crash Data'!$C:$C,N$5,'Full Crash Data'!$AN:$AN,"County Highway Agency",'Full Crash Data'!$BD:$BD,"Yes"),IF($B$2="Township Highway Agency",SUMIFS('Full Crash Data'!$U:$U,'Full Crash Data'!$C:$C,N$5,'Full Crash Data'!$AN:$AN,"Township Highway Agency",'Full Crash Data'!$BD:$BD,"Yes"),IF($B$2="City or Village Highway Agency",SUMIFS('Full Crash Data'!$U:$U,'Full Crash Data'!$C:$C,N$5,'Full Crash Data'!$AN:$AN,"City or Village Highway Agency",'Full Crash Data'!$BD:$BD,"Yes")))))) -> 0 | O14: =IFERROR(ROUND(N14/N$8,2),0) -> 0 | P14: =IF($B$2="All",SUMIFS('Full Crash Data'!$U:$U,'Full Crash Data'!$C:$C,P$5,'Full Crash Data'!$BD:$BD,"Yes"),IF($B$2="State Highway Agency",SUMIFS('Full Crash Data'!$U:$U,'Full Crash Data'!$C:$C,P$5,'Full Crash Data'!$AN:$AN,"State Highway Agency",'Full Crash Data'!$BD:$BD,"Yes"),IF($B$2="County Highway Agency",SUMIFS('Full Crash Data'!$U:$U,'Full Crash Data'!$C:$C,P$5,'Full Crash Data'!$AN:$AN,"County Highway Agency",'Full Crash Data'!$BD:$BD,"Yes"),IF($B$2="Township Highway Agency",SUMIFS('Full Crash Data'!$U:$U,'Full Crash Data'!$C:$C,P$5,'Full Crash Data'!$AN:$AN,"Township Highway Agency",'Full Crash Data'!$BD:$BD,"Yes"),IF($B$2="City or Village Highway Agency",SUMIFS('Full Crash Data'!$U:$U,'Full Crash Data'!$C:$C,P$5,'Full Crash Data'!$AN:$AN,"City or Village Highway Agency",'Full Crash Data'!$BD:$BD,"Yes")))))) -> 0 | Q14: =IFERROR(ROUND(P14/P$8,2),0) -> 0 | R14: =IF($B$2="All",SUMIFS('Full Crash Data'!$U:$U,'Full Crash Data'!$C:$C,R$5,'Full Crash Data'!$BD:$BD,"Yes"),IF($B$2="State Highway Agency",SUMIFS('Full Crash Data'!$U:$U,'Full Crash Data'!$C:$C,R$5,'Full Crash Data'!$AN:$AN,"State Highway Agency",'Full Crash Data'!$BD:$BD,"Yes"),IF($B$2="County Highway Agency",SUMIFS('Full Crash Data'!$U:$U,'Full Crash Data'!$C:$C,R$5,'Full Crash Data'!$AN:$AN,"County Highway Agency",'Full Crash Data'!$BD:$BD,"Yes"),IF($B$2="Township Highway Agency",SUMIFS('Full Crash Data'!$U:$U,'Full Crash Data'!$C:$C,R$5,'Full Crash Data'!$AN:$AN,"Township Highway Agency",'Full Crash Data'!$BD:$BD,"Yes"),IF($B$2="City or Village Highway Agency",SUMIFS('Full Crash Data'!$U:$U,'Full Crash Data'!$C:$C,R$5,'Full Crash Data'!$AN:$AN,"City or Village Highway Agency",'Full Crash Data'!$BD:$BD,"Yes")))))) -> 0 | S14: =IFERROR(ROUND(R14/R$8,2),0) -> 0 | T14: =IF($B$2="All",SUMIFS('Full Crash Data'!$U:$U,'Full Crash Data'!$C:$C,T$5,'Full Crash Data'!$BD:$BD,"Yes"),IF($B$2="State Highway Agency",SUMIFS('Full Crash Data'!$U:$U,'Full Crash Data'!$C:$C,T$5,'Full Crash Data'!$AN:$AN,"State Highway Agency",'Full Crash Data'!$BD:$BD,"Yes"),IF($B$2="County Highway Agency",SUMIFS('Full Crash Data'!$U:$U,'Full Crash Data'!$C:$C,T$5,'Full Crash Data'!$AN:$AN,"County Highway Agency",'Full Crash Data'!$BD:$BD,"Yes"),IF($B$2="Township Highway Agency",SUMIFS('Full Crash Data'!$U:$U,'Full Crash Data'!$C:$C,T$5,'Full Crash Data'!$AN:$AN,"Township Highway Agency",'Full Crash Data'!$BD:$BD,"Yes"),IF($B$2="City or Village Highway Agency",SUMIFS('Full Crash Data'!$U:$U,'Full Crash Data'!$C:$C,T$5,'Full Crash Data'!$AN:$AN,"City or Village Highway Agency",'Full Crash Data'!$BD:$BD,"Yes")))))) -> 0 | U14: =IFERROR(ROUND(T14/T$8,2),0) -> 0 | V14: =IF($B$2="All",SUMIFS('Full Crash Data'!$U:$U,'Full Crash Data'!$C:$C,V$5,'Full Crash Data'!$BD:$BD,"Yes"),IF($B$2="State Highway Agency",SUMIFS('Full Crash Data'!$U:$U,'Full Crash Data'!$C:$C,V$5,'Full Crash Data'!$AN:$AN,"State Highway Agency",'Full Crash Data'!$BD:$BD,"Yes"),IF($B$2="County Highway Agency",SUMIFS('Full Crash Data'!$U:$U,'Full Crash Data'!$C:$C,V$5,'Full Crash Data'!$AN:$AN,"County Highway Agency",'Full Crash Data'!$BD:$BD,"Yes"),IF($B$2="Township Highway Agency",SUMIFS('Full Crash Data'!$U:$U,'Full Crash Data'!$C:$C,V$5,'Full Crash Data'!$AN:$AN,"Township Highway Agency",'Full Crash Data'!$BD:$BD,"Yes"),IF($B$2="City or Village Highway Agency",SUMIFS('Full Crash Data'!$U:$U,'Full Crash Data'!$C:$C,V$5,'Full Crash Data'!$AN:$AN,"City or Village Highway Agency",'Full Crash Data'!$BD:$BD,"Yes")))))) -> 0 | W14: =IFERROR(ROUND(V14/V$8,2),0) -> 0 | AE14: 13
A15: Young Driver Involvement (15-25) | B15: =IF($B$2="All",SUMIFS('Full Crash Data'!$U:$U,'Full Crash Data'!$C:$C,B$5,'Full Crash Data'!$BF:$BF,"Yes"),IF($B$2="State Highway Agency",SUMIFS('Full Crash Data'!$U:$U,'Full Crash Data'!$C:$C,B$5,'Full Crash Data'!$AN:$AN,"State Highway Agency",'Full Crash Data'!$BF:$BF,"Yes"),IF($B$2="County Highway Agency",SUMIFS('Full Crash Data'!$U:$U,'Full Crash Data'!$C:$C,B$5,'Full Crash Data'!$AN:$AN,"County Highway Agency",'Full Crash Data'!$BF:$BF,"Yes"),IF($B$2="Township Highway Agency",SUMIFS('Full Crash Data'!$U:$U,'Full Crash Data'!$C:$C,B$5,'Full Crash Data'!$AN:$AN,"Township Highway Agency",'Full Crash Data'!$BF:$BF,"Yes"),IF($B$2="City or Village Highway Agency",SUMIFS('Full Crash Data'!$U:$U,'Full Crash Data'!$C:$C,B$5,'Full Crash Data'!$AN:$AN,"City or Village Highway Agency",'Full Crash Data'!$BF:$BF,"Yes")))))) -> 0 | C15: 0 | D15: =IF($B$2="All",SUMIFS('Full Crash Data'!$U:$U,'Full Crash Data'!$C:$C,D$5,'Full Crash Data'!$BF:$BF,"Yes"),IF($B$2="State Highway Agency",SUMIFS('Full Crash Data'!$U:$U,'Full Crash Data'!$C:$C,D$5,'Full Crash Data'!$AN:$AN,"State Highway Agency",'Full Crash Data'!$BF:$BF,"Yes"),IF($B$2="County Highway Agency",SUMIFS('Full Crash Data'!$U:$U,'Full Crash Data'!$C:$C,D$5,'Full Crash Data'!$AN:$AN,"County Highway Agency",'Full Crash Data'!$BF:$BF,"Yes"),IF($B$2="Township Highway Agency",SUMIFS('Full Crash Data'!$U:$U,'Full Crash Data'!$C:$C,D$5,'Full Crash Data'!$AN:$AN,"Township Highway Agency",'Full Crash Data'!$BF:$BF,"Yes"),IF($B$2="City or Village Highway Agency",SUMIFS('Full Crash Data'!$U:$U,'Full Crash Data'!$C:$C,D$5,'Full Crash Data'!$AN:$AN,"City or Village Highway Agency",'Full Crash Data'!$BF:$BF,"Yes")))))) -> 0 | E15: 0 | F15: =IF($B$2="All",SUMIFS('Full Crash Data'!$U:$U,'Full Crash Data'!$C:$C,F$5,'Full Crash Data'!$BF:$BF,"Yes"),IF($B$2="State Highway Agency",SUMIFS('Full Crash Data'!$U:$U,'Full Crash Data'!$C:$C,F$5,'Full Crash Data'!$AN:$AN,"State Highway Agency",'Full Crash Data'!$BF:$BF,"Yes"),IF($B$2="County Highway Agency",SUMIFS('Full Crash Data'!$U:$U,'Full Crash Data'!$C:$C,F$5,'Full Crash Data'!$AN:$AN,"County Highway Agency",'Full Crash Data'!$BF:$BF,"Yes"),IF($B$2="Township Highway Agency",SUMIFS('Full Crash Data'!$U:$U,'Full Crash Data'!$C:$C,F$5,'Full Crash Data'!$AN:$AN,"Township Highway Agency",'Full Crash Data'!$BF:$BF,"Yes"),IF($B$2="City or Village Highway Agency",SUMIFS('Full Crash Data'!$U:$U,'Full Crash Data'!$C:$C,F$5,'Full Crash Data'!$AN:$AN,"City or Village Highway Agency",'Full Crash Data'!$BF:$BF,"Yes")))))) -> 0 | G15: =IFERROR(ROUND(F15/F$8,2),0) -> 0 | H15: =IF($B$2="All",SUMIFS('Full Crash Data'!$U:$U,'Full Crash Data'!$C:$C,H$5,'Full Crash Data'!$BF:$BF,"Yes"),IF($B$2="State Highway Agency",SUMIFS('Full Crash Data'!$U:$U,'Full Crash Data'!$C:$C,H$5,'Full Crash Data'!$AN:$AN,"State Highway Agency",'Full Crash Data'!$BF:$BF,"Yes"),IF($B$2="County Highway Agency",SUMIFS('Full Crash Data'!$U:$U,'Full Crash Data'!$C:$C,H$5,'Full Crash Data'!$AN:$AN,"County Highway Agency",'Full Crash Data'!$BF:$BF,"Yes"),IF($B$2="Township Highway Agency",SUMIFS('Full Crash Data'!$U:$U,'Full Crash Data'!$C:$C,H$5,'Full Crash Data'!$AN:$AN,"Township Highway Agency",'Full Crash Data'!$BF:$BF,"Yes"),IF($B$2="City or Village Highway Agency",SUMIFS('Full Crash Data'!$U:$U,'Full Crash Data'!$C:$C,H$5,'Full Crash Data'!$AN:$AN,"City or Village Highway Agency",'Full Crash Data'!$BF:$BF,"Yes")))))) -> 0 | I15: =IFERROR(ROUND(H15/H$8,2),0) -> 0 | J15: =IF($B$2="All",SUMIFS('Full Crash Data'!$U:$U,'Full Crash Data'!$C:$C,J$5,'Full Crash Data'!$BF:$BF,"Yes"),IF($B$2="State Highway Agency",SUMIFS('Full Crash Data'!$U:$U,'Full Crash Data'!$C:$C,J$5,'Full Crash Data'!$AN:$AN,"State Highway Agency",'Full Crash Data'!$BF:$BF,"Yes"),IF($B$2="County Highway Agency",SUMIFS('Full Crash Data'!$U:$U,'Full Crash Data'!$C:$C,J$5,'Full Crash Data'!$AN:$AN,"County Highway Agency",'Full Crash Data'!$BF:$BF,"Yes"),IF($B$2="Township Highway Agency",SUMIFS('Full Crash Data'!$U:$U,'Full Crash Data'!$C:$C,J$5,'Full Crash Data'!$AN:$AN,"Township Highway Agency",'Full Crash Data'!$BF:$BF,"Yes"),IF($B$2="City or Village Highway Agency",SUMIFS('Full Crash Data'!$U:$U,'Full Crash Data'!$C:$C,J$5,'Full Crash Data'!$AN:$AN,"City or Village Highway Agency",'Full Crash Data'!$BF:$BF,"Yes")))))) -> 0 | K15: =IFERROR(ROUND(J15/J$8,2),0) -> 0 | L15: =IF($B$2="All",SUMIFS('Full Crash Data'!$U:$U,'Full Crash Data'!$C:$C,L$5,'Full Crash Data'!$BF:$BF,"Yes"),IF($B$2="State Highway Agency",SUMIFS('Full Crash Data'!$U:$U,'Full Crash Data'!$C:$C,L$5,'Full Crash Data'!$AN:$AN,"State Highway Agency",'Full Crash Data'!$BF:$BF,"Yes"),IF($B$2="County Highway Agency",SUMIFS('Full Crash Data'!$U:$U,'Full Crash Data'!$C:$C,L$5,'Full Crash Data'!$AN:$AN,"County Highway Agency",'Full Crash Data'!$BF:$BF,"Yes"),IF($B$2="Township Highway Agency",SUMIFS('Full Crash Data'!$U:$U,'Full Crash Data'!$C:$C,L$5,'Full Crash Data'!$AN:$AN,"Township Highway Agency",'Full Crash Data'!$BF:$BF,"Yes"),IF($B$2="City or Village Highway Agency",SUMIFS('Full Crash Data'!$U:$U,'Full Crash Data'!$C:$C,L$5,'Full Crash Data'!$AN:$AN,"City or Village Highway Agency",'Full Crash Data'!$BF:$BF,"Yes")))))) -> 0 | M15: =IFERROR(ROUND(L15/L$8,2),0) -> 0 | N15: =IF($B$2="All",SUMIFS('Full Crash Data'!$U:$U,'Full Crash Data'!$C:$C,N$5,'Full Crash Data'!$BF:$BF,"Yes"),IF($B$2="State Highway Agency",SUMIFS('Full Crash Data'!$U:$U,'Full Crash Data'!$C:$C,N$5,'Full Crash Data'!$AN:$AN,"State Highway Agency",'Full Crash Data'!$BF:$BF,"Yes"),IF($B$2="County Highway Agency",SUMIFS('Full Crash Data'!$U:$U,'Full Crash Data'!$C:$C,N$5,'Full Crash Data'!$AN:$AN,"County Highway Agency",'Full Crash Data'!$BF:$BF,"Yes"),IF($B$2="Township Highway Agency",SUMIFS('Full Crash Data'!$U:$U,'Full Crash Data'!$C:$C,N$5,'Full Crash Data'!$AN:$AN,"Township Highway Agency",'Full Crash Data'!$BF:$BF,"Yes"),IF($B$2="City or Village Highway Agency",SUMIFS('Full Crash Data'!$U:$U,'Full Crash Data'!$C:$C,N$5,'Full Crash Data'!$AN:$AN,"City or Village Highway Agency",'Full Crash Data'!$BF:$BF,"Yes")))))) -> 0 | O15: =IFERROR(ROUND(N15/N$8,2),0) -> 0 | P15: =IF($B$2="All",SUMIFS('Full Crash Data'!$U:$U,'Full Crash Data'!$C:$C,P$5,'Full Crash Data'!$BF:$BF,"Yes"),IF($B$2="State Highway Agency",SUMIFS('Full Crash Data'!$U:$U,'Full Crash Data'!$C:$C,P$5,'Full Crash Data'!$AN:$AN,"State Highway Agency",'Full Crash Data'!$BF:$BF,"Yes"),IF($B$2="County Highway Agency",SUMIFS('Full Crash Data'!$U:$U,'Full Crash Data'!$C:$C,P$5,'Full Crash Data'!$AN:$AN,"County Highway Agency",'Full Crash Data'!$BF:$BF,"Yes"),IF($B$2="Township Highway Agency",SUMIFS('Full Crash Data'!$U:$U,'Full Crash Data'!$C:$C,P$5,'Full Crash Data'!$AN:$AN,"Township Highway Agency",'Full Crash Data'!$BF:$BF,"Yes"),IF($B$2="City or Village Highway Agency",SUMIFS('Full Crash Data'!$U:$U,'Full Crash Data'!$C:$C,P$5,'Full Crash Data'!$AN:$AN,"City or Village Highway Agency",'Full Crash Data'!$BF:$BF,"Yes")))))) -> 0 | Q15: =IFERROR(ROUND(P15/P$8,2),0) -> 0 | R15: =IF($B$2="All",SUMIFS('Full Crash Data'!$U:$U,'Full Crash Data'!$C:$C,R$5,'Full Crash Data'!$BF:$BF,"Yes"),IF($B$2="State Highway Agency",SUMIFS('Full Crash Data'!$U:$U,'Full Crash Data'!$C:$C,R$5,'Full Crash Data'!$AN:$AN,"State Highway Agency",'Full Crash Data'!$BF:$BF,"Yes"),IF($B$2="County Highway Agency",SUMIFS('Full Crash Data'!$U:$U,'Full Crash Data'!$C:$C,R$5,'Full Crash Data'!$AN:$AN,"County Highway Agency",'Full Crash Data'!$BF:$BF,"Yes"),IF($B$2="Township Highway Agency",SUMIFS('Full Crash Data'!$U:$U,'Full Crash Data'!$C:$C,R$5,'Full Crash Data'!$AN:$AN,"Township Highway Agency",'Full Crash Data'!$BF:$BF,"Yes"),IF($B$2="City or Village Highway Agency",SUMIFS('Full Crash Data'!$U:$U,'Full Crash Data'!$C:$C,R$5,'Full Crash Data'!$AN:$AN,"City or Village Highway Agency",'Full Crash Data'!$BF:$BF,"Yes")))))) -> 0 | S15: =IFERROR(ROUND(R15/R$8,2),0) -> 0 | T15: =IF($B$2="All",SUMIFS('Full Crash Data'!$U:$U,'Full Crash Data'!$C:$C,T$5,'Full Crash Data'!$BF:$BF,"Yes"),IF($B$2="State Highway Agency",SUMIFS('Full Crash Data'!$U:$U,'Full Crash Data'!$C:$C,T$5,'Full Crash Data'!$AN:$AN,"State Highway Agency",'Full Crash Data'!$BF:$BF,"Yes"),IF($B$2="County Highway Agency",SUMIFS('Full Crash Data'!$U:$U,'Full Crash Data'!$C:$C,T$5,'Full Crash Data'!$AN:$AN,"County Highway Agency",'Full Crash Data'!$BF:$BF,"Yes"),IF($B$2="Township Highway Agency",SUMIFS('Full Crash Data'!$U:$U,'Full Crash Data'!$C:$C,T$5,'Full Crash Data'!$AN:$AN,"Township Highway Agency",'Full Crash Data'!$BF:$BF,"Yes"),IF($B$2="City or Village Highway Agency",SUMIFS('Full Crash Data'!$U:$U,'Full Crash Data'!$C:$C,T$5,'Full Crash Data'!$AN:$AN,"City or Village Highway Agency",'Full Crash Data'!$BF:$BF,"Yes")))))) -> 0 | U15: =IFERROR(ROUND(T15/T$8,2),0) -> 0 | V15: =IF($B$2="All",SUMIFS('Full Crash Data'!$U:$U,'Full Crash Data'!$C:$C,V$5,'Full Crash Data'!$BF:$BF,"Yes"),IF($B$2="State Highway Agency",SUMIFS('Full Crash Data'!$U:$U,'Full Crash Data'!$C:$C,V$5,'Full Crash Data'!$AN:$AN,"State Highway Agency",'Full Crash Data'!$BF:$BF,"Yes"),IF($B$2="County Highway Agency",SUMIFS('Full Crash Data'!$U:$U,'Full Crash Data'!$C:$C,V$5,'Full Crash Data'!$AN:$AN,"County Highway Agency",'Full Crash Data'!$BF:$BF,"Yes"),IF($B$2="Township Highway Agency",SUMIFS('Full Crash Data'!$U:$U,'Full Crash Data'!$C:$C,V$5,'Full Crash Data'!$AN:$AN,"Township Highway Agency",'Full Crash Data'!$BF:$BF,"Yes"),IF($B$2="City or Village Highway Agency",SUMIFS('Full Crash Data'!$U:$U,'Full Crash Data'!$C:$C,V$5,'Full Crash Data'!$AN:$AN,"City or Village Highway Agency",'Full Crash Data'!$BF:$BF,"Yes")))))) -> 0 | W15: =IFERROR(ROUND(V15/V$8,2),0) -> 0 | AE15: 14
A16: Older Driver Involvement (65+) | B16: =IF($B$2="All",SUMIFS('Full Crash Data'!$U:$U,'Full Crash Data'!$C:$C,B$5,'Full Crash Data'!$BE:$BE,"Yes"),IF($B$2="State Highway Agency",SUMIFS('Full Crash Data'!$U:$U,'Full Crash Data'!$C:$C,B$5,'Full Crash Data'!$AN:$AN,"State Highway Agency",'Full Crash Data'!$BE:$BE,"Yes"),IF($B$2="County Highway Agency",SUMIFS('Full Crash Data'!$U:$U,'Full Crash Data'!$C:$C,B$5,'Full Crash Data'!$AN:$AN,"County Highway Agency",'Full Crash Data'!$BE:$BE,"Yes"),IF($B$2="Township Highway Agency",SUMIFS('Full Crash Data'!$U:$U,'Full Crash Data'!$C:$C,B$5,'Full Crash Data'!$AN:$AN,"Township Highway Agency",'Full Crash Data'!$BE:$BE,"Yes"),IF($B$2="City or Village Highway Agency",SUMIFS('Full Crash Data'!$U:$U,'Full Crash Data'!$C:$C,B$5,'Full Crash Data'!$AN:$AN,"City or Village Highway Agency",'Full Crash Data'!$BE:$BE,"Yes")))))) -> 0 | C16: 0 | D16: =IF($B$2="All",SUMIFS('Full Crash Data'!$U:$U,'Full Crash Data'!$C:$C,D$5,'Full Crash Data'!$BE:$BE,"Yes"),IF($B$2="State Highway Agency",SUMIFS('Full Crash Data'!$U:$U,'Full Crash Data'!$C:$C,D$5,'Full Crash Data'!$AN:$AN,"State Highway Agency",'Full Crash Data'!$BE:$BE,"Yes"),IF($B$2="County Highway Agency",SUMIFS('Full Crash Data'!$U:$U,'Full Crash Data'!$C:$C,D$5,'Full Crash Data'!$AN:$AN,"County Highway Agency",'Full Crash Data'!$BE:$BE,"Yes"),IF($B$2="Township Highway Agency",SUMIFS('Full Crash Data'!$U:$U,'Full Crash Data'!$C:$C,D$5,'Full Crash Data'!$AN:$AN,"Township Highway Agency",'Full Crash Data'!$BE:$BE,"Yes"),IF($B$2="City or Village Highway Agency",SUMIFS('Full Crash Data'!$U:$U,'Full Crash Data'!$C:$C,D$5,'Full Crash Data'!$AN:$AN,"City or Village Highway Agency",'Full Crash Data'!$BE:$BE,"Yes")))))) -> 0 | E16: 0 | F16: =IF($B$2="All",SUMIFS('Full Crash Data'!$U:$U,'Full Crash Data'!$C:$C,F$5,'Full Crash Data'!$BE:$BE,"Yes"),IF($B$2="State Highway Agency",SUMIFS('Full Crash Data'!$U:$U,'Full Crash Data'!$C:$C,F$5,'Full Crash Data'!$AN:$AN,"State Highway Agency",'Full Crash Data'!$BE:$BE,"Yes"),IF($B$2="County Highway Agency",SUMIFS('Full Crash Data'!$U:$U,'Full Crash Data'!$C:$C,F$5,'Full Crash Data'!$AN:$AN,"County Highway Agency",'Full Crash Data'!$BE:$BE,"Yes"),IF($B$2="Township Highway Agency",SUMIFS('Full Crash Data'!$U:$U,'Full Crash Data'!$C:$C,F$5,'Full Crash Data'!$AN:$AN,"Township Highway Agency",'Full Crash Data'!$BE:$BE,"Yes"),IF($B$2="City or Village Highway Agency",SUMIFS('Full Crash Data'!$U:$U,'Full Crash Data'!$C:$C,F$5,'Full Crash Data'!$AN:$AN,"City or Village Highway Agency",'Full Crash Data'!$BE:$BE,"Yes")))))) -> 0 | G16: =IFERROR(ROUND(F16/F$8,2),0) -> 0 | H16: =IF($B$2="All",SUMIFS('Full Crash Data'!$U:$U,'Full Crash Data'!$C:$C,H$5,'Full Crash Data'!$BE:$BE,"Yes"),IF($B$2="State Highway Agency",SUMIFS('Full Crash Data'!$U:$U,'Full Crash Data'!$C:$C,H$5,'Full Crash Data'!$AN:$AN,"State Highway Agency",'Full Crash Data'!$BE:$BE,"Yes"),IF($B$2="County Highway Agency",SUMIFS('Full Crash Data'!$U:$U,'Full Crash Data'!$C:$C,H$5,'Full Crash Data'!$AN:$AN,"County Highway Agency",'Full Crash Data'!$BE:$BE,"Yes"),IF($B$2="Township Highway Agency",SUMIFS('Full Crash Data'!$U:$U,'Full Crash Data'!$C:$C,H$5,'Full Crash Data'!$AN:$AN,"Township Highway Agency",'Full Crash Data'!$BE:$BE,"Yes"),IF($B$2="City or Village Highway Agency",SUMIFS('Full Crash Data'!$U:$U,'Full Crash Data'!$C:$C,H$5,'Full Crash Data'!$AN:$AN,"City or Village Highway Agency",'Full Crash Data'!$BE:$BE,"Yes")))))) -> 0 | I16: =IFERROR(ROUND(H16/H$8,2),0) -> 0 | J16: =IF($B$2="All",SUMIFS('Full Crash Data'!$U:$U,'Full Crash Data'!$C:$C,J$5,'Full Crash Data'!$BE:$BE,"Yes"),IF($B$2="State Highway Agency",SUMIFS('Full Crash Data'!$U:$U,'Full Crash Data'!$C:$C,J$5,'Full Crash Data'!$AN:$AN,"State Highway Agency",'Full Crash Data'!$BE:$BE,"Yes"),IF($B$2="County Highway Agency",SUMIFS('Full Crash Data'!$U:$U,'Full Crash Data'!$C:$C,J$5,'Full Crash Data'!$AN:$AN,"County Highway Agency",'Full Crash Data'!$BE:$BE,"Yes"),IF($B$2="Township Highway Agency",SUMIFS('Full Crash Data'!$U:$U,'Full Crash Data'!$C:$C,J$5,'Full Crash Data'!$AN:$AN,"Township Highway Agency",'Full Crash Data'!$BE:$BE,"Yes"),IF($B$2="City or Village Highway Agency",SUMIFS('Full Crash Data'!$U:$U,'Full Crash Data'!$C:$C,J$5,'Full Crash Data'!$AN:$AN,"City or Village Highway Agency",'Full Crash Data'!$BE:$BE,"Yes")))))) -> 0 | K16: =IFERROR(ROUND(J16/J$8,2),0) -> 0 | L16: =IF($B$2="All",SUMIFS('Full Crash Data'!$U:$U,'Full Crash Data'!$C:$C,L$5,'Full Crash Data'!$BE:$BE,"Yes"),IF($B$2="State Highway Agency",SUMIFS('Full Crash Data'!$U:$U,'Full Crash Data'!$C:$C,L$5,'Full Crash Data'!$AN:$AN,"State Highway Agency",'Full Crash Data'!$BE:$BE,"Yes"),IF($B$2="County Highway Agency",SUMIFS('Full Crash Data'!$U:$U,'Full Crash Data'!$C:$C,L$5,'Full Crash Data'!$AN:$AN,"County Highway Agency",'Full Crash Data'!$BE:$BE,"Yes"),IF($B$2="Township Highway Agency",SUMIFS('Full Crash Data'!$U:$U,'Full Crash Data'!$C:$C,L$5,'Full Crash Data'!$AN:$AN,"Township Highway Agency",'Full Crash Data'!$BE:$BE,"Yes"),IF($B$2="City or Village Highway Agency",SUMIFS('Full Crash Data'!$U:$U,'Full Crash Data'!$C:$C,L$5,'Full Crash Data'!$AN:$AN,"City or Village Highway Agency",'Full Crash Data'!$BE:$BE,"Yes")))))) -> 0 | M16: =IFERROR(ROUND(L16/L$8,2),0) -> 0 | N16: =IF($B$2="All",SUMIFS('Full Crash Data'!$U:$U,'Full Crash Data'!$C:$C,N$5,'Full Crash Data'!$BE:$BE,"Yes"),IF($B$2="State Highway Agency",SUMIFS('Full Crash Data'!$U:$U,'Full Crash Data'!$C:$C,N$5,'Full Crash Data'!$AN:$AN,"State Highway Agency",'Full Crash Data'!$BE:$BE,"Yes"),IF($B$2="County Highway Agency",SUMIFS('Full Crash Data'!$U:$U,'Full Crash Data'!$C:$C,N$5,'Full Crash Data'!$AN:$AN,"County Highway Agency",'Full Crash Data'!$BE:$BE,"Yes"),IF($B$2="Township Highway Agency",SUMIFS('Full Crash Data'!$U:$U,'Full Crash Data'!$C:$C,N$5,'Full Crash Data'!$AN:$AN,"Township Highway Agency",'Full Crash Data'!$BE:$BE,"Yes"),IF($B$2="City or Village Highway Agency",SUMIFS('Full Crash Data'!$U:$U,'Full Crash Data'!$C:$C,N$5,'Full Crash Data'!$AN:$AN,"City or Village Highway Agency",'Full Crash Data'!$BE:$BE,"Yes")))))) -> 0 | O16: =IFERROR(ROUND(N16/N$8,2),0) -> 0 | P16: =IF($B$2="All",SUMIFS('Full Crash Data'!$U:$U,'Full Crash Data'!$C:$C,P$5,'Full Crash Data'!$BE:$BE,"Yes"),IF($B$2="State Highway Agency",SUMIFS('Full Crash Data'!$U:$U,'Full Crash Data'!$C:$C,P$5,'Full Crash Data'!$AN:$AN,"State Highway Agency",'Full Crash Data'!$BE:$BE,"Yes"),IF($B$2="County Highway Agency",SUMIFS('Full Crash Data'!$U:$U,'Full Crash Data'!$C:$C,P$5,'Full Crash Data'!$AN:$AN,"County Highway Agency",'Full Crash Data'!$BE:$BE,"Yes"),IF($B$2="Township Highway Agency",SUMIFS('Full Crash Data'!$U:$U,'Full Crash Data'!$C:$C,P$5,'Full Crash Data'!$AN:$AN,"Township Highway Agency",'Full Crash Data'!$BE:$BE,"Yes"),IF($B$2="City or Village Highway Agency",SUMIFS('Full Crash Data'!$U:$U,'Full Crash Data'!$C:$C,P$5,'Full Crash Data'!$AN:$AN,"City or Village Highway Agency",'Full Crash Data'!$BE:$BE,"Yes")))))) -> 0 | Q16: =IFERROR(ROUND(P16/P$8,2),0) -> 0 | R16: =IF($B$2="All",SUMIFS('Full Crash Data'!$U:$U,'Full Crash Data'!$C:$C,R$5,'Full Crash Data'!$BE:$BE,"Yes"),IF($B$2="State Highway Agency",SUMIFS('Full Crash Data'!$U:$U,'Full Crash Data'!$C:$C,R$5,'Full Crash Data'!$AN:$AN,"State Highway Agency",'Full Crash Data'!$BE:$BE,"Yes"),IF($B$2="County Highway Agency",SUMIFS('Full Crash Data'!$U:$U,'Full Crash Data'!$C:$C,R$5,'Full Crash Data'!$AN:$AN,"County Highway Agency",'Full Crash Data'!$BE:$BE,"Yes"),IF($B$2="Township Highway Agency",SUMIFS('Full Crash Data'!$U:$U,'Full Crash Data'!$C:$C,R$5,'Full Crash Data'!$AN:$AN,"Township Highway Agency",'Full Crash Data'!$BE:$BE,"Yes"),IF($B$2="City or Village Highway Agency",SUMIFS('Full Crash Data'!$U:$U,'Full Crash Data'!$C:$C,R$5,'Full Crash Data'!$AN:$AN,"City or Village Highway Agency",'Full Crash Data'!$BE:$BE,"Yes")))))) -> 0 | S16: =IFERROR(ROUND(R16/R$8,2),0) -> 0 | T16: =IF($B$2="All",SUMIFS('Full Crash Data'!$U:$U,'Full Crash Data'!$C:$C,T$5,'Full Crash Data'!$BE:$BE,"Yes"),IF($B$2="State Highway Agency",SUMIFS('Full Crash Data'!$U:$U,'Full Crash Data'!$C:$C,T$5,'Full Crash Data'!$AN:$AN,"State Highway Agency",'Full Crash Data'!$BE:$BE,"Yes"),IF($B$2="County Highway Agency",SUMIFS('Full Crash Data'!$U:$U,'Full Crash Data'!$C:$C,T$5,'Full Crash Data'!$AN:$AN,"County Highway Agency",'Full Crash Data'!$BE:$BE,"Yes"),IF($B$2="Township Highway Agency",SUMIFS('Full Crash Data'!$U:$U,'Full Crash Data'!$C:$C,T$5,'Full Crash Data'!$AN:$AN,"Township Highway Agency",'Full Crash Data'!$BE:$BE,"Yes"),IF($B$2="City or Village Highway Agency",SUMIFS('Full Crash Data'!$U:$U,'Full Crash Data'!$C:$C,T$5,'Full Crash Data'!$AN:$AN,"City or Village Highway Agency",'Full Crash Data'!$BE:$BE,"Yes")))))) -> 0 | U16: =IFERROR(ROUND(T16/T$8,2),0) -> 0 | V16: =IF($B$2="All",SUMIFS('Full Crash Data'!$U:$U,'Full Crash Data'!$C:$C,V$5,'Full Crash Data'!$BE:$BE,"Yes"),IF($B$2="State Highway Agency",SUMIFS('Full Crash Data'!$U:$U,'Full Crash Data'!$C:$C,V$5,'Full Crash Data'!$AN:$AN,"State Highway Agency",'Full Crash Data'!$BE:$BE,"Yes"),IF($B$2="County Highway Agency",SUMIFS('Full Crash Data'!$U:$U,'Full Crash Data'!$C:$C,V$5,'Full Crash Data'!$AN:$AN,"County Highway Agency",'Full Crash Data'!$BE:$BE,"Yes"),IF($B$2="Township Highway Agency",SUMIFS('Full Crash Data'!$U:$U,'Full Crash Data'!$C:$C,V$5,'Full Crash Data'!$AN:$AN,"Township Highway Agency",'Full Crash Data'!$BE:$BE,"Yes"),IF($B$2="City or Village Highway Agency",SUMIFS('Full Crash Data'!$U:$U,'Full Crash Data'!$C:$C,V$5,'Full Crash Data'!$AN:$AN,"City or Village Highway Agency",'Full Crash Data'!$BE:$BE,"Yes")))))) -> 0 | W16: =IFERROR(ROUND(V16/V$8,2),0) -> 0 | AE16: 15
A17: Distracted Drivers | B17: =IF($B$2="All",SUMIFS('Full Crash Data'!$U:$U,'Full Crash Data'!$C:$C,B$5,'Full Crash Data'!$BJ:$BJ,"Yes"),IF($B$2="State Highway Agency",SUMIFS('Full Crash Data'!$U:$U,'Full Crash Data'!$C:$C,B$5,'Full Crash Data'!$AN:$AN,"State Highway Agency",'Full Crash Data'!$BJ:$BJ,"Yes"),IF($B$2="County Highway Agency",SUMIFS('Full Crash Data'!$U:$U,'Full Crash Data'!$C:$C,B$5,'Full Crash Data'!$AN:$AN,"County Highway Agency",'Full Crash Data'!$BJ:$BJ,"Yes"),IF($B$2="Township Highway Agency",SUMIFS('Full Crash Data'!$U:$U,'Full Crash Data'!$C:$C,B$5,'Full Crash Data'!$AN:$AN,"Township Highway Agency",'Full Crash Data'!$BJ:$BJ,"Yes"),IF($B$2="City or Village Highway Agency",SUMIFS('Full Crash Data'!$U:$U,'Full Crash Data'!$C:$C,B$5,'Full Crash Data'!$AN:$AN,"City or Village Highway Agency",'Full Crash Data'!$BJ:$BJ,"Yes")))))) -> 0 | C17: 0 | D17: =IF($B$2="All",SUMIFS('Full Crash Data'!$U:$U,'Full Crash Data'!$C:$C,D$5,'Full Crash Data'!$BJ:$BJ,"Yes"),IF($B$2="State Highway Agency",SUMIFS('Full Crash Data'!$U:$U,'Full Crash Data'!$C:$C,D$5,'Full Crash Data'!$AN:$AN,"State Highway Agency",'Full Crash Data'!$BJ:$BJ,"Yes"),IF($B$2="County Highway Agency",SUMIFS('Full Crash Data'!$U:$U,'Full Crash Data'!$C:$C,D$5,'Full Crash Data'!$AN:$AN,"County Highway Agency",'Full Crash Data'!$BJ:$BJ,"Yes"),IF($B$2="Township Highway Agency",SUMIFS('Full Crash Data'!$U:$U,'Full Crash Data'!$C:$C,D$5,'Full Crash Data'!$AN:$AN,"Township Highway Agency",'Full Crash Data'!$BJ:$BJ,"Yes"),IF($B$2="City or Village Highway Agency",SUMIFS('Full Crash Data'!$U:$U,'Full Crash Data'!$C:$C,D$5,'Full Crash Data'!$AN:$AN,"City or Village Highway Agency",'Full Crash Data'!$BJ:$BJ,"Yes")))))) -> 0 | E17: 0 | F17: =IF($B$2="All",SUMIFS('Full Crash Data'!$U:$U,'Full Crash Data'!$C:$C,F$5,'Full Crash Data'!$BJ:$BJ,"Yes"),IF($B$2="State Highway Agency",SUMIFS('Full Crash Data'!$U:$U,'Full Crash Data'!$C:$C,F$5,'Full Crash Data'!$AN:$AN,"State Highway Agency",'Full Crash Data'!$BJ:$BJ,"Yes"),IF($B$2="County Highway Agency",SUMIFS('Full Crash Data'!$U:$U,'Full Crash Data'!$C:$C,F$5,'Full Crash Data'!$AN:$AN,"County Highway Agency",'Full Crash Data'!$BJ:$BJ,"Yes"),IF($B$2="Township Highway Agency",SUMIFS('Full Crash Data'!$U:$U,'Full Crash Data'!$C:$C,F$5,'Full Crash Data'!$AN:$AN,"Township Highway Agency",'Full Crash Data'!$BJ:$BJ,"Yes"),IF($B$2="City or Village Highway Agency",SUMIFS('Full Crash Data'!$U:$U,'Full Crash Data'!$C:$C,F$5,'Full Crash Data'!$AN:$AN,"City or Village Highway Agency",'Full Crash Data'!$BJ:$BJ,"Yes")))))) -> 0 | G17: =IFERROR(ROUND(F17/F$8,2),0) -> 0 | H17: =IF($B$2="All",SUMIFS('Full Crash Data'!$U:$U,'Full Crash Data'!$C:$C,H$5,'Full Crash Data'!$BJ:$BJ,"Yes"),IF($B$2="State Highway Agency",SUMIFS('Full Crash Data'!$U:$U,'Full Crash Data'!$C:$C,H$5,'Full Crash Data'!$AN:$AN,"State Highway Agency",'Full Crash Data'!$BJ:$BJ,"Yes"),IF($B$2="County Highway Agency",SUMIFS('Full Crash Data'!$U:$U,'Full Crash Data'!$C:$C,H$5,'Full Crash Data'!$AN:$AN,"County Highway Agency",'Full Crash Data'!$BJ:$BJ,"Yes"),IF($B$2="Township Highway Agency",SUMIFS('Full Crash Data'!$U:$U,'Full Crash Data'!$C:$C,H$5,'Full Crash Data'!$AN:$AN,"Township Highway Agency",'Full Crash Data'!$BJ:$BJ,"Yes"),IF($B$2="City or Village Highway Agency",SUMIFS('Full Crash Data'!$U:$U,'Full Crash Data'!$C:$C,H$5,'Full Crash Data'!$AN:$AN,"City or Village Highway Agency",'Full Crash Data'!$BJ:$BJ,"Yes")))))) -> 0 | I17: =IFERROR(ROUND(H17/H$8,2),0) -> 0 | J17: =IF($B$2="All",SUMIFS('Full Crash Data'!$U:$U,'Full Crash Data'!$C:$C,J$5,'Full Crash Data'!$BJ:$BJ,"Yes"),IF($B$2="State Highway Agency",SUMIFS('Full Crash Data'!$U:$U,'Full Crash Data'!$C:$C,J$5,'Full Crash Data'!$AN:$AN,"State Highway Agency",'Full Crash Data'!$BJ:$BJ,"Yes"),IF($B$2="County Highway Agency",SUMIFS('Full Crash Data'!$U:$U,'Full Crash Data'!$C:$C,J$5,'Full Crash Data'!$AN:$AN,"County Highway Agency",'Full Crash Data'!$BJ:$BJ,"Yes"),IF($B$2="Township Highway Agency",SUMIFS('Full Crash Data'!$U:$U,'Full Crash Data'!$C:$C,J$5,'Full Crash Data'!$AN:$AN,"Township Highway Agency",'Full Crash Data'!$BJ:$BJ,"Yes"),IF($B$2="City or Village Highway Agency",SUMIFS('Full Crash Data'!$U:$U,'Full Crash Data'!$C:$C,J$5,'Full Crash Data'!$AN:$AN,"City or Village Highway Agency",'Full Crash Data'!$BJ:$BJ,"Yes")))))) -> 0 | K17: =IFERROR(ROUND(J17/J$8,2),0) -> 0 | L17: =IF($B$2="All",SUMIFS('Full Crash Data'!$U:$U,'Full Crash Data'!$C:$C,L$5,'Full Crash Data'!$BJ:$BJ,"Yes"),IF($B$2="State Highway Agency",SUMIFS('Full Crash Data'!$U:$U,'Full Crash Data'!$C:$C,L$5,'Full Crash Data'!$AN:$AN,"State Highway Agency",'Full Crash Data'!$BJ:$BJ,"Yes"),IF($B$2="County Highway Agency",SUMIFS('Full Crash Data'!$U:$U,'Full Crash Data'!$C:$C,L$5,'Full Crash Data'!$AN:$AN,"County Highway Agency",'Full Crash Data'!$BJ:$BJ,"Yes"),IF($B$2="Township Highway Agency",SUMIFS('Full Crash Data'!$U:$U,'Full Crash Data'!$C:$C,L$5,'Full Crash Data'!$AN:$AN,"Township Highway Agency",'Full Crash Data'!$BJ:$BJ,"Yes"),IF($B$2="City or Village Highway Agency",SUMIFS('Full Crash Data'!$U:$U,'Full Crash Data'!$C:$C,L$5,'Full Crash Data'!$AN:$AN,"City or Village Highway Agency",'Full Crash Data'!$BJ:$BJ,"Yes")))))) -> 0 | M17: =IFERROR(ROUND(L17/L$8,2),0) -> 0 | N17: =IF($B$2="All",SUMIFS('Full Crash Data'!$U:$U,'Full Crash Data'!$C:$C,N$5,'Full Crash Data'!$BJ:$BJ,"Yes"),IF($B$2="State Highway Agency",SUMIFS('Full Crash Data'!$U:$U,'Full Crash Data'!$C:$C,N$5,'Full Crash Data'!$AN:$AN,"State Highway Agency",'Full Crash Data'!$BJ:$BJ,"Yes"),IF($B$2="County Highway Agency",SUMIFS('Full Crash Data'!$U:$U,'Full Crash Data'!$C:$C,N$5,'Full Crash Data'!$AN:$AN,"County Highway Agency",'Full Crash Data'!$BJ:$BJ,"Yes"),IF($B$2="Township Highway Agency",SUMIFS('Full Crash Data'!$U:$U,'Full Crash Data'!$C:$C,N$5,'Full Crash Data'!$AN:$AN,"Township Highway Agency",'Full Crash Data'!$BJ:$BJ,"Yes"),IF($B$2="City or Village Highway Agency",SUMIFS('Full Crash Data'!$U:$U,'Full Crash Data'!$C:$C,N$5,'Full Crash Data'!$AN:$AN,"City or Village Highway Agency",'Full Crash Data'!$BJ:$BJ,"Yes")))))) -> 0 | O17: =IFERROR(ROUND(N17/N$8,2),0) -> 0 | P17: =IF($B$2="All",SUMIFS('Full Crash Data'!$U:$U,'Full Crash Data'!$C:$C,P$5,'Full Crash Data'!$BJ:$BJ,"Yes"),IF($B$2="State Highway Agency",SUMIFS('Full Crash Data'!$U:$U,'Full Crash Data'!$C:$C,P$5,'Full Crash Data'!$AN:$AN,"State Highway Agency",'Full Crash Data'!$BJ:$BJ,"Yes"),IF($B$2="County Highway Agency",SUMIFS('Full Crash Data'!$U:$U,'Full Crash Data'!$C:$C,P$5,'Full Crash Data'!$AN:$AN,"County Highway Agency",'Full Crash Data'!$BJ:$BJ,"Yes"),IF($B$2="Township Highway Agency",SUMIFS('Full Crash Data'!$U:$U,'Full Crash Data'!$C:$C,P$5,'Full Crash Data'!$AN:$AN,"Township Highway Agency",'Full Crash Data'!$BJ:$BJ,"Yes"),IF($B$2="City or Village Highway Agency",SUMIFS('Full Crash Data'!$U:$U,'Full Crash Data'!$C:$C,P$5,'Full Crash Data'!$AN:$AN,"City or Village Highway Agency",'Full Crash Data'!$BJ:$BJ,"Yes")))))) -> 0 | Q17: =IFERROR(ROUND(P17/P$8,2),0) -> 0 | R17: =IF($B$2="All",SUMIFS('Full Crash Data'!$U:$U,'Full Crash Data'!$C:$C,R$5,'Full Crash Data'!$BJ:$BJ,"Yes"),IF($B$2="State Highway Agency",SUMIFS('Full Crash Data'!$U:$U,'Full Crash Data'!$C:$C,R$5,'Full Crash Data'!$AN:$AN,"State Highway Agency",'Full Crash Data'!$BJ:$BJ,"Yes"),IF($B$2="County Highway Agency",SUMIFS('Full Crash Data'!$U:$U,'Full Crash Data'!$C:$C,R$5,'Full Crash Data'!$AN:$AN,"County Highway Agency",'Full Crash Data'!$BJ:$BJ,"Yes"),IF($B$2="Township Highway Agency",SUMIFS('Full Crash Data'!$U:$U,'Full Crash Data'!$C:$C,R$5,'Full Crash Data'!$AN:$AN,"Township Highway Agency",'Full Crash Data'!$BJ:$BJ,"Yes"),IF($B$2="City or Village Highway Agency",SUMIFS('Full Crash Data'!$U:$U,'Full Crash Data'!$C:$C,R$5,'Full Crash Data'!$AN:$AN,"City or Village Highway Agency",'Full Crash Data'!$BJ:$BJ,"Yes")))))) -> 0 | S17: =IFERROR(ROUND(R17/R$8,2),0) -> 0 | T17: =IF($B$2="All",SUMIFS('Full Crash Data'!$U:$U,'Full Crash Data'!$C:$C,T$5,'Full Crash Data'!$BJ:$BJ,"Yes"),IF($B$2="State Highway Agency",SUMIFS('Full Crash Data'!$U:$U,'Full Crash Data'!$C:$C,T$5,'Full Crash Data'!$AN:$AN,"State Highway Agency",'Full Crash Data'!$BJ:$BJ,"Yes"),IF($B$2="County Highway Agency",SUMIFS('Full Crash Data'!$U:$U,'Full Crash Data'!$C:$C,T$5,'Full Crash Data'!$AN:$AN,"County Highway Agency",'Full Crash Data'!$BJ:$BJ,"Yes"),IF($B$2="Township Highway Agency",SUMIFS('Full Crash Data'!$U:$U,'Full Crash Data'!$C:$C,T$5,'Full Crash Data'!$AN:$AN,"Township Highway Agency",'Full Crash Data'!$BJ:$BJ,"Yes"),IF($B$2="City or Village Highway Agency",SUMIFS('Full Crash Data'!$U:$U,'Full Crash Data'!$C:$C,T$5,'Full Crash Data'!$AN:$AN,"City or Village Highway Agency",'Full Crash Data'!$BJ:$BJ,"Yes")))))) -> 0 | U17: =IFERROR(ROUND(T17/T$8,2),0) -> 0 | V17: =IF($B$2="All",SUMIFS('Full Crash Data'!$U:$U,'Full Crash Data'!$C:$C,V$5,'Full Crash Data'!$BJ:$BJ,"Yes"),IF($B$2="State Highway Agency",SUMIFS('Full Crash Data'!$U:$U,'Full Crash Data'!$C:$C,V$5,'Full Crash Data'!$AN:$AN,"State Highway Agency",'Full Crash Data'!$BJ:$BJ,"Yes"),IF($B$2="County Highway Agency",SUMIFS('Full Crash Data'!$U:$U,'Full Crash Data'!$C:$C,V$5,'Full Crash Data'!$AN:$AN,"County Highway Agency",'Full Crash Data'!$BJ:$BJ,"Yes"),IF($B$2="Township Highway Agency",SUMIFS('Full Crash Data'!$U:$U,'Full Crash Data'!$C:$C,V$5,'Full Crash Data'!$AN:$AN,"Township Highway Agency",'Full Crash Data'!$BJ:$BJ,"Yes"),IF($B$2="City or Village Highway Agency",SUMIFS('Full Crash Data'!$U:$U,'Full Crash Data'!$C:$C,V$5,'Full Crash Data'!$AN:$AN,"City or Village Highway Agency",'Full Crash Data'!$BJ:$BJ,"Yes")))))) -> 0 | W17: =IFERROR(ROUND(V17/V$8,2),0) -> 0 | AE17: 16
A18: Motorcycle Driver/Passenger | B18: =IF($B$2="All",SUMIFS('Full Crash Data'!$U:$U,'Full Crash Data'!$C:$C,B$5,'Full Crash Data'!$BC:$BC,"Yes"),IF($B$2="State Highway Agency",SUMIFS('Full Crash Data'!$U:$U,'Full Crash Data'!$C:$C,B$5,'Full Crash Data'!$AN:$AN,"State Highway Agency",'Full Crash Data'!$BC:$BC,"Yes"),IF($B$2="County Highway Agency",SUMIFS('Full Crash Data'!$U:$U,'Full Crash Data'!$C:$C,B$5,'Full Crash Data'!$AN:$AN,"County Highway Agency",'Full Crash Data'!$BC:$BC,"Yes"),IF($B$2="Township Highway Agency",SUMIFS('Full Crash Data'!$U:$U,'Full Crash Data'!$C:$C,B$5,'Full Crash Data'!$AN:$AN,"Township Highway Agency",'Full Crash Data'!$BC:$BC,"Yes"),IF($B$2="City or Village Highway Agency",SUMIFS('Full Crash Data'!$U:$U,'Full Crash Data'!$C:$C,B$5,'Full Crash Data'!$AN:$AN,"City or Village Highway Agency",'Full Crash Data'!$BC:$BC,"Yes")))))) -> 0 | C18: 0 | D18: =IF($B$2="All",SUMIFS('Full Crash Data'!$U:$U,'Full Crash Data'!$C:$C,D$5,'Full Crash Data'!$BC:$BC,"Yes"),IF($B$2="State Highway Agency",SUMIFS('Full Crash Data'!$U:$U,'Full Crash Data'!$C:$C,D$5,'Full Crash Data'!$AN:$AN,"State Highway Agency",'Full Crash Data'!$BC:$BC,"Yes"),IF($B$2="County Highway Agency",SUMIFS('Full Crash Data'!$U:$U,'Full Crash Data'!$C:$C,D$5,'Full Crash Data'!$AN:$AN,"County Highway Agency",'Full Crash Data'!$BC:$BC,"Yes"),IF($B$2="Township Highway Agency",SUMIFS('Full Crash Data'!$U:$U,'Full Crash Data'!$C:$C,D$5,'Full Crash Data'!$AN:$AN,"Township Highway Agency",'Full Crash Data'!$BC:$BC,"Yes"),IF($B$2="City or Village Highway Agency",SUMIFS('Full Crash Data'!$U:$U,'Full Crash Data'!$C:$C,D$5,'Full Crash Data'!$AN:$AN,"City or Village Highway Agency",'Full Crash Data'!$BC:$BC,"Yes")))))) -> 0 | E18: 0 | F18: =IF($B$2="All",SUMIFS('Full Crash Data'!$U:$U,'Full Crash Data'!$C:$C,F$5,'Full Crash Data'!$BC:$BC,"Yes"),IF($B$2="State Highway Agency",SUMIFS('Full Crash Data'!$U:$U,'Full Crash Data'!$C:$C,F$5,'Full Crash Data'!$AN:$AN,"State Highway Agency",'Full Crash Data'!$BC:$BC,"Yes"),IF($B$2="County Highway Agency",SUMIFS('Full Crash Data'!$U:$U,'Full Crash Data'!$C:$C,F$5,'Full Crash Data'!$AN:$AN,"County Highway Agency",'Full Crash Data'!$BC:$BC,"Yes"),IF($B$2="Township Highway Agency",SUMIFS('Full Crash Data'!$U:$U,'Full Crash Data'!$C:$C,F$5,'Full Crash Data'!$AN:$AN,"Township Highway Agency",'Full Crash Data'!$BC:$BC,"Yes"),IF($B$2="City or Village Highway Agency",SUMIFS('Full Crash Data'!$U:$U,'Full Crash Data'!$C:$C,F$5,'Full Crash Data'!$AN:$AN,"City or Village Highway Agency",'Full Crash Data'!$BC:$BC,"Yes")))))) -> 0 | G18: =IFERROR(ROUND(F18/F$8,2),0) -> 0 | H18: =IF($B$2="All",SUMIFS('Full Crash Data'!$U:$U,'Full Crash Data'!$C:$C,H$5,'Full Crash Data'!$BC:$BC,"Yes"),IF($B$2="State Highway Agency",SUMIFS('Full Crash Data'!$U:$U,'Full Crash Data'!$C:$C,H$5,'Full Crash Data'!$AN:$AN,"State Highway Agency",'Full Crash Data'!$BC:$BC,"Yes"),IF($B$2="County Highway Agency",SUMIFS('Full Crash Data'!$U:$U,'Full Crash Data'!$C:$C,H$5,'Full Crash Data'!$AN:$AN,"County Highway Agency",'Full Crash Data'!$BC:$BC,"Yes"),IF($B$2="Township Highway Agency",SUMIFS('Full Crash Data'!$U:$U,'Full Crash Data'!$C:$C,H$5,'Full Crash Data'!$AN:$AN,"Township Highway Agency",'Full Crash Data'!$BC:$BC,"Yes"),IF($B$2="City or Village Highway Agency",SUMIFS('Full Crash Data'!$U:$U,'Full Crash Data'!$C:$C,H$5,'Full Crash Data'!$AN:$AN,"City or Village Highway Agency",'Full Crash Data'!$BC:$BC,"Yes")))))) -> 0 | I18: =IFERROR(ROUND(H18/H$8,2),0) -> 0 | J18: =IF($B$2="All",SUMIFS('Full Crash Data'!$U:$U,'Full Crash Data'!$C:$C,J$5,'Full Crash Data'!$BC:$BC,"Yes"),IF($B$2="State Highway Agency",SUMIFS('Full Crash Data'!$U:$U,'Full Crash Data'!$C:$C,J$5,'Full Crash Data'!$AN:$AN,"State Highway Agency",'Full Crash Data'!$BC:$BC,"Yes"),IF($B$2="County Highway Agency",SUMIFS('Full Crash Data'!$U:$U,'Full Crash Data'!$C:$C,J$5,'Full Crash Data'!$AN:$AN,"County Highway Agency",'Full Crash Data'!$BC:$BC,"Yes"),IF($B$2="Township Highway Agency",SUMIFS('Full Crash Data'!$U:$U,'Full Crash Data'!$C:$C,J$5,'Full Crash Data'!$AN:$AN,"Township Highway Agency",'Full Crash Data'!$BC:$BC,"Yes"),IF($B$2="City or Village Highway Agency",SUMIFS('Full Crash Data'!$U:$U,'Full Crash Data'!$C:$C,J$5,'Full Crash Data'!$AN:$AN,"City or Village Highway Agency",'Full Crash Data'!$BC:$BC,"Yes")))))) -> 0 | K18: =IFERROR(ROUND(J18/J$8,2),0) -> 0 | L18: =IF($B$2="All",SUMIFS('Full Crash Data'!$U:$U,'Full Crash Data'!$C:$C,L$5,'Full Crash Data'!$BC:$BC,"Yes"),IF($B$2="State Highway Agency",SUMIFS('Full Crash Data'!$U:$U,'Full Crash Data'!$C:$C,L$5,'Full Crash Data'!$AN:$AN,"State Highway Agency",'Full Crash Data'!$BC:$BC,"Yes"),IF($B$2="County Highway Agency",SUMIFS('Full Crash Data'!$U:$U,'Full Crash Data'!$C:$C,L$5,'Full Crash Data'!$AN:$AN,"County Highway Agency",'Full Crash Data'!$BC:$BC,"Yes"),IF($B$2="Township Highway Agency",SUMIFS('Full Crash Data'!$U:$U,'Full Crash Data'!$C:$C,L$5,'Full Crash Data'!$AN:$AN,"Township Highway Agency",'Full Crash Data'!$BC:$BC,"Yes"),IF($B$2="City or Village Highway Agency",SUMIFS('Full Crash Data'!$U:$U,'Full Crash Data'!$C:$C,L$5,'Full Crash Data'!$AN:$AN,"City or Village Highway Agency",'Full Crash Data'!$BC:$BC,"Yes")))))) -> 0 | M18: =IFERROR(ROUND(L18/L$8,2),0) -> 0 | N18: =IF($B$2="All",SUMIFS('Full Crash Data'!$U:$U,'Full Crash Data'!$C:$C,N$5,'Full Crash Data'!$BC:$BC,"Yes"),IF($B$2="State Highway Agency",SUMIFS('Full Crash Data'!$U:$U,'Full Crash Data'!$C:$C,N$5,'Full Crash Data'!$AN:$AN,"State Highway Agency",'Full Crash Data'!$BC:$BC,"Yes"),IF($B$2="County Highway Agency",SUMIFS('Full Crash Data'!$U:$U,'Full Crash Data'!$C:$C,N$5,'Full Crash Data'!$AN:$AN,"County Highway Agency",'Full Crash Data'!$BC:$BC,"Yes"),IF($B$2="Township Highway Agency",SUMIFS('Full Crash Data'!$U:$U,'Full Crash Data'!$C:$C,N$5,'Full Crash Data'!$AN:$AN,"Township Highway Agency",'Full Crash Data'!$BC:$BC,"Yes"),IF($B$2="City or Village Highway Agency",SUMIFS('Full Crash Data'!$U:$U,'Full Crash Data'!$C:$C,N$5,'Full Crash Data'!$AN:$AN,"City or Village Highway Agency",'Full Crash Data'!$BC:$BC,"Yes")))))) -> 0 | O18: =IFERROR(ROUND(N18/N$8,2),0) -> 0 | P18: =IF($B$2="All",SUMIFS('Full Crash Data'!$U:$U,'Full Crash Data'!$C:$C,P$5,'Full Crash Data'!$BC:$BC,"Yes"),IF($B$2="State Highway Agency",SUMIFS('Full Crash Data'!$U:$U,'Full Crash Data'!$C:$C,P$5,'Full Crash Data'!$AN:$AN,"State Highway Agency",'Full Crash Data'!$BC:$BC,"Yes"),IF($B$2="County Highway Agency",SUMIFS('Full Crash Data'!$U:$U,'Full Crash Data'!$C:$C,P$5,'Full Crash Data'!$AN:$AN,"County Highway Agency",'Full Crash Data'!$BC:$BC,"Yes"),IF($B$2="Township Highway Agency",SUMIFS('Full Crash Data'!$U:$U,'Full Crash Data'!$C:$C,P$5,'Full Crash Data'!$AN:$AN,"Township Highway Agency",'Full Crash Data'!$BC:$BC,"Yes"),IF($B$2="City or Village Highway Agency",SUMIFS('Full Crash Data'!$U:$U,'Full Crash Data'!$C:$C,P$5,'Full Crash Data'!$AN:$AN,"City or Village Highway Agency",'Full Crash Data'!$BC:$BC,"Yes")))))) -> 0 | Q18: =IFERROR(ROUND(P18/P$8,2),0) -> 0 | R18: =IF($B$2="All",SUMIFS('Full Crash Data'!$U:$U,'Full Crash Data'!$C:$C,R$5,'Full Crash Data'!$BC:$BC,"Yes"),IF($B$2="State Highway Agency",SUMIFS('Full Crash Data'!$U:$U,'Full Crash Data'!$C:$C,R$5,'Full Crash Data'!$AN:$AN,"State Highway Agency",'Full Crash Data'!$BC:$BC,"Yes"),IF($B$2="County Highway Agency",SUMIFS('Full Crash Data'!$U:$U,'Full Crash Data'!$C:$C,R$5,'Full Crash Data'!$AN:$AN,"County Highway Agency",'Full Crash Data'!$BC:$BC,"Yes"),IF($B$2="Township Highway Agency",SUMIFS('Full Crash Data'!$U:$U,'Full Crash Data'!$C:$C,R$5,'Full Crash Data'!$AN:$AN,"Township Highway Agency",'Full Crash Data'!$BC:$BC,"Yes"),IF($B$2="City or Village Highway Agency",SUMIFS('Full Crash Data'!$U:$U,'Full Crash Data'!$C:$C,R$5,'Full Crash Data'!$AN:$AN,"City or Village Highway Agency",'Full Crash Data'!$BC:$BC,"Yes")))))) -> 0 | S18: =IFERROR(ROUND(R18/R$8,2),0) -> 0 | T18: =IF($B$2="All",SUMIFS('Full Crash Data'!$U:$U,'Full Crash Data'!$C:$C,T$5,'Full Crash Data'!$BC:$BC,"Yes"),IF($B$2="State Highway Agency",SUMIFS('Full Crash Data'!$U:$U,'Full Crash Data'!$C:$C,T$5,'Full Crash Data'!$AN:$AN,"State Highway Agency",'Full Crash Data'!$BC:$BC,"Yes"),IF($B$2="County Highway Agency",SUMIFS('Full Crash Data'!$U:$U,'Full Crash Data'!$C:$C,T$5,'Full Crash Data'!$AN:$AN,"County Highway Agency",'Full Crash Data'!$BC:$BC,"Yes"),IF($B$2="Township Highway Agency",SUMIFS('Full Crash Data'!$U:$U,'Full Crash Data'!$C:$C,T$5,'Full Crash Data'!$AN:$AN,"Township Highway Agency",'Full Crash Data'!$BC:$BC,"Yes"),IF($B$2="City or Village Highway Agency",SUMIFS('Full Crash Data'!$U:$U,'Full Crash Data'!$C:$C,T$5,'Full Crash Data'!$AN:$AN,"City or Village Highway Agency",'Full Crash Data'!$BC:$BC,"Yes")))))) -> 0 | U18: =IFERROR(ROUND(T18/T$8,2),0) -> 0 | V18: =IF($B$2="All",SUMIFS('Full Crash Data'!$U:$U,'Full Crash Data'!$C:$C,V$5,'Full Crash Data'!$BC:$BC,"Yes"),IF($B$2="State Highway Agency",SUMIFS('Full Crash Data'!$U:$U,'Full Crash Data'!$C:$C,V$5,'Full Crash Data'!$AN:$AN,"State Highway Agency",'Full Crash Data'!$BC:$BC,"Yes"),IF($B$2="County Highway Agency",SUMIFS('Full Crash Data'!$U:$U,'Full Crash Data'!$C:$C,V$5,'Full Crash Data'!$AN:$AN,"County Highway Agency",'Full Crash Data'!$BC:$BC,"Yes"),IF($B$2="Township Highway Agency",SUMIFS('Full Crash Data'!$U:$U,'Full Crash Data'!$C:$C,V$5,'Full Crash Data'!$AN:$AN,"Township Highway Agency",'Full Crash Data'!$BC:$BC,"Yes"),IF($B$2="City or Village Highway Agency",SUMIFS('Full Crash Data'!$U:$U,'Full Crash Data'!$C:$C,V$5,'Full Crash Data'!$AN:$AN,"City or Village Highway Agency",'Full Crash Data'!$BC:$BC,"Yes")))))) -> 0 | W18: =IFERROR(ROUND(V18/V$8,2),0) -> 0 | AE18: 18
A19: Pedestrian Involvement | B19: =IF($B$2="All",SUMIFS('Full Crash Data'!$U:$U,'Full Crash Data'!$C:$C,B$5,'Full Crash Data'!$G:$G,"Pedestrian"),IF($B$2="State Highway Agency",SUMIFS('Full Crash Data'!$U:$U,'Full Crash Data'!$C:$C,B$5,'Full Crash Data'!$AN:$AN,"State Highway Agency",'Full Crash Data'!$G:$G,"Pedestrian"),IF($B$2="County Highway Agency",SUMIFS('Full Crash Data'!$U:$U,'Full Crash Data'!$C:$C,B$5,'Full Crash Data'!$AN:$AN,"County Highway Agency",'Full Crash Data'!$G:$G,"Pedestrian"),IF($B$2="Township Highway Agency",SUMIFS('Full Crash Data'!$U:$U,'Full Crash Data'!$C:$C,B$5,'Full Crash Data'!$AN:$AN,"Township Highway Agency",'Full Crash Data'!$G:$G,"Pedestrian"),IF($B$2="City or Village Highway Agency",SUMIFS('Full Crash Data'!$U:$U,'Full Crash Data'!$C:$C,B$5,'Full Crash Data'!$AN:$AN,"City or Village Highway Agency",'Full Crash Data'!$G:$G,"Pedestrian")))))) -> 0 | C19: 0 | D19: =IF($B$2="All",SUMIFS('Full Crash Data'!$U:$U,'Full Crash Data'!$C:$C,D$5,'Full Crash Data'!$G:$G,"Pedestrian"),IF($B$2="State Highway Agency",SUMIFS('Full Crash Data'!$U:$U,'Full Crash Data'!$C:$C,D$5,'Full Crash Data'!$AN:$AN,"State Highway Agency",'Full Crash Data'!$G:$G,"Pedestrian"),IF($B$2="County Highway Agency",SUMIFS('Full Crash Data'!$U:$U,'Full Crash Data'!$C:$C,D$5,'Full Crash Data'!$AN:$AN,"County Highway Agency",'Full Crash Data'!$G:$G,"Pedestrian"),IF($B$2="Township Highway Agency",SUMIFS('Full Crash Data'!$U:$U,'Full Crash Data'!$C:$C,D$5,'Full Crash Data'!$AN:$AN,"Township Highway Agency",'Full Crash Data'!$G:$G,"Pedestrian"),IF($B$2="City or Village Highway Agency",SUMIFS('Full Crash Data'!$U:$U,'Full Crash Data'!$C:$C,D$5,'Full Crash Data'!$AN:$AN,"City or Village Highway Agency",'Full Crash Data'!$G:$G,"Pedestrian")))))) -> 0 | E19: 0 | F19: =IF($B$2="All",SUMIFS('Full Crash Data'!$U:$U,'Full Crash Data'!$C:$C,F$5,'Full Crash Data'!$G:$G,"Pedestrian"),IF($B$2="State Highway Agency",SUMIFS('Full Crash Data'!$U:$U,'Full Crash Data'!$C:$C,F$5,'Full Crash Data'!$AN:$AN,"State Highway Agency",'Full Crash Data'!$G:$G,"Pedestrian"),IF($B$2="County Highway Agency",SUMIFS('Full Crash Data'!$U:$U,'Full Crash Data'!$C:$C,F$5,'Full Crash Data'!$AN:$AN,"County Highway Agency",'Full Crash Data'!$G:$G,"Pedestrian"),IF($B$2="Township Highway Agency",SUMIFS('Full Crash Data'!$U:$U,'Full Crash Data'!$C:$C,F$5,'Full Crash Data'!$AN:$AN,"Township Highway Agency",'Full Crash Data'!$G:$G,"Pedestrian"),IF($B$2="City or Village Highway Agency",SUMIFS('Full Crash Data'!$U:$U,'Full Crash Data'!$C:$C,F$5,'Full Crash Data'!$AN:$AN,"City or Village Highway Agency",'Full Crash Data'!$G:$G,"Pedestrian")))))) -> 0 | G19: =IFERROR(ROUND(F19/F$8,2),0) -> 0 | H19: =IF($B$2="All",SUMIFS('Full Crash Data'!$U:$U,'Full Crash Data'!$C:$C,H$5,'Full Crash Data'!$G:$G,"Pedestrian"),IF($B$2="State Highway Agency",SUMIFS('Full Crash Data'!$U:$U,'Full Crash Data'!$C:$C,H$5,'Full Crash Data'!$AN:$AN,"State Highway Agency",'Full Crash Data'!$G:$G,"Pedestrian"),IF($B$2="County Highway Agency",SUMIFS('Full Crash Data'!$U:$U,'Full Crash Data'!$C:$C,H$5,'Full Crash Data'!$AN:$AN,"County Highway Agency",'Full Crash Data'!$G:$G,"Pedestrian"),IF($B$2="Township Highway Agency",SUMIFS('Full Crash Data'!$U:$U,'Full Crash Data'!$C:$C,H$5,'Full Crash Data'!$AN:$AN,"Township Highway Agency",'Full Crash Data'!$G:$G,"Pedestrian"),IF($B$2="City or Village Highway Agency",SUMIFS('Full Crash Data'!$U:$U,'Full Crash Data'!$C:$C,H$5,'Full Crash Data'!$AN:$AN,"City or Village Highway Agency",'Full Crash Data'!$G:$G,"Pedestrian")))))) -> 0 | I19: =IFERROR(ROUND(H19/H$8,2),0) -> 0 | J19: =IF($B$2="All",SUMIFS('Full Crash Data'!$U:$U,'Full Crash Data'!$C:$C,J$5,'Full Crash Data'!$G:$G,"Pedestrian"),IF($B$2="State Highway Agency",SUMIFS('Full Crash Data'!$U:$U,'Full Crash Data'!$C:$C,J$5,'Full Crash Data'!$AN:$AN,"State Highway Agency",'Full Crash Data'!$G:$G,"Pedestrian"),IF($B$2="County Highway Agency",SUMIFS('Full Crash Data'!$U:$U,'Full Crash Data'!$C:$C,J$5,'Full Crash Data'!$AN:$AN,"County Highway Agency",'Full Crash Data'!$G:$G,"Pedestrian"),IF($B$2="Township Highway Agency",SUMIFS('Full Crash Data'!$U:$U,'Full Crash Data'!$C:$C,J$5,'Full Crash Data'!$AN:$AN,"Township Highway Agency",'Full Crash Data'!$G:$G,"Pedestrian"),IF($B$2="City or Village Highway Agency",SUMIFS('Full Crash Data'!$U:$U,'Full Crash Data'!$C:$C,J$5,'Full Crash Data'!$AN:$AN,"City or Village Highway Agency",'Full Crash Data'!$G:$G,"Pedestrian")))))) -> 0 | K19: =IFERROR(ROUND(J19/J$8,2),0) -> 0 | L19: =IF($B$2="All",SUMIFS('Full Crash Data'!$U:$U,'Full Crash Data'!$C:$C,L$5,'Full Crash Data'!$G:$G,"Pedestrian"),IF($B$2="State Highway Agency",SUMIFS('Full Crash Data'!$U:$U,'Full Crash Data'!$C:$C,L$5,'Full Crash Data'!$AN:$AN,"State Highway Agency",'Full Crash Data'!$G:$G,"Pedestrian"),IF($B$2="County Highway Agency",SUMIFS('Full Crash Data'!$U:$U,'Full Crash Data'!$C:$C,L$5,'Full Crash Data'!$AN:$AN,"County Highway Agency",'Full Crash Data'!$G:$G,"Pedestrian"),IF($B$2="Township Highway Agency",SUMIFS('Full Crash Data'!$U:$U,'Full Crash Data'!$C:$C,L$5,'Full Crash Data'!$AN:$AN,"Township Highway Agency",'Full Crash Data'!$G:$G,"Pedestrian"),IF($B$2="City or Village Highway Agency",SUMIFS('Full Crash Data'!$U:$U,'Full Crash Data'!$C:$C,L$5,'Full Crash Data'!$AN:$AN,"City or Village Highway Agency",'Full Crash Data'!$G:$G,"Pedestrian")))))) -> 0 | M19: =IFERROR(ROUND(L19/L$8,2),0) -> 0 | N19: =IF($B$2="All",SUMIFS('Full Crash Data'!$U:$U,'Full Crash Data'!$C:$C,N$5,'Full Crash Data'!$G:$G,"Pedestrian"),IF($B$2="State Highway Agency",SUMIFS('Full Crash Data'!$U:$U,'Full Crash Data'!$C:$C,N$5,'Full Crash Data'!$AN:$AN,"State Highway Agency",'Full Crash Data'!$G:$G,"Pedestrian"),IF($B$2="County Highway Agency",SUMIFS('Full Crash Data'!$U:$U,'Full Crash Data'!$C:$C,N$5,'Full Crash Data'!$AN:$AN,"County Highway Agency",'Full Crash Data'!$G:$G,"Pedestrian"),IF($B$2="Township Highway Agency",SUMIFS('Full Crash Data'!$U:$U,'Full Crash Data'!$C:$C,N$5,'Full Crash Data'!$AN:$AN,"Township Highway Agency",'Full Crash Data'!$G:$G,"Pedestrian"),IF($B$2="City or Village Highway Agency",SUMIFS('Full Crash Data'!$U:$U,'Full Crash Data'!$C:$C,N$5,'Full Crash Data'!$AN:$AN,"City or Village Highway Agency",'Full Crash Data'!$G:$G,"Pedestrian")))))) -> 0 | O19: =IFERROR(ROUND(N19/N$8,2),0) -> 0 | P19: =IF($B$2="All",SUMIFS('Full Crash Data'!$U:$U,'Full Crash Data'!$C:$C,P$5,'Full Crash Data'!$G:$G,"Pedestrian"),IF($B$2="State Highway Agency",SUMIFS('Full Crash Data'!$U:$U,'Full Crash Data'!$C:$C,P$5,'Full Crash Data'!$AN:$AN,"State Highway Agency",'Full Crash Data'!$G:$G,"Pedestrian"),IF($B$2="County Highway Agency",SUMIFS('Full Crash Data'!$U:$U,'Full Crash Data'!$C:$C,P$5,'Full Crash Data'!$AN:$AN,"County Highway Agency",'Full Crash Data'!$G:$G,"Pedestrian"),IF($B$2="Township Highway Agency",SUMIFS('Full Crash Data'!$U:$U,'Full Crash Data'!$C:$C,P$5,'Full Crash Data'!$AN:$AN,"Township Highway Agency",'Full Crash Data'!$G:$G,"Pedestrian"),IF($B$2="City or Village Highway Agency",SUMIFS('Full Crash Data'!$U:$U,'Full Crash Data'!$C:$C,P$5,'Full Crash Data'!$AN:$AN,"City or Village Highway Agency",'Full Crash Data'!$G:$G,"Pedestrian")))))) -> 0 | Q19: =IFERROR(ROUND(P19/P$8,2),0) -> 0 | R19: =IF($B$2="All",SUMIFS('Full Crash Data'!$U:$U,'Full Crash Data'!$C:$C,R$5,'Full Crash Data'!$G:$G,"Pedestrian"),IF($B$2="State Highway Agency",SUMIFS('Full Crash Data'!$U:$U,'Full Crash Data'!$C:$C,R$5,'Full Crash Data'!$AN:$AN,"State Highway Agency",'Full Crash Data'!$G:$G,"Pedestrian"),IF($B$2="County Highway Agency",SUMIFS('Full Crash Data'!$U:$U,'Full Crash Data'!$C:$C,R$5,'Full Crash Data'!$AN:$AN,"County Highway Agency",'Full Crash Data'!$G:$G,"Pedestrian"),IF($B$2="Township Highway Agency",SUMIFS('Full Crash Data'!$U:$U,'Full Crash Data'!$C:$C,R$5,'Full Crash Data'!$AN:$AN,"Township Highway Agency",'Full Crash Data'!$G:$G,"Pedestrian"),IF($B$2="City or Village Highway Agency",SUMIFS('Full Crash Data'!$U:$U,'Full Crash Data'!$C:$C,R$5,'Full Crash Data'!$AN:$AN,"City or Village Highway Agency",'Full Crash Data'!$G:$G,"Pedestrian")))))) -> 0 | S19: =IFERROR(ROUND(R19/R$8,2),0) -> 0 | T19: =IF($B$2="All",SUMIFS('Full Crash Data'!$U:$U,'Full Crash Data'!$C:$C,T$5,'Full Crash Data'!$G:$G,"Pedestrian"),IF($B$2="State Highway Agency",SUMIFS('Full Crash Data'!$U:$U,'Full Crash Data'!$C:$C,T$5,'Full Crash Data'!$AN:$AN,"State Highway Agency",'Full Crash Data'!$G:$G,"Pedestrian"),IF($B$2="County Highway Agency",SUMIFS('Full Crash Data'!$U:$U,'Full Crash Data'!$C:$C,T$5,'Full Crash Data'!$AN:$AN,"County Highway Agency",'Full Crash Data'!$G:$G,"Pedestrian"),IF($B$2="Township Highway Agency",SUMIFS('Full Crash Data'!$U:$U,'Full Crash Data'!$C:$C,T$5,'Full Crash Data'!$AN:$AN,"Township Highway Agency",'Full Crash Data'!$G:$G,"Pedestrian"),IF($B$2="City or Village Highway Agency",SUMIFS('Full Crash Data'!$U:$U,'Full Crash Data'!$C:$C,T$5,'Full Crash Data'!$AN:$AN,"City or Village Highway Agency",'Full Crash Data'!$G:$G,"Pedestrian")))))) -> 0 | U19: =IFERROR(ROUND(T19/T$8,2),0) -> 0 | V19: =IF($B$2="All",SUMIFS('Full Crash Data'!$U:$U,'Full Crash Data'!$C:$C,V$5,'Full Crash Data'!$G:$G,"Pedestrian"),IF($B$2="State Highway Agency",SUMIFS('Full Crash Data'!$U:$U,'Full Crash Data'!$C:$C,V$5,'Full Crash Data'!$AN:$AN,"State Highway Agency",'Full Crash Data'!$G:$G,"Pedestrian"),IF($B$2="County Highway Agency",SUMIFS('Full Crash Data'!$U:$U,'Full Crash Data'!$C:$C,V$5,'Full Crash Data'!$AN:$AN,"County Highway Agency",'Full Crash Data'!$G:$G,"Pedestrian"),IF($B$2="Township Highway Agency",SUMIFS('Full Crash Data'!$U:$U,'Full Crash Data'!$C:$C,V$5,'Full Crash Data'!$AN:$AN,"Township Highway Agency",'Full Crash Data'!$G:$G,"Pedestrian"),IF($B$2="City or Village Highway Agency",SUMIFS('Full Crash Data'!$U:$U,'Full Crash Data'!$C:$C,V$5,'Full Crash Data'!$AN:$AN,"City or Village Highway Agency",'Full Crash Data'!$G:$G,"Pedestrian")))))) -> 0 | W19: =IFERROR(ROUND(V19/V$8,2),0) -> 0 | AE19: 19
A20: Bicycle Involvement | B20: =IF($B$2="All",SUMIFS('Full Crash Data'!$U:$U,'Full Crash Data'!$C:$C,B$5,'Full Crash Data'!$G:$G,"Pedalcycles"),IF($B$2="State Highway Agency",SUMIFS('Full Crash Data'!$U:$U,'Full Crash Data'!$C:$C,B$5,'Full Crash Data'!$AN:$AN,"State Highway Agency",'Full Crash Data'!$G:$G,"Pedalcycles"),IF($B$2="County Highway Agency",SUMIFS('Full Crash Data'!$U:$U,'Full Crash Data'!$C:$C,B$5,'Full Crash Data'!$AN:$AN,"County Highway Agency",'Full Crash Data'!$G:$G,"Pedalcycles"),IF($B$2="Township Highway Agency",SUMIFS('Full Crash Data'!$U:$U,'Full Crash Data'!$C:$C,B$5,'Full Crash Data'!$AN:$AN,"Township Highway Agency",'Full Crash Data'!$G:$G,"Pedalcycles"),IF($B$2="City or Village Highway Agency",SUMIFS('Full Crash Data'!$U:$U,'Full Crash Data'!$C:$C,B$5,'Full Crash Data'!$AN:$AN,"City or Village Highway Agency",'Full Crash Data'!$G:$G,"Pedalcycles")))))) -> 0 | C20: 0 | D20: =IF($B$2="All",SUMIFS('Full Crash Data'!$U:$U,'Full Crash Data'!$C:$C,D$5,'Full Crash Data'!$G:$G,"Pedalcycles"),IF($B$2="State Highway Agency",SUMIFS('Full Crash Data'!$U:$U,'Full Crash Data'!$C:$C,D$5,'Full Crash Data'!$AN:$AN,"State Highway Agency",'Full Crash Data'!$G:$G,"Pedalcycles"),IF($B$2="County Highway Agency",SUMIFS('Full Crash Data'!$U:$U,'Full Crash Data'!$C:$C,D$5,'Full Crash Data'!$AN:$AN,"County Highway Agency",'Full Crash Data'!$G:$G,"Pedalcycles"),IF($B$2="Township Highway Agency",SUMIFS('Full Crash Data'!$U:$U,'Full Crash Data'!$C:$C,D$5,'Full Crash Data'!$AN:$AN,"Township Highway Agency",'Full Crash Data'!$G:$G,"Pedalcycles"),IF($B$2="City or Village Highway Agency",SUMIFS('Full Crash Data'!$U:$U,'Full Crash Data'!$C:$C,D$5,'Full Crash Data'!$AN:$AN,"City or Village Highway Agency",'Full Crash Data'!$G:$G,"Pedalcycles")))))) -> 0 | E20: 0 | F20: =IF($B$2="All",SUMIFS('Full Crash Data'!$U:$U,'Full Crash Data'!$C:$C,F$5,'Full Crash Data'!$G:$G,"Pedalcycles"),IF($B$2="State Highway Agency",SUMIFS('Full Crash Data'!$U:$U,'Full Crash Data'!$C:$C,F$5,'Full Crash Data'!$AN:$AN,"State Highway Agency",'Full Crash Data'!$G:$G,"Pedalcycles"),IF($B$2="County Highway Agency",SUMIFS('Full Crash Data'!$U:$U,'Full Crash Data'!$C:$C,F$5,'Full Crash Data'!$AN:$AN,"County Highway Agency",'Full Crash Data'!$G:$G,"Pedalcycles"),IF($B$2="Township Highway Agency",SUMIFS('Full Crash Data'!$U:$U,'Full Crash Data'!$C:$C,F$5,'Full Crash Data'!$AN:$AN,"Township Highway Agency",'Full Crash Data'!$G:$G,"Pedalcycles"),IF($B$2="City or Village Highway Agency",SUMIFS('Full Crash Data'!$U:$U,'Full Crash Data'!$C:$C,F$5,'Full Crash Data'!$AN:$AN,"City or Village Highway Agency",'Full Crash Data'!$G:$G,"Pedalcycles")))))) -> 0 | G20: =IFERROR(ROUND(F20/F$8,2),0) -> 0 | H20: =IF($B$2="All",SUMIFS('Full Crash Data'!$U:$U,'Full Crash Data'!$C:$C,H$5,'Full Crash Data'!$G:$G,"Pedalcycles"),IF($B$2="State Highway Agency",SUMIFS('Full Crash Data'!$U:$U,'Full Crash Data'!$C:$C,H$5,'Full Crash Data'!$AN:$AN,"State Highway Agency",'Full Crash Data'!$G:$G,"Pedalcycles"),IF($B$2="County Highway Agency",SUMIFS('Full Crash Data'!$U:$U,'Full Crash Data'!$C:$C,H$5,'Full Crash Data'!$AN:$AN,"County Highway Agency",'Full Crash Data'!$G:$G,"Pedalcycles"),IF($B$2="Township Highway Agency",SUMIFS('Full Crash Data'!$U:$U,'Full Crash Data'!$C:$C,H$5,'Full Crash Data'!$AN:$AN,"Township Highway Agency",'Full Crash Data'!$G:$G,"Pedalcycles"),IF($B$2="City or Village Highway Agency",SUMIFS('Full Crash Data'!$U:$U,'Full Crash Data'!$C:$C,H$5,'Full Crash Data'!$AN:$AN,"City or Village Highway Agency",'Full Crash Data'!$G:$G,"Pedalcycles")))))) -> 0 | I20: =IFERROR(ROUND(H20/H$8,2),0) -> 0 | J20: =IF($B$2="All",SUMIFS('Full Crash Data'!$U:$U,'Full Crash Data'!$C:$C,J$5,'Full Crash Data'!$G:$G,"Pedalcycles"),IF($B$2="State Highway Agency",SUMIFS('Full Crash Data'!$U:$U,'Full Crash Data'!$C:$C,J$5,'Full Crash Data'!$AN:$AN,"State Highway Agency",'Full Crash Data'!$G:$G,"Pedalcycles"),IF($B$2="County Highway Agency",SUMIFS('Full Crash Data'!$U:$U,'Full Crash Data'!$C:$C,J$5,'Full Crash Data'!$AN:$AN,"County Highway Agency",'Full Crash Data'!$G:$G,"Pedalcycles"),IF($B$2="Township Highway Agency",SUMIFS('Full Crash Data'!$U:$U,'Full Crash Data'!$C:$C,J$5,'Full Crash Data'!$AN:$AN,"Township Highway Agency",'Full Crash Data'!$G:$G,"Pedalcycles"),IF($B$2="City or Village Highway Agency",SUMIFS('Full Crash Data'!$U:$U,'Full Crash Data'!$C:$C,J$5,'Full Crash Data'!$AN:$AN,"City or Village Highway Agency",'Full Crash Data'!$G:$G,"Pedalcycles")))))) -> 0 | K20: =IFERROR(ROUND(J20/J$8,2),0) -> 0 | L20: =IF($B$2="All",SUMIFS('Full Crash Data'!$U:$U,'Full Crash Data'!$C:$C,L$5,'Full Crash Data'!$G:$G,"Pedalcycles"),IF($B$2="State Highway Agency",SUMIFS('Full Crash Data'!$U:$U,'Full Crash Data'!$C:$C,L$5,'Full Crash Data'!$AN:$AN,"State Highway Agency",'Full Crash Data'!$G:$G,"Pedalcycles"),IF($B$2="County Highway Agency",SUMIFS('Full Crash Data'!$U:$U,'Full Crash Data'!$C:$C,L$5,'Full Crash Data'!$AN:$AN,"County Highway Agency",'Full Crash Data'!$G:$G,"Pedalcycles"),IF($B$2="Township Highway Agency",SUMIFS('Full Crash Data'!$U:$U,'Full Crash Data'!$C:$C,L$5,'Full Crash Data'!$AN:$AN,"Township Highway Agency",'Full Crash Data'!$G:$G,"Pedalcycles"),IF($B$2="City or Village Highway Agency",SUMIFS('Full Crash Data'!$U:$U,'Full Crash Data'!$C:$C,L$5,'Full Crash Data'!$AN:$AN,"City or Village Highway Agency",'Full Crash Data'!$G:$G,"Pedalcycles")))))) -> 0 | M20: =IFERROR(ROUND(L20/L$8,2),0) -> 0 | N20: =IF($B$2="All",SUMIFS('Full Crash Data'!$U:$U,'Full Crash Data'!$C:$C,N$5,'Full Crash Data'!$G:$G,"Pedalcycles"),IF($B$2="State Highway Agency",SUMIFS('Full Crash Data'!$U:$U,'Full Crash Data'!$C:$C,N$5,'Full Crash Data'!$AN:$AN,"State Highway Agency",'Full Crash Data'!$G:$G,"Pedalcycles"),IF($B$2="County Highway Agency",SUMIFS('Full Crash Data'!$U:$U,'Full Crash Data'!$C:$C,N$5,'Full Crash Data'!$AN:$AN,"County Highway Agency",'Full Crash Data'!$G:$G,"Pedalcycles"),IF($B$2="Township Highway Agency",SUMIFS('Full Crash Data'!$U:$U,'Full Crash Data'!$C:$C,N$5,'Full Crash Data'!$AN:$AN,"Township Highway Agency",'Full Crash Data'!$G:$G,"Pedalcycles"),IF($B$2="City or Village Highway Agency",SUMIFS('Full Crash Data'!$U:$U,'Full Crash Data'!$C:$C,N$5,'Full Crash Data'!$AN:$AN,"City or Village Highway Agency",'Full Crash Data'!$G:$G,"Pedalcycles")))))) -> 0 | O20: =IFERROR(ROUND(N20/N$8,2),0) -> 0 | P20: =IF($B$2="All",SUMIFS('Full Crash Data'!$U:$U,'Full Crash Data'!$C:$C,P$5,'Full Crash Data'!$G:$G,"Pedalcycles"),IF($B$2="State Highway Agency",SUMIFS('Full Crash Data'!$U:$U,'Full Crash Data'!$C:$C,P$5,'Full Crash Data'!$AN:$AN,"State Highway Agency",'Full Crash Data'!$G:$G,"Pedalcycles"),IF($B$2="County Highway Agency",SUMIFS('Full Crash Data'!$U:$U,'Full Crash Data'!$C:$C,P$5,'Full Crash Data'!$AN:$AN,"County Highway Agency",'Full Crash Data'!$G:$G,"Pedalcycles"),IF($B$2="Township Highway Agency",SUMIFS('Full Crash Data'!$U:$U,'Full Crash Data'!$C:$C,P$5,'Full Crash Data'!$AN:$AN,"Township Highway Agency",'Full Crash Data'!$G:$G,"Pedalcycles"),IF($B$2="City or Village Highway Agency",SUMIFS('Full Crash Data'!$U:$U,'Full Crash Data'!$C:$C,P$5,'Full Crash Data'!$AN:$AN,"City or Village Highway Agency",'Full Crash Data'!$G:$G,"Pedalcycles")))))) -> 0 | Q20: =IFERROR(ROUND(P20/P$8,2),0) -> 0 | R20: =IF($B$2="All",SUMIFS('Full Crash Data'!$U:$U,'Full Crash Data'!$C:$C,R$5,'Full Crash Data'!$G:$G,"Pedalcycles"),IF($B$2="State Highway Agency",SUMIFS('Full Crash Data'!$U:$U,'Full Crash Data'!$C:$C,R$5,'Full Crash Data'!$AN:$AN,"State Highway Agency",'Full Crash Data'!$G:$G,"Pedalcycles"),IF($B$2="County Highway Agency",SUMIFS('Full Crash Data'!$U:$U,'Full Crash Data'!$C:$C,R$5,'Full Crash Data'!$AN:$AN,"County Highway Agency",'Full Crash Data'!$G:$G,"Pedalcycles"),IF($B$2="Township Highway Agency",SUMIFS('Full Crash Data'!$U:$U,'Full Crash Data'!$C:$C,R$5,'Full Crash Data'!$AN:$AN,"Township Highway Agency",'Full Crash Data'!$G:$G,"Pedalcycles"),IF($B$2="City or Village Highway Agency",SUMIFS('Full Crash Data'!$U:$U,'Full Crash Data'!$C:$C,R$5,'Full Crash Data'!$AN:$AN,"City or Village Highway Agency",'Full Crash Data'!$G:$G,"Pedalcycles")))))) -> 0 | S20: =IFERROR(ROUND(R20/R$8,2),0) -> 0 | T20: =IF($B$2="All",SUMIFS('Full Crash Data'!$U:$U,'Full Crash Data'!$C:$C,T$5,'Full Crash Data'!$G:$G,"Pedalcycles"),IF($B$2="State Highway Agency",SUMIFS('Full Crash Data'!$U:$U,'Full Crash Data'!$C:$C,T$5,'Full Crash Data'!$AN:$AN,"State Highway Agency",'Full Crash Data'!$G:$G,"Pedalcycles"),IF($B$2="County Highway Agency",SUMIFS('Full Crash Data'!$U:$U,'Full Crash Data'!$C:$C,T$5,'Full Crash Data'!$AN:$AN,"County Highway Agency",'Full Crash Data'!$G:$G,"Pedalcycles"),IF($B$2="Township Highway Agency",SUMIFS('Full Crash Data'!$U:$U,'Full Crash Data'!$C:$C,T$5,'Full Crash Data'!$AN:$AN,"Township Highway Agency",'Full Crash Data'!$G:$G,"Pedalcycles"),IF($B$2="City or Village Highway Agency",SUMIFS('Full Crash Data'!$U:$U,'Full Crash Data'!$C:$C,T$5,'Full Crash Data'!$AN:$AN,"City or Village Highway Agency",'Full Crash Data'!$G:$G,"Pedalcycles")))))) -> 0 | U20: =IFERROR(ROUND(T20/T$8,2),0) -> 0 | V20: =IF($B$2="All",SUMIFS('Full Crash Data'!$U:$U,'Full Crash Data'!$C:$C,V$5,'Full Crash Data'!$G:$G,"Pedalcycles"),IF($B$2="State Highway Agency",SUMIFS('Full Crash Data'!$U:$U,'Full Crash Data'!$C:$C,V$5,'Full Crash Data'!$AN:$AN,"State Highway Agency",'Full Crash Data'!$G:$G,"Pedalcycles"),IF($B$2="County Highway Agency",SUMIFS('Full Crash Data'!$U:$U,'Full Crash Data'!$C:$C,V$5,'Full Crash Data'!$AN:$AN,"County Highway Agency",'Full Crash Data'!$G:$G,"Pedalcycles"),IF($B$2="Township Highway Agency",SUMIFS('Full Crash Data'!$U:$U,'Full Crash Data'!$C:$C,V$5,'Full Crash Data'!$AN:$AN,"Township Highway Agency",'Full Crash Data'!$G:$G,"Pedalcycles"),IF($B$2="City or Village Highway Agency",SUMIFS('Full Crash Data'!$U:$U,'Full Crash Data'!$C:$C,V$5,'Full Crash Data'!$AN:$AN,"City or Village Highway Agency",'Full Crash Data'!$G:$G,"Pedalcycles")))))) -> 0 | W20: =IFERROR(ROUND(V20/V$8,2),0) -> 0 | AE20: 20
